Workbook

Sheet Eingabe
A1: Datum | B1: FlugNr | C1: ICAO | D1: Flugzeug | E1: Fluggesellschaft | F1: Airport (Start) | G1: Stadt (Start) | H1: Land (Start) | I1: Airport (Ankunft) | J1: Land (Ankunft) | K1: Airport Ankunft | L1: Distanz | M1: Flugzeit | N1: Landungen | O1: Landerate
A2: 2025-09-12 | B2: IW12010 | C2: D-AIBC | D2: =VLOOKUP(C2,Flotte!A:B,2,0) -> Airbus A320 CFM_SL | E2: =VLOOKUP(C2,Flotte!A:C,3,0) -> inter-wings | F2: =VLOOKUP(B2,Routen!A:B, 2, 0) -> LJLJ | G2: =VLOOKUP(F2,Airports!$A$2:$G$1256,2,0) -> Ljubliana-Jože-Pučnik | H2: =VLOOKUP(F2,Airports!$A$2:$G$1256,4,0) -> Slowenien | I2: =VLOOKUP(B2,Routen!A:F, 6, 0) -> LATI | J2: =VLOOKUP(I2,Airports!$A$2:$G$1256,4,0) -> Albanien | K2: =VLOOKUP(I2,Airports!$A$2:$G$1256,2,0) -> Tirana | L2: 405 | M2: 01:00:00 | N2: =VLOOKUP(I2,Airports!$A$2:$F$1256,6,0) -> 1 | O2: 218
A3: 2025-09-13 | B3: IW12011 | C3: D-AIBC | D3: =VLOOKUP(C3,Flotte!A:B,2,0) -> Airbus A320 CFM_SL | E3: =VLOOKUP(C3,Flotte!A:C,3,0) -> inter-wings | F3: =VLOOKUP(B3,Routen!A:B, 2, 0) -> LATI | G3: =VLOOKUP(F3,Airports!$A$2:$G$1256,2,0) -> Tirana | H3: =VLOOKUP(F3,Airports!$A$2:$G$1256,4,0) -> Albanien | I3: =VLOOKUP(B3,Routen!A:F, 6, 0) -> LBBG | J3: =VLOOKUP(I3,Airports!$A$2:$G$1256,4,0) -> Bulgarien | K3: =VLOOKUP(I3,Airports!$A$2:$G$1256,2,0) -> Burgas | L3: 434 | M3: 01:06:00 | N3: =VLOOKUP(I3,Airports!$A$2:$F$1256,6,0) -> 1 | O3: 216
A4: 2025-09-13 | B4: IW12012 | C4: D-AIBC | D4: =VLOOKUP(C4,Flotte!A:B,2,0) -> Airbus A320 CFM_SL | E4: =VLOOKUP(C4,Flotte!A:C,3,0) -> inter-wings | F4: =VLOOKUP(B4,Routen!A:B, 2, 0) -> LBBG | G4: =VLOOKUP(F4,Airports!$A$2:$G$1256,2,0) -> Burgas | H4: =VLOOKUP(F4,Airports!$A$2:$G$1256,4,0) -> Bulgarien | I4: =VLOOKUP(B4,Routen!A:F, 6, 0) -> LGAV | J4: =VLOOKUP(I4,Airports!$A$2:$G$1256,4,0) -> Griechenland | K4: =VLOOKUP(I4,Airports!$A$2:$G$1256,2,0) -> Athen | L4: 431 | M4: 01:09:00 | N4: =VLOOKUP(I4,Airports!$A$2:$F$1256,6,0) -> 1 | O4: 211.5
A5: 2025-09-14 | B5: IW12013 | C5: D-AIBC | D5: =VLOOKUP(C5,Flotte!A:B,2,0) -> Airbus A320 CFM_SL | E5: =VLOOKUP(C5,Flotte!A:C,3,0) -> inter-wings | F5: =VLOOKUP(B5,Routen!A:B, 2, 0) -> LGAV | G5: =VLOOKUP(F5,Airports!$A$2:$G$1256,2,0) -> Athen | H5: =VLOOKUP(F5,Airports!$A$2:$G$1256,4,0) -> Griechenland | I5: =VLOOKUP(B5,Routen!A:F, 6, 0) -> LYBE | J5: =VLOOKUP(I5,Airports!$A$2:$G$1256,4,0) -> Serbien | K5: =VLOOKUP(I5,Airports!$A$2:$G$1256,2,0) -> Nikola Tesla Belgrad | L5: 530 | M5: 01:24:00 | N5: =VLOOKUP(I5,Airports!$A$2:$F$1256,6,0) -> 1 | O5: 218
A6: 2025-09-15 | B6: IW12014 | C6: D-AIBC | D6: =VLOOKUP(C6,Flotte!A:B,2,0) -> Airbus A320 CFM_SL | E6: =VLOOKUP(C6,Flotte!A:C,3,0) -> inter-wings | F6: =VLOOKUP(B6,Routen!A:B, 2, 0) -> LYBE | G6: =VLOOKUP(F6,Airports!$A$2:$G$1256,2,0) -> Nikola Tesla Belgrad | H6: =VLOOKUP(F6,Airports!$A$2:$G$1256,4,0) -> Serbien | I6: =VLOOKUP(B6,Routen!A:F, 6, 0) -> LGRP | J6: =VLOOKUP(I6,Airports!$A$2:$G$1256,4,0) -> Griechenland | K6: =VLOOKUP(I6,Airports!$A$2:$G$1256,2,0) -> Rhodos-Diagoras | L6: 673 | M6: 01:34:00 | N6: =VLOOKUP(I6,Airports!$A$2:$F$1256,6,0) -> 1 | O6: 212.4
A7: 2025-09-16 | B7: IW12015 | C7: D-AIBC | D7: =VLOOKUP(C7,Flotte!A:B,2,0) -> Airbus A320 CFM_SL | E7: =VLOOKUP(C7,Flotte!A:C,3,0) -> inter-wings | F7: =VLOOKUP(B7,Routen!A:B, 2, 0) -> LGRP | G7: =VLOOKUP(F7,Airports!$A$2:$G$1256,2,0) -> Rhodos-Diagoras | H7: =VLOOKUP(F7,Airports!$A$2:$G$1256,4,0) -> Griechenland | I7: =VLOOKUP(B7,Routen!A:F, 6, 0) -> LDDU | J7: =VLOOKUP(I7,Airports!$A$2:$G$1256,4,0) -> Kroatien | K7: =VLOOKUP(I7,Airports!$A$2:$G$1256,2,0) -> Dubrovnik | L7: 669 | M7: 01:51:00 | N7: =VLOOKUP(I7,Airports!$A$2:$F$1256,6,0) -> 2 | O7: 218
A8: 2025-09-16 | B8: IW12016 | C8: D-AIBC | D8: =VLOOKUP(C8,Flotte!A:B,2,0) -> Airbus A320 CFM_SL | E8: =VLOOKUP(C8,Flotte!A:C,3,0) -> inter-wings | F8: =VLOOKUP(B8,Routen!A:B, 2, 0) -> LDDU | G8: =VLOOKUP(F8,Airports!$A$2:$G$1256,2,0) -> Dubrovnik | H8: =VLOOKUP(F8,Airports!$A$2:$G$1256,4,0) -> Kroatien | I8: =VLOOKUP(B8,Routen!A:F, 6, 0) -> LBSF | J8: =VLOOKUP(I8,Airports!$A$2:$G$1256,4,0) -> Bulgarien | K8: =VLOOKUP(I8,Airports!$A$2:$G$1256,2,0) -> Sofia | L8: 296 | M8: 00:47:00 | N8: =VLOOKUP(I8,Airports!$A$2:$F$1256,6,0) -> 1 | O8: 217
A9: 2025-09-18 | B9: IW12017 | C9: D-AIBC | D9: =VLOOKUP(C9,Flotte!A:B,2,0) -> Airbus A320 CFM_SL | E9: =VLOOKUP(C9,Flotte!A:C,3,0) -> inter-wings | F9: =VLOOKUP(B9,Routen!A:B, 2, 0) -> LBSF | G9: =VLOOKUP(F9,Airports!$A$2:$G$1256,2,0) -> Sofia | H9: =VLOOKUP(F9,Airports!$A$2:$G$1256,4,0) -> Bulgarien | I9: =VLOOKUP(B9,Routen!A:F, 6, 0) -> LQSA | J9: =VLOOKUP(I9,Airports!$A$2:$G$1256,4,0) -> Bosnien & Herzegowina | K9: =VLOOKUP(I9,Airports!$A$2:$G$1256,2,0) -> Sarajevo | L9: 269 | M9: 00:49:00 | N9: =VLOOKUP(I9,Airports!$A$2:$F$1256,6,0) -> 1 | O9: 218
A10: 2025-09-20 | B10: IW12018 | C10: D-AIBC | D10: =VLOOKUP(C10,Flotte!A:B,2,0) -> Airbus A320 CFM_SL | E10: =VLOOKUP(C10,Flotte!A:C,3,0) -> inter-wings | F10: =VLOOKUP(B10,Routen!A:B, 2, 0) -> LQSA | G10: =VLOOKUP(F10,Airports!$A$2:$G$1256,2,0) -> Sarajevo | H10: =VLOOKUP(F10,Airports!$A$2:$G$1256,4,0) -> Bosnien & Herzegowina | I10: =VLOOKUP(B10,Routen!A:F, 6, 0) -> LBWN | J10: =VLOOKUP(I10,Airports!$A$2:$G$1256,4,0) -> Bulgarien | K10: =VLOOKUP(I10,Airports!$A$2:$G$1256,2,0) -> Varna | L10: 450 | M10: 01:12:00 | N10: =VLOOKUP(I10,Airports!$A$2:$F$1256,6,0) -> 1 | O10: 218
A11: 2025-09-22 | B11: IW12019 | C11: D-AIBC | D11: =VLOOKUP(C11,Flotte!A:B,2,0) -> Airbus A320 CFM_SL | E11: =VLOOKUP(C11,Flotte!A:C,3,0) -> inter-wings | F11: =VLOOKUP(B11,Routen!A:B, 2, 0) -> LBWN | G11: =VLOOKUP(F11,Airports!$A$2:$G$1256,2,0) -> Varna | H11: =VLOOKUP(F11,Airports!$A$2:$G$1256,4,0) -> Bulgarien | I11: =VLOOKUP(B11,Routen!A:F, 6, 0) -> LYTV | J11: =VLOOKUP(I11,Airports!$A$2:$G$1256,4,0) -> Montenegro | K11: =VLOOKUP(I11,Airports!$A$2:$G$1256,2,0) -> Tivat | L11: 432 | M11: 01:07:00 | N11: =VLOOKUP(I11,Airports!$A$2:$F$1256,6,0) -> 1 | O11: 212.3
A12: 2025-09-26 | B12: IW12020 | C12: D-AIBC | D12: =VLOOKUP(C12,Flotte!A:B,2,0) -> Airbus A320 CFM_SL | E12: =VLOOKUP(C12,Flotte!A:C,3,0) -> inter-wings | F12: =VLOOKUP(B12,Routen!A:B, 2, 0) -> LYTV | G12: =VLOOKUP(F12,Airports!$A$2:$G$1256,2,0) -> Tivat | H12: =VLOOKUP(F12,Airports!$A$2:$G$1256,4,0) -> Montenegro | I12: =VLOOKUP(B12,Routen!A:F, 6, 0) -> LDZA | J12: =VLOOKUP(I12,Airports!$A$2:$G$1256,4,0) -> Kroatien | K12: =VLOOKUP(I12,Airports!$A$2:$G$1256,2,0) -> Zagreb | L12: 274 | M12: 00:48:00 | N12: =VLOOKUP(I12,Airports!$A$2:$F$1256,6,0) -> 3 | O12: 218
A13: 2025-09-27 | B13: IW12021 | C13: D-AIBC | D13: =VLOOKUP(C13,Flotte!A:B,2,0) -> Airbus A320 CFM_SL | E13: =VLOOKUP(C13,Flotte!A:C,3,0) -> inter-wings | F13: =VLOOKUP(B13,Routen!A:B, 2, 0) -> LDZA | G13: =VLOOKUP(F13,Airports!$A$2:$G$1256,2,0) -> Zagreb | H13: =VLOOKUP(F13,Airports!$A$2:$G$1256,4,0) -> Kroatien | I13: =VLOOKUP(B13,Routen!A:F, 6, 0) -> LGTS | J13: =VLOOKUP(I13,Airports!$A$2:$G$1256,4,0) -> Griechenland | K13: =VLOOKUP(I13,Airports!$A$2:$G$1256,2,0) -> Thessaloniki | L13: 447 | M13: 01:10:00 | N13: =VLOOKUP(I13,Airports!$A$2:$F$1256,6,0) -> 1 | O13: 210.6
A14: 2025-09-27 | B14: IW12022 | C14: D-AIBC | D14: =VLOOKUP(C14,Flotte!A:B,2,0) -> Airbus A320 CFM_SL | E14: =VLOOKUP(C14,Flotte!A:C,3,0) -> inter-wings | F14: =VLOOKUP(B14,Routen!A:B, 2, 0) -> LGTS | G14: =VLOOKUP(F14,Airports!$A$2:$G$1256,2,0) -> Thessaloniki | H14: =VLOOKUP(F14,Airports!$A$2:$G$1256,4,0) -> Griechenland | I14: =VLOOKUP(B14,Routen!A:F, 6, 0) -> LYPG | J14: =VLOOKUP(I14,Airports!$A$2:$G$1256,4,0) -> Montenegro | K14: =VLOOKUP(I14,Airports!$A$2:$G$1256,2,0) -> Podgorica | L14: 254 | M14: 00:50:00 | N14: =VLOOKUP(I14,Airports!$A$2:$F$1256,6,0) -> 1 | O14: 213.4
A15: 2025-09-28 | B15: IW12023 | C15: D-AIBC | D15: =VLOOKUP(C15,Flotte!A:B,2,0) -> Airbus A320 CFM_SL | E15: =VLOOKUP(C15,Flotte!A:C,3,0) -> inter-wings | F15: =VLOOKUP(B15,Routen!A:B, 2, 0) -> LYPG | G15: =VLOOKUP(F15,Airports!$A$2:$G$1256,2,0) -> Podgorica | H15: =VLOOKUP(F15,Airports!$A$2:$G$1256,4,0) -> Montenegro | I15: =VLOOKUP(B15,Routen!A:F, 6, 0) -> LDSP | J15: =VLOOKUP(I15,Airports!$A$2:$G$1256,4,0) -> Kroatien | K15: =VLOOKUP(I15,Airports!$A$2:$G$1256,2,0) -> Split | L15: 225 | M15: 00:44:00 | N15: =VLOOKUP(I15,Airports!$A$2:$F$1256,6,0) -> 1 | O15: 218
A16: 2025-09-28 | B16: IW12024 | C16: D-AIBC | D16: =VLOOKUP(C16,Flotte!A:B,2,0) -> Airbus A320 CFM_SL | E16: =VLOOKUP(C16,Flotte!A:C,3,0) -> inter-wings | F16: =VLOOKUP(B16,Routen!A:B, 2, 0) -> LDSP | G16: =VLOOKUP(F16,Airports!$A$2:$G$1256,2,0) -> Split | H16: =VLOOKUP(F16,Airports!$A$2:$G$1256,4,0) -> Kroatien | I16: =VLOOKUP(B16,Routen!A:F, 6, 0) -> BKPR | J16: =VLOOKUP(I16,Airports!$A$2:$G$1256,4,0) -> Kosovo | K16: =VLOOKUP(I16,Airports!$A$2:$G$1256,2,0) -> Adem Jashari/Pristina | L16: 355 | M16: 01:15:00 | N16: =VLOOKUP(I16,Airports!$A$2:$F$1256,6,0) -> 1 | O16: 218
A17: 2025-09-29 | B17: IW12025 | C17: D-AIBC | D17: =VLOOKUP(C17,Flotte!A:B,2,0) -> Airbus A320 CFM_SL | E17: =VLOOKUP(C17,Flotte!A:C,3,0) -> inter-wings | F17: =VLOOKUP(B17,Routen!A:B, 2, 0) -> BKPR | G17: =VLOOKUP(F17,Airports!$A$2:$G$1256,2,0) -> Adem Jashari/Pristina | H17: =VLOOKUP(F17,Airports!$A$2:$G$1256,4,0) -> Kosovo | I17: =VLOOKUP(B17,Routen!A:F, 6, 0) -> LJLJ | J17: =VLOOKUP(I17,Airports!$A$2:$G$1256,4,0) -> Slowenien | K17: =VLOOKUP(I17,Airports!$A$2:$G$1256,2,0) -> Ljubliana-Jože-Pučnik | L17: 491 | M17: 01:32:00 | N17: =VLOOKUP(I17,Airports!$A$2:$F$1256,6,0) -> 1 | O17: 218
A18: 2025-09-20 | B18: T55001 | C18: D-AIBC | D18: =VLOOKUP(C18,Flotte!A:B,2,0) -> Airbus A320 CFM_SL | E18: =VLOOKUP(C18,Flotte!A:C,3,0) -> inter-wings | F18: =VLOOKUP(B18,Routen!A:B, 2, 0) ->  | G18: =VLOOKUP(F18,Airports!$A$2:$G$1256,2,0) ->  | H18: =VLOOKUP(F18,Airports!$A$2:$G$1256,4,0) ->  | I18: =VLOOKUP(B18,Routen!A:F, 6, 0) ->  | J18: =VLOOKUP(I18,Airports!$A$2:$G$1256,4,0) ->  | K18: =VLOOKUP(I18,Airports!$A$2:$G$1256,2,0) ->  | L18: 417 | M18: 01:04:00 | N18: =VLOOKUP(I18,Airports!$A$2:$F$1256,6,0) ->  | O18: 218
A19: 2025-09-20 | B19: T55002 | C19: D-AIBC | D19: =VLOOKUP(C19,Flotte!A:B,2,0) -> Airbus A320 CFM_SL | E19: =VLOOKUP(C19,Flotte!A:C,3,0) -> inter-wings | F19: =VLOOKUP(B19,Routen!A:B, 2, 0) ->  | G19: =VLOOKUP(F19,Airports!$A$2:$G$1256,2,0) ->  | H19: =VLOOKUP(F19,Airports!$A$2:$G$1256,4,0) ->  | I19: =VLOOKUP(B19,Routen!A:F, 6, 0) ->  | J19: =VLOOKUP(I19,Airports!$A$2:$G$1256,4,0) ->  | K19: =VLOOKUP(I19,Airports!$A$2:$G$1256,2,0) ->  | L19: 596 | M19: 01:29:00 | N19: =VLOOKUP(I19,Airports!$A$2:$F$1256,6,0) ->  | O19: 218
A20: 2025-09-26 | B20: T55003 | C20: D-AIBC | D20: =VLOOKUP(C20,Flotte!A:B,2,0) -> Airbus A320 CFM_SL | E20: =VLOOKUP(C20,Flotte!A:C,3,0) -> inter-wings | F20: =VLOOKUP(B20,Routen!A:B, 2, 0) ->  | G20: =VLOOKUP(F20,Airports!$A$2:$G$1256,2,0) ->  | H20: =VLOOKUP(F20,Airports!$A$2:$G$1256,4,0) ->  | I20: =VLOOKUP(B20,Routen!A:F, 6, 0) ->  | J20: =VLOOKUP(I20,Airports!$A$2:$G$1256,4,0) ->  | K20: =VLOOKUP(I20,Airports!$A$2:$G$1256,2,0) ->  | L20: 559 | M20: 01:27:00 | N20: =VLOOKUP(I20,Airports!$A$2:$F$1256,6,0) ->  | O20: 218
A21: 2025-09-29 | B21: T55004 | C21: D-AIBC | D21: =VLOOKUP(C21,Flotte!A:B,2,0) -> Airbus A320 CFM_SL | E21: =VLOOKUP(C21,Flotte!A:C,3,0) -> inter-wings | F21: =VLOOKUP(B21,Routen!A:B, 2, 0) ->  | G21: =VLOOKUP(F21,Airports!$A$2:$G$1256,2,0) ->  | H21: =VLOOKUP(F21,Airports!$A$2:$G$1256,4,0) ->  | I21: =VLOOKUP(B21,Routen!A:F, 6, 0) ->  | J21: =VLOOKUP(I21,Airports!$A$2:$G$1256,4,0) ->  | K21: =VLOOKUP(I21,Airports!$A$2:$G$1256,2,0) ->  | L21: 546 | M21: 01:23:00 | N21: =VLOOKUP(I21,Airports!$A$2:$F$1256,6,0) ->  | O21: 218
A22: 2025-10-10 | B22: T55005 | C22: D-AIAC | D22: =VLOOKUP(C22,Flotte!A:B,2,0) -> Airbus A319 CFM_SL | E22: =VLOOKUP(C22,Flotte!A:C,3,0) -> inter-wings | F22: =VLOOKUP(B22,Routen!A:B, 2, 0) ->  | G22: =VLOOKUP(F22,Airports!$A$2:$G$1256,2,0) ->  | H22: =VLOOKUP(F22,Airports!$A$2:$G$1256,4,0) ->  | I22: =VLOOKUP(B22,Routen!A:F, 6, 0) ->  | J22: =VLOOKUP(I22,Airports!$A$2:$G$1256,4,0) ->  | K22: =VLOOKUP(I22,Airports!$A$2:$G$1256,2,0) ->  | L22: 530 | M22: 01:24:00 | N22: =VLOOKUP(I22,Airports!$A$2:$F$1256,6,0) ->  | O22: 218
A23: 2025-10-28 | B23: T55006 | C23: D-AIAC | D23: =VLOOKUP(C23,Flotte!A:B,2,0) -> Airbus A319 CFM_SL | E23: =VLOOKUP(C23,Flotte!A:C,3,0) -> inter-wings | F23: =VLOOKUP(B23,Routen!A:B, 2, 0) ->  | G23: =VLOOKUP(F23,Airports!$A$2:$G$1256,2,0) ->  | H23: =VLOOKUP(F23,Airports!$A$2:$G$1256,4,0) ->  | I23: =VLOOKUP(B23,Routen!A:F, 6, 0) ->  | J23: =VLOOKUP(I23,Airports!$A$2:$G$1256,4,0) ->  | K23: =VLOOKUP(I23,Airports!$A$2:$G$1256,2,0) ->  | L23: 348 | M23: 00:56:00 | N23: =VLOOKUP(I23,Airports!$A$2:$F$1256,6,0) ->  | O23: 211.1
A24: 2025-11-10 | B24: T55007 | C24: D-AIBC | D24: =VLOOKUP(C24,Flotte!A:B,2,0) -> Airbus A320 CFM_SL | E24: =VLOOKUP(C24,Flotte!A:C,3,0) -> inter-wings | F24: =VLOOKUP(B24,Routen!A:B, 2, 0) ->  | G24: =VLOOKUP(F24,Airports!$A$2:$G$1256,2,0) ->  | H24: =VLOOKUP(F24,Airports!$A$2:$G$1256,4,0) ->  | I24: =VLOOKUP(B24,Routen!A:F, 6, 0) ->  | J24: =VLOOKUP(I24,Airports!$A$2:$G$1256,4,0) ->  | K24: =VLOOKUP(I24,Airports!$A$2:$G$1256,2,0) ->  | L24: 329 | M24: 00:55:00 | N24: =VLOOKUP(I24,Airports!$A$2:$F$1256,6,0) ->  | O24: 212.26
A25: 2025-11-14 | B25: T55008 | C25: D-AIBC | D25: =VLOOKUP(C25,Flotte!A:B,2,0) -> Airbus A320 CFM_SL | E25: =VLOOKUP(C25,Flotte!A:C,3,0) -> inter-wings | F25: =VLOOKUP(B25,Routen!A:B, 2, 0) ->  | G25: =VLOOKUP(F25,Airports!$A$2:$G$1256,2,0) ->  | H25: =VLOOKUP(F25,Airports!$A$2:$G$1256,4,0) ->  | I25: =VLOOKUP(B25,Routen!A:F, 6, 0) ->  | J25: =VLOOKUP(I25,Airports!$A$2:$G$1256,4,0) ->  | K25: =VLOOKUP(I25,Airports!$A$2:$G$1256,2,0) ->  | L25: 506 | M25: 01:22:00 | N25: =VLOOKUP(I25,Airports!$A$2:$F$1256,6,0) ->  | O25: 214
A26: 2025-11-14 | B26: T55009 | C26: D-AIBC | D26: =VLOOKUP(C26,Flotte!A:B,2,0) -> Airbus A320 CFM_SL | E26: =VLOOKUP(C26,Flotte!A:C,3,0) -> inter-wings | F26: =VLOOKUP(B26,Routen!A:B, 2, 0) ->  | G26: =VLOOKUP(F26,Airports!$A$2:$G$1256,2,0) ->  | H26: =VLOOKUP(F26,Airports!$A$2:$G$1256,4,0) ->  | I26: =VLOOKUP(B26,Routen!A:F, 6, 0) ->  | J26: =VLOOKUP(I26,Airports!$A$2:$G$1256,4,0) ->  | K26: =VLOOKUP(I26,Airports!$A$2:$G$1256,2,0) ->  | L26: 586 | M26: 01:28:00 | N26: =VLOOKUP(I26,Airports!$A$2:$F$1256,6,0) ->  | O26: 215
A27: 2025-11-16 | B27: T55010 | C27: D-AIBC | D27: =VLOOKUP(C27,Flotte!A:B,2,0) -> Airbus A320 CFM_SL | E27: =VLOOKUP(C27,Flotte!A:C,3,0) -> inter-wings | F27: =VLOOKUP(B27,Routen!A:B, 2, 0) ->  | G27: =VLOOKUP(F27,Airports!$A$2:$G$1256,2,0) ->  | H27: =VLOOKUP(F27,Airports!$A$2:$G$1256,4,0) ->  | I27: =VLOOKUP(B27,Routen!A:F, 6, 0) ->  | J27: =VLOOKUP(I27,Airports!$A$2:$G$1256,4,0) ->  | K27: =VLOOKUP(I27,Airports!$A$2:$G$1256,2,0) ->  | L27: 397 | M27: 01:03:00 | N27: =VLOOKUP(I27,Airports!$A$2:$F$1256,6,0) ->  | O27: 216
A28: 2025-11-18 | B28: T55011 | C28: D-AIBC | D28: =VLOOKUP(C28,Flotte!A:B,2,0) -> Airbus A320 CFM_SL | E28: =VLOOKUP(C28,Flotte!A:C,3,0) -> inter-wings | F28: =VLOOKUP(B28,Routen!A:B, 2, 0) ->  | G28: =VLOOKUP(F28,Airports!$A$2:$G$1256,2,0) ->  | H28: =VLOOKUP(F28,Airports!$A$2:$G$1256,4,0) ->  | I28: =VLOOKUP(B28,Routen!A:F, 6, 0) ->  | J28: =VLOOKUP(I28,Airports!$A$2:$G$1256,4,0) ->  | K28: =VLOOKUP(I28,Airports!$A$2:$G$1256,2,0) ->  | L28: 548 | M28: 01:29:00 | N28: =VLOOKUP(I28,Airports!$A$2:$F$1256,6,0) ->  | O28: 218
A29: 2025-11-21 | B29: T55012 | C29: D-AIBC | D29: =VLOOKUP(C29,Flotte!A:B,2,0) -> Airbus A320 CFM_SL | E29: =VLOOKUP(C29,Flotte!A:C,3,0) -> inter-wings | F29: =VLOOKUP(B29,Routen!A:B, 2, 0) ->  | G29: =VLOOKUP(F29,Airports!$A$2:$G$1256,2,0) ->  | H29: =VLOOKUP(F29,Airports!$A$2:$G$1256,4,0) ->  | I29: =VLOOKUP(B29,Routen!A:F, 6, 0) ->  | J29: =VLOOKUP(I29,Airports!$A$2:$G$1256,4,0) ->  | K29: =VLOOKUP(I29,Airports!$A$2:$G$1256,2,0) ->  | L29: 837 | M29: 02:02:00 | N29: =VLOOKUP(I29,Airports!$A$2:$F$1256,6,0) ->  | O29: 218
A30: 2025-12-02 | B30: T55013 | C30: D-AIBC | D30: =VLOOKUP(C30,Flotte!A:B,2,0) -> Airbus A320 CFM_SL | E30: =VLOOKUP(C30,Flotte!A:C,3,0) -> inter-wings | F30: =VLOOKUP(B30,Routen!A:B, 2, 0) ->  | G30: =VLOOKUP(F30,Airports!$A$2:$G$1256,2,0) ->  | H30: =VLOOKUP(F30,Airports!$A$2:$G$1256,4,0) ->  | I30: =VLOOKUP(B30,Routen!A:F, 6, 0) ->  | J30: =VLOOKUP(I30,Airports!$A$2:$G$1256,4,0) ->  | K30: =VLOOKUP(I30,Airports!$A$2:$G$1256,2,0) ->  | L30: 439 | M30: 01:09:00 | N30: =VLOOKUP(I30,Airports!$A$2:$F$1256,6,0) ->  | O30: 212
A31: 2025-12-11 | B31: T55014 | C31: D-AIBC | D31: =VLOOKUP(C31,Flotte!A:B,2,0) -> Airbus A320 CFM_SL | E31: =VLOOKUP(C31,Flotte!A:C,3,0) -> inter-wings | F31: =VLOOKUP(B31,Routen!A:B, 2, 0) ->  | G31: =VLOOKUP(F31,Airports!$A$2:$G$1256,2,0) ->  | H31: =VLOOKUP(F31,Airports!$A$2:$G$1256,4,0) ->  | I31: =VLOOKUP(B31,Routen!A:F, 6, 0) ->  | J31: =VLOOKUP(I31,Airports!$A$2:$G$1256,4,0) ->  | K31: =VLOOKUP(I31,Airports!$A$2:$G$1256,2,0) ->  | L31: 587 | M31: 01:29:00 | N31: =VLOOKUP(I31,Airports!$A$2:$F$1256,6,0) ->  | O31: 218
A32: 2025-12-11 | B32: T55015 | C32: D-AIBC | D32: =VLOOKUP(C32,Flotte!A:B,2,0) -> Airbus A320 CFM_SL | E32: =VLOOKUP(C32,Flotte!A:C,3,0) -> inter-wings | F32: =VLOOKUP(B32,Routen!A:B, 2, 0) ->  | G32: =VLOOKUP(F32,Airports!$A$2:$G$1256,2,0) ->  | H32: =VLOOKUP(F32,Airports!$A$2:$G$1256,4,0) ->  | I32: =VLOOKUP(B32,Routen!A:F, 6, 0) ->  | J32: =VLOOKUP(I32,Airports!$A$2:$G$1256,4,0) ->  | K32: =VLOOKUP(I32,Airports!$A$2:$G$1256,2,0) ->  | L32: 302 | M32: 00:48:00 | N32: =VLOOKUP(I32,Airports!$A$2:$F$1256,6,0) ->  | O32: 213
A33: 2025-12-17 | B33: T55016 | C33: D-AIBC | D33: =VLOOKUP(C33,Flotte!A:B,2,0) -> Airbus A320 CFM_SL | E33: =VLOOKUP(C33,Flotte!A:C,3,0) -> inter-wings | F33: =VLOOKUP(B33,Routen!A:B, 2, 0) ->  | G33: =VLOOKUP(F33,Airports!$A$2:$G$1256,2,0) ->  | H33: =VLOOKUP(F33,Airports!$A$2:$G$1256,4,0) ->  | I33: =VLOOKUP(B33,Routen!A:F, 6, 0) ->  | J33: =VLOOKUP(I33,Airports!$A$2:$G$1256,4,0) ->  | K33: =VLOOKUP(I33,Airports!$A$2:$G$1256,2,0) ->  | L33: 321 | M33: 00:53:00 | N33: =VLOOKUP(I33,Airports!$A$2:$F$1256,6,0) ->  | O33: 213.24
A34: 2025-12-22 | B34: T55017 | C34: D-AIBC | D34: =VLOOKUP(C34,Flotte!A:B,2,0) -> Airbus A320 CFM_SL | E34: =VLOOKUP(C34,Flotte!A:C,3,0) -> inter-wings | F34: =VLOOKUP(B34,Routen!A:B, 2, 0) ->  | G34: =VLOOKUP(F34,Airports!$A$2:$G$1256,2,0) ->  | H34: =VLOOKUP(F34,Airports!$A$2:$G$1256,4,0) ->  | I34: =VLOOKUP(B34,Routen!A:F, 6, 0) ->  | J34: =VLOOKUP(I34,Airports!$A$2:$G$1256,4,0) ->  | K34: =VLOOKUP(I34,Airports!$A$2:$G$1256,2,0) ->  | L34: 550 | M34: 01:39:00 | N34: =VLOOKUP(I34,Airports!$A$2:$F$1256,6,0) ->  | O34: 214.37
A35: 2025-12-22 | B35: T55018 | C35: D-AIBC | D35: =VLOOKUP(C35,Flotte!A:B,2,0) -> Airbus A320 CFM_SL | E35: =VLOOKUP(C35,Flotte!A:C,3,0) -> inter-wings | F35: =VLOOKUP(B35,Routen!A:B, 2, 0) ->  | G35: =VLOOKUP(F35,Airports!$A$2:$G$1256,2,0) ->  | H35: =VLOOKUP(F35,Airports!$A$2:$G$1256,4,0) ->  | I35: =VLOOKUP(B35,Routen!A:F, 6, 0) ->  | J35: =VLOOKUP(I35,Airports!$A$2:$G$1256,4,0) ->  | K35: =VLOOKUP(I35,Airports!$A$2:$G$1256,2,0) ->  | L35: 448 | M35: 01:15:00 | N35: =VLOOKUP(I35,Airports!$A$2:$F$1256,6,0) ->  | O35: 215.5
A36: 2025-12-23 | B36: T55019 | C36: D-AIBC | D36: =VLOOKUP(C36,Flotte!A:B,2,0) -> Airbus A320 CFM_SL | E36: =VLOOKUP(C36,Flotte!A:C,3,0) -> inter-wings | F36: =VLOOKUP(B36,Routen!A:B, 2, 0) ->  | G36: =VLOOKUP(F36,Airports!$A$2:$G$1256,2,0) ->  | H36: =VLOOKUP(F36,Airports!$A$2:$G$1256,4,0) ->  | I36: =VLOOKUP(B36,Routen!A:F, 6, 0) ->  | J36: =VLOOKUP(I36,Airports!$A$2:$G$1256,4,0) ->  | K36: =VLOOKUP(I36,Airports!$A$2:$G$1256,2,0) ->  | L36: 804 | M36: 02:08:00 | N36: =VLOOKUP(I36,Airports!$A$2:$F$1256,6,0) ->  | O36: 214
A37: 2025-11-22 | B37: T55100 | C37: D-AIBC | D37: =VLOOKUP(C37,Flotte!A:B,2,0) -> Airbus A320 CFM_SL | E37: =VLOOKUP(C37,Flotte!A:C,3,0) -> inter-wings | F37: =VLOOKUP(B37,Routen!A:B, 2, 0) ->  | G37: =VLOOKUP(F37,Airports!$A$2:$G$1256,2,0) ->  | H37: =VLOOKUP(F37,Airports!$A$2:$G$1256,4,0) ->  | I37: =VLOOKUP(B37,Routen!A:F, 6, 0) ->  | J37: =VLOOKUP(I37,Airports!$A$2:$G$1256,4,0) ->  | K37: =VLOOKUP(I37,Airports!$A$2:$G$1256,2,0) ->  | L37: 735 | M37: 01:51:00 | N37: =VLOOKUP(I37,Airports!$A$2:$F$1256,6,0) ->  | O37: 218
A38: 2025-11-23 | B38: T55101 | C38: D-AIBC | D38: =VLOOKUP(C38,Flotte!A:B,2,0) -> Airbus A320 CFM_SL | E38: =VLOOKUP(C38,Flotte!A:C,3,0) -> inter-wings | F38: =VLOOKUP(B38,Routen!A:B, 2, 0) ->  | G38: =VLOOKUP(F38,Airports!$A$2:$G$1256,2,0) ->  | H38: =VLOOKUP(F38,Airports!$A$2:$G$1256,4,0) ->  | I38: =VLOOKUP(B38,Routen!A:F, 6, 0) ->  | J38: =VLOOKUP(I38,Airports!$A$2:$G$1256,4,0) ->  | K38: =VLOOKUP(I38,Airports!$A$2:$G$1256,2,0) ->  | L38: 669 | M38: 01:42:00 | N38: =VLOOKUP(I38,Airports!$A$2:$F$1256,6,0) ->  | O38: 217
A39: 2025-11-23 | B39: T55102 | C39: D-AIBC | D39: =VLOOKUP(C39,Flotte!A:B,2,0) -> Airbus A320 CFM_SL | E39: =VLOOKUP(C39,Flotte!A:C,3,0) -> inter-wings | F39: =VLOOKUP(B39,Routen!A:B, 2, 0) ->  | G39: =VLOOKUP(F39,Airports!$A$2:$G$1256,2,0) ->  | H39: =VLOOKUP(F39,Airports!$A$2:$G$1256,4,0) ->  | I39: =VLOOKUP(B39,Routen!A:F, 6, 0) ->  | J39: =VLOOKUP(I39,Airports!$A$2:$G$1256,4,0) ->  | K39: =VLOOKUP(I39,Airports!$A$2:$G$1256,2,0) ->  | L39: 577 | M39: 01:32:00 | N39: =VLOOKUP(I39,Airports!$A$2:$F$1256,6,0) ->  | O39: 216
A40: 2025-11-24 | B40: T55103 | C40: D-AIBC | D40: =VLOOKUP(C40,Flotte!A:B,2,0) -> Airbus A320 CFM_SL | E40: =VLOOKUP(C40,Flotte!A:C,3,0) -> inter-wings | F40: =VLOOKUP(B40,Routen!A:B, 2, 0) ->  | G40: =VLOOKUP(F40,Airports!$A$2:$G$1256,2,0) ->  | H40: =VLOOKUP(F40,Airports!$A$2:$G$1256,4,0) ->  | I40: =VLOOKUP(B40,Routen!A:F, 6, 0) ->  | J40: =VLOOKUP(I40,Airports!$A$2:$G$1256,4,0) ->  | K40: =VLOOKUP(I40,Airports!$A$2:$G$1256,2,0) ->  | L40: 493 | M40: 01:19:00 | N40: =VLOOKUP(I40,Airports!$A$2:$F$1256,6,0) ->  | O40: 215
A41: 2025-11-25 | B41: T55104 | C41: D-AIBC | D41: =VLOOKUP(C41,Flotte!A:B,2,0) -> Airbus A320 CFM_SL | E41: =VLOOKUP(C41,Flotte!A:C,3,0) -> inter-wings | F41: =VLOOKUP(B41,Routen!A:B, 2, 0) ->  | G41: =VLOOKUP(F41,Airports!$A$2:$G$1256,2,0) ->  | H41: =VLOOKUP(F41,Airports!$A$2:$G$1256,4,0) ->  | I41: =VLOOKUP(B41,Routen!A:F, 6, 0) ->  | J41: =VLOOKUP(I41,Airports!$A$2:$G$1256,4,0) ->  | K41: =VLOOKUP(I41,Airports!$A$2:$G$1256,2,0) ->  | L41: 530 | M41: 01:15:00 | N41: =VLOOKUP(I41,Airports!$A$2:$F$1256,6,0) ->  | O41: 214
A42: 2025-11-25 | B42: T55105 | C42: D-AIBC | D42: =VLOOKUP(C42,Flotte!A:B,2,0) -> Airbus A320 CFM_SL | E42: =VLOOKUP(C42,Flotte!A:C,3,0) -> inter-wings | F42: =VLOOKUP(B42,Routen!A:B, 2, 0) ->  | G42: =VLOOKUP(F42,Airports!$A$2:$G$1256,2,0) ->  | H42: =VLOOKUP(F42,Airports!$A$2:$G$1256,4,0) ->  | I42: =VLOOKUP(B42,Routen!A:F, 6, 0) ->  | J42: =VLOOKUP(I42,Airports!$A$2:$G$1256,4,0) ->  | K42: =VLOOKUP(I42,Airports!$A$2:$G$1256,2,0) ->  | L42: 850 | M42: 02:04:00 | N42: =VLOOKUP(I42,Airports!$A$2:$F$1256,6,0) ->  | O42: 213
A43: 2025-11-25 | B43: T55106 | C43: D-AIBC | D43: =VLOOKUP(C43,Flotte!A:B,2,0) -> Airbus A320 CFM_SL | E43: =VLOOKUP(C43,Flotte!A:C,3,0) -> inter-wings | F43: =VLOOKUP(B43,Routen!A:B, 2, 0) ->  | G43: =VLOOKUP(F43,Airports!$A$2:$G$1256,2,0) ->  | H43: =VLOOKUP(F43,Airports!$A$2:$G$1256,4,0) ->  | I43: =VLOOKUP(B43,Routen!A:F, 6, 0) ->  | J43: =VLOOKUP(I43,Airports!$A$2:$G$1256,4,0) ->  | K43: =VLOOKUP(I43,Airports!$A$2:$G$1256,2,0) ->  | L43: 917 | M43: 02:14:00 | N43: =VLOOKUP(I43,Airports!$A$2:$F$1256,6,0) ->  | O43: 212
A44: 2025-11-26 | B44: T55107 | C44: D-AIBC | D44: =VLOOKUP(C44,Flotte!A:B,2,0) -> Airbus A320 CFM_SL | E44: =VLOOKUP(C44,Flotte!A:C,3,0) -> inter-wings | F44: =VLOOKUP(B44,Routen!A:B, 2, 0) ->  | G44: =VLOOKUP(F44,Airports!$A$2:$G$1256,2,0) ->  | H44: =VLOOKUP(F44,Airports!$A$2:$G$1256,4,0) ->  | I44: =VLOOKUP(B44,Routen!A:F, 6, 0) ->  | J44: =VLOOKUP(I44,Airports!$A$2:$G$1256,4,0) ->  | K44: =VLOOKUP(I44,Airports!$A$2:$G$1256,2,0) ->  | L44: 910 | M44: 02:08:00 | N44: =VLOOKUP(I44,Airports!$A$2:$F$1256,6,0) ->  | O44: 211
A45: 2025-11-26 | B45: T55108 | C45: D-AIBC | D45: =VLOOKUP(C45,Flotte!A:B,2,0) -> Airbus A320 CFM_SL | E45: =VLOOKUP(C45,Flotte!A:C,3,0) -> inter-wings | F45: =VLOOKUP(B45,Routen!A:B, 2, 0) ->  | G45: =VLOOKUP(F45,Airports!$A$2:$G$1256,2,0) ->  | H45: =VLOOKUP(F45,Airports!$A$2:$G$1256,4,0) ->  | I45: =VLOOKUP(B45,Routen!A:F, 6, 0) ->  | J45: =VLOOKUP(I45,Airports!$A$2:$G$1256,4,0) ->  | K45: =VLOOKUP(I45,Airports!$A$2:$G$1256,2,0) ->  | L45: 1242 | M45: 02:37:00 | N45: =VLOOKUP(I45,Airports!$A$2:$F$1256,6,0) ->  | O45: 210
A46: 2025-11-27 | B46: T55109 | C46: D-AIBC | D46: =VLOOKUP(C46,Flotte!A:B,2,0) -> Airbus A320 CFM_SL | E46: =VLOOKUP(C46,Flotte!A:C,3,0) -> inter-wings | F46: =VLOOKUP(B46,Routen!A:B, 2, 0) ->  | G46: =VLOOKUP(F46,Airports!$A$2:$G$1256,2,0) ->  | H46: =VLOOKUP(F46,Airports!$A$2:$G$1256,4,0) ->  | I46: =VLOOKUP(B46,Routen!A:F, 6, 0) ->  | J46: =VLOOKUP(I46,Airports!$A$2:$G$1256,4,0) ->  | K46: =VLOOKUP(I46,Airports!$A$2:$G$1256,2,0) ->  | L46: 779 | M46: 02:14:00 | N46: =VLOOKUP(I46,Airports!$A$2:$F$1256,6,0) ->  | O46: 209
A47: 2025-11-27 | B47: T55110 | C47: D-AIBC | D47: =VLOOKUP(C47,Flotte!A:B,2,0) -> Airbus A320 CFM_SL | E47: =VLOOKUP(C47,Flotte!A:C,3,0) -> inter-wings | F47: =VLOOKUP(B47,Routen!A:B, 2, 0) ->  | G47: =VLOOKUP(F47,Airports!$A$2:$G$1256,2,0) ->  | H47: =VLOOKUP(F47,Airports!$A$2:$G$1256,4,0) ->  | I47: =VLOOKUP(B47,Routen!A:F, 6, 0) ->  | J47: =VLOOKUP(I47,Airports!$A$2:$G$1256,4,0) ->  | K47: =VLOOKUP(I47,Airports!$A$2:$G$1256,2,0) ->  | L47: 1474 | M47: 04:15:00 | N47: =VLOOKUP(I47,Airports!$A$2:$F$1256,6,0) ->  | O47: 208
A48: 2025-11-28 | B48: T55111 | C48: D-AIBC | D48: =VLOOKUP(C48,Flotte!A:B,2,0) -> Airbus A320 CFM_SL | E48: =VLOOKUP(C48,Flotte!A:C,3,0) -> inter-wings | F48: =VLOOKUP(B48,Routen!A:B, 2, 0) ->  | G48: =VLOOKUP(F48,Airports!$A$2:$G$1256,2,0) ->  | H48: =VLOOKUP(F48,Airports!$A$2:$G$1256,4,0) ->  | I48: =VLOOKUP(B48,Routen!A:F, 6, 0) ->  | J48: =VLOOKUP(I48,Airports!$A$2:$G$1256,4,0) ->  | K48: =VLOOKUP(I48,Airports!$A$2:$G$1256,2,0) ->  | L48: 1111 | M48: 02:21:00 | N48: =VLOOKUP(I48,Airports!$A$2:$F$1256,6,0) ->  | O48: 207
A49: 2026-01-24 | B49: T55200 | C49: D-AIAC | D49: =VLOOKUP(C49,Flotte!A:B,2,0) -> Airbus A319 CFM_SL | E49: =VLOOKUP(C49,Flotte!A:C,3,0) -> inter-wings | F49: =VLOOKUP(B49,Routen!A:B, 2, 0) ->  | G49: =VLOOKUP(F49,Airports!$A$2:$G$1256,2,0) ->  | H49: =VLOOKUP(F49,Airports!$A$2:$G$1256,4,0) ->  | I49: =VLOOKUP(B49,Routen!A:F, 6, 0) ->  | J49: =VLOOKUP(I49,Airports!$A$2:$G$1256,4,0) ->  | K49: =VLOOKUP(I49,Airports!$A$2:$G$1256,2,0) ->  | L49: 274 | M49: 01:05:00 | N49: =VLOOKUP(I49,Airports!$A$2:$F$1256,6,0) ->  | O49: 380.6
A50: 2026-01-25 | B50: IW12050 | C50: D-AIAC | D50: =VLOOKUP(C50,Flotte!A:B,2,0) -> Airbus A319 CFM_SL | E50: =VLOOKUP(C50,Flotte!A:C,3,0) -> inter-wings | F50: =VLOOKUP(B50,Routen!A:B, 2, 0) -> EDDK | G50: =VLOOKUP(F50,Airports!$A$2:$G$1256,2,0) -> Köln | H50: =VLOOKUP(F50,Airports!$A$2:$G$1256,4,0) -> Deutschland | I50: =VLOOKUP(B50,Routen!A:F, 6, 0) -> LIMC | J50: =VLOOKUP(I50,Airports!$A$2:$G$1256,4,0) -> Italien | K50: =VLOOKUP(I50,Airports!$A$2:$G$1256,2,0) -> Mailand-Malpensa | L50: 453 | M50: 01:29:00 | N50: =VLOOKUP(I50,Airports!$A$2:$F$1256,6,0) -> 2 | O50: 182.73
A51: 2026-01-27 | B51: IW12059 | C51: D-AIAC | D51: =VLOOKUP(C51,Flotte!A:B,2,0) -> Airbus A319 CFM_SL | E51: =VLOOKUP(C51,Flotte!A:C,3,0) -> inter-wings | F51: =VLOOKUP(B51,Routen!A:B, 2, 0) -> LIMC | G51: =VLOOKUP(F51,Airports!$A$2:$G$1256,2,0) -> Mailand-Malpensa | H51: =VLOOKUP(F51,Airports!$A$2:$G$1256,4,0) -> Italien | I51: =VLOOKUP(B51,Routen!A:F, 6, 0) -> EDDM | J51: =VLOOKUP(I51,Airports!$A$2:$G$1256,4,0) -> Deutschland | K51: =VLOOKUP(I51,Airports!$A$2:$G$1256,2,0) -> München | L51: 263 | M51: 01:10:00 | N51: =VLOOKUP(I51,Airports!$A$2:$F$1256,6,0) -> 3 | O51: 402.78
A52: 2026-01-29 | B52: IW12052 | C52: D-AIBC | D52: =VLOOKUP(C52,Flotte!A:B,2,0) -> Airbus A320 CFM_SL | E52: =VLOOKUP(C52,Flotte!A:C,3,0) -> inter-wings | F52: =VLOOKUP(B52,Routen!A:B, 2, 0) -> EDDM | G52: =VLOOKUP(F52,Airports!$A$2:$G$1256,2,0) -> München | H52: =VLOOKUP(F52,Airports!$A$2:$G$1256,4,0) -> Deutschland | I52: =VLOOKUP(B52,Routen!A:F, 6, 0) -> LEPA | J52: =VLOOKUP(I52,Airports!$A$2:$G$1256,4,0) -> Spanien | K52: =VLOOKUP(I52,Airports!$A$2:$G$1256,2,0) -> Palma de Mallorca | L52: 725 | M52: 02:09:00 | N52: =VLOOKUP(I52,Airports!$A$2:$F$1256,6,0) -> 3 | O52: 291.38
A53: 2026-01-31 | B53: IW12051 | C53: D-AIBC | D53: =VLOOKUP(C53,Flotte!A:B,2,0) -> Airbus A320 CFM_SL | E53: =VLOOKUP(C53,Flotte!A:C,3,0) -> inter-wings | F53: =VLOOKUP(B53,Routen!A:B, 2, 0) -> LEPA | G53: =VLOOKUP(F53,Airports!$A$2:$G$1256,2,0) -> Palma de Mallorca | H53: =VLOOKUP(F53,Airports!$A$2:$G$1256,4,0) -> Spanien | I53: =VLOOKUP(B53,Routen!A:F, 6, 0) -> EDDS | J53: =VLOOKUP(I53,Airports!$A$2:$G$1256,4,0) -> Deutschland | K53: =VLOOKUP(I53,Airports!$A$2:$G$1256,2,0) -> Stuttgart | L53: 679 | M53: 02:01:00 | N53: =VLOOKUP(I53,Airports!$A$2:$F$1256,6,0) -> 1 | O53: 264.22
A54: 2026-02-02 | B54: IW12109 | C54: D-AIBC | D54: =VLOOKUP(C54,Flotte!A:B,2,0) -> Airbus A320 CFM_SL | E54: =VLOOKUP(C54,Flotte!A:C,3,0) -> inter-wings | F54: =VLOOKUP(B54,Routen!A:B, 2, 0) -> EDDS | G54: =VLOOKUP(F54,Airports!$A$2:$G$1256,2,0) -> Stuttgart | H54: =VLOOKUP(F54,Airports!$A$2:$G$1256,4,0) -> Deutschland | I54: =VLOOKUP(B54,Routen!A:F, 6, 0) -> LDZA | J54: =VLOOKUP(I54,Airports!$A$2:$G$1256,4,0) -> Kroatien | K54: =VLOOKUP(I54,Airports!$A$2:$G$1256,2,0) -> Zagreb | L54: 390 | M54: 01:18:00 | N54: =VLOOKUP(I54,Airports!$A$2:$F$1256,6,0) -> 3 | O54: 268.99
A55: 2026-02-04 | B55: IW12004 | C55: D-AIBC | D55: =VLOOKUP(C55,Flotte!A:B,2,0) -> Airbus A320 CFM_SL | E55: =VLOOKUP(C55,Flotte!A:C,3,0) -> inter-wings | F55: =VLOOKUP(B55,Routen!A:B, 2, 0) -> LDZA | G55: =VLOOKUP(F55,Airports!$A$2:$G$1256,2,0) -> Zagreb | H55: =VLOOKUP(F55,Airports!$A$2:$G$1256,4,0) -> Kroatien | I55: =VLOOKUP(B55,Routen!A:F, 6, 0) -> EDDG | J55: =VLOOKUP(I55,Airports!$A$2:$G$1256,4,0) -> Deutschland | K55: =VLOOKUP(I55,Airports!$A$2:$G$1256,2,0) -> Münster-Osnabrück | L55: 678 | M55: 02:06:00 | N55: =VLOOKUP(I55,Airports!$A$2:$F$1256,6,0) -> 1 | O55: 251.56
A56: 2026-02-06 | B56: IW12003 | C56: D-AIBC | D56: =VLOOKUP(C56,Flotte!A:B,2,0) -> Airbus A320 CFM_SL | E56: =VLOOKUP(C56,Flotte!A:C,3,0) -> inter-wings | F56: =VLOOKUP(B56,Routen!A:B, 2, 0) -> EDDG | G56: =VLOOKUP(F56,Airports!$A$2:$G$1256,2,0) -> Münster-Osnabrück | H56: =VLOOKUP(F56,Airports!$A$2:$G$1256,4,0) -> Deutschland | I56: =VLOOKUP(B56,Routen!A:F, 6, 0) -> LEMG | J56: =VLOOKUP(I56,Airports!$A$2:$G$1256,4,0) -> Spanien | K56: =VLOOKUP(I56,Airports!$A$2:$G$1256,2,0) -> Malaga - Costa del Sol | L56: 1192 | M56: 03:24:00 | N56: =VLOOKUP(I56,Airports!$A$2:$F$1256,6,0) -> 1 | O56: 222.71
A57: 2026-02-07 | B57: IW12054 | C57: D-AIBC | D57: =VLOOKUP(C57,Flotte!A:B,2,0) -> Airbus A320 CFM_SL | E57: =VLOOKUP(C57,Flotte!A:C,3,0) -> inter-wings | F57: =VLOOKUP(B57,Routen!A:B, 2, 0) -> LEMG | G57: =VLOOKUP(F57,Airports!$A$2:$G$1256,2,0) -> Malaga - Costa del Sol | H57: =VLOOKUP(F57,Airports!$A$2:$G$1256,4,0) -> Spanien | I57: =VLOOKUP(B57,Routen!A:F, 6, 0) -> EDDM | J57: =VLOOKUP(I57,Airports!$A$2:$G$1256,4,0) -> Deutschland | K57: =VLOOKUP(I57,Airports!$A$2:$G$1256,2,0) -> München | L57: 1074 | M57: 02:41:00 | N57: =VLOOKUP(I57,Airports!$A$2:$F$1256,6,0) -> 3 | O57: 495.85
A58: 2026-02-08 | B58: IW12053 | C58: D-AIBC | D58: =VLOOKUP(C58,Flotte!A:B,2,0) -> Airbus A320 CFM_SL | E58: =VLOOKUP(C58,Flotte!A:C,3,0) -> inter-wings | F58: =VLOOKUP(B58,Routen!A:B, 2, 0) -> EDDM | G58: =VLOOKUP(F58,Airports!$A$2:$G$1256,2,0) -> München | H58: =VLOOKUP(F58,Airports!$A$2:$G$1256,4,0) -> Deutschland | I58: =VLOOKUP(B58,Routen!A:F, 6, 0) -> LFPO | J58: =VLOOKUP(I58,Airports!$A$2:$G$1256,4,0) -> Frankreich | K58: =VLOOKUP(I58,Airports!$A$2:$G$1256,2,0) -> Paris Orly | L58: 484 | M58: 01:42:00 | N58: =VLOOKUP(I58,Airports!$A$2:$F$1256,6,0) -> 1 | O58: 212.84
A59: 2026-02-09 | B59: IW12037 | C59: D-AIBC | D59: =VLOOKUP(C59,Flotte!A:B,2,0) -> Airbus A320 CFM_SL | E59: =VLOOKUP(C59,Flotte!A:C,3,0) -> inter-wings | F59: =VLOOKUP(B59,Routen!A:B, 2, 0) -> LFPO | G59: =VLOOKUP(F59,Airports!$A$2:$G$1256,2,0) -> Paris Orly | H59: =VLOOKUP(F59,Airports!$A$2:$G$1256,4,0) -> Frankreich | I59: =VLOOKUP(B59,Routen!A:F, 6, 0) -> EDDL | J59: =VLOOKUP(I59,Airports!$A$2:$G$1256,4,0) -> Deutschland | K59: =VLOOKUP(I59,Airports!$A$2:$G$1256,2,0) -> Düsseldorf (Original) | L59: 266 | M59: 01:07:00 | N59: =VLOOKUP(I59,Airports!$A$2:$F$1256,6,0) -> 46 | O59: 302.03
A60: 2026-02-12 | B60: IW12036 | C60: D-AIBC | D60: =VLOOKUP(C60,Flotte!A:B,2,0) -> Airbus A320 CFM_SL | E60: =VLOOKUP(C60,Flotte!A:C,3,0) -> inter-wings | F60: =VLOOKUP(B60,Routen!A:B, 2, 0) -> EDDL | G60: =VLOOKUP(F60,Airports!$A$2:$G$1256,2,0) -> Düsseldorf (Original) | H60: =VLOOKUP(F60,Airports!$A$2:$G$1256,4,0) -> Deutschland | I60: =VLOOKUP(B60,Routen!A:F, 6, 0) -> LDDU | J60: =VLOOKUP(I60,Airports!$A$2:$G$1256,4,0) -> Kroatien | K60: =VLOOKUP(I60,Airports!$A$2:$G$1256,2,0) -> Dubrovnik | L60: 803 | M60: 02:13:00 | N60: =VLOOKUP(I60,Airports!$A$2:$F$1256,6,0) -> 2 | O60: 136.66
A61: 2026-02-13 | B61: IW12047 | C61: D-AIBC | D61: =VLOOKUP(C61,Flotte!A:B,2,0) -> Airbus A320 CFM_SL | E61: =VLOOKUP(C61,Flotte!A:C,3,0) -> inter-wings | F61: =VLOOKUP(B61,Routen!A:B, 2, 0) -> LDDU | G61: =VLOOKUP(F61,Airports!$A$2:$G$1256,2,0) -> Dubrovnik | H61: =VLOOKUP(F61,Airports!$A$2:$G$1256,4,0) -> Kroatien | I61: =VLOOKUP(B61,Routen!A:F, 6, 0) -> EDDM | J61: =VLOOKUP(I61,Airports!$A$2:$G$1256,4,0) -> Deutschland | K61: =VLOOKUP(I61,Airports!$A$2:$G$1256,2,0) -> München | L61: 470 | M61: 01:33:00 | N61: =VLOOKUP(I61,Airports!$A$2:$F$1256,6,0) -> 3 | O61: 264.04
A62: 2026-02-15 | B62: IW12026 | C62: D-AIBC | D62: =VLOOKUP(C62,Flotte!A:B,2,0) -> Airbus A320 CFM_SL | E62: =VLOOKUP(C62,Flotte!A:C,3,0) -> inter-wings | F62: =VLOOKUP(B62,Routen!A:B, 2, 0) -> EDDM | G62: =VLOOKUP(F62,Airports!$A$2:$G$1256,2,0) -> München | H62: =VLOOKUP(F62,Airports!$A$2:$G$1256,4,0) -> Deutschland | I62: =VLOOKUP(B62,Routen!A:F, 6, 0) -> LEMD | J62: =VLOOKUP(I62,Airports!$A$2:$G$1256,4,0) -> Spanien | K62: =VLOOKUP(I62,Airports!$A$2:$G$1256,2,0) -> Madrid - Barajas | L62: 889 | M62: 02:46:00 | N62: =VLOOKUP(I62,Airports!$A$2:$F$1256,6,0) -> 1 | O62: 152.55
A63: 2026-02-16 | B63: IW12031 | C63: D-AIBC | D63: =VLOOKUP(C63,Flotte!A:B,2,0) -> Airbus A320 CFM_SL | E63: =VLOOKUP(C63,Flotte!A:C,3,0) -> inter-wings | F63: =VLOOKUP(B63,Routen!A:B, 2, 0) -> LEMD | G63: =VLOOKUP(F63,Airports!$A$2:$G$1256,2,0) -> Madrid - Barajas | H63: =VLOOKUP(F63,Airports!$A$2:$G$1256,4,0) -> Spanien | I63: =VLOOKUP(B63,Routen!A:F, 6, 0) -> EDDL | J63: =VLOOKUP(I63,Airports!$A$2:$G$1256,4,0) -> Deutschland | K63: =VLOOKUP(I63,Airports!$A$2:$G$1256,2,0) -> Düsseldorf (Original) | L63: 879 | M63: 02:30:00 | N63: =VLOOKUP(I63,Airports!$A$2:$F$1256,6,0) -> 46 | O63: 354.99
A64: 2026-02-17 | B64: IW12055 | C64: D-AIBC | D64: =VLOOKUP(C64,Flotte!A:B,2,0) -> Airbus A320 CFM_SL | E64: =VLOOKUP(C64,Flotte!A:C,3,0) -> inter-wings | F64: =VLOOKUP(B64,Routen!A:B, 2, 0) -> EDDL | G64: =VLOOKUP(F64,Airports!$A$2:$G$1256,2,0) -> Düsseldorf (Original) | H64: =VLOOKUP(F64,Airports!$A$2:$G$1256,4,0) -> Deutschland | I64: =VLOOKUP(B64,Routen!A:F, 6, 0) -> EDDB | J64: =VLOOKUP(I64,Airports!$A$2:$G$1256,4,0) -> Deutschland | K64: =VLOOKUP(I64,Airports!$A$2:$G$1256,2,0) -> Berlin-Brandenburg | L64: 328 | M64: 01:15:00 | N64: =VLOOKUP(I64,Airports!$A$2:$F$1256,6,0) -> 1 | O64: 416.3
A65: 2026-02-20 | B65: IW12056 | C65: D-AIBC | D65: =VLOOKUP(C65,Flotte!A:B,2,0) -> Airbus A320 CFM_SL | E65: =VLOOKUP(C65,Flotte!A:C,3,0) -> inter-wings | F65: =VLOOKUP(B65,Routen!A:B, 2, 0) -> EDDB | G65: =VLOOKUP(F65,Airports!$A$2:$G$1256,2,0) -> Berlin-Brandenburg | H65: =VLOOKUP(F65,Airports!$A$2:$G$1256,4,0) -> Deutschland | I65: =VLOOKUP(B65,Routen!A:F, 6, 0) -> ENGM | J65: =VLOOKUP(I65,Airports!$A$2:$G$1256,4,0) -> Norwegen | K65: =VLOOKUP(I65,Airports!$A$2:$G$1256,2,0) -> Oslo-Gardermoen | L65: 614 | M65: 02:04:00 | N65: =VLOOKUP(I65,Airports!$A$2:$F$1256,6,0) -> 1 | O65: 445.97
A66: 2026-02-21 | B66: IW12049 | C66: D-AIBC | D66: =VLOOKUP(C66,Flotte!A:B,2,0) -> Airbus A320 CFM_SL | E66: =VLOOKUP(C66,Flotte!A:C,3,0) -> inter-wings | F66: =VLOOKUP(B66,Routen!A:B, 2, 0) -> ENGM | G66: =VLOOKUP(F66,Airports!$A$2:$G$1256,2,0) -> Oslo-Gardermoen | H66: =VLOOKUP(F66,Airports!$A$2:$G$1256,4,0) -> Norwegen | I66: =VLOOKUP(B66,Routen!A:F, 6, 0) -> EDDK | J66: =VLOOKUP(I66,Airports!$A$2:$G$1256,4,0) -> Deutschland | K66: =VLOOKUP(I66,Airports!$A$2:$G$1256,2,0) -> Köln | L66: 635 | M66: 02:04:00 | N66: =VLOOKUP(I66,Airports!$A$2:$F$1256,6,0) -> 1 | O66: 448.42
A67: 2026-02-23 | B67: IW12050 | C67: D-AIBC | D67: =VLOOKUP(C67,Flotte!A:B,2,0) -> Airbus A320 CFM_SL | E67: =VLOOKUP(C67,Flotte!A:C,3,0) -> inter-wings | F67: =VLOOKUP(B67,Routen!A:B, 2, 0) -> EDDK | G67: =VLOOKUP(F67,Airports!$A$2:$G$1256,2,0) -> Köln | H67: =VLOOKUP(F67,Airports!$A$2:$G$1256,4,0) -> Deutschland | I67: =VLOOKUP(B67,Routen!A:F, 6, 0) -> LIMC | J67: =VLOOKUP(I67,Airports!$A$2:$G$1256,4,0) -> Italien | K67: =VLOOKUP(I67,Airports!$A$2:$G$1256,2,0) -> Mailand-Malpensa | L67: 421 | M67: 01:19:00 | N67: =VLOOKUP(I67,Airports!$A$2:$F$1256,6,0) -> 2 | O67: 223.65
A68: 2026-02-24 | B68: IW12104 | C68: D-AIBC | D68: =VLOOKUP(C68,Flotte!A:B,2,0) -> Airbus A320 CFM_SL | E68: =VLOOKUP(C68,Flotte!A:C,3,0) -> inter-wings | F68: =VLOOKUP(B68,Routen!A:B, 2, 0) -> LIRI | G68: =VLOOKUP(F68,Airports!$A$2:$G$1256,2,0) -> Salerno | H68: =VLOOKUP(F68,Airports!$A$2:$G$1256,4,0) -> Italien | I68: =VLOOKUP(B68,Routen!A:F, 6, 0) -> EDDL | J68: =VLOOKUP(I68,Airports!$A$2:$G$1256,4,0) -> Deutschland | K68: =VLOOKUP(I68,Airports!$A$2:$G$1256,2,0) -> Düsseldorf (Original) | L68: 491 | M68: 01:35:00 | N68: =VLOOKUP(I68,Airports!$A$2:$F$1256,6,0) -> 46 | O68: 272.19
A69: 2026-02-25 | B69: IW12111 | C69: D-AIBC | D69: =VLOOKUP(C69,Flotte!A:B,2,0) -> Airbus A320 CFM_SL | E69: =VLOOKUP(C69,Flotte!A:C,3,0) -> inter-wings | F69: =VLOOKUP(B69,Routen!A:B, 2, 0) -> EDDP | G69: =VLOOKUP(F69,Airports!$A$2:$G$1256,2,0) -> Leipzig-Halle | H69: =VLOOKUP(F69,Airports!$A$2:$G$1256,4,0) -> Deutschland | I69: =VLOOKUP(B69,Routen!A:F, 6, 0) -> LEPA | J69: =VLOOKUP(I69,Airports!$A$2:$G$1256,4,0) -> Spanien | K69: =VLOOKUP(I69,Airports!$A$2:$G$1256,2,0) -> Palma de Mallorca | L69: 916 | M69: 02:31:00 | N69: =VLOOKUP(I69,Airports!$A$2:$F$1256,6,0) -> 3 | O69: 87.46
A70: 2026-02-27 | B70: IW12006 | C70: D-AIBC | D70: =VLOOKUP(C70,Flotte!A:B,2,0) -> Airbus A320 CFM_SL | E70: =VLOOKUP(C70,Flotte!A:C,3,0) -> inter-wings | F70: =VLOOKUP(B70,Routen!A:B, 2, 0) -> LEPA | G70: =VLOOKUP(F70,Airports!$A$2:$G$1256,2,0) -> Palma de Mallorca | H70: =VLOOKUP(F70,Airports!$A$2:$G$1256,4,0) -> Spanien | I70: =VLOOKUP(B70,Routen!A:F, 6, 0) -> EDLP | J70: =VLOOKUP(I70,Airports!$A$2:$G$1256,4,0) -> Deutschland | K70: =VLOOKUP(I70,Airports!$A$2:$G$1256,2,0) -> Paderborn-Lippstadt | L70: 917 | M70: 03:31:00 | N70: =VLOOKUP(I70,Airports!$A$2:$F$1256,6,0) -> 1 | O70: 274.8
A71: 2026-02-28 | B71: IW12005 | C71: D-AIBC | D71: =VLOOKUP(C71,Flotte!A:B,2,0) -> Airbus A320 CFM_SL | E71: =VLOOKUP(C71,Flotte!A:C,3,0) -> inter-wings | F71: =VLOOKUP(B71,Routen!A:B, 2, 0) -> EDLP | G71: =VLOOKUP(F71,Airports!$A$2:$G$1256,2,0) -> Paderborn-Lippstadt | H71: =VLOOKUP(F71,Airports!$A$2:$G$1256,4,0) -> Deutschland | I71: =VLOOKUP(B71,Routen!A:F, 6, 0) -> LIRF | J71: =VLOOKUP(I71,Airports!$A$2:$G$1256,4,0) -> Italien | K71: =VLOOKUP(I71,Airports!$A$2:$G$1256,2,0) -> Rom-Fiumicino | L71: 659 | M71: 01:59:00 | N71: =VLOOKUP(I71,Airports!$A$2:$F$1256,6,0) -> 2 | O71: 198.84
A72: 2026-03-10 | B72: IW12002 | C72: D-AIBC | D72: =VLOOKUP(C72,Flotte!A:B,2,0) -> Airbus A320 CFM_SL | E72: =VLOOKUP(C72,Flotte!A:C,3,0) -> inter-wings | F72: =VLOOKUP(B72,Routen!A:B, 2, 0) -> EDDL | G72: =VLOOKUP(F72,Airports!$A$2:$G$1256,2,0) -> Düsseldorf (Original) | H72: =VLOOKUP(F72,Airports!$A$2:$G$1256,4,0) -> Deutschland | I72: =VLOOKUP(B72,Routen!A:F, 6, 0) -> LTAI | J72: =VLOOKUP(I72,Airports!$A$2:$G$1256,4,0) -> Türkei | K72: =VLOOKUP(I72,Airports!$A$2:$G$1256,2,0) -> Antalya | L72: 1390 | M72: 03:33:00 | N72: =VLOOKUP(I72,Airports!$A$2:$F$1256,6,0) -> 1 | O72: 221.35
A73: 2026-03-11 | B73: IW12034 | C73: D-AIBC | D73: =VLOOKUP(C73,Flotte!A:B,2,0) -> Airbus A320 CFM_SL | E73: =VLOOKUP(C73,Flotte!A:C,3,0) -> inter-wings | F73: =VLOOKUP(B73,Routen!A:B, 2, 0) -> LTAI | G73: =VLOOKUP(F73,Airports!$A$2:$G$1256,2,0) -> Antalya | H73: =VLOOKUP(F73,Airports!$A$2:$G$1256,4,0) -> Türkei | I73: =VLOOKUP(B73,Routen!A:F, 6, 0) -> EDDL | J73: =VLOOKUP(I73,Airports!$A$2:$G$1256,4,0) -> Deutschland | K73: =VLOOKUP(I73,Airports!$A$2:$G$1256,2,0) -> Düsseldorf (Original) | L73: 1409 | M73: 03:48:00 | N73: =VLOOKUP(I73,Airports!$A$2:$F$1256,6,0) -> 46 | O73: 276.27
A74: 2026-03-16 | B74: IW12027 | C74: D-AIBC | D74: =VLOOKUP(C74,Flotte!A:B,2,0) -> Airbus A320 CFM_SL | E74: =VLOOKUP(C74,Flotte!A:C,3,0) -> inter-wings | F74: =VLOOKUP(B74,Routen!A:B, 2, 0) -> EDDM | G74: =VLOOKUP(F74,Airports!$A$2:$G$1256,2,0) -> München | H74: =VLOOKUP(F74,Airports!$A$2:$G$1256,4,0) -> Deutschland | I74: =VLOOKUP(B74,Routen!A:F, 6, 0) -> LEVC | J74: =VLOOKUP(I74,Airports!$A$2:$G$1256,4,0) -> Spanien | K74: =VLOOKUP(I74,Airports!$A$2:$G$1256,2,0) -> Valencia | L74: 833 | M74: 02:17:00 | N74: =VLOOKUP(I74,Airports!$A$2:$F$1256,6,0) -> 1 | O74: 131.57
A75: 2026-03-18 | B75: IW12057 | C75: D-AIBC | D75: =VLOOKUP(C75,Flotte!A:B,2,0) -> Airbus A320 CFM_SL | E75: =VLOOKUP(C75,Flotte!A:C,3,0) -> inter-wings | F75: =VLOOKUP(B75,Routen!A:B, 2, 0) -> LEVC | G75: =VLOOKUP(F75,Airports!$A$2:$G$1256,2,0) -> Valencia | H75: =VLOOKUP(F75,Airports!$A$2:$G$1256,4,0) -> Spanien | I75: =VLOOKUP(B75,Routen!A:F, 6, 0) -> EDDV | J75: =VLOOKUP(I75,Airports!$A$2:$G$1256,4,0) -> Deutschland | K75: =VLOOKUP(I75,Airports!$A$2:$G$1256,2,0) -> Hannover | L75: 944 | M75: 02:42:00 | N75: =VLOOKUP(I75,Airports!$A$2:$F$1256,6,0) -> 1 | O75: 303.69
A76: 2026-03-19 | B76: IW12058 | C76: D-AIBC | D76: =VLOOKUP(C76,Flotte!A:B,2,0) -> Airbus A320 CFM_SL | E76: =VLOOKUP(C76,Flotte!A:C,3,0) -> inter-wings | F76: =VLOOKUP(B76,Routen!A:B, 2, 0) -> EDDV | G76: =VLOOKUP(F76,Airports!$A$2:$G$1256,2,0) -> Hannover | H76: =VLOOKUP(F76,Airports!$A$2:$G$1256,4,0) -> Deutschland | I76: =VLOOKUP(B76,Routen!A:F, 6, 0) -> LDZA | J76: =VLOOKUP(I76,Airports!$A$2:$G$1256,4,0) -> Kroatien | K76: =VLOOKUP(I76,Airports!$A$2:$G$1256,2,0) -> Zagreb | L76: 567 | M76: 01:36:00 | N76: =VLOOKUP(I76,Airports!$A$2:$F$1256,6,0) -> 3 | O76: 233.17
A77: 2026-03-19 | B77: IW12032 | C77: D-AIBC | D77: =VLOOKUP(C77,Flotte!A:B,2,0) -> Airbus A320 CFM_SL | E77: =VLOOKUP(C77,Flotte!A:C,3,0) -> inter-wings | F77: =VLOOKUP(B77,Routen!A:B, 2, 0) -> LDZA | G77: =VLOOKUP(F77,Airports!$A$2:$G$1256,2,0) -> Zagreb | H77: =VLOOKUP(F77,Airports!$A$2:$G$1256,4,0) -> Kroatien | I77: =VLOOKUP(B77,Routen!A:F, 6, 0) -> EDDL | J77: =VLOOKUP(I77,Airports!$A$2:$G$1256,4,0) -> Deutschland | K77: =VLOOKUP(I77,Airports!$A$2:$G$1256,2,0) -> Düsseldorf (Original) | L77: 559 | M77: 01:45:00 | N77: =VLOOKUP(I77,Airports!$A$2:$F$1256,6,0) -> 46 | O77: 119.91
A78: 2026-03-20 | B78: IW12001 | C78: D-AIBC | D78: =VLOOKUP(C78,Flotte!A:B,2,0) -> Airbus A320 CFM_SL | E78: =VLOOKUP(C78,Flotte!A:C,3,0) -> inter-wings | F78: =VLOOKUP(B78,Routen!A:B, 2, 0) -> EDDL | G78: =VLOOKUP(F78,Airports!$A$2:$G$1256,2,0) -> Düsseldorf (Original) | H78: =VLOOKUP(F78,Airports!$A$2:$G$1256,4,0) -> Deutschland | I78: =VLOOKUP(B78,Routen!A:F, 6, 0) -> LICA | J78: =VLOOKUP(I78,Airports!$A$2:$G$1256,4,0) -> Italien | K78: =VLOOKUP(I78,Airports!$A$2:$G$1256,2,0) -> Lamezia Terme | L78: 923 | M78: 02:38:00 | N78: =VLOOKUP(I78,Airports!$A$2:$F$1256,6,0) -> 1 | O78: 198.42
A79: 2026-03-22 | B79: IW12044 | C79: D-AIAC | D79: =VLOOKUP(C79,Flotte!A:B,2,0) -> Airbus A319 CFM_SL | E79: =VLOOKUP(C79,Flotte!A:C,3,0) -> inter-wings | F79: =VLOOKUP(B79,Routen!A:B, 2, 0) -> EDDL | G79: =VLOOKUP(F79,Airports!$A$2:$G$1256,2,0) -> Düsseldorf (Original) | H79: =VLOOKUP(F79,Airports!$A$2:$G$1256,4,0) -> Deutschland | I79: =VLOOKUP(B79,Routen!A:F, 6, 0) -> LIBF | J79: =VLOOKUP(I79,Airports!$A$2:$G$1256,4,0) -> Italien | K79: =VLOOKUP(I79,Airports!$A$2:$G$1256,2,0) -> Foggia | L79: 746 | M79: 02:16:00 | N79: =VLOOKUP(I79,Airports!$A$2:$F$1256,6,0) -> 1 | O79: 189.76
A80: 2026-03-22 | B80: IW12045 | C80: D-AIAC | D80: =VLOOKUP(C80,Flotte!A:B,2,0) -> Airbus A319 CFM_SL | E80: =VLOOKUP(C80,Flotte!A:C,3,0) -> inter-wings | F80: =VLOOKUP(B80,Routen!A:B, 2, 0) -> LIBF | G80: =VLOOKUP(F80,Airports!$A$2:$G$1256,2,0) -> Foggia | H80: =VLOOKUP(F80,Airports!$A$2:$G$1256,4,0) -> Italien | I80: =VLOOKUP(B80,Routen!A:F, 6, 0) -> EDDL | J80: =VLOOKUP(I80,Airports!$A$2:$G$1256,4,0) -> Deutschland | K80: =VLOOKUP(I80,Airports!$A$2:$G$1256,2,0) -> Düsseldorf (Original) | L80: 716 | M80: 02:01:00 | N80: =VLOOKUP(I80,Airports!$A$2:$F$1256,6,0) -> 46 | O80: 203.45
A81: 2026-03-23 | B81: IW12048 | C81: D-AIAC | D81: =VLOOKUP(C81,Flotte!A:B,2,0) -> Airbus A319 CFM_SL | E81: =VLOOKUP(C81,Flotte!A:C,3,0) -> inter-wings | F81: =VLOOKUP(B81,Routen!A:B, 2, 0) -> EDDL | G81: =VLOOKUP(F81,Airports!$A$2:$G$1256,2,0) -> Düsseldorf (Original) | H81: =VLOOKUP(F81,Airports!$A$2:$G$1256,4,0) -> Deutschland | I81: =VLOOKUP(B81,Routen!A:F, 6, 0) -> LIBP | J81: =VLOOKUP(I81,Airports!$A$2:$G$1256,4,0) -> Italien | K81: =VLOOKUP(I81,Airports!$A$2:$G$1256,2,0) -> Pescara | L81: 656 | M81: 01:53:00 | N81: =VLOOKUP(I81,Airports!$A$2:$F$1256,6,0) -> 1 | O81: 210.78
A82: 2026-03-23 | B82: IW12112 | C82: D-AIAC | D82: =VLOOKUP(C82,Flotte!A:B,2,0) -> Airbus A319 CFM_SL | E82: =VLOOKUP(C82,Flotte!A:C,3,0) -> inter-wings | F82: =VLOOKUP(B82,Routen!A:B, 2, 0) -> LIBP | G82: =VLOOKUP(F82,Airports!$A$2:$G$1256,2,0) -> Pescara | H82: =VLOOKUP(F82,Airports!$A$2:$G$1256,4,0) -> Italien | I82: =VLOOKUP(B82,Routen!A:F, 6, 0) -> EDDL | J82: =VLOOKUP(I82,Airports!$A$2:$G$1256,4,0) -> Deutschland | K82: =VLOOKUP(I82,Airports!$A$2:$G$1256,2,0) -> Düsseldorf (Original) | L82: 661 | M82: 02:26:00 | N82: =VLOOKUP(I82,Airports!$A$2:$F$1256,6,0) -> 46 | O82: 349.33
A83: 2026-03-24 | B83: IW12113 | C83: D-AIAC | D83: =VLOOKUP(C83,Flotte!A:B,2,0) -> Airbus A319 CFM_SL | E83: =VLOOKUP(C83,Flotte!A:C,3,0) -> inter-wings | F83: =VLOOKUP(B83,Routen!A:B, 2, 0) -> EDDL | G83: =VLOOKUP(F83,Airports!$A$2:$G$1256,2,0) -> Düsseldorf (Original) | H83: =VLOOKUP(F83,Airports!$A$2:$G$1256,4,0) -> Deutschland | I83: =VLOOKUP(B83,Routen!A:F, 6, 0) -> LIBC | J83: =VLOOKUP(I83,Airports!$A$2:$G$1256,4,0) -> Italien | K83: =VLOOKUP(I83,Airports!$A$2:$G$1256,2,0) -> Crotone / Kalabrien | L83: 952 | M83: 11720 | N83: =VLOOKUP(I83,Airports!$A$2:$F$1256,6,0) -> 1 | O83: 77.74
A84: 2026-03-24 | B84: IW12114 | C84: D-AIAC | D84: =VLOOKUP(C84,Flotte!A:B,2,0) -> Airbus A319 CFM_SL | E84: =VLOOKUP(C84,Flotte!A:C,3,0) -> inter-wings | F84: =VLOOKUP(B84,Routen!A:B, 2, 0) -> LIBC | G84: =VLOOKUP(F84,Airports!$A$2:$G$1256,2,0) -> Crotone / Kalabrien | H84: =VLOOKUP(F84,Airports!$A$2:$G$1256,4,0) -> Italien | I84: =VLOOKUP(B84,Routen!A:F, 6, 0) -> EDDL | J84: =VLOOKUP(I84,Airports!$A$2:$G$1256,4,0) -> Deutschland | K84: =VLOOKUP(I84,Airports!$A$2:$G$1256,2,0) -> Düsseldorf (Original) | L84: 953 | M84: 11720.04167 | N84: =VLOOKUP(I84,Airports!$A$2:$F$1256,6,0) -> 46 | O84: 157.25
A85: 2026-03-24 | B85: IW12115 | C85: D-AIAC | D85: =VLOOKUP(C85,Flotte!A:B,2,0) -> Airbus A319 CFM_SL | E85: =VLOOKUP(C85,Flotte!A:C,3,0) -> inter-wings | F85: =VLOOKUP(B85,Routen!A:B, 2, 0) -> EDDL | G85: =VLOOKUP(F85,Airports!$A$2:$G$1256,2,0) -> Düsseldorf (Original) | H85: =VLOOKUP(F85,Airports!$A$2:$G$1256,4,0) -> Deutschland | I85: =VLOOKUP(B85,Routen!A:F, 6, 0) -> LIPX | J85: =VLOOKUP(I85,Airports!$A$2:$G$1256,4,0) -> Italien | K85: =VLOOKUP(I85,Airports!$A$2:$G$1256,2,0) -> Verona-Villafranca | L85: 463 | M85: 01:19:00 | N85: =VLOOKUP(I85,Airports!$A$2:$F$1256,6,0) -> 1 | O85: 301.77
A86: 2026-03-24 | B86: IW12116 | C86: D-AIAC | D86: =VLOOKUP(C86,Flotte!A:B,2,0) -> Airbus A319 CFM_SL | E86: =VLOOKUP(C86,Flotte!A:C,3,0) -> inter-wings | F86: =VLOOKUP(B86,Routen!A:B, 2, 0) -> LIPX | G86: =VLOOKUP(F86,Airports!$A$2:$G$1256,2,0) -> Verona-Villafranca | H86: =VLOOKUP(F86,Airports!$A$2:$G$1256,4,0) -> Italien | I86: =VLOOKUP(B86,Routen!A:F, 6, 0) -> EDDL | J86: =VLOOKUP(I86,Airports!$A$2:$G$1256,4,0) -> Deutschland | K86: =VLOOKUP(I86,Airports!$A$2:$G$1256,2,0) -> Düsseldorf (Original) | L86: 463 | M86: 01:46:00 | N86: =VLOOKUP(I86,Airports!$A$2:$F$1256,6,0) -> 46 | O86: 278.35
A87: 2026-03-25 | B87: IW12117 | C87: D-AIAC | D87: =VLOOKUP(C87,Flotte!A:B,2,0) -> Airbus A319 CFM_SL | E87: =VLOOKUP(C87,Flotte!A:C,3,0) -> inter-wings | F87: =VLOOKUP(B87,Routen!A:B, 2, 0) -> EDDL | G87: =VLOOKUP(F87,Airports!$A$2:$G$1256,2,0) -> Düsseldorf (Original) | H87: =VLOOKUP(F87,Airports!$A$2:$G$1256,4,0) -> Deutschland | I87: =VLOOKUP(B87,Routen!A:F, 6, 0) -> LIMF | J87: =VLOOKUP(I87,Airports!$A$2:$G$1256,4,0) -> Italien | K87: =VLOOKUP(I87,Airports!$A$2:$G$1256,2,0) -> Turin-Caselle | L87: 438 | M87: 01:26:00 | N87: =VLOOKUP(I87,Airports!$A$2:$F$1256,6,0) -> 1 | O87: 124.56
A88: 2026-03-25 | B88: IW12118 | C88: D-AIAC | D88: =VLOOKUP(C88,Flotte!A:B,2,0) -> Airbus A319 CFM_SL | E88: =VLOOKUP(C88,Flotte!A:C,3,0) -> inter-wings | F88: =VLOOKUP(B88,Routen!A:B, 2, 0) -> LIMF | G88: =VLOOKUP(F88,Airports!$A$2:$G$1256,2,0) -> Turin-Caselle | H88: =VLOOKUP(F88,Airports!$A$2:$G$1256,4,0) -> Italien | I88: =VLOOKUP(B88,Routen!A:F, 6, 0) -> EDDL | J88: =VLOOKUP(I88,Airports!$A$2:$G$1256,4,0) -> Deutschland | K88: =VLOOKUP(I88,Airports!$A$2:$G$1256,2,0) -> Düsseldorf (Original) | L88: 468 | M88: 01:32:00 | N88: =VLOOKUP(I88,Airports!$A$2:$F$1256,6,0) -> 46 | O88: 130.3
A89: 2026-03-26 | B89: IW12119 | C89: D-AIAC | D89: =VLOOKUP(C89,Flotte!A:B,2,0) -> Airbus A319 CFM_SL | E89: =VLOOKUP(C89,Flotte!A:C,3,0) -> inter-wings | F89: =VLOOKUP(B89,Routen!A:B, 2, 0) -> EDDL | G89: =VLOOKUP(F89,Airports!$A$2:$G$1256,2,0) -> Düsseldorf (Original) | H89: =VLOOKUP(F89,Airports!$A$2:$G$1256,4,0) -> Deutschland | I89: =VLOOKUP(B89,Routen!A:F, 6, 0) -> LICR | J89: =VLOOKUP(I89,Airports!$A$2:$G$1256,4,0) -> Italien | K89: =VLOOKUP(I89,Airports!$A$2:$G$1256,2,0) -> Regio Calabria | L89: 988 | M89: 02:37:00 | N89: =VLOOKUP(I89,Airports!$A$2:$F$1256,6,0) -> 1 | O89: 290.94
A90: 2026-03-26 | B90: IW12120 | C90: D-AIAC | D90: =VLOOKUP(C90,Flotte!A:B,2,0) -> Airbus A319 CFM_SL | E90: =VLOOKUP(C90,Flotte!A:C,3,0) -> inter-wings | F90: =VLOOKUP(B90,Routen!A:B, 2, 0) -> LICR | G90: =VLOOKUP(F90,Airports!$A$2:$G$1256,2,0) -> Regio Calabria | H90: =VLOOKUP(F90,Airports!$A$2:$G$1256,4,0) -> Italien | I90: =VLOOKUP(B90,Routen!A:F, 6, 0) -> EDDL | J90: =VLOOKUP(I90,Airports!$A$2:$G$1256,4,0) -> Deutschland | K90: =VLOOKUP(I90,Airports!$A$2:$G$1256,2,0) -> Düsseldorf (Original) | L90: 939 | M90: 02:42:00 | N90: =VLOOKUP(I90,Airports!$A$2:$F$1256,6,0) -> 46 | O90: 119.44
A91: 2026-03-27 | B91: IW12121 | C91: D-AIAC | D91: =VLOOKUP(C91,Flotte!A:B,2,0) -> Airbus A319 CFM_SL | E91: =VLOOKUP(C91,Flotte!A:C,3,0) -> inter-wings | F91: =VLOOKUP(B91,Routen!A:B, 2, 0) -> EDDL | G91: =VLOOKUP(F91,Airports!$A$2:$G$1256,2,0) -> Düsseldorf (Original) | H91: =VLOOKUP(F91,Airports!$A$2:$G$1256,4,0) -> Deutschland | I91: =VLOOKUP(B91,Routen!A:F, 6, 0) -> LIEO | J91: =VLOOKUP(I91,Airports!$A$2:$G$1256,4,0) -> Italien | K91: =VLOOKUP(I91,Airports!$A$2:$G$1256,2,0) -> Olbia / Costa Smeralda | L91: 760 | M91: 02:06:00 | N91: =VLOOKUP(I91,Airports!$A$2:$F$1256,6,0) -> 1 | O91: 245.51
A92: 2026-03-27 | B92: IW12122 | C92: D-AIAC | D92: =VLOOKUP(C92,Flotte!A:B,2,0) -> Airbus A319 CFM_SL | E92: =VLOOKUP(C92,Flotte!A:C,3,0) -> inter-wings | F92: =VLOOKUP(B92,Routen!A:B, 2, 0) -> LIEO | G92: =VLOOKUP(F92,Airports!$A$2:$G$1256,2,0) -> Olbia / Costa Smeralda | H92: =VLOOKUP(F92,Airports!$A$2:$G$1256,4,0) -> Italien | I92: =VLOOKUP(B92,Routen!A:F, 6, 0) -> EDDL | J92: =VLOOKUP(I92,Airports!$A$2:$G$1256,4,0) -> Deutschland | K92: =VLOOKUP(I92,Airports!$A$2:$G$1256,2,0) -> Düsseldorf (Original) | L92: 712 | M92: 02:11:00 | N92: =VLOOKUP(I92,Airports!$A$2:$F$1256,6,0) -> 46 | O92: 281.95
A93: 2026-03-28 | B93: IW12028 | C93: D-AIAC | D93: =VLOOKUP(C93,Flotte!A:B,2,0) -> Airbus A319 CFM_SL | E93: =VLOOKUP(C93,Flotte!A:C,3,0) -> inter-wings | F93: =VLOOKUP(B93,Routen!A:B, 2, 0) -> EDDL | G93: =VLOOKUP(F93,Airports!$A$2:$G$1256,2,0) -> Düsseldorf (Original) | H93: =VLOOKUP(F93,Airports!$A$2:$G$1256,4,0) -> Deutschland | I93: =VLOOKUP(B93,Routen!A:F, 6, 0) -> LIMJ | J93: =VLOOKUP(I93,Airports!$A$2:$G$1256,4,0) -> Italien | K93: =VLOOKUP(I93,Airports!$A$2:$G$1256,2,0) -> Genua-Sestri | L93: 531 | M93: 01:35:00 | N93: =VLOOKUP(I93,Airports!$A$2:$F$1256,6,0) -> 1 | O93: 231.48
A94: 2026-03-28 | B94: IW12035 | C94: D-AIAC | D94: =VLOOKUP(C94,Flotte!A:B,2,0) -> Airbus A319 CFM_SL | E94: =VLOOKUP(C94,Flotte!A:C,3,0) -> inter-wings | F94: =VLOOKUP(B94,Routen!A:B, 2, 0) -> LIMJ | G94: =VLOOKUP(F94,Airports!$A$2:$G$1256,2,0) -> Genua-Sestri | H94: =VLOOKUP(F94,Airports!$A$2:$G$1256,4,0) -> Italien | I94: =VLOOKUP(B94,Routen!A:F, 6, 0) -> EDDL | J94: =VLOOKUP(I94,Airports!$A$2:$G$1256,4,0) -> Deutschland | K94: =VLOOKUP(I94,Airports!$A$2:$G$1256,2,0) -> Düsseldorf (Original) | L94: 500 | M94: 01:31:00 | N94: =VLOOKUP(I94,Airports!$A$2:$F$1256,6,0) -> 46 | O94: 270.41
A95: 2026-03-29 | B95: IW12123 | C95: D-AIAC | D95: =VLOOKUP(C95,Flotte!A:B,2,0) -> Airbus A319 CFM_SL | E95: =VLOOKUP(C95,Flotte!A:C,3,0) -> inter-wings | F95: =VLOOKUP(B95,Routen!A:B, 2, 0) -> EDDL | G95: =VLOOKUP(F95,Airports!$A$2:$G$1256,2,0) -> Düsseldorf (Original) | H95: =VLOOKUP(F95,Airports!$A$2:$G$1256,4,0) -> Deutschland | I95: =VLOOKUP(B95,Routen!A:F, 6, 0) -> LIML | J95: =VLOOKUP(I95,Airports!$A$2:$G$1256,4,0) -> Italien | K95: =VLOOKUP(I95,Airports!$A$2:$G$1256,2,0) -> Mailand Linate | L95: 410 | M95: 01:20:00 | N95: =VLOOKUP(I95,Airports!$A$2:$F$1256,6,0) -> 1 | O95: 139.34
A96: 2026-03-30 | B96: IW12124 | C96: D-AIAC | D96: =VLOOKUP(C96,Flotte!A:B,2,0) -> Airbus A319 CFM_SL | E96: =VLOOKUP(C96,Flotte!A:C,3,0) -> inter-wings | F96: =VLOOKUP(B96,Routen!A:B, 2, 0) -> LIML | G96: =VLOOKUP(F96,Airports!$A$2:$G$1256,2,0) -> Mailand Linate | H96: =VLOOKUP(F96,Airports!$A$2:$G$1256,4,0) -> Italien | I96: =VLOOKUP(B96,Routen!A:F, 6, 0) -> EDDL | J96: =VLOOKUP(I96,Airports!$A$2:$G$1256,4,0) -> Deutschland | K96: =VLOOKUP(I96,Airports!$A$2:$G$1256,2,0) -> Düsseldorf (Original) | L96: 463 | M96: 01:38:00 | N96: =VLOOKUP(I96,Airports!$A$2:$F$1256,6,0) -> 46 | O96: 288.52
A97: 2026-04-01 | B97: IW12042 | C97: D-AIAC | D97: =VLOOKUP(C97,Flotte!A:B,2,0) -> Airbus A319 CFM_SL | E97: =VLOOKUP(C97,Flotte!A:C,3,0) -> inter-wings | F97: =VLOOKUP(B97,Routen!A:B, 2, 0) -> EDDL | G97: =VLOOKUP(F97,Airports!$A$2:$G$1256,2,0) -> Düsseldorf (Original) | H97: =VLOOKUP(F97,Airports!$A$2:$G$1256,4,0) -> Deutschland | I97: =VLOOKUP(B97,Routen!A:F, 6, 0) -> LIBD | J97: =VLOOKUP(I97,Airports!$A$2:$G$1256,4,0) -> Italien | K97: =VLOOKUP(I97,Airports!$A$2:$G$1256,2,0) -> Bari-Karol Wojtyla | L97: 809 | M97: 02:23:00 | N97: =VLOOKUP(I97,Airports!$A$2:$F$1256,6,0) -> 1 | O97: 138.17
A98: 2026-04-02 | B98: IW12043 | C98: D-AIAC | D98: =VLOOKUP(C98,Flotte!A:B,2,0) -> Airbus A319 CFM_SL | E98: =VLOOKUP(C98,Flotte!A:C,3,0) -> inter-wings | F98: =VLOOKUP(B98,Routen!A:B, 2, 0) -> LIBD | G98: =VLOOKUP(F98,Airports!$A$2:$G$1256,2,0) -> Bari-Karol Wojtyla | H98: =VLOOKUP(F98,Airports!$A$2:$G$1256,4,0) -> Italien | I98: =VLOOKUP(B98,Routen!A:F, 6, 0) -> EDDL | J98: =VLOOKUP(I98,Airports!$A$2:$G$1256,4,0) -> Deutschland | K98: =VLOOKUP(I98,Airports!$A$2:$G$1256,2,0) -> Düsseldorf (Original) | L98: 792 | M98: 02:03:00 | N98: =VLOOKUP(I98,Airports!$A$2:$F$1256,6,0) -> 46 | O98: 267.29
A99: 2026-04-03 | B99: IW12041 | C99: D-AIAC | D99: =VLOOKUP(C99,Flotte!A:B,2,0) -> Airbus A319 CFM_SL | E99: =VLOOKUP(C99,Flotte!A:C,3,0) -> inter-wings | F99: =VLOOKUP(B99,Routen!A:B, 2, 0) -> EDDL | G99: =VLOOKUP(F99,Airports!$A$2:$G$1256,2,0) -> Düsseldorf (Original) | H99: =VLOOKUP(F99,Airports!$A$2:$G$1256,4,0) -> Deutschland | I99: =VLOOKUP(B99,Routen!A:F, 6, 0) -> LICC | J99: =VLOOKUP(I99,Airports!$A$2:$G$1256,4,0) -> Italien | K99: =VLOOKUP(I99,Airports!$A$2:$G$1256,2,0) -> Catania-Fontanarossa | L99: 951 | M99: 02:35:00 | N99: =VLOOKUP(I99,Airports!$A$2:$F$1256,6,0) -> 1 | O99: 104.13
A100: 2026-04-03 | B100: IW12038 | C100: D-AIAC | D100: =VLOOKUP(C100,Flotte!A:B,2,0) -> Airbus A319 CFM_SL | E100: =VLOOKUP(C100,Flotte!A:C,3,0) -> inter-wings | F100: =VLOOKUP(B100,Routen!A:B, 2, 0) -> LICC | G100: =VLOOKUP(F100,Airports!$A$2:$G$1256,2,0) -> Catania-Fontanarossa | H100: =VLOOKUP(F100,Airports!$A$2:$G$1256,4,0) -> Italien | I100: =VLOOKUP(B100,Routen!A:F, 6, 0) -> EDDL | J100: =VLOOKUP(I100,Airports!$A$2:$G$1256,4,0) -> Deutschland | K100: =VLOOKUP(I100,Airports!$A$2:$G$1256,2,0) -> Düsseldorf (Original) | L100: 975 | M100: 02:34:00 | N100: =VLOOKUP(I100,Airports!$A$2:$F$1256,6,0) -> 46 | O100: 142.55
A101: 2026-04-04 | B101: IW12125 | C101: D-AIAC | D101: =VLOOKUP(C101,Flotte!A:B,2,0) -> Airbus A319 CFM_SL | E101: =VLOOKUP(C101,Flotte!A:C,3,0) -> inter-wings | F101: =VLOOKUP(B101,Routen!A:B, 2, 0) -> EDDL | G101: =VLOOKUP(F101,Airports!$A$2:$G$1256,2,0) -> Düsseldorf (Original) | H101: =VLOOKUP(F101,Airports!$A$2:$G$1256,4,0) -> Deutschland | I101: =VLOOKUP(B101,Routen!A:F, 6, 0) -> LIPE | J101: =VLOOKUP(I101,Airports!$A$2:$G$1256,4,0) -> Italien | K101: =VLOOKUP(I101,Airports!$A$2:$G$1256,2,0) -> Bologna | L101: 507 | M101: 01:33:00 | N101: =VLOOKUP(I101,Airports!$A$2:$F$1256,6,0) -> 1 | O101: 91.35
A102: 2026-04-05 | B102: IW12126 | C102: D-AIAC | D102: =VLOOKUP(C102,Flotte!A:B,2,0) -> Airbus A319 CFM_SL | E102: =VLOOKUP(C102,Flotte!A:C,3,0) -> inter-wings | F102: =VLOOKUP(B102,Routen!A:B, 2, 0) -> LIPE | G102: =VLOOKUP(F102,Airports!$A$2:$G$1256,2,0) -> Bologna | H102: =VLOOKUP(F102,Airports!$A$2:$G$1256,4,0) -> Italien | I102: =VLOOKUP(B102,Routen!A:F, 6, 0) -> EDDL | J102: =VLOOKUP(I102,Airports!$A$2:$G$1256,4,0) -> Deutschland | K102: =VLOOKUP(I102,Airports!$A$2:$G$1256,2,0) -> Düsseldorf (Original) | L102: 519 | M102: 01:36:00 | N102: =VLOOKUP(I102,Airports!$A$2:$F$1256,6,0) -> 46 | O102: 117.86
A103: 2026-04-11 | B103: IW12127 | C103: D-AIAC | D103: =VLOOKUP(C103,Flotte!A:B,2,0) -> Airbus A319 CFM_SL | E103: =VLOOKUP(C103,Flotte!A:C,3,0) -> inter-wings | F103: =VLOOKUP(B103,Routen!A:B, 2, 0) -> EDDL | G103: =VLOOKUP(F103,Airports!$A$2:$G$1256,2,0) -> Düsseldorf (Original) | H103: =VLOOKUP(F103,Airports!$A$2:$G$1256,4,0) -> Deutschland | I103: =VLOOKUP(B103,Routen!A:F, 6, 0) -> LIMP | J103: =VLOOKUP(I103,Airports!$A$2:$G$1256,4,0) -> Italien | K103: =VLOOKUP(I103,Airports!$A$2:$G$1256,2,0) -> Parma | L103: 456 | M103: 01:28:00 | N103: =VLOOKUP(I103,Airports!$A$2:$F$1256,6,0) -> 2 | O103: 116.33
A104: 2026-04-12 | B104: IW12128 | C104: D-AIAC | D104: =VLOOKUP(C104,Flotte!A:B,2,0) -> Airbus A319 CFM_SL | E104: =VLOOKUP(C104,Flotte!A:C,3,0) -> inter-wings | F104: =VLOOKUP(B104,Routen!A:B, 2, 0) -> LIMP | G104: =VLOOKUP(F104,Airports!$A$2:$G$1256,2,0) -> Parma | H104: =VLOOKUP(F104,Airports!$A$2:$G$1256,4,0) -> Italien | I104: =VLOOKUP(B104,Routen!A:F, 6, 0) -> EDDL | J104: =VLOOKUP(I104,Airports!$A$2:$G$1256,4,0) -> Deutschland | K104: =VLOOKUP(I104,Airports!$A$2:$G$1256,2,0) -> Düsseldorf (Original) | L104: 488 | M104: 01:57:00 | N104: =VLOOKUP(I104,Airports!$A$2:$F$1256,6,0) -> 46 | O104: 141.49
A105: 2026-04-13 | B105: IW12129 | C105: D-AIAC | D105: =VLOOKUP(C105,Flotte!A:B,2,0) -> Airbus A319 CFM_SL | E105: =VLOOKUP(C105,Flotte!A:C,3,0) -> inter-wings | F105: =VLOOKUP(B105,Routen!A:B, 2, 0) -> EDDL | G105: =VLOOKUP(F105,Airports!$A$2:$G$1256,2,0) -> Düsseldorf (Original) | H105: =VLOOKUP(F105,Airports!$A$2:$G$1256,4,0) -> Deutschland | I105: =VLOOKUP(B105,Routen!A:F, 6, 0) -> LIME | J105: =VLOOKUP(I105,Airports!$A$2:$G$1256,4,0) -> Italien | K105: =VLOOKUP(I105,Airports!$A$2:$G$1256,2,0) -> Bergamo | L105: 470 | M105: 01:32:00 | N105: =VLOOKUP(I105,Airports!$A$2:$F$1256,6,0) -> 1 | O105: 149.91
A106: 2026-04-14 | B106: IW12130 | C106: D-AIAC | D106: =VLOOKUP(C106,Flotte!A:B,2,0) -> Airbus A319 CFM_SL | E106: =VLOOKUP(C106,Flotte!A:C,3,0) -> inter-wings | F106: =VLOOKUP(B106,Routen!A:B, 2, 0) -> LIME | G106: =VLOOKUP(F106,Airports!$A$2:$G$1256,2,0) -> Bergamo | H106: =VLOOKUP(F106,Airports!$A$2:$G$1256,4,0) -> Italien | I106: =VLOOKUP(B106,Routen!A:F, 6, 0) -> EDDL | J106: =VLOOKUP(I106,Airports!$A$2:$G$1256,4,0) -> Deutschland | K106: =VLOOKUP(I106,Airports!$A$2:$G$1256,2,0) -> Düsseldorf (Original) | L106: 472 | M106: 01:43:00 | N106: =VLOOKUP(I106,Airports!$A$2:$F$1256,6,0) -> 46 | O106: 266.79
A107: 2026-04-15 | B107: IW12131 | C107: D-AIAC | D107: =VLOOKUP(C107,Flotte!A:B,2,0) -> Airbus A319 CFM_SL | E107: =VLOOKUP(C107,Flotte!A:C,3,0) -> inter-wings | F107: =VLOOKUP(B107,Routen!A:B, 2, 0) -> EDDL | G107: =VLOOKUP(F107,Airports!$A$2:$G$1256,2,0) -> Düsseldorf (Original) | H107: =VLOOKUP(F107,Airports!$A$2:$G$1256,4,0) -> Deutschland | I107: =VLOOKUP(B107,Routen!A:F, 6, 0) -> LIBR | J107: =VLOOKUP(I107,Airports!$A$2:$G$1256,4,0) -> Italien | K107: =VLOOKUP(I107,Airports!$A$2:$G$1256,2,0) -> Brindisi | L107: 844 | M107: 02:23:00 | N107: =VLOOKUP(I107,Airports!$A$2:$F$1256,6,0) -> 1 | O107: 156.21
A108: 2026-04-16 | B108: IW12132 | C108: D-AIAC | D108: =VLOOKUP(C108,Flotte!A:B,2,0) -> Airbus A319 CFM_SL | E108: =VLOOKUP(C108,Flotte!A:C,3,0) -> inter-wings | F108: =VLOOKUP(B108,Routen!A:B, 2, 0) -> LIBR | G108: =VLOOKUP(F108,Airports!$A$2:$G$1256,2,0) -> Brindisi | H108: =VLOOKUP(F108,Airports!$A$2:$G$1256,4,0) -> Italien | I108: =VLOOKUP(B108,Routen!A:F, 6, 0) -> EDDL | J108: =VLOOKUP(I108,Airports!$A$2:$G$1256,4,0) -> Deutschland | K108: =VLOOKUP(I108,Airports!$A$2:$G$1256,2,0) -> Düsseldorf (Original) | L108: 837 | M108: 02:37:00 | N108: =VLOOKUP(I108,Airports!$A$2:$F$1256,6,0) -> 46 | O108: 268.38
A109: 2026-04-17 | B109: IW12133 | C109: D-AIAC | D109: =VLOOKUP(C109,Flotte!A:B,2,0) -> Airbus A319 CFM_SL | E109: =VLOOKUP(C109,Flotte!A:C,3,0) -> inter-wings | F109: =VLOOKUP(B109,Routen!A:B, 2, 0) -> EDDL | G109: =VLOOKUP(F109,Airports!$A$2:$G$1256,2,0) -> Düsseldorf (Original) | H109: =VLOOKUP(F109,Airports!$A$2:$G$1256,4,0) -> Deutschland | I109: =VLOOKUP(B109,Routen!A:F, 6, 0) -> LIRA | J109: =VLOOKUP(I109,Airports!$A$2:$G$1256,4,0) -> Italien | K109: =VLOOKUP(I109,Airports!$A$2:$G$1256,2,0) -> Rom-Ciampino | L109: 667 | M109: 01:49:00 | N109: =VLOOKUP(I109,Airports!$A$2:$F$1256,6,0) -> 1 | O109: 184.49
A110: 2026-04-18 | B110: IW12134 | C110: D-AIAC | D110: =VLOOKUP(C110,Flotte!A:B,2,0) -> Airbus A319 CFM_SL | E110: =VLOOKUP(C110,Flotte!A:C,3,0) -> inter-wings | F110: =VLOOKUP(B110,Routen!A:B, 2, 0) -> LIRA | G110: =VLOOKUP(F110,Airports!$A$2:$G$1256,2,0) -> Rom-Ciampino | H110: =VLOOKUP(F110,Airports!$A$2:$G$1256,4,0) -> Italien | I110: =VLOOKUP(B110,Routen!A:F, 6, 0) -> EDDL | J110: =VLOOKUP(I110,Airports!$A$2:$G$1256,4,0) -> Deutschland | K110: =VLOOKUP(I110,Airports!$A$2:$G$1256,2,0) -> Düsseldorf (Original) | L110: 703 | M110: 02:01:00 | N110: =VLOOKUP(I110,Airports!$A$2:$F$1256,6,0) -> 46 | O110: 214.79
A111: 2026-04-24 | B111: IW12007 | C111: D-AIFM | D111: =VLOOKUP(C111,Flotte!A:B,2,0) -> Airbus A340-600 | E111: =VLOOKUP(C111,Flotte!A:C,3,0) -> inter-wings | F111: =VLOOKUP(B111,Routen!A:B, 2, 0) -> EDDL | G111: =VLOOKUP(F111,Airports!$A$2:$G$1256,2,0) -> Düsseldorf (Original) | H111: =VLOOKUP(F111,Airports!$A$2:$G$1256,4,0) -> Deutschland | I111: =VLOOKUP(B111,Routen!A:F, 6, 0) -> LEPA | J111: =VLOOKUP(I111,Airports!$A$2:$G$1256,4,0) -> Spanien | K111: =VLOOKUP(I111,Airports!$A$2:$G$1256,2,0) -> Palma de Mallorca | L111: 824 | M111: 02:48:00 | N111: =VLOOKUP(I111,Airports!$A$2:$F$1256,6,0) -> 3 | O111: 321.27
A112: 2026-04-25 | B112: IW12008 | C112: D-AIFM | D112: =VLOOKUP(C112,Flotte!A:B,2,0) -> Airbus A340-600 | E112: =VLOOKUP(C112,Flotte!A:C,3,0) -> inter-wings | F112: =VLOOKUP(B112,Routen!A:B, 2, 0) -> LEPA | G112: =VLOOKUP(F112,Airports!$A$2:$G$1256,2,0) -> Palma de Mallorca | H112: =VLOOKUP(F112,Airports!$A$2:$G$1256,4,0) -> Spanien | I112: =VLOOKUP(B112,Routen!A:F, 6, 0) -> EDDL | J112: =VLOOKUP(I112,Airports!$A$2:$G$1256,4,0) -> Deutschland | K112: =VLOOKUP(I112,Airports!$A$2:$G$1256,2,0) -> Düsseldorf (Original) | L112: 873 | M112: 02:17:00 | N112: =VLOOKUP(I112,Airports!$A$2:$F$1256,6,0) -> 46 | O112: 5.42
A113: 2026-04-26 | B113: IW12110 | C113: D-AIAC | D113: =VLOOKUP(C113,Flotte!A:B,2,0) -> Airbus A319 CFM_SL | E113: =VLOOKUP(C113,Flotte!A:C,3,0) -> inter-wings | F113: =VLOOKUP(B113,Routen!A:B, 2, 0) -> EDDL | G113: =VLOOKUP(F113,Airports!$A$2:$G$1256,2,0) -> Düsseldorf (Original) | H113: =VLOOKUP(F113,Airports!$A$2:$G$1256,4,0) -> Deutschland | I113: =VLOOKUP(B113,Routen!A:F, 6, 0) -> LICG | J113: =VLOOKUP(I113,Airports!$A$2:$G$1256,4,0) -> Italien | K113: =VLOOKUP(I113,Airports!$A$2:$G$1256,2,0) -> Pantelleria | L113: 960 | M113: 02:40:00 | N113: =VLOOKUP(I113,Airports!$A$2:$F$1256,6,0) -> 1 | O113: 107.81
A114: 2026-04-27 | B114: IW12135 | C114: D-AIAC | D114: =VLOOKUP(C114,Flotte!A:B,2,0) -> Airbus A319 CFM_SL | E114: =VLOOKUP(C114,Flotte!A:C,3,0) -> inter-wings | F114: =VLOOKUP(B114,Routen!A:B, 2, 0) -> LICG | G114: =VLOOKUP(F114,Airports!$A$2:$G$1256,2,0) -> Pantelleria | H114: =VLOOKUP(F114,Airports!$A$2:$G$1256,4,0) -> Italien | I114: =VLOOKUP(B114,Routen!A:F, 6, 0) -> EDDL | J114: =VLOOKUP(I114,Airports!$A$2:$G$1256,4,0) -> Deutschland | K114: =VLOOKUP(I114,Airports!$A$2:$G$1256,2,0) -> Düsseldorf (Original) | L114: 909 | M114: 02:38:00 | N114: =VLOOKUP(I114,Airports!$A$2:$F$1256,6,0) -> 46 | O114: 267.51
A115: 2026-04-28 | B115: IW12136 | C115: D-AIAC | D115: =VLOOKUP(C115,Flotte!A:B,2,0) -> Airbus A319 CFM_SL | E115: =VLOOKUP(C115,Flotte!A:C,3,0) -> inter-wings | F115: =VLOOKUP(B115,Routen!A:B, 2, 0) -> EDDL | G115: =VLOOKUP(F115,Airports!$A$2:$G$1256,2,0) -> Düsseldorf (Original) | H115: =VLOOKUP(F115,Airports!$A$2:$G$1256,4,0) -> Deutschland | I115: =VLOOKUP(B115,Routen!A:F, 6, 0) -> LIRI | J115: =VLOOKUP(I115,Airports!$A$2:$G$1256,4,0) -> Italien | K115: =VLOOKUP(I115,Airports!$A$2:$G$1256,2,0) -> Salerno | L115: 811 | M115: 02:38:00 | N115: =VLOOKUP(I115,Airports!$A$2:$F$1256,6,0) -> 1 | O115: 233.18
A116: 2026-04-28 | B116: IW12137 | C116: D-AIAC | D116: =VLOOKUP(C116,Flotte!A:B,2,0) -> Airbus A319 CFM_SL | E116: =VLOOKUP(C116,Flotte!A:C,3,0) -> inter-wings | F116: =VLOOKUP(B116,Routen!A:B, 2, 0) -> LIRI | G116: =VLOOKUP(F116,Airports!$A$2:$G$1256,2,0) -> Salerno | H116: =VLOOKUP(F116,Airports!$A$2:$G$1256,4,0) -> Italien | I116: =VLOOKUP(B116,Routen!A:F, 6, 0) -> EDDL | J116: =VLOOKUP(I116,Airports!$A$2:$G$1256,4,0) -> Deutschland | K116: =VLOOKUP(I116,Airports!$A$2:$G$1256,2,0) -> Düsseldorf (Original) | L116: 797 | M116: 02:13:00 | N116: =VLOOKUP(I116,Airports!$A$2:$F$1256,6,0) -> 46 | O116: 166.57
A117: 2026-04-29 | B117: IW12138 | C117: D-AIAC | D117: =VLOOKUP(C117,Flotte!A:B,2,0) -> Airbus A319 CFM_SL | E117: =VLOOKUP(C117,Flotte!A:C,3,0) -> inter-wings | F117: =VLOOKUP(B117,Routen!A:B, 2, 0) -> EDDL | G117: =VLOOKUP(F117,Airports!$A$2:$G$1256,2,0) -> Düsseldorf (Original) | H117: =VLOOKUP(F117,Airports!$A$2:$G$1256,4,0) -> Deutschland | I117: =VLOOKUP(B117,Routen!A:F, 6, 0) -> LICJ | J117: =VLOOKUP(I117,Airports!$A$2:$G$1256,4,0) -> Italien | K117: =VLOOKUP(I117,Airports!$A$2:$G$1256,2,0) -> Palermo Punta Raisi | L117: 888 | M117: 02:27:00 | N117: =VLOOKUP(I117,Airports!$A$2:$F$1256,6,0) -> 1 | O117: 258.29
A118: 2026-04-29 | B118: IW12139 | C118: D-AIAC | D118: =VLOOKUP(C118,Flotte!A:B,2,0) -> Airbus A319 CFM_SL | E118: =VLOOKUP(C118,Flotte!A:C,3,0) -> inter-wings | F118: =VLOOKUP(B118,Routen!A:B, 2, 0) -> LICJ | G118: =VLOOKUP(F118,Airports!$A$2:$G$1256,2,0) -> Palermo Punta Raisi | H118: =VLOOKUP(F118,Airports!$A$2:$G$1256,4,0) -> Italien | I118: =VLOOKUP(B118,Routen!A:F, 6, 0) -> EDDL | J118: =VLOOKUP(I118,Airports!$A$2:$G$1256,4,0) -> Deutschland | K118: =VLOOKUP(I118,Airports!$A$2:$G$1256,2,0) -> Düsseldorf (Original) | L118: 917 | M118: 02:37:00 | N118: =VLOOKUP(I118,Airports!$A$2:$F$1256,6,0) -> 46 | O118: 170.92
A119: 2026-04-30 | B119: IW12140 | C119: D-AIAC | D119: =VLOOKUP(C119,Flotte!A:B,2,0) -> Airbus A319 CFM_SL | E119: =VLOOKUP(C119,Flotte!A:C,3,0) -> inter-wings | F119: =VLOOKUP(B119,Routen!A:B, 2, 0) -> EDDL | G119: =VLOOKUP(F119,Airports!$A$2:$G$1256,2,0) -> Düsseldorf (Original) | H119: =VLOOKUP(F119,Airports!$A$2:$G$1256,4,0) -> Deutschland | I119: =VLOOKUP(B119,Routen!A:F, 6, 0) -> LICT | J119: =VLOOKUP(I119,Airports!$A$2:$G$1256,4,0) -> Italien | K119: =VLOOKUP(I119,Airports!$A$2:$G$1256,2,0) -> Trapani | L119: 905 | M119: 02:23:00 | N119: =VLOOKUP(I119,Airports!$A$2:$F$1256,6,0) -> 1 | O119: 197.12
A120: 2026-05-02 | B120: IW12141 | C120: D-AIAC | D120: =VLOOKUP(C120,Flotte!A:B,2,0) -> Airbus A319 CFM_SL | E120: =VLOOKUP(C120,Flotte!A:C,3,0) -> inter-wings | F120: =VLOOKUP(B120,Routen!A:B, 2, 0) -> LICT | G120: =VLOOKUP(F120,Airports!$A$2:$G$1256,2,0) -> Trapani | H120: =VLOOKUP(F120,Airports!$A$2:$G$1256,4,0) -> Italien | I120: =VLOOKUP(B120,Routen!A:F, 6, 0) -> EDDL | J120: =VLOOKUP(I120,Airports!$A$2:$G$1256,4,0) -> Deutschland | K120: =VLOOKUP(I120,Airports!$A$2:$G$1256,2,0) -> Düsseldorf (Original) | L120: 919 | M120: 02:40:00 | N120: =VLOOKUP(I120,Airports!$A$2:$F$1256,6,0) -> 46 | O120: 234.92
A121: 2026-05-03 | B121: IW12142 | C121: D-AIAC | D121: =VLOOKUP(C121,Flotte!A:B,2,0) -> Airbus A319 CFM_SL | E121: =VLOOKUP(C121,Flotte!A:C,3,0) -> inter-wings | F121: =VLOOKUP(B121,Routen!A:B, 2, 0) -> EDDL | G121: =VLOOKUP(F121,Airports!$A$2:$G$1256,2,0) -> Düsseldorf (Original) | H121: =VLOOKUP(F121,Airports!$A$2:$G$1256,4,0) -> Deutschland | I121: =VLOOKUP(B121,Routen!A:F, 6, 0) -> LIMP | J121: =VLOOKUP(I121,Airports!$A$2:$G$1256,4,0) -> Italien | K121: =VLOOKUP(I121,Airports!$A$2:$G$1256,2,0) -> Parma | L121: 456 | M121: 01:24:00 | N121: =VLOOKUP(I121,Airports!$A$2:$F$1256,6,0) -> 2 | O121: 274.91
A122: 2026-05-04 | B122: IW12143 | C122: D-AIAC | D122: =VLOOKUP(C122,Flotte!A:B,2,0) -> Airbus A319 CFM_SL | E122: =VLOOKUP(C122,Flotte!A:C,3,0) -> inter-wings | F122: =VLOOKUP(B122,Routen!A:B, 2, 0) -> LIMP | G122: =VLOOKUP(F122,Airports!$A$2:$G$1256,2,0) -> Parma | H122: =VLOOKUP(F122,Airports!$A$2:$G$1256,4,0) -> Italien | I122: =VLOOKUP(B122,Routen!A:F, 6, 0) -> EDDL | J122: =VLOOKUP(I122,Airports!$A$2:$G$1256,4,0) -> Deutschland | K122: =VLOOKUP(I122,Airports!$A$2:$G$1256,2,0) -> Düsseldorf (Original) | L122: 481 | M122: 01:29:00 | N122: =VLOOKUP(I122,Airports!$A$2:$F$1256,6,0) -> 46 | O122: 297.97
A123: 2026-05-04 | B123: IW12144 | C123: D-AIAC | D123: =VLOOKUP(C123,Flotte!A:B,2,0) -> Airbus A319 CFM_SL | E123: =VLOOKUP(C123,Flotte!A:C,3,0) -> inter-wings | F123: =VLOOKUP(B123,Routen!A:B, 2, 0) -> EDDL | G123: =VLOOKUP(F123,Airports!$A$2:$G$1256,2,0) -> Düsseldorf (Original) | H123: =VLOOKUP(F123,Airports!$A$2:$G$1256,4,0) -> Deutschland | I123: =VLOOKUP(B123,Routen!A:F, 6, 0) -> LIPR | J123: =VLOOKUP(I123,Airports!$A$2:$G$1256,4,0) -> Italien | K123: =VLOOKUP(I123,Airports!$A$2:$G$1256,2,0) -> Rimini | L123: 550 | M123: 01:48:00 | N123: =VLOOKUP(I123,Airports!$A$2:$F$1256,6,0) -> 1 | O123: 160.23
A124: 2026-05-05 | B124: IW12145 | C124: D-AIAC | D124: =VLOOKUP(C124,Flotte!A:B,2,0) -> Airbus A319 CFM_SL | E124: =VLOOKUP(C124,Flotte!A:C,3,0) -> inter-wings | F124: =VLOOKUP(B124,Routen!A:B, 2, 0) -> LIPR | G124: =VLOOKUP(F124,Airports!$A$2:$G$1256,2,0) -> Rimini | H124: =VLOOKUP(F124,Airports!$A$2:$G$1256,4,0) -> Italien | I124: =VLOOKUP(B124,Routen!A:F, 6, 0) -> EDDL | J124: =VLOOKUP(I124,Airports!$A$2:$G$1256,4,0) -> Deutschland | K124: =VLOOKUP(I124,Airports!$A$2:$G$1256,2,0) -> Düsseldorf (Original) | L124: 559 | M124: 01:41:00 | N124: =VLOOKUP(I124,Airports!$A$2:$F$1256,6,0) -> 46 | O124: 218.7
A125: 2026-05-06 | B125: IW12030 | C125: D-AIAC | D125: =VLOOKUP(C125,Flotte!A:B,2,0) -> Airbus A319 CFM_SL | E125: =VLOOKUP(C125,Flotte!A:C,3,0) -> inter-wings | F125: =VLOOKUP(B125,Routen!A:B, 2, 0) -> EDDL | G125: =VLOOKUP(F125,Airports!$A$2:$G$1256,2,0) -> Düsseldorf (Original) | H125: =VLOOKUP(F125,Airports!$A$2:$G$1256,4,0) -> Deutschland | I125: =VLOOKUP(B125,Routen!A:F, 6, 0) -> LIRN | J125: =VLOOKUP(I125,Airports!$A$2:$G$1256,4,0) -> Italien | K125: =VLOOKUP(I125,Airports!$A$2:$G$1256,2,0) -> Neapel Capodichino | L125: 776 | M125: 02:14:00 | N125: =VLOOKUP(I125,Airports!$A$2:$F$1256,6,0) -> 1 | O125: 220.17
A126: 2026-05-08 | B126: IW12029 | C126: D-AIAC | D126: =VLOOKUP(C126,Flotte!A:B,2,0) -> Airbus A319 CFM_SL | E126: =VLOOKUP(C126,Flotte!A:C,3,0) -> inter-wings | F126: =VLOOKUP(B126,Routen!A:B, 2, 0) -> LIRN | G126: =VLOOKUP(F126,Airports!$A$2:$G$1256,2,0) -> Neapel Capodichino | H126: =VLOOKUP(F126,Airports!$A$2:$G$1256,4,0) -> Italien | I126: =VLOOKUP(B126,Routen!A:F, 6, 0) -> EDDL | J126: =VLOOKUP(I126,Airports!$A$2:$G$1256,4,0) -> Deutschland | K126: =VLOOKUP(I126,Airports!$A$2:$G$1256,2,0) -> Düsseldorf (Original) | L126: 819 | M126: 02:08:00 | N126: =VLOOKUP(I126,Airports!$A$2:$F$1256,6,0) -> 46 | O126: 249.64
A127: 2026-05-09 | B127: IW12146 | C127: D-AIAC | D127: =VLOOKUP(C127,Flotte!A:B,2,0) -> Airbus A319 CFM_SL | E127: =VLOOKUP(C127,Flotte!A:C,3,0) -> inter-wings | F127: =VLOOKUP(B127,Routen!A:B, 2, 0) -> EDDL | G127: =VLOOKUP(F127,Airports!$A$2:$G$1256,2,0) -> Düsseldorf (Original) | H127: =VLOOKUP(F127,Airports!$A$2:$G$1256,4,0) -> Deutschland | I127: =VLOOKUP(B127,Routen!A:F, 6, 0) -> LIRZ | J127: =VLOOKUP(I127,Airports!$A$2:$G$1256,4,0) -> Italien | K127: =VLOOKUP(I127,Airports!$A$2:$G$1256,2,0) -> Perugia | L127: 592 | M127: 01:44:00 | N127: =VLOOKUP(I127,Airports!$A$2:$F$1256,6,0) -> 1 | O127: 296.9
A128: 2026-05-11 | B128: IW12147 | C128: D-AIAC | D128: =VLOOKUP(C128,Flotte!A:B,2,0) -> Airbus A319 CFM_SL | E128: =VLOOKUP(C128,Flotte!A:C,3,0) -> inter-wings | F128: =VLOOKUP(B128,Routen!A:B, 2, 0) -> LIRZ | G128: =VLOOKUP(F128,Airports!$A$2:$G$1256,2,0) -> Perugia | H128: =VLOOKUP(F128,Airports!$A$2:$G$1256,4,0) -> Italien | I128: =VLOOKUP(B128,Routen!A:F, 6, 0) -> EDDL | J128: =VLOOKUP(I128,Airports!$A$2:$G$1256,4,0) -> Deutschland | K128: =VLOOKUP(I128,Airports!$A$2:$G$1256,2,0) -> Düsseldorf (Original) | L128: 634 | M128: 02:09:00 | N128: =VLOOKUP(I128,Airports!$A$2:$F$1256,6,0) -> 46 | O128: 234.05
A129: 2026-05-11 | B129: IW12148 | C129: D-AIAC | D129: =VLOOKUP(C129,Flotte!A:B,2,0) -> Airbus A319 CFM_SL | E129: =VLOOKUP(C129,Flotte!A:C,3,0) -> inter-wings | F129: =VLOOKUP(B129,Routen!A:B, 2, 0) -> EDDL | G129: =VLOOKUP(F129,Airports!$A$2:$G$1256,2,0) -> Düsseldorf (Original) | H129: =VLOOKUP(F129,Airports!$A$2:$G$1256,4,0) -> Deutschland | I129: =VLOOKUP(B129,Routen!A:F, 6, 0) -> LIRP | J129: =VLOOKUP(I129,Airports!$A$2:$G$1256,4,0) -> Italien | K129: =VLOOKUP(I129,Airports!$A$2:$G$1256,2,0) -> Pisa | L129: 599 | M129: 01:55:00 | N129: =VLOOKUP(I129,Airports!$A$2:$F$1256,6,0) -> 1 | O129: 188.01
A130: 2026-05-12 | B130: IW12046 | C130: D-AIAC | D130: =VLOOKUP(C130,Flotte!A:B,2,0) -> Airbus A319 CFM_SL | E130: =VLOOKUP(C130,Flotte!A:C,3,0) -> inter-wings | F130: =VLOOKUP(B130,Routen!A:B, 2, 0) -> LIRP | G130: =VLOOKUP(F130,Airports!$A$2:$G$1256,2,0) -> Pisa | H130: =VLOOKUP(F130,Airports!$A$2:$G$1256,4,0) -> Italien | I130: =VLOOKUP(B130,Routen!A:F, 6, 0) -> EDDL | J130: =VLOOKUP(I130,Airports!$A$2:$G$1256,4,0) -> Deutschland | K130: =VLOOKUP(I130,Airports!$A$2:$G$1256,2,0) -> Düsseldorf (Original) | L130: 539 | M130: 01:49:00 | N130: =VLOOKUP(I130,Airports!$A$2:$F$1256,6,0) -> 46 | O130: 217.71
A131: 2026-05-17 | B131: IW12149 | C131: D-AIAC | D131: =VLOOKUP(C131,Flotte!A:B,2,0) -> Airbus A319 CFM_SL | E131: =VLOOKUP(C131,Flotte!A:C,3,0) -> inter-wings | F131: =VLOOKUP(B131,Routen!A:B, 2, 0) -> EDDL | G131: =VLOOKUP(F131,Airports!$A$2:$G$1256,2,0) -> Düsseldorf (Original) | H131: =VLOOKUP(F131,Airports!$A$2:$G$1256,4,0) -> Deutschland | I131: =VLOOKUP(B131,Routen!A:F, 6, 0) -> LIPY | J131: =VLOOKUP(I131,Airports!$A$2:$G$1256,4,0) -> Italien | K131: =VLOOKUP(I131,Airports!$A$2:$G$1256,2,0) -> Falconara-Ancona | L131: 562 | M131: 01:39:00 | N131: =VLOOKUP(I131,Airports!$A$2:$F$1256,6,0) -> 1 | O131: 230.5
A132: 2026-05-18 | B132: IW12150 | C132: D-AIAC | D132: =VLOOKUP(C132,Flotte!A:B,2,0) -> Airbus A319 CFM_SL | E132: =VLOOKUP(C132,Flotte!A:C,3,0) -> inter-wings | F132: =VLOOKUP(B132,Routen!A:B, 2, 0) -> LIPY | G132: =VLOOKUP(F132,Airports!$A$2:$G$1256,2,0) -> Falconara-Ancona | H132: =VLOOKUP(F132,Airports!$A$2:$G$1256,4,0) -> Italien | I132: =VLOOKUP(B132,Routen!A:F, 6, 0) -> EDDL | J132: =VLOOKUP(I132,Airports!$A$2:$G$1256,4,0) -> Deutschland | K132: =VLOOKUP(I132,Airports!$A$2:$G$1256,2,0) -> Düsseldorf (Original) | L132: 577 | M132: 01:43:00 | N132: =VLOOKUP(I132,Airports!$A$2:$F$1256,6,0) -> 46 | O132: 231.5
A133: 2026-05-18 | B133: IW12040 | C133: D-AIAC | D133: =VLOOKUP(C133,Flotte!A:B,2,0) -> Airbus A319 CFM_SL | E133: =VLOOKUP(C133,Flotte!A:C,3,0) -> inter-wings | F133: =VLOOKUP(B133,Routen!A:B, 2, 0) -> EDDL | G133: =VLOOKUP(F133,Airports!$A$2:$G$1256,2,0) -> Düsseldorf (Original) | H133: =VLOOKUP(F133,Airports!$A$2:$G$1256,4,0) -> Deutschland | I133: =VLOOKUP(B133,Routen!A:F, 6, 0) -> LIEE | J133: =VLOOKUP(I133,Airports!$A$2:$G$1256,4,0) -> Italien | K133: =VLOOKUP(I133,Airports!$A$2:$G$1256,2,0) -> Cagliari / Sardinien | L133: 844 | M133: 02:21:00 | N133: =VLOOKUP(I133,Airports!$A$2:$F$1256,6,0) -> 1 | O133: 328.16
A134: 2026-05-19 | B134: IW12039 | C134: D-AIAC | D134: =VLOOKUP(C134,Flotte!A:B,2,0) -> Airbus A319 CFM_SL | E134: =VLOOKUP(C134,Flotte!A:C,3,0) -> inter-wings | F134: =VLOOKUP(B134,Routen!A:B, 2, 0) -> LIEE | G134: =VLOOKUP(F134,Airports!$A$2:$G$1256,2,0) -> Cagliari / Sardinien | H134: =VLOOKUP(F134,Airports!$A$2:$G$1256,4,0) -> Italien | I134: =VLOOKUP(B134,Routen!A:F, 6, 0) -> EDDL | J134: =VLOOKUP(I134,Airports!$A$2:$G$1256,4,0) -> Deutschland | K134: =VLOOKUP(I134,Airports!$A$2:$G$1256,2,0) -> Düsseldorf (Original) | L134: 790 | M134: 02:12:00 | N134: =VLOOKUP(I134,Airports!$A$2:$F$1256,6,0) -> 46 | O134: 41.92
A135: 2026-05-20 | B135: IW12151 | C135: D-AIAC | D135: =VLOOKUP(C135,Flotte!A:B,2,0) -> Airbus A319 CFM_SL | E135: =VLOOKUP(C135,Flotte!A:C,3,0) -> inter-wings | F135: =VLOOKUP(B135,Routen!A:B, 2, 0) -> EDDL | G135: =VLOOKUP(F135,Airports!$A$2:$G$1256,2,0) -> Düsseldorf (Original) | H135: =VLOOKUP(F135,Airports!$A$2:$G$1256,4,0) -> Deutschland | I135: =VLOOKUP(B135,Routen!A:F, 6, 0) -> LIPQ | J135: =VLOOKUP(I135,Airports!$A$2:$G$1256,4,0) -> Italien | K135: =VLOOKUP(I135,Airports!$A$2:$G$1256,2,0) -> Triest / Udine | L135: 475 | M135: 01:24:00 | N135: =VLOOKUP(I135,Airports!$A$2:$F$1256,6,0) -> 1 | O135: 318.53
A136: 2026-05-20 | B136: IW12152 | C136: D-AIAC | D136: =VLOOKUP(C136,Flotte!A:B,2,0) -> Airbus A319 CFM_SL | E136: =VLOOKUP(C136,Flotte!A:C,3,0) -> inter-wings | F136: =VLOOKUP(B136,Routen!A:B, 2, 0) -> LIPQ | G136: =VLOOKUP(F136,Airports!$A$2:$G$1256,2,0) -> Triest / Udine | H136: =VLOOKUP(F136,Airports!$A$2:$G$1256,4,0) -> Italien | I136: =VLOOKUP(B136,Routen!A:F, 6, 0) -> EDDL | J136: =VLOOKUP(I136,Airports!$A$2:$G$1256,4,0) -> Deutschland | K136: =VLOOKUP(I136,Airports!$A$2:$G$1256,2,0) -> Düsseldorf (Original) | L136: 494 | M136: 01:47:00 | N136: =VLOOKUP(I136,Airports!$A$2:$F$1256,6,0) -> 46 | O136: 277.04
A137: 2026-05-21 | B137: IW12153 | C137: D-AIAC | D137: =VLOOKUP(C137,Flotte!A:B,2,0) -> Airbus A319 CFM_SL | E137: =VLOOKUP(C137,Flotte!A:C,3,0) -> inter-wings | F137: =VLOOKUP(B137,Routen!A:B, 2, 0) -> EDDL | G137: =VLOOKUP(F137,Airports!$A$2:$G$1256,2,0) -> Düsseldorf (Original) | H137: =VLOOKUP(F137,Airports!$A$2:$G$1256,4,0) -> Deutschland | I137: =VLOOKUP(B137,Routen!A:F, 6, 0) -> LIPH | J137: =VLOOKUP(I137,Airports!$A$2:$G$1256,4,0) -> Italien | K137: =VLOOKUP(I137,Airports!$A$2:$G$1256,2,0) -> Treviso | L137: 438 | M137: 01:17:00 | N137: =VLOOKUP(I137,Airports!$A$2:$F$1256,6,0) -> 1 | O137: 174.61
A138: 2026-05-21 | B138: IW12154 | C138: D-AIAC | D138: =VLOOKUP(C138,Flotte!A:B,2,0) -> Airbus A319 CFM_SL | E138: =VLOOKUP(C138,Flotte!A:C,3,0) -> inter-wings | F138: =VLOOKUP(B138,Routen!A:B, 2, 0) -> LIPH | G138: =VLOOKUP(F138,Airports!$A$2:$G$1256,2,0) -> Treviso | H138: =VLOOKUP(F138,Airports!$A$2:$G$1256,4,0) -> Italien | I138: =VLOOKUP(B138,Routen!A:F, 6, 0) -> EDDL | J138: =VLOOKUP(I138,Airports!$A$2:$G$1256,4,0) -> Deutschland | K138: =VLOOKUP(I138,Airports!$A$2:$G$1256,2,0) -> Düsseldorf (Original) | L138: 446 | M138: 01:37:00 | N138: =VLOOKUP(I138,Airports!$A$2:$F$1256,6,0) -> 46 | O138: 271.88
A139: 2026-05-22 | B139: IW12155 | C139: D-AIAC | D139: =VLOOKUP(C139,Flotte!A:B,2,0) -> Airbus A319 CFM_SL | E139: =VLOOKUP(C139,Flotte!A:C,3,0) -> inter-wings | F139: =VLOOKUP(B139,Routen!A:B, 2, 0) -> EDDL | G139: =VLOOKUP(F139,Airports!$A$2:$G$1256,2,0) -> Düsseldorf (Original) | H139: =VLOOKUP(F139,Airports!$A$2:$G$1256,4,0) -> Deutschland | I139: =VLOOKUP(B139,Routen!A:F, 6, 0) -> LIPO | J139: =VLOOKUP(I139,Airports!$A$2:$G$1256,4,0) -> Italien | K139: =VLOOKUP(I139,Airports!$A$2:$G$1256,2,0) -> Brescia | L139: 485 | M139: 01:27:00 | N139: =VLOOKUP(I139,Airports!$A$2:$F$1256,6,0) -> 1 | O139: 298.59
A140: 2026-05-23 | B140: IW12156 | C140: D-AIAC | D140: =VLOOKUP(C140,Flotte!A:B,2,0) -> Airbus A319 CFM_SL | E140: =VLOOKUP(C140,Flotte!A:C,3,0) -> inter-wings | F140: =VLOOKUP(B140,Routen!A:B, 2, 0) -> LIPO | G140: =VLOOKUP(F140,Airports!$A$2:$G$1256,2,0) -> Brescia | H140: =VLOOKUP(F140,Airports!$A$2:$G$1256,4,0) -> Italien | I140: =VLOOKUP(B140,Routen!A:F, 6, 0) -> EDDL | J140: =VLOOKUP(I140,Airports!$A$2:$G$1256,4,0) -> Deutschland | K140: =VLOOKUP(I140,Airports!$A$2:$G$1256,2,0) -> Düsseldorf (Original) | L140: 496 | M140: 01:39:00 | N140: =VLOOKUP(I140,Airports!$A$2:$F$1256,6,0) -> 46 | O140: 299.59
A141: 2026-05-23 | B141: IW12033 | C141: D-AIBC | D141: =VLOOKUP(C141,Flotte!A:B,2,0) -> Airbus A320 CFM_SL | E141: =VLOOKUP(C141,Flotte!A:C,3,0) -> inter-wings | F141: =VLOOKUP(B141,Routen!A:B, 2, 0) -> LICA | G141: =VLOOKUP(F141,Airports!$A$2:$G$1256,2,0) -> Lamezia Terme | H141: =VLOOKUP(F141,Airports!$A$2:$G$1256,4,0) -> Italien | I141: =VLOOKUP(B141,Routen!A:F, 6, 0) -> EDDL | J141: =VLOOKUP(I141,Airports!$A$2:$G$1256,4,0) -> Deutschland | K141: =VLOOKUP(I141,Airports!$A$2:$G$1256,2,0) -> Düsseldorf (Original) | L141: 901 | M141: 02:24:00 | N141: =VLOOKUP(I141,Airports!$A$2:$F$1256,6,0) -> 46 | O141: 88.14
A142: 2026-03-25 | B142: IW12157 | C142: D-AIAC | D142: =VLOOKUP(C142,Flotte!A:B,2,0) -> Airbus A319 CFM_SL | E142: =VLOOKUP(C142,Flotte!A:C,3,0) -> inter-wings | F142: =VLOOKUP(B142,Routen!A:B, 2, 0) -> EDDL | G142: =VLOOKUP(F142,Airports!$A$2:$G$1256,2,0) -> Düsseldorf (Original) | H142: =VLOOKUP(F142,Airports!$A$2:$G$1256,4,0) -> Deutschland | I142: =VLOOKUP(B142,Routen!A:F, 6, 0) -> LIPZ | J142: =VLOOKUP(I142,Airports!$A$2:$G$1256,4,0) -> Italien | K142: =VLOOKUP(I142,Airports!$A$2:$G$1256,2,0) -> Venedig - Marco Polo | L142: 508 | M142: 01:40:00 | N142: =VLOOKUP(I142,Airports!$A$2:$F$1256,6,0) -> 1 | O142: 220.27
A143: 2026-03-26 | B143: IW12158 | C143: D-AIAC | D143: =VLOOKUP(C143,Flotte!A:B,2,0) -> Airbus A319 CFM_SL | E143: =VLOOKUP(C143,Flotte!A:C,3,0) -> inter-wings | F143: =VLOOKUP(B143,Routen!A:B, 2, 0) -> LIPZ | G143: =VLOOKUP(F143,Airports!$A$2:$G$1256,2,0) -> Venedig - Marco Polo | H143: =VLOOKUP(F143,Airports!$A$2:$G$1256,4,0) -> Italien | I143: =VLOOKUP(B143,Routen!A:F, 6, 0) -> EDDL | J143: =VLOOKUP(I143,Airports!$A$2:$G$1256,4,0) -> Deutschland | K143: =VLOOKUP(I143,Airports!$A$2:$G$1256,2,0) -> Düsseldorf (Original) | L143: 469 | M143: 01:29:00 | N143: =VLOOKUP(I143,Airports!$A$2:$F$1256,6,0) -> 46 | O143: 270.94
A144: 2026-05-26 | B144: T55201 | C144: D-AIBC | D144: =VLOOKUP(C144,Flotte!A:B,2,0) -> Airbus A320 CFM_SL | E144: =VLOOKUP(C144,Flotte!A:C,3,0) -> inter-wings | F144: =VLOOKUP(B144,Routen!A:B, 2, 0) ->  | G144: =VLOOKUP(F144,Airports!$A$2:$G$1256,2,0) ->  | H144: =VLOOKUP(F144,Airports!$A$2:$G$1256,4,0) ->  | I144: =VLOOKUP(B144,Routen!A:F, 6, 0) ->  | J144: =VLOOKUP(I144,Airports!$A$2:$G$1256,4,0) ->  | K144: =VLOOKUP(I144,Airports!$A$2:$G$1256,2,0) ->  | L144: 231 | M144: 00:58:00 | N144: =VLOOKUP(I144,Airports!$A$2:$F$1256,6,0) ->  | O144: 234.14
A145: 2026-05-27 | B145: T55202 | C145: D-AIBC | D145: =VLOOKUP(C145,Flotte!A:B,2,0) -> Airbus A320 CFM_SL | E145: =VLOOKUP(C145,Flotte!A:C,3,0) -> inter-wings | F145: =VLOOKUP(B145,Routen!A:B, 2, 0) ->  | G145: =VLOOKUP(F145,Airports!$A$2:$G$1256,2,0) ->  | H145: =VLOOKUP(F145,Airports!$A$2:$G$1256,4,0) ->  | I145: =VLOOKUP(B145,Routen!A:F, 6, 0) ->  | J145: =VLOOKUP(I145,Airports!$A$2:$G$1256,4,0) ->  | K145: =VLOOKUP(I145,Airports!$A$2:$G$1256,2,0) ->  | L145: 246 | M145: 01:13:00 | N145: =VLOOKUP(I145,Airports!$A$2:$F$1256,6,0) ->  | O145: 235.14
A146: 2026-05-28 | B146: T55203 | C146: D-AIBC | D146: =VLOOKUP(C146,Flotte!A:B,2,0) -> Airbus A320 CFM_SL | E146: =VLOOKUP(C146,Flotte!A:C,3,0) -> inter-wings | F146: =VLOOKUP(B146,Routen!A:B, 2, 0) ->  | G146: =VLOOKUP(F146,Airports!$A$2:$G$1256,2,0) ->  | H146: =VLOOKUP(F146,Airports!$A$2:$G$1256,4,0) ->  | I146: =VLOOKUP(B146,Routen!A:F, 6, 0) ->  | J146: =VLOOKUP(I146,Airports!$A$2:$G$1256,4,0) ->  | K146: =VLOOKUP(I146,Airports!$A$2:$G$1256,2,0) ->  | L146: 259 | M146: 00:58:00 | N146: =VLOOKUP(I146,Airports!$A$2:$F$1256,6,0) ->  | O146: 158.58
A147: 2026-05-28 | B147: T55204 | C147: D-AIBC | D147: =VLOOKUP(C147,Flotte!A:B,2,0) -> Airbus A320 CFM_SL | E147: =VLOOKUP(C147,Flotte!A:C,3,0) -> inter-wings | F147: =VLOOKUP(B147,Routen!A:B, 2, 0) ->  | G147: =VLOOKUP(F147,Airports!$A$2:$G$1256,2,0) ->  | H147: =VLOOKUP(F147,Airports!$A$2:$G$1256,4,0) ->  | I147: =VLOOKUP(B147,Routen!A:F, 6, 0) ->  | J147: =VLOOKUP(I147,Airports!$A$2:$G$1256,4,0) ->  | K147: =VLOOKUP(I147,Airports!$A$2:$G$1256,2,0) ->  | L147: 278 | M147: 01:04:00 | N147: =VLOOKUP(I147,Airports!$A$2:$F$1256,6,0) ->  | O147: 154.45
A148: 2026-05-29 | B148: T55205 | C148: D-AIBC | D148: =VLOOKUP(C148,Flotte!A:B,2,0) -> Airbus A320 CFM_SL | E148: =VLOOKUP(C148,Flotte!A:C,3,0) -> inter-wings | F148: =VLOOKUP(B148,Routen!A:B, 2, 0) ->  | G148: =VLOOKUP(F148,Airports!$A$2:$G$1256,2,0) ->  | H148: =VLOOKUP(F148,Airports!$A$2:$G$1256,4,0) ->  | I148: =VLOOKUP(B148,Routen!A:F, 6, 0) ->  | J148: =VLOOKUP(I148,Airports!$A$2:$G$1256,4,0) ->  | K148: =VLOOKUP(I148,Airports!$A$2:$G$1256,2,0) ->  | L148: 354 | M148: 01:30:00 | N148: =VLOOKUP(I148,Airports!$A$2:$F$1256,6,0) ->  | O148: 138.36
A149: 2026-05-29 | B149: T55206 | C149: D-AIBC | D149: =VLOOKUP(C149,Flotte!A:B,2,0) -> Airbus A320 CFM_SL | E149: =VLOOKUP(C149,Flotte!A:C,3,0) -> inter-wings | F149: =VLOOKUP(B149,Routen!A:B, 2, 0) ->  | G149: =VLOOKUP(F149,Airports!$A$2:$G$1256,2,0) ->  | H149: =VLOOKUP(F149,Airports!$A$2:$G$1256,4,0) ->  | I149: =VLOOKUP(B149,Routen!A:F, 6, 0) ->  | J149: =VLOOKUP(I149,Airports!$A$2:$G$1256,4,0) ->  | K149: =VLOOKUP(I149,Airports!$A$2:$G$1256,2,0) ->  | L149: 464 | M149: 01:37:00 | N149: =VLOOKUP(I149,Airports!$A$2:$F$1256,6,0) ->  | O149: 153.63
A150: 2026-05-30 | B150: T55207 | C150: D-AIBC | D150: =VLOOKUP(C150,Flotte!A:B,2,0) -> Airbus A320 CFM_SL | E150: =VLOOKUP(C150,Flotte!A:C,3,0) -> inter-wings | F150: =VLOOKUP(B150,Routen!A:B, 2, 0) ->  | G150: =VLOOKUP(F150,Airports!$A$2:$G$1256,2,0) ->  | H150: =VLOOKUP(F150,Airports!$A$2:$G$1256,4,0) ->  | I150: =VLOOKUP(B150,Routen!A:F, 6, 0) ->  | J150: =VLOOKUP(I150,Airports!$A$2:$G$1256,4,0) ->  | K150: =VLOOKUP(I150,Airports!$A$2:$G$1256,2,0) ->  | L150: 277 | M150: 01:09:00 | N150: =VLOOKUP(I150,Airports!$A$2:$F$1256,6,0) ->  | O150: 165.31
A151: 2026-06-01 | B151: T55208 | C151: D-AIBC | D151: =VLOOKUP(C151,Flotte!A:B,2,0) -> Airbus A320 CFM_SL | E151: =VLOOKUP(C151,Flotte!A:C,3,0) -> inter-wings | F151: =VLOOKUP(B151,Routen!A:B, 2, 0) ->  | G151: =VLOOKUP(F151,Airports!$A$2:$G$1256,2,0) ->  | H151: =VLOOKUP(F151,Airports!$A$2:$G$1256,4,0) ->  | I151: =VLOOKUP(B151,Routen!A:F, 6, 0) ->  | J151: =VLOOKUP(I151,Airports!$A$2:$G$1256,4,0) ->  | K151: =VLOOKUP(I151,Airports!$A$2:$G$1256,2,0) ->  | L151: 231 | M151: 01:07:00 | N151: =VLOOKUP(I151,Airports!$A$2:$F$1256,6,0) ->  | O151: 165.75
A152: 2026-06-02 | B152: T55209 | C152: D-AIBC | D152: =VLOOKUP(C152,Flotte!A:B,2,0) -> Airbus A320 CFM_SL | E152: =VLOOKUP(C152,Flotte!A:C,3,0) -> inter-wings | F152: =VLOOKUP(B152,Routen!A:B, 2, 0) ->  | G152: =VLOOKUP(F152,Airports!$A$2:$G$1256,2,0) ->  | H152: =VLOOKUP(F152,Airports!$A$2:$G$1256,4,0) ->  | I152: =VLOOKUP(B152,Routen!A:F, 6, 0) ->  | J152: =VLOOKUP(I152,Airports!$A$2:$G$1256,4,0) ->  | K152: =VLOOKUP(I152,Airports!$A$2:$G$1256,2,0) ->  | L152: 207 | M152: 01:03:00 | N152: =VLOOKUP(I152,Airports!$A$2:$F$1256,6,0) ->  | O152: 40.42
A153: 2026-06-03 | B153: T55210 | C153: D-AIBC | D153: =VLOOKUP(C153,Flotte!A:B,2,0) -> Airbus A320 CFM_SL | E153: =VLOOKUP(C153,Flotte!A:C,3,0) -> inter-wings | F153: =VLOOKUP(B153,Routen!A:B, 2, 0) ->  | G153: =VLOOKUP(F153,Airports!$A$2:$G$1256,2,0) ->  | H153: =VLOOKUP(F153,Airports!$A$2:$G$1256,4,0) ->  | I153: =VLOOKUP(B153,Routen!A:F, 6, 0) ->  | J153: =VLOOKUP(I153,Airports!$A$2:$G$1256,4,0) ->  | K153: =VLOOKUP(I153,Airports!$A$2:$G$1256,2,0) ->  | L153: 215 | M153: 01:02:00 | N153: =VLOOKUP(I153,Airports!$A$2:$F$1256,6,0) ->  | O153: 88.09
A154: 2026-06-04 | B154: T55211 | C154: D-AIBC | D154: =VLOOKUP(C154,Flotte!A:B,2,0) -> Airbus A320 CFM_SL | E154: =VLOOKUP(C154,Flotte!A:C,3,0) -> inter-wings | F154: =VLOOKUP(B154,Routen!A:B, 2, 0) ->  | G154: =VLOOKUP(F154,Airports!$A$2:$G$1256,2,0) ->  | H154: =VLOOKUP(F154,Airports!$A$2:$G$1256,4,0) ->  | I154: =VLOOKUP(B154,Routen!A:F, 6, 0) ->  | J154: =VLOOKUP(I154,Airports!$A$2:$G$1256,4,0) ->  | K154: =VLOOKUP(I154,Airports!$A$2:$G$1256,2,0) ->  | L154: 275 | M154: 01:19:00 | N154: =VLOOKUP(I154,Airports!$A$2:$F$1256,6,0) ->  | O154: 188.57
A155: 2026-06-05 | B155: T55212 | C155: D-AIBC | D155: =VLOOKUP(C155,Flotte!A:B,2,0) -> Airbus A320 CFM_SL | E155: =VLOOKUP(C155,Flotte!A:C,3,0) -> inter-wings | F155: =VLOOKUP(B155,Routen!A:B, 2, 0) ->  | G155: =VLOOKUP(F155,Airports!$A$2:$G$1256,2,0) ->  | H155: =VLOOKUP(F155,Airports!$A$2:$G$1256,4,0) ->  | I155: =VLOOKUP(B155,Routen!A:F, 6, 0) ->  | J155: =VLOOKUP(I155,Airports!$A$2:$G$1256,4,0) ->  | K155: =VLOOKUP(I155,Airports!$A$2:$G$1256,2,0) ->  | L155: 263 | M155: 01:02:00 | N155: =VLOOKUP(I155,Airports!$A$2:$F$1256,6,0) ->  | O155: 64.05
A156: 2026-06-07 | B156: T55213 | C156: D-AIBC | D156: =VLOOKUP(C156,Flotte!A:B,2,0) -> Airbus A320 CFM_SL | E156: =VLOOKUP(C156,Flotte!A:C,3,0) -> inter-wings | F156: =VLOOKUP(B156,Routen!A:B, 2, 0) ->  | G156: =VLOOKUP(F156,Airports!$A$2:$G$1256,2,0) ->  | H156: =VLOOKUP(F156,Airports!$A$2:$G$1256,4,0) ->  | I156: =VLOOKUP(B156,Routen!A:F, 6, 0) ->  | J156: =VLOOKUP(I156,Airports!$A$2:$G$1256,4,0) ->  | K156: =VLOOKUP(I156,Airports!$A$2:$G$1256,2,0) ->  | L156: 305 | M156: 01:17:00 | N156: =VLOOKUP(I156,Airports!$A$2:$F$1256,6,0) ->  | O156: 277.16
A157: 2026-06-08 | B157: T55214 | C157: D-AIBC | D157: =VLOOKUP(C157,Flotte!A:B,2,0) -> Airbus A320 CFM_SL | E157: =VLOOKUP(C157,Flotte!A:C,3,0) -> inter-wings | F157: =VLOOKUP(B157,Routen!A:B, 2, 0) ->  | G157: =VLOOKUP(F157,Airports!$A$2:$G$1256,2,0) ->  | H157: =VLOOKUP(F157,Airports!$A$2:$G$1256,4,0) ->  | I157: =VLOOKUP(B157,Routen!A:F, 6, 0) ->  | J157: =VLOOKUP(I157,Airports!$A$2:$G$1256,4,0) ->  | K157: =VLOOKUP(I157,Airports!$A$2:$G$1256,2,0) ->  | L157: 216 | M157: 01:09:00 | N157: =VLOOKUP(I157,Airports!$A$2:$F$1256,6,0) ->  | O157: 284.51
A158: 2026-06-08 | B158: T55215 | C158: D-AIBC | D158: =VLOOKUP(C158,Flotte!A:B,2,0) -> Airbus A320 CFM_SL | E158: =VLOOKUP(C158,Flotte!A:C,3,0) -> inter-wings | F158: =VLOOKUP(B158,Routen!A:B, 2, 0) ->  | G158: =VLOOKUP(F158,Airports!$A$2:$G$1256,2,0) ->  | H158: =VLOOKUP(F158,Airports!$A$2:$G$1256,4,0) ->  | I158: =VLOOKUP(B158,Routen!A:F, 6, 0) ->  | J158: =VLOOKUP(I158,Airports!$A$2:$G$1256,4,0) ->  | K158: =VLOOKUP(I158,Airports!$A$2:$G$1256,2,0) ->  | L158: 150 | M158: 00:50:00 | N158: =VLOOKUP(I158,Airports!$A$2:$F$1256,6,0) ->  | O158: 133.44
A159: 2026-06-09 | B159: T55216 | C159: D-AIBC | D159: =VLOOKUP(C159,Flotte!A:B,2,0) -> Airbus A320 CFM_SL | E159: =VLOOKUP(C159,Flotte!A:C,3,0) -> inter-wings | F159: =VLOOKUP(B159,Routen!A:B, 2, 0) ->  | G159: =VLOOKUP(F159,Airports!$A$2:$G$1256,2,0) ->  | H159: =VLOOKUP(F159,Airports!$A$2:$G$1256,4,0) ->  | I159: =VLOOKUP(B159,Routen!A:F, 6, 0) ->  | J159: =VLOOKUP(I159,Airports!$A$2:$G$1256,4,0) ->  | K159: =VLOOKUP(I159,Airports!$A$2:$G$1256,2,0) ->  | L159: 168 | M159: 01:05:00 | N159: =VLOOKUP(I159,Airports!$A$2:$F$1256,6,0) ->  | O159: 251.2
A160: 2026-06-10 | B160: T55217 | C160: D-AIBC | D160: =VLOOKUP(C160,Flotte!A:B,2,0) -> Airbus A320 CFM_SL | E160: =VLOOKUP(C160,Flotte!A:C,3,0) -> inter-wings | F160: =VLOOKUP(B160,Routen!A:B, 2, 0) ->  | G160: =VLOOKUP(F160,Airports!$A$2:$G$1256,2,0) ->  | H160: =VLOOKUP(F160,Airports!$A$2:$G$1256,4,0) ->  | I160: =VLOOKUP(B160,Routen!A:F, 6, 0) ->  | J160: =VLOOKUP(I160,Airports!$A$2:$G$1256,4,0) ->  | K160: =VLOOKUP(I160,Airports!$A$2:$G$1256,2,0) ->  | L160: 279 | M160: 01:04:00 | N160: =VLOOKUP(I160,Airports!$A$2:$F$1256,6,0) ->  | O160: 153.78
A161: 2026-06-11 | B161: T55218 | C161: D-AIBC | D161: =VLOOKUP(C161,Flotte!A:B,2,0) -> Airbus A320 CFM_SL | E161: =VLOOKUP(C161,Flotte!A:C,3,0) -> inter-wings | F161: =VLOOKUP(B161,Routen!A:B, 2, 0) ->  | G161: =VLOOKUP(F161,Airports!$A$2:$G$1256,2,0) ->  | H161: =VLOOKUP(F161,Airports!$A$2:$G$1256,4,0) ->  | I161: =VLOOKUP(B161,Routen!A:F, 6, 0) ->  | J161: =VLOOKUP(I161,Airports!$A$2:$G$1256,4,0) ->  | K161: =VLOOKUP(I161,Airports!$A$2:$G$1256,2,0) ->  | L161: 283 | M161: 01:13:00 | N161: =VLOOKUP(I161,Airports!$A$2:$F$1256,6,0) ->  | O161: 252.45
A162: 2026-06-11 | B162: T55219 | C162: D-AIBC | D162: =VLOOKUP(C162,Flotte!A:B,2,0) -> Airbus A320 CFM_SL | E162: =VLOOKUP(C162,Flotte!A:C,3,0) -> inter-wings | F162: =VLOOKUP(B162,Routen!A:B, 2, 0) ->  | G162: =VLOOKUP(F162,Airports!$A$2:$G$1256,2,0) ->  | H162: =VLOOKUP(F162,Airports!$A$2:$G$1256,4,0) ->  | I162: =VLOOKUP(B162,Routen!A:F, 6, 0) ->  | J162: =VLOOKUP(I162,Airports!$A$2:$G$1256,4,0) ->  | K162: =VLOOKUP(I162,Airports!$A$2:$G$1256,2,0) ->  | L162: 340 | M162: 01:28:00 | N162: =VLOOKUP(I162,Airports!$A$2:$F$1256,6,0) ->  | O162: 174.07
A163: 2026-06-12 | B163: T55220 | C163: D-AIBC | D163: =VLOOKUP(C163,Flotte!A:B,2,0) -> Airbus A320 CFM_SL | E163: =VLOOKUP(C163,Flotte!A:C,3,0) -> inter-wings | F163: =VLOOKUP(B163,Routen!A:B, 2, 0) ->  | G163: =VLOOKUP(F163,Airports!$A$2:$G$1256,2,0) ->  | H163: =VLOOKUP(F163,Airports!$A$2:$G$1256,4,0) ->  | I163: =VLOOKUP(B163,Routen!A:F, 6, 0) ->  | J163: =VLOOKUP(I163,Airports!$A$2:$G$1256,4,0) ->  | K163: =VLOOKUP(I163,Airports!$A$2:$G$1256,2,0) ->  | L163: 260 | M163: 00:56:00 | N163: =VLOOKUP(I163,Airports!$A$2:$F$1256,6,0) ->  | O163: 171.35
A164: 2026-06-13 | B164: T55221 | C164: D-AIBC | D164: =VLOOKUP(C164,Flotte!A:B,2,0) -> Airbus A320 CFM_SL | E164: =VLOOKUP(C164,Flotte!A:C,3,0) -> inter-wings | F164: =VLOOKUP(B164,Routen!A:B, 2, 0) ->  | G164: =VLOOKUP(F164,Airports!$A$2:$G$1256,2,0) ->  | H164: =VLOOKUP(F164,Airports!$A$2:$G$1256,4,0) ->  | I164: =VLOOKUP(B164,Routen!A:F, 6, 0) ->  | J164: =VLOOKUP(I164,Airports!$A$2:$G$1256,4,0) ->  | K164: =VLOOKUP(I164,Airports!$A$2:$G$1256,2,0) ->  | L164: 248 | M164: 01:09:00 | N164: =VLOOKUP(I164,Airports!$A$2:$F$1256,6,0) ->  | O164: 205.93
A165: 2026-06-15 | B165: T55222 | C165: D-AIBC | D165: =VLOOKUP(C165,Flotte!A:B,2,0) -> Airbus A320 CFM_SL | E165: =VLOOKUP(C165,Flotte!A:C,3,0) -> inter-wings | F165: =VLOOKUP(B165,Routen!A:B, 2, 0) ->  | G165: =VLOOKUP(F165,Airports!$A$2:$G$1256,2,0) ->  | H165: =VLOOKUP(F165,Airports!$A$2:$G$1256,4,0) ->  | I165: =VLOOKUP(B165,Routen!A:F, 6, 0) ->  | J165: =VLOOKUP(I165,Airports!$A$2:$G$1256,4,0) ->  | K165: =VLOOKUP(I165,Airports!$A$2:$G$1256,2,0) ->  | L165: 291 | M165: 01:18:00 | N165: =VLOOKUP(I165,Airports!$A$2:$F$1256,6,0) ->  | O165: 130.43
A166: 2026-06-16 | B166: T55223 | C166: D-AIBC | D166: =VLOOKUP(C166,Flotte!A:B,2,0) -> Airbus A320 CFM_SL | E166: =VLOOKUP(C166,Flotte!A:C,3,0) -> inter-wings | F166: =VLOOKUP(B166,Routen!A:B, 2, 0) ->  | G166: =VLOOKUP(F166,Airports!$A$2:$G$1256,2,0) ->  | H166: =VLOOKUP(F166,Airports!$A$2:$G$1256,4,0) ->  | I166: =VLOOKUP(B166,Routen!A:F, 6, 0) ->  | J166: =VLOOKUP(I166,Airports!$A$2:$G$1256,4,0) ->  | K166: =VLOOKUP(I166,Airports!$A$2:$G$1256,2,0) ->  | L166: 224 | M166: 01:01:00 | N166: =VLOOKUP(I166,Airports!$A$2:$F$1256,6,0) ->  | O166: 239.8
A167: 2026-06-16 | B167: T55224 | C167: D-AIBC | D167: =VLOOKUP(C167,Flotte!A:B,2,0) -> Airbus A320 CFM_SL | E167: =VLOOKUP(C167,Flotte!A:C,3,0) -> inter-wings | F167: =VLOOKUP(B167,Routen!A:B, 2, 0) ->  | G167: =VLOOKUP(F167,Airports!$A$2:$G$1256,2,0) ->  | H167: =VLOOKUP(F167,Airports!$A$2:$G$1256,4,0) ->  | I167: =VLOOKUP(B167,Routen!A:F, 6, 0) ->  | J167: =VLOOKUP(I167,Airports!$A$2:$G$1256,4,0) ->  | K167: =VLOOKUP(I167,Airports!$A$2:$G$1256,2,0) ->  | L167: 175 | M167: 00:49:00 | N167: =VLOOKUP(I167,Airports!$A$2:$F$1256,6,0) ->  | O167: 202.52
A168: 2026-06-16 | B168: T55225 | C168: D-AIBC | D168: =VLOOKUP(C168,Flotte!A:B,2,0) -> Airbus A320 CFM_SL | E168: =VLOOKUP(C168,Flotte!A:C,3,0) -> inter-wings | F168: =VLOOKUP(B168,Routen!A:B, 2, 0) ->  | G168: =VLOOKUP(F168,Airports!$A$2:$G$1256,2,0) ->  | H168: =VLOOKUP(F168,Airports!$A$2:$G$1256,4,0) ->  | I168: =VLOOKUP(B168,Routen!A:F, 6, 0) ->  | J168: =VLOOKUP(I168,Airports!$A$2:$G$1256,4,0) ->  | K168: =VLOOKUP(I168,Airports!$A$2:$G$1256,2,0) ->  | L168: 317 | M168: 01:09:00 | N168: =VLOOKUP(I168,Airports!$A$2:$F$1256,6,0) ->  | O168: 105.6
A169: 2026-06-17 | B169: T55226 | C169: D-AIBC | D169: =VLOOKUP(C169,Flotte!A:B,2,0) -> Airbus A320 CFM_SL | E169: =VLOOKUP(C169,Flotte!A:C,3,0) -> inter-wings | F169: =VLOOKUP(B169,Routen!A:B, 2, 0) ->  | G169: =VLOOKUP(F169,Airports!$A$2:$G$1256,2,0) ->  | H169: =VLOOKUP(F169,Airports!$A$2:$G$1256,4,0) ->  | I169: =VLOOKUP(B169,Routen!A:F, 6, 0) ->  | J169: =VLOOKUP(I169,Airports!$A$2:$G$1256,4,0) ->  | K169: =VLOOKUP(I169,Airports!$A$2:$G$1256,2,0) ->  | L169: 368 | M169: 01:23:00 | N169: =VLOOKUP(I169,Airports!$A$2:$F$1256,6,0) ->  | O169: 159.72
A170: 2026-06-17 | B170: T55300 | C170: D-AICE | D170: =VLOOKUP(C170,Flotte!A:B,2,0) -> Airbus A321 CFM_SL | E170: =VLOOKUP(C170,Flotte!A:C,3,0) -> inter-wings | F170: =VLOOKUP(B170,Routen!A:B, 2, 0) ->  | G170: =VLOOKUP(F170,Airports!$A$2:$G$1256,2,0) ->  | H170: =VLOOKUP(F170,Airports!$A$2:$G$1256,4,0) ->  | I170: =VLOOKUP(B170,Routen!A:F, 6, 0) ->  | J170: =VLOOKUP(I170,Airports!$A$2:$G$1256,4,0) ->  | K170: =VLOOKUP(I170,Airports!$A$2:$G$1256,2,0) ->  | L170: 1156 | M170: 03:09:00 | N170: =VLOOKUP(I170,Airports!$A$2:$F$1256,6,0) ->  | O170: 97.25
A171: 2026-06-18 | B171: T55301 | C171: D-AICE | D171: =VLOOKUP(C171,Flotte!A:B,2,0) -> Airbus A321 CFM_SL | E171: =VLOOKUP(C171,Flotte!A:C,3,0) -> inter-wings | F171: =VLOOKUP(B171,Routen!A:B, 2, 0) ->  | G171: =VLOOKUP(F171,Airports!$A$2:$G$1256,2,0) ->  | H171: =VLOOKUP(F171,Airports!$A$2:$G$1256,4,0) ->  | I171: =VLOOKUP(B171,Routen!A:F, 6, 0) ->  | J171: =VLOOKUP(I171,Airports!$A$2:$G$1256,4,0) ->  | K171: =VLOOKUP(I171,Airports!$A$2:$G$1256,2,0) ->  | L171: 1565 | M171: 03:56:00 | N171: =VLOOKUP(I171,Airports!$A$2:$F$1256,6,0) ->  | O171: 186
A172: 2026-06-18 | B172: T55302 | C172: D-AICE | D172: =VLOOKUP(C172,Flotte!A:B,2,0) -> Airbus A321 CFM_SL | E172: =VLOOKUP(C172,Flotte!A:C,3,0) -> inter-wings | F172: =VLOOKUP(B172,Routen!A:B, 2, 0) ->  | G172: =VLOOKUP(F172,Airports!$A$2:$G$1256,2,0) ->  | H172: =VLOOKUP(F172,Airports!$A$2:$G$1256,4,0) ->  | I172: =VLOOKUP(B172,Routen!A:F, 6, 0) ->  | J172: =VLOOKUP(I172,Airports!$A$2:$G$1256,4,0) ->  | K172: =VLOOKUP(I172,Airports!$A$2:$G$1256,2,0) ->  | L172: 1623 | M172: 03:57:00 | N172: =VLOOKUP(I172,Airports!$A$2:$F$1256,6,0) ->  | O172: 210.81
A173: 2026-06-19 | B173: T55303 | C173: D-AICE | D173: =VLOOKUP(C173,Flotte!A:B,2,0) -> Airbus A321 CFM_SL | E173: =VLOOKUP(C173,Flotte!A:C,3,0) -> inter-wings | F173: =VLOOKUP(B173,Routen!A:B, 2, 0) ->  | G173: =VLOOKUP(F173,Airports!$A$2:$G$1256,2,0) ->  | H173: =VLOOKUP(F173,Airports!$A$2:$G$1256,4,0) ->  | I173: =VLOOKUP(B173,Routen!A:F, 6, 0) ->  | J173: =VLOOKUP(I173,Airports!$A$2:$G$1256,4,0) ->  | K173: =VLOOKUP(I173,Airports!$A$2:$G$1256,2,0) ->  | L173: 1439 | M173: 03:27:00 | N173: =VLOOKUP(I173,Airports!$A$2:$F$1256,6,0) ->  | O173: 164.25
A174: 2026-06-20 | B174: T55304 | C174: D-AICE | D174: =VLOOKUP(C174,Flotte!A:B,2,0) -> Airbus A321 CFM_SL | E174: =VLOOKUP(C174,Flotte!A:C,3,0) -> inter-wings | F174: =VLOOKUP(B174,Routen!A:B, 2, 0) ->  | G174: =VLOOKUP(F174,Airports!$A$2:$G$1256,2,0) ->  | H174: =VLOOKUP(F174,Airports!$A$2:$G$1256,4,0) ->  | I174: =VLOOKUP(B174,Routen!A:F, 6, 0) ->  | J174: =VLOOKUP(I174,Airports!$A$2:$G$1256,4,0) ->  | K174: =VLOOKUP(I174,Airports!$A$2:$G$1256,2,0) ->  | L174: 1214 | M174: 03:12:00 | N174: =VLOOKUP(I174,Airports!$A$2:$F$1256,6,0) ->  | O174: 137.09
A175: 2026-06-22 | B175: T55305 | C175: D-AICE | D175: =VLOOKUP(C175,Flotte!A:B,2,0) -> Airbus A321 CFM_SL | E175: =VLOOKUP(C175,Flotte!A:C,3,0) -> inter-wings | F175: =VLOOKUP(B175,Routen!A:B, 2, 0) ->  | G175: =VLOOKUP(F175,Airports!$A$2:$G$1256,2,0) ->  | H175: =VLOOKUP(F175,Airports!$A$2:$G$1256,4,0) ->  | I175: =VLOOKUP(B175,Routen!A:F, 6, 0) ->  | J175: =VLOOKUP(I175,Airports!$A$2:$G$1256,4,0) ->  | K175: =VLOOKUP(I175,Airports!$A$2:$G$1256,2,0) ->  | L175: 1373 | M175: 03:32:00 | N175: =VLOOKUP(I175,Airports!$A$2:$F$1256,6,0) ->  | O175: 69.11
A176: 2026-06-24 | B176: T55306 | C176: D-AICE | D176: =VLOOKUP(C176,Flotte!A:B,2,0) -> Airbus A321 CFM_SL | E176: =VLOOKUP(C176,Flotte!A:C,3,0) -> inter-wings | F176: =VLOOKUP(B176,Routen!A:B, 2, 0) ->  | G176: =VLOOKUP(F176,Airports!$A$2:$G$1256,2,0) ->  | H176: =VLOOKUP(F176,Airports!$A$2:$G$1256,4,0) ->  | I176: =VLOOKUP(B176,Routen!A:F, 6, 0) ->  | J176: =VLOOKUP(I176,Airports!$A$2:$G$1256,4,0) ->  | K176: =VLOOKUP(I176,Airports!$A$2:$G$1256,2,0) ->  | L176: 879 | M176: 02:32:00 | N176: =VLOOKUP(I176,Airports!$A$2:$F$1256,6,0) ->  | O176: 288.11
A177: 2026-06-25 | B177: T55307 | C177: D-AICE | D177: =VLOOKUP(C177,Flotte!A:B,2,0) -> Airbus A321 CFM_SL | E177: =VLOOKUP(C177,Flotte!A:C,3,0) -> inter-wings | F177: =VLOOKUP(B177,Routen!A:B, 2, 0) ->  | G177: =VLOOKUP(F177,Airports!$A$2:$G$1256,2,0) ->  | H177: =VLOOKUP(F177,Airports!$A$2:$G$1256,4,0) ->  | I177: =VLOOKUP(B177,Routen!A:F, 6, 0) ->  | J177: =VLOOKUP(I177,Airports!$A$2:$G$1256,4,0) ->  | K177: =VLOOKUP(I177,Airports!$A$2:$G$1256,2,0) ->  | L177: 1592 | M177: 03:57:00 | N177: =VLOOKUP(I177,Airports!$A$2:$F$1256,6,0) ->  | O177: 262.53
A178: 2026-06-26 | B178: T55308 | C178: D-AICE | D178: =VLOOKUP(C178,Flotte!A:B,2,0) -> Airbus A321 CFM_SL | E178: =VLOOKUP(C178,Flotte!A:C,3,0) -> inter-wings | F178: =VLOOKUP(B178,Routen!A:B, 2, 0) ->  | G178: =VLOOKUP(F178,Airports!$A$2:$G$1256,2,0) ->  | H178: =VLOOKUP(F178,Airports!$A$2:$G$1256,4,0) ->  | I178: =VLOOKUP(B178,Routen!A:F, 6, 0) ->  | J178: =VLOOKUP(I178,Airports!$A$2:$G$1256,4,0) ->  | K178: =VLOOKUP(I178,Airports!$A$2:$G$1256,2,0) ->  | L178: 1396 | M178: 03:40:00 | N178: =VLOOKUP(I178,Airports!$A$2:$F$1256,6,0) ->  | O178: 170.94
A179: 2026-06-27 | B179: T55309 | C179: D-AICE | D179: =VLOOKUP(C179,Flotte!A:B,2,0) -> Airbus A321 CFM_SL | E179: =VLOOKUP(C179,Flotte!A:C,3,0) -> inter-wings | F179: =VLOOKUP(B179,Routen!A:B, 2, 0) ->  | G179: =VLOOKUP(F179,Airports!$A$2:$G$1256,2,0) ->  | H179: =VLOOKUP(F179,Airports!$A$2:$G$1256,4,0) ->  | I179: =VLOOKUP(B179,Routen!A:F, 6, 0) ->  | J179: =VLOOKUP(I179,Airports!$A$2:$G$1256,4,0) ->  | K179: =VLOOKUP(I179,Airports!$A$2:$G$1256,2,0) ->  | L179: 1231 | M179: 03:07:00 | N179: =VLOOKUP(I179,Airports!$A$2:$F$1256,6,0) ->  | O179: 259.81
A180: 2026-06-29 | B180: T55310 | C180: D-AICE | D180: =VLOOKUP(C180,Flotte!A:B,2,0) -> Airbus A321 CFM_SL | E180: =VLOOKUP(C180,Flotte!A:C,3,0) -> inter-wings | F180: =VLOOKUP(B180,Routen!A:B, 2, 0) ->  | G180: =VLOOKUP(F180,Airports!$A$2:$G$1256,2,0) ->  | H180: =VLOOKUP(F180,Airports!$A$2:$G$1256,4,0) ->  | I180: =VLOOKUP(B180,Routen!A:F, 6, 0) ->  | J180: =VLOOKUP(I180,Airports!$A$2:$G$1256,4,0) ->  | K180: =VLOOKUP(I180,Airports!$A$2:$G$1256,2,0) ->  | L180: 1269 | M180: 03:18:00 | N180: =VLOOKUP(I180,Airports!$A$2:$F$1256,6,0) ->  | O180: 158.02
A181: 2026-06-29 | B181: T55311 | C181: D-AICE | D181: =VLOOKUP(C181,Flotte!A:B,2,0) -> Airbus A321 CFM_SL | E181: =VLOOKUP(C181,Flotte!A:C,3,0) -> inter-wings | F181: =VLOOKUP(B181,Routen!A:B, 2, 0) ->  | G181: =VLOOKUP(F181,Airports!$A$2:$G$1256,2,0) ->  | H181: =VLOOKUP(F181,Airports!$A$2:$G$1256,4,0) ->  | I181: =VLOOKUP(B181,Routen!A:F, 6, 0) ->  | J181: =VLOOKUP(I181,Airports!$A$2:$G$1256,4,0) ->  | K181: =VLOOKUP(I181,Airports!$A$2:$G$1256,2,0) ->  | L181: 759 | M181: 02:23:00 | N181: =VLOOKUP(I181,Airports!$A$2:$F$1256,6,0) ->  | O181: 312.17
A182: 2026-07-02 | B182: T55312 | C182: D-AICE | D182: =VLOOKUP(C182,Flotte!A:B,2,0) -> Airbus A321 CFM_SL | E182: =VLOOKUP(C182,Flotte!A:C,3,0) -> inter-wings | F182: =VLOOKUP(B182,Routen!A:B, 2, 0) ->  | G182: =VLOOKUP(F182,Airports!$A$2:$G$1256,2,0) ->  | H182: =VLOOKUP(F182,Airports!$A$2:$G$1256,4,0) ->  | I182: =VLOOKUP(B182,Routen!A:F, 6, 0) ->  | J182: =VLOOKUP(I182,Airports!$A$2:$G$1256,4,0) ->  | K182: =VLOOKUP(I182,Airports!$A$2:$G$1256,2,0) ->  | L182: 1182 | M182: 03:22:00 | N182: =VLOOKUP(I182,Airports!$A$2:$F$1256,6,0) ->  | O182: 61.18
A183: 2026-07-03 | B183: IW1191 | C183: D-AICC | D183: =VLOOKUP(C183,Flotte!A:B,2,0) -> Airbus A321 CFM_SL | E183: =VLOOKUP(C183,Flotte!A:C,3,0) -> inter-wings | F183: =VLOOKUP(B183,Routen!A:B, 2, 0) -> EDDL | G183: =VLOOKUP(F183,Airports!$A$2:$G$1256,2,0) -> Düsseldorf (Original) | H183: =VLOOKUP(F183,Airports!$A$2:$G$1256,4,0) -> Deutschland | I183: =VLOOKUP(B183,Routen!A:F, 6, 0) -> EDHI | J183: =VLOOKUP(I183,Airports!$A$2:$G$1256,4,0) -> Deutschland | K183: =VLOOKUP(I183,Airports!$A$2:$G$1256,2,0) -> Hamburg-Finkenwerder | L183: 240 | M183: 01:03:00 | N183: =VLOOKUP(I183,Airports!$A$2:$F$1256,6,0) -> 1 | O183: 185.58
A184: 2026-07-03 | B184: IW1192 | C184: D-AICC | D184: =VLOOKUP(C184,Flotte!A:B,2,0) -> Airbus A321 CFM_SL | E184: =VLOOKUP(C184,Flotte!A:C,3,0) -> inter-wings | F184: =VLOOKUP(B184,Routen!A:B, 2, 0) -> EDHI | G184: =VLOOKUP(F184,Airports!$A$2:$G$1256,2,0) -> Hamburg-Finkenwerder | H184: =VLOOKUP(F184,Airports!$A$2:$G$1256,4,0) -> Deutschland | I184: =VLOOKUP(B184,Routen!A:F, 6, 0) -> EDDL | J184: =VLOOKUP(I184,Airports!$A$2:$G$1256,4,0) -> Deutschland | K184: =VLOOKUP(I184,Airports!$A$2:$G$1256,2,0) -> Düsseldorf (Original) | L184: 188 | M184: 00:53:00 | N184: =VLOOKUP(I184,Airports!$A$2:$F$1256,6,0) -> 46 | O184: 315.42
A185: 2026-07-04 | B185: T55313 | C185: D-AICE | D185: =VLOOKUP(C185,Flotte!A:B,2,0) -> Airbus A321 CFM_SL | E185: =VLOOKUP(C185,Flotte!A:C,3,0) -> inter-wings | F185: =VLOOKUP(B185,Routen!A:B, 2, 0) ->  | G185: =VLOOKUP(F185,Airports!$A$2:$G$1256,2,0) ->  | H185: =VLOOKUP(F185,Airports!$A$2:$G$1256,4,0) ->  | I185: =VLOOKUP(B185,Routen!A:F, 6, 0) ->  | J185: =VLOOKUP(I185,Airports!$A$2:$G$1256,4,0) ->  | K185: =VLOOKUP(I185,Airports!$A$2:$G$1256,2,0) ->  | L185: 1809 | M185: 04:22:00 | N185: =VLOOKUP(I185,Airports!$A$2:$F$1256,6,0) ->  | O185: 313.59
A186: 2026-07-05 | B186: T55314 | C186: D-AICE | D186: =VLOOKUP(C186,Flotte!A:B,2,0) -> Airbus A321 CFM_SL | E186: =VLOOKUP(C186,Flotte!A:C,3,0) -> inter-wings | F186: =VLOOKUP(B186,Routen!A:B, 2, 0) ->  | G186: =VLOOKUP(F186,Airports!$A$2:$G$1256,2,0) ->  | H186: =VLOOKUP(F186,Airports!$A$2:$G$1256,4,0) ->  | I186: =VLOOKUP(B186,Routen!A:F, 6, 0) ->  | J186: =VLOOKUP(I186,Airports!$A$2:$G$1256,4,0) ->  | K186: =VLOOKUP(I186,Airports!$A$2:$G$1256,2,0) ->  | L186: 674 | M186: 02:02:00 | N186: =VLOOKUP(I186,Airports!$A$2:$F$1256,6,0) ->  | O186: 132.95
A187: 2026-07-05 | B187: T55315 | C187: D-AICE | D187: =VLOOKUP(C187,Flotte!A:B,2,0) -> Airbus A321 CFM_SL | E187: =VLOOKUP(C187,Flotte!A:C,3,0) -> inter-wings | F187: =VLOOKUP(B187,Routen!A:B, 2, 0) ->  | G187: =VLOOKUP(F187,Airports!$A$2:$G$1256,2,0) ->  | H187: =VLOOKUP(F187,Airports!$A$2:$G$1256,4,0) ->  | I187: =VLOOKUP(B187,Routen!A:F, 6, 0) ->  | J187: =VLOOKUP(I187,Airports!$A$2:$G$1256,4,0) ->  | K187: =VLOOKUP(I187,Airports!$A$2:$G$1256,2,0) ->  | L187: 1490 | M187: 03:44:00 | N187: =VLOOKUP(I187,Airports!$A$2:$F$1256,6,0) ->  | O187: 260.67
A188: 2026-07-05 | B188: T55316 | C188: D-AICE | D188: =VLOOKUP(C188,Flotte!A:B,2,0) -> Airbus A321 CFM_SL | E188: =VLOOKUP(C188,Flotte!A:C,3,0) -> inter-wings | F188: =VLOOKUP(B188,Routen!A:B, 2, 0) ->  | G188: =VLOOKUP(F188,Airports!$A$2:$G$1256,2,0) ->  | H188: =VLOOKUP(F188,Airports!$A$2:$G$1256,4,0) ->  | I188: =VLOOKUP(B188,Routen!A:F, 6, 0) ->  | J188: =VLOOKUP(I188,Airports!$A$2:$G$1256,4,0) ->  | K188: =VLOOKUP(I188,Airports!$A$2:$G$1256,2,0) ->  | L188: 1764 | M188: 04:30:00 | N188: =VLOOKUP(I188,Airports!$A$2:$F$1256,6,0) ->  | O188: 198.22
A189: 2026-07-06 | B189: T55317 | C189: D-AICE | D189: =VLOOKUP(C189,Flotte!A:B,2,0) -> Airbus A321 CFM_SL | E189: =VLOOKUP(C189,Flotte!A:C,3,0) -> inter-wings | F189: =VLOOKUP(B189,Routen!A:B, 2, 0) ->  | G189: =VLOOKUP(F189,Airports!$A$2:$G$1256,2,0) ->  | H189: =VLOOKUP(F189,Airports!$A$2:$G$1256,4,0) ->  | I189: =VLOOKUP(B189,Routen!A:F, 6, 0) ->  | J189: =VLOOKUP(I189,Airports!$A$2:$G$1256,4,0) ->  | K189: =VLOOKUP(I189,Airports!$A$2:$G$1256,2,0) ->  | L189: 1189 | M189: 03:09:00 | N189: =VLOOKUP(I189,Airports!$A$2:$F$1256,6,0) ->  | O189: 314.05
A190: 2026-07-06 | B190: T55318 | C190: D-AICE | D190: =VLOOKUP(C190,Flotte!A:B,2,0) -> Airbus A321 CFM_SL | E190: =VLOOKUP(C190,Flotte!A:C,3,0) -> inter-wings | F190: =VLOOKUP(B190,Routen!A:B, 2, 0) ->  | G190: =VLOOKUP(F190,Airports!$A$2:$G$1256,2,0) ->  | H190: =VLOOKUP(F190,Airports!$A$2:$G$1256,4,0) ->  | I190: =VLOOKUP(B190,Routen!A:F, 6, 0) ->  | J190: =VLOOKUP(I190,Airports!$A$2:$G$1256,4,0) ->  | K190: =VLOOKUP(I190,Airports!$A$2:$G$1256,2,0) ->  | L190: 928 | M190: 02:38:00 | N190: =VLOOKUP(I190,Airports!$A$2:$F$1256,6,0) ->  | O190: 198.4
A191: 2026-07-07 | B191: T55319 | C191: D-AICE | D191: =VLOOKUP(C191,Flotte!A:B,2,0) -> Airbus A321 CFM_SL | E191: =VLOOKUP(C191,Flotte!A:C,3,0) -> inter-wings | F191: =VLOOKUP(B191,Routen!A:B, 2, 0) ->  | G191: =VLOOKUP(F191,Airports!$A$2:$G$1256,2,0) ->  | H191: =VLOOKUP(F191,Airports!$A$2:$G$1256,4,0) ->  | I191: =VLOOKUP(B191,Routen!A:F, 6, 0) ->  | J191: =VLOOKUP(I191,Airports!$A$2:$G$1256,4,0) ->  | K191: =VLOOKUP(I191,Airports!$A$2:$G$1256,2,0) ->  | L191: 607 | M191: 02:02:00 | N191: =VLOOKUP(I191,Airports!$A$2:$F$1256,6,0) ->  | O191: 256.9
A192: 2026-07-08 | B192: T55320 | C192: D-AICE | D192: =VLOOKUP(C192,Flotte!A:B,2,0) -> Airbus A321 CFM_SL | E192: =VLOOKUP(C192,Flotte!A:C,3,0) -> inter-wings | F192: =VLOOKUP(B192,Routen!A:B, 2, 0) ->  | G192: =VLOOKUP(F192,Airports!$A$2:$G$1256,2,0) ->  | H192: =VLOOKUP(F192,Airports!$A$2:$G$1256,4,0) ->  | I192: =VLOOKUP(B192,Routen!A:F, 6, 0) ->  | J192: =VLOOKUP(I192,Airports!$A$2:$G$1256,4,0) ->  | K192: =VLOOKUP(I192,Airports!$A$2:$G$1256,2,0) ->  | L192: 769 | M192: 02:15:00 | N192: =VLOOKUP(I192,Airports!$A$2:$F$1256,6,0) ->  | O192: 132.15
A193: 2026-07-09 | B193: T55321 | C193: D-AICE | D193: =VLOOKUP(C193,Flotte!A:B,2,0) -> Airbus A321 CFM_SL | E193: =VLOOKUP(C193,Flotte!A:C,3,0) -> inter-wings | F193: =VLOOKUP(B193,Routen!A:B, 2, 0) ->  | G193: =VLOOKUP(F193,Airports!$A$2:$G$1256,2,0) ->  | H193: =VLOOKUP(F193,Airports!$A$2:$G$1256,4,0) ->  | I193: =VLOOKUP(B193,Routen!A:F, 6, 0) ->  | J193: =VLOOKUP(I193,Airports!$A$2:$G$1256,4,0) ->  | K193: =VLOOKUP(I193,Airports!$A$2:$G$1256,2,0) ->  | L193: 1455 | M193: 03:40:00 | N193: =VLOOKUP(I193,Airports!$A$2:$F$1256,6,0) ->  | O193: 233.11
A194: 2026-07-10 | B194: T55322 | C194: D-AICE | D194: =VLOOKUP(C194,Flotte!A:B,2,0) -> Airbus A321 CFM_SL | E194: =VLOOKUP(C194,Flotte!A:C,3,0) -> inter-wings | F194: =VLOOKUP(B194,Routen!A:B, 2, 0) ->  | G194: =VLOOKUP(F194,Airports!$A$2:$G$1256,2,0) ->  | H194: =VLOOKUP(F194,Airports!$A$2:$G$1256,4,0) ->  | I194: =VLOOKUP(B194,Routen!A:F, 6, 0) ->  | J194: =VLOOKUP(I194,Airports!$A$2:$G$1256,4,0) ->  | K194: =VLOOKUP(I194,Airports!$A$2:$G$1256,2,0) ->  | L194: 1261 | M194: 03:10:00 | N194: =VLOOKUP(I194,Airports!$A$2:$F$1256,6,0) ->  | O194: 290.35
A195: 2026-07-11 | B195: T55323 | C195: D-AICE | D195: =VLOOKUP(C195,Flotte!A:B,2,0) -> Airbus A321 CFM_SL | E195: =VLOOKUP(C195,Flotte!A:C,3,0) -> inter-wings | F195: =VLOOKUP(B195,Routen!A:B, 2, 0) ->  | G195: =VLOOKUP(F195,Airports!$A$2:$G$1256,2,0) ->  | H195: =VLOOKUP(F195,Airports!$A$2:$G$1256,4,0) ->  | I195: =VLOOKUP(B195,Routen!A:F, 6, 0) ->  | J195: =VLOOKUP(I195,Airports!$A$2:$G$1256,4,0) ->  | K195: =VLOOKUP(I195,Airports!$A$2:$G$1256,2,0) ->  | L195: 1318 | M195: 03:26:00 | N195: =VLOOKUP(I195,Airports!$A$2:$F$1256,6,0) ->  | O195: 270.36
A196: 2026-07-12 | B196: T55324 | C196: D-AICE | D196: =VLOOKUP(C196,Flotte!A:B,2,0) -> Airbus A321 CFM_SL | E196: =VLOOKUP(C196,Flotte!A:C,3,0) -> inter-wings | F196: =VLOOKUP(B196,Routen!A:B, 2, 0) ->  | G196: =VLOOKUP(F196,Airports!$A$2:$G$1256,2,0) ->  | H196: =VLOOKUP(F196,Airports!$A$2:$G$1256,4,0) ->  | I196: =VLOOKUP(B196,Routen!A:F, 6, 0) ->  | J196: =VLOOKUP(I196,Airports!$A$2:$G$1256,4,0) ->  | K196: =VLOOKUP(I196,Airports!$A$2:$G$1256,2,0) ->  | L196: 2232 | M196: 05:18:00 | N196: =VLOOKUP(I196,Airports!$A$2:$F$1256,6,0) ->  | O196: 227.94
A197: 2026-07-13 | B197: T55325 | C197: D-AICE | D197: =VLOOKUP(C197,Flotte!A:B,2,0) -> Airbus A321 CFM_SL | E197: =VLOOKUP(C197,Flotte!A:C,3,0) -> inter-wings | F197: =VLOOKUP(B197,Routen!A:B, 2, 0) ->  | G197: =VLOOKUP(F197,Airports!$A$2:$G$1256,2,0) ->  | H197: =VLOOKUP(F197,Airports!$A$2:$G$1256,4,0) ->  | I197: =VLOOKUP(B197,Routen!A:F, 6, 0) ->  | J197: =VLOOKUP(I197,Airports!$A$2:$G$1256,4,0) ->  | K197: =VLOOKUP(I197,Airports!$A$2:$G$1256,2,0) ->  | L197: 1279 | M197: 03:22:00 | N197: =VLOOKUP(I197,Airports!$A$2:$F$1256,6,0) ->  | O197: 272.17
A198: 2026-07-13 | B198: T55326 | C198: D-AICE | D198: =VLOOKUP(C198,Flotte!A:B,2,0) -> Airbus A321 CFM_SL | E198: =VLOOKUP(C198,Flotte!A:C,3,0) -> inter-wings | F198: =VLOOKUP(B198,Routen!A:B, 2, 0) ->  | G198: =VLOOKUP(F198,Airports!$A$2:$G$1256,2,0) ->  | H198: =VLOOKUP(F198,Airports!$A$2:$G$1256,4,0) ->  | I198: =VLOOKUP(B198,Routen!A:F, 6, 0) ->  | J198: =VLOOKUP(I198,Airports!$A$2:$G$1256,4,0) ->  | K198: =VLOOKUP(I198,Airports!$A$2:$G$1256,2,0) ->  | L198: 694 | M198: 02:04:00 | N198: =VLOOKUP(I198,Airports!$A$2:$F$1256,6,0) ->  | O198: 267.86
A199: 2026-07-14 | B199: T55327 | C199: D-AICE | D199: =VLOOKUP(C199,Flotte!A:B,2,0) -> Airbus A321 CFM_SL | E199: =VLOOKUP(C199,Flotte!A:C,3,0) -> inter-wings | F199: =VLOOKUP(B199,Routen!A:B, 2, 0) ->  | G199: =VLOOKUP(F199,Airports!$A$2:$G$1256,2,0) ->  | H199: =VLOOKUP(F199,Airports!$A$2:$G$1256,4,0) ->  | I199: =VLOOKUP(B199,Routen!A:F, 6, 0) ->  | J199: =VLOOKUP(I199,Airports!$A$2:$G$1256,4,0) ->  | K199: =VLOOKUP(I199,Airports!$A$2:$G$1256,2,0) ->  | L199: 853 | M199: 02:33:00 | N199: =VLOOKUP(I199,Airports!$A$2:$F$1256,6,0) ->  | O199: 183.89
A200: 2026-07-16 | B200: LH1101 | C200: D-AIUM | D200: =VLOOKUP(C200,Flotte!A:B,2,0) -> Airbus A320 CFM_SL | E200: =VLOOKUP(C200,Flotte!A:C,3,0) -> Lufthansa | F200: =VLOOKUP(B200,Routen!A:B, 2, 0) -> EDDL | G200: =VLOOKUP(F200,Airports!$A$2:$G$1256,2,0) -> Düsseldorf (Original) | H200: =VLOOKUP(F200,Airports!$A$2:$G$1256,4,0) -> Deutschland | I200: =VLOOKUP(B200,Routen!A:F, 6, 0) -> LJMB | J200: =VLOOKUP(I200,Airports!$A$2:$G$1256,4,0) -> Slowenien | K200: =VLOOKUP(I200,Airports!$A$2:$G$1256,2,0) -> Maribor-Edvard Rusjan | L200: 500 | M200: 01:22:00 | N200: =VLOOKUP(I200,Airports!$A$2:$F$1256,6,0) -> 1 | O200: 296
... 20 more rows

Sheet Routen
A1: Flug Nr | B1: Departure | C1: Departure-Airport | D1: Land | F1: Arrival | G1: Arrival-Airport | H1: Land | I1: Entfernung | J1: Route | K1: Kontinent - Start | M1: Kontinent - Landung | N1: Häufigkeit | O1: Strecke
A2: 4Y5101 | B2: EDDL | C2: =VLOOKUP(B2,Airports!$A$2:$D$1133,2,0) -> Düsseldorf (Original) | D2: =VLOOKUP(B2,Airports!$A$2:$D$1133,4,0) -> Deutschland | E2: → | F2: LIRF | G2: =VLOOKUP(F2,Airports!$A$2:$D$1133,2,0) -> Rom-Fiumicino | H2: =VLOOKUP(F2,Airports!$A$2:$D$1133,4,0) -> Italien | J2: Routen | K2: =VLOOKUP(B2,Airports!$A$2:$J$11124,10,0) -> Europa | L2: → | M2: =VLOOKUP(F2,Airports!$A$2:$J$11124,10,0) -> Europa | N2: =COUNTIF(Eingabe!B:B,Routen!A:A) -> 1 | O2: =IF(I2>=1866,"Langstrecke",IF(I2>=933,"Mittelstrecke","Kurzstrecke")) -> Kurzstrecke
A3: 4Y5102 | B3: LIRF | C3: =VLOOKUP(B3,Airports!$A$2:$D$1133,2,0) -> Rom-Fiumicino | D3: =VLOOKUP(B3,Airports!$A$2:$D$1133,4,0) -> Italien | E3: → | F3: EDDL | G3: =VLOOKUP(F3,Airports!$A$2:$D$1133,2,0) -> Düsseldorf (Original) | H3: =VLOOKUP(F3,Airports!$A$2:$D$1133,4,0) -> Deutschland | J3: Routen | K3: =VLOOKUP(B3,Airports!$A$2:$J$11124,10,0) -> Europa | L3: → | M3: =VLOOKUP(F3,Airports!$A$2:$J$11124,10,0) -> Europa | N3: =COUNTIF(Eingabe!B:B,Routen!A:A) -> 1 | O3: Kurzstrecke
A4: AB3101 | B4: EDDL | C4: =VLOOKUP(B4,Airports!$A$2:$D$1133,2,0) -> Düsseldorf (Original) | D4: =VLOOKUP(B4,Airports!$A$2:$D$1133,4,0) -> Deutschland | E4: → | F4: EGNT | G4: =VLOOKUP(F4,Airports!$A$2:$D$1133,2,0) -> Newcastle | H4: =VLOOKUP(F4,Airports!$A$2:$D$1133,4,0) -> Großbritannien | J4: Routen | K4: =VLOOKUP(B4,Airports!$A$2:$J$11124,10,0) -> Europa | L4: → | M4: =VLOOKUP(F4,Airports!$A$2:$J$11124,10,0) -> Europa | N4: =COUNTIF(Eingabe!B:B,Routen!A:A) -> 1 | O4: Kurzstrecke
A5: AB3102 | B5: EGNT | C5: =VLOOKUP(B5,Airports!$A$2:$D$1133,2,0) -> Newcastle | D5: =VLOOKUP(B5,Airports!$A$2:$D$1133,4,0) -> Großbritannien | E5: → | F5: EDDL | G5: =VLOOKUP(F5,Airports!$A$2:$D$1133,2,0) -> Düsseldorf (Original) | H5: =VLOOKUP(F5,Airports!$A$2:$D$1133,4,0) -> Deutschland | J5: Routen | K5: =VLOOKUP(B5,Airports!$A$2:$J$11124,10,0) -> Europa | L5: → | M5: =VLOOKUP(F5,Airports!$A$2:$J$11124,10,0) -> Europa | N5: =COUNTIF(Eingabe!B:B,Routen!A:A) -> 1 | O5: Kurzstrecke
A6: AB3103 | B6: EDDL | C6: =VLOOKUP(B6,Airports!$A$2:$D$1133,2,0) -> Düsseldorf (Original) | D6: =VLOOKUP(B6,Airports!$A$2:$D$1133,4,0) -> Deutschland | E6: → | F6: LEAL | G6: =VLOOKUP(F6,Airports!$A$2:$D$1133,2,0) -> Alicante - Elche | H6: =VLOOKUP(F6,Airports!$A$2:$D$1133,4,0) -> Spanien | J6: Routen | K6: =VLOOKUP(B6,Airports!$A$2:$J$11124,10,0) -> Europa | L6: → | M6: =VLOOKUP(F6,Airports!$A$2:$J$11124,10,0) -> Europa | N6: =COUNTIF(Eingabe!B:B,Routen!A:A) -> 1 | O6: Kurzstrecke
A7: AB3104 | B7: LEAL | C7: =VLOOKUP(B7,Airports!$A$2:$D$1133,2,0) -> Alicante - Elche | D7: =VLOOKUP(B7,Airports!$A$2:$D$1133,4,0) -> Spanien | E7: → | F7: EDDL | G7: =VLOOKUP(F7,Airports!$A$2:$D$1133,2,0) -> Düsseldorf (Original) | H7: =VLOOKUP(F7,Airports!$A$2:$D$1133,4,0) -> Deutschland | J7: Routen | K7: =VLOOKUP(B7,Airports!$A$2:$J$11124,10,0) -> Europa | L7: → | M7: =VLOOKUP(F7,Airports!$A$2:$J$11124,10,0) -> Europa | N7: =COUNTIF(Eingabe!B:B,Routen!A:A) -> 1 | O7: Kurzstrecke
A8: AB3105 | B8: EDDL | C8: =VLOOKUP(B8,Airports!$A$2:$D$1133,2,0) -> Düsseldorf (Original) | D8: =VLOOKUP(B8,Airports!$A$2:$D$1133,4,0) -> Deutschland | E8: → | F8: EETN | G8: =VLOOKUP(F8,Airports!$A$2:$D$1133,2,0) -> Tallinn | H8: =VLOOKUP(F8,Airports!$A$2:$D$1133,4,0) -> Estland | J8: Routen | K8: =VLOOKUP(B8,Airports!$A$2:$J$11124,10,0) -> Europa | L8: → | M8: =VLOOKUP(F8,Airports!$A$2:$J$11124,10,0) -> Europa | N8: =COUNTIF(Eingabe!B:B,Routen!A:A) -> 1 | O8: Kurzstrecke
A9: AB3106 | B9: EETN | C9: =VLOOKUP(B9,Airports!$A$2:$D$1133,2,0) -> Tallinn | D9: =VLOOKUP(B9,Airports!$A$2:$D$1133,4,0) -> Estland | E9: → | F9: EDDL | G9: =VLOOKUP(F9,Airports!$A$2:$D$1133,2,0) -> Düsseldorf (Original) | H9: =VLOOKUP(F9,Airports!$A$2:$D$1133,4,0) -> Deutschland | J9: Routen | K9: =VLOOKUP(B9,Airports!$A$2:$J$11124,10,0) -> Europa | L9: → | M9: =VLOOKUP(F9,Airports!$A$2:$J$11124,10,0) -> Europa | N9: =COUNTIF(Eingabe!B:B,Routen!A:A) -> 1 | O9: Kurzstrecke
A10: AB3107 | B10: EDDL | C10: =VLOOKUP(B10,Airports!$A$2:$D$1133,2,0) -> Düsseldorf (Original) | D10: =VLOOKUP(B10,Airports!$A$2:$D$1133,4,0) -> Deutschland | E10: → | F10: EDHL | G10: =VLOOKUP(F10,Airports!$A$2:$D$1133,2,0) -> Lübeck Blankensee | H10: =VLOOKUP(F10,Airports!$A$2:$D$1133,4,0) -> Deutschland | J10: Routen | K10: =VLOOKUP(B10,Airports!$A$2:$J$11124,10,0) -> Europa | L10: → | M10: =VLOOKUP(F10,Airports!$A$2:$J$11124,10,0) -> Europa | N10: =COUNTIF(Eingabe!B:B,Routen!A:A) -> 1 | O10: Kurzstrecke
A11: AB3108 | B11: EDHL | C11: =VLOOKUP(B11,Airports!$A$2:$D$1133,2,0) -> Lübeck Blankensee | D11: =VLOOKUP(B11,Airports!$A$2:$D$1133,4,0) -> Deutschland | E11: → | F11: EDDL | G11: =VLOOKUP(F11,Airports!$A$2:$D$1133,2,0) -> Düsseldorf (Original) | H11: =VLOOKUP(F11,Airports!$A$2:$D$1133,4,0) -> Deutschland | J11: Routen | K11: =VLOOKUP(B11,Airports!$A$2:$J$11124,10,0) -> Europa | L11: → | M11: =VLOOKUP(F11,Airports!$A$2:$J$11124,10,0) -> Europa | N11: =COUNTIF(Eingabe!B:B,Routen!A:A) -> 0 | O11: Kurzstrecke
A12: AB3109 | B12: EDHL | C12: =VLOOKUP(B12,Airports!$A$2:$D$1133,2,0) -> Lübeck Blankensee | D12: =VLOOKUP(B12,Airports!$A$2:$D$1133,4,0) -> Deutschland | E12: → | F12: EVRA | G12: =VLOOKUP(F12,Airports!$A$2:$D$1133,2,0) -> Riga | H12: =VLOOKUP(F12,Airports!$A$2:$D$1133,4,0) -> Lettland | J12: Routen | K12: =VLOOKUP(B12,Airports!$A$2:$J$11124,10,0) -> Europa | L12: → | M12: =VLOOKUP(F12,Airports!$A$2:$J$11124,10,0) -> Europa | N12: =COUNTIF(Eingabe!B:B,Routen!A:A) -> 1 | O12: Kurzstrecke
A13: AB3110 | B13: EVRA | C13: =VLOOKUP(B13,Airports!$A$2:$D$1133,2,0) -> Riga | D13: =VLOOKUP(B13,Airports!$A$2:$D$1133,4,0) -> Lettland | E13: → | F13: LKPD | G13: =VLOOKUP(F13,Airports!$A$2:$D$1133,2,0) -> Pardubice | H13: =VLOOKUP(F13,Airports!$A$2:$D$1133,4,0) -> Tschechien | J13: Routen | K13: =VLOOKUP(B13,Airports!$A$2:$J$11124,10,0) -> Europa | L13: → | M13: =VLOOKUP(F13,Airports!$A$2:$J$11124,10,0) -> Europa | N13: =COUNTIF(Eingabe!B:B,Routen!A:A) -> 0 | O13: Kurzstrecke
A14: AB3111 | B14: LKPD | C14: =VLOOKUP(B14,Airports!$A$2:$D$1133,2,0) -> Pardubice | D14: =VLOOKUP(B14,Airports!$A$2:$D$1133,4,0) -> Tschechien | E14: → | F14: EDDK | G14: =VLOOKUP(F14,Airports!$A$2:$D$1133,2,0) -> Köln | H14: =VLOOKUP(F14,Airports!$A$2:$D$1133,4,0) -> Deutschland | J14: Routen | K14: =VLOOKUP(B14,Airports!$A$2:$J$11124,10,0) -> Europa | L14: → | M14: =VLOOKUP(F14,Airports!$A$2:$J$11124,10,0) -> Europa | N14: =COUNTIF(Eingabe!B:B,Routen!A:A) -> 0 | O14: Kurzstrecke
A15: AB3112 | B15: EDDK | C15: =VLOOKUP(B15,Airports!$A$2:$D$1133,2,0) -> Köln | D15: =VLOOKUP(B15,Airports!$A$2:$D$1133,4,0) -> Deutschland | E15: → | F15: ESSA | G15: =VLOOKUP(F15,Airports!$A$2:$D$1133,2,0) -> Stockholm-Arlanda | H15: =VLOOKUP(F15,Airports!$A$2:$D$1133,4,0) -> Schweden | J15: Routen | K15: =VLOOKUP(B15,Airports!$A$2:$J$11124,10,0) -> Europa | L15: → | M15: =VLOOKUP(F15,Airports!$A$2:$J$11124,10,0) -> Europa | N15: =COUNTIF(Eingabe!B:B,Routen!A:A) -> 0 | O15: Kurzstrecke
A16: AB3113 | B16: ESSA | C16: =VLOOKUP(B16,Airports!$A$2:$D$1133,2,0) -> Stockholm-Arlanda | D16: =VLOOKUP(B16,Airports!$A$2:$D$1133,4,0) -> Schweden | E16: → | F16: EDDK | G16: =VLOOKUP(F16,Airports!$A$2:$D$1133,2,0) -> Köln | H16: =VLOOKUP(F16,Airports!$A$2:$D$1133,4,0) -> Deutschland | J16: Routen | K16: =VLOOKUP(B16,Airports!$A$2:$J$11124,10,0) -> Europa | L16: → | M16: =VLOOKUP(F16,Airports!$A$2:$J$11124,10,0) -> Europa | N16: =COUNTIF(Eingabe!B:B,Routen!A:A) -> 0 | O16: =IF(I16>=1866,"Langstrecke",IF(I16>=933,"Mittelstrecke","Kurzstrecke")) -> Kurzstrecke
A17: AB3114 | B17: EDDL | C17: =VLOOKUP(B17,Airports!$A$2:$D$1133,2,0) -> Düsseldorf (Original) | D17: =VLOOKUP(B17,Airports!$A$2:$D$1133,4,0) -> Deutschland | E17: → | F17: LJLJ | G17: =VLOOKUP(F17,Airports!$A$2:$D$1133,2,0) -> Ljubliana-Jože-Pučnik | H17: =VLOOKUP(F17,Airports!$A$2:$D$1133,4,0) -> Slowenien | J17: Routen | K17: =VLOOKUP(B17,Airports!$A$2:$J$11124,10,0) -> Europa | L17: → | M17: =VLOOKUP(F17,Airports!$A$2:$J$11124,10,0) -> Europa | N17: =COUNTIF(Eingabe!B:B,Routen!A:A) -> 0 | O17: Kurzstrecke
A18: AB3115 | B18: LJLJ | C18: =VLOOKUP(B18,Airports!$A$2:$D$1133,2,0) -> Ljubliana-Jože-Pučnik | D18: =VLOOKUP(B18,Airports!$A$2:$D$1133,4,0) -> Slowenien | E18: → | F18: EDDL | G18: =VLOOKUP(F18,Airports!$A$2:$D$1133,2,0) -> Düsseldorf (Original) | H18: =VLOOKUP(F18,Airports!$A$2:$D$1133,4,0) -> Deutschland | J18: Routen | K18: =VLOOKUP(B18,Airports!$A$2:$J$11124,10,0) -> Europa | L18: → | M18: =VLOOKUP(F18,Airports!$A$2:$J$11124,10,0) -> Europa | N18: =COUNTIF(Eingabe!B:B,Routen!A:A) -> 0 | O18: Kurzstrecke
A19: DE2101 | B19: EDDL | C19: =VLOOKUP(B19,Airports!$A$2:$D$1133,2,0) -> Düsseldorf (Original) | D19: =VLOOKUP(B19,Airports!$A$2:$D$1133,4,0) -> Deutschland | E19: → | F19: EDMA | G19: =VLOOKUP(F19,Airports!$A$2:$D$1133,2,0) -> Augsburg | H19: =VLOOKUP(F19,Airports!$A$2:$D$1133,4,0) -> Deutschland | J19: Routen | K19: =VLOOKUP(B19,Airports!$A$2:$J$11124,10,0) -> Europa | L19: → | M19: =VLOOKUP(F19,Airports!$A$2:$J$11124,10,0) -> Europa | N19: =COUNTIF(Eingabe!B:B,Routen!A:A) -> 1 | O19: Kurzstrecke
A20: DE2102 | B20: EDMA | C20: =VLOOKUP(B20,Airports!$A$2:$D$1133,2,0) -> Augsburg | D20: =VLOOKUP(B20,Airports!$A$2:$D$1133,4,0) -> Deutschland | E20: → | F20: EDDL | G20: =VLOOKUP(F20,Airports!$A$2:$D$1133,2,0) -> Düsseldorf (Original) | H20: =VLOOKUP(F20,Airports!$A$2:$D$1133,4,0) -> Deutschland | J20: Routen | K20: =VLOOKUP(B20,Airports!$A$2:$J$11124,10,0) -> Europa | L20: → | M20: =VLOOKUP(F20,Airports!$A$2:$J$11124,10,0) -> Europa | N20: =COUNTIF(Eingabe!B:B,Routen!A:A) -> 1 | O20: Kurzstrecke
A21: EW4101 | B21: EDDL | C21: =VLOOKUP(B21,Airports!$A$2:$D$1133,2,0) -> Düsseldorf (Original) | D21: =VLOOKUP(B21,Airports!$A$2:$D$1133,4,0) -> Deutschland | E21: → | F21: LSZH | G21: =VLOOKUP(F21,Airports!$A$2:$D$1133,2,0) -> Zürich | H21: =VLOOKUP(F21,Airports!$A$2:$D$1133,4,0) -> Schweiz | J21: Routen | K21: =VLOOKUP(B21,Airports!$A$2:$J$11124,10,0) -> Europa | L21: → | M21: =VLOOKUP(F21,Airports!$A$2:$J$11124,10,0) -> Europa | N21: =COUNTIF(Eingabe!B:B,Routen!A:A) -> 1 | O21: Kurzstrecke
A22: EW4102 | B22: LSZH | C22: =VLOOKUP(B22,Airports!$A$2:$D$1133,2,0) -> Zürich | D22: =VLOOKUP(B22,Airports!$A$2:$D$1133,4,0) -> Schweiz | E22: → | F22: EDDL | G22: =VLOOKUP(F22,Airports!$A$2:$D$1133,2,0) -> Düsseldorf (Original) | H22: =VLOOKUP(F22,Airports!$A$2:$D$1133,4,0) -> Deutschland | J22: Routen | K22: =VLOOKUP(B22,Airports!$A$2:$J$11124,10,0) -> Europa | L22: → | M22: =VLOOKUP(F22,Airports!$A$2:$J$11124,10,0) -> Europa | N22: =COUNTIF(Eingabe!B:B,Routen!A:A) -> 1 | O22: Kurzstrecke
A23: IW1191 | B23: EDDL | C23: =VLOOKUP(B23,Airports!$A$2:$D$1133,2,0) -> Düsseldorf (Original) | D23: =VLOOKUP(B23,Airports!$A$2:$D$1133,4,0) -> Deutschland | E23: → | F23: EDHI | G23: =VLOOKUP(F23,Airports!$A$2:$D$1133,2,0) -> Hamburg-Finkenwerder | H23: =VLOOKUP(F23,Airports!$A$2:$D$1133,4,0) -> Deutschland | J23: Routen | K23: =VLOOKUP(B23,Airports!$A$2:$J$11124,10,0) -> Europa | L23: → | M23: =VLOOKUP(F23,Airports!$A$2:$J$11124,10,0) -> Europa | N23: =COUNTIF(Eingabe!B:B,Routen!A:A) -> 1 | O23: =IF(I23>=1866,"Langstrecke",IF(I23>=933,"Mittelstrecke","Kurzstrecke")) -> Kurzstrecke
A24: IW1192 | B24: EDHI | C24: =VLOOKUP(B24,Airports!$A$2:$D$1133,2,0) -> Hamburg-Finkenwerder | D24: =VLOOKUP(B24,Airports!$A$2:$D$1133,4,0) -> Deutschland | E24: → | F24: EDDL | G24: =VLOOKUP(F24,Airports!$A$2:$D$1133,2,0) -> Düsseldorf (Original) | H24: =VLOOKUP(F24,Airports!$A$2:$D$1133,4,0) -> Deutschland | J24: Routen | K24: =VLOOKUP(B24,Airports!$A$2:$J$11124,10,0) -> Europa | L24: → | M24: =VLOOKUP(F24,Airports!$A$2:$J$11124,10,0) -> Europa | N24: =COUNTIF(Eingabe!B:B,Routen!A:A) -> 1 | O24: Kurzstrecke
A25: IW12001 | B25: EDDL | C25: =VLOOKUP(B25,Airports!$A$2:$D$1133,2,0) -> Düsseldorf (Original) | D25: =VLOOKUP(B25,Airports!$A$2:$D$1133,4,0) -> Deutschland | E25: → | F25: LICA | G25: =VLOOKUP(F25,Airports!$A$2:$D$1133,2,0) -> Lamezia Terme | H25: =VLOOKUP(F25,Airports!$A$2:$D$1133,4,0) -> Italien | I25: 1320 | J25: Routen | K25: =VLOOKUP(B25,Airports!$A$2:$J$11124,10,0) -> Europa | L25: → | M25: =VLOOKUP(F25,Airports!$A$2:$J$11124,10,0) -> Europa | N25: =COUNTIF(Eingabe!B:B,Routen!A:A) -> 1 | O25: Mittelstrecke
A26: IW12002 | B26: EDDL | C26: =VLOOKUP(B26,Airports!$A$2:$D$1133,2,0) -> Düsseldorf (Original) | D26: =VLOOKUP(B26,Airports!$A$2:$D$1133,4,0) -> Deutschland | E26: → | F26: LTAI | G26: =VLOOKUP(F26,Airports!$A$2:$D$1133,2,0) -> Antalya | H26: =VLOOKUP(F26,Airports!$A$2:$D$1133,4,0) -> Türkei | J26: Routen | K26: =VLOOKUP(B26,Airports!$A$2:$J$11124,10,0) -> Europa | L26: → | M26: =VLOOKUP(F26,Airports!$A$2:$J$11124,10,0) -> Europa | N26: =COUNTIF(Eingabe!B:B,Routen!A:A) -> 1 | O26: Kurzstrecke
A27: IW12003 | B27: EDDG | C27: =VLOOKUP(B27,Airports!$A$2:$D$1133,2,0) -> Münster-Osnabrück | D27: =VLOOKUP(B27,Airports!$A$2:$D$1133,4,0) -> Deutschland | E27: → | F27: LEMG | G27: =VLOOKUP(F27,Airports!$A$2:$D$1133,2,0) -> Malaga - Costa del Sol | H27: =VLOOKUP(F27,Airports!$A$2:$D$1133,4,0) -> Spanien | J27: Routen | K27: =VLOOKUP(B27,Airports!$A$2:$J$11124,10,0) -> Europa | L27: → | M27: =VLOOKUP(F27,Airports!$A$2:$J$11124,10,0) -> Europa | N27: =COUNTIF(Eingabe!B:B,Routen!A:A) -> 1
A28: IW12004 | B28: LDZA | C28: =VLOOKUP(B28,Airports!$A$2:$D$1133,2,0) -> Zagreb | D28: =VLOOKUP(B28,Airports!$A$2:$D$1133,4,0) -> Kroatien | E28: → | F28: EDDG | G28: =VLOOKUP(F28,Airports!$A$2:$D$1133,2,0) -> Münster-Osnabrück | H28: =VLOOKUP(F28,Airports!$A$2:$D$1133,4,0) -> Deutschland | J28: Routen | K28: =VLOOKUP(B28,Airports!$A$2:$J$11124,10,0) -> Europa | L28: → | M28: =VLOOKUP(F28,Airports!$A$2:$J$11124,10,0) -> Europa | N28: =COUNTIF(Eingabe!B:B,Routen!A:A) -> 1
A29: IW12005 | B29: EDLP | C29: =VLOOKUP(B29,Airports!$A$2:$D$1133,2,0) -> Paderborn-Lippstadt | D29: =VLOOKUP(B29,Airports!$A$2:$D$1133,4,0) -> Deutschland | E29: → | F29: LIRF | G29: =VLOOKUP(F29,Airports!$A$2:$D$1133,2,0) -> Rom-Fiumicino | H29: =VLOOKUP(F29,Airports!$A$2:$D$1133,4,0) -> Italien | J29: Routen | K29: =VLOOKUP(B29,Airports!$A$2:$J$11124,10,0) -> Europa | L29: → | M29: =VLOOKUP(F29,Airports!$A$2:$J$11124,10,0) -> Europa | N29: =COUNTIF(Eingabe!B:B,Routen!A:A) -> 1
A30: IW12006 | B30: LEPA | C30: =VLOOKUP(B30,Airports!$A$2:$D$1133,2,0) -> Palma de Mallorca | D30: =VLOOKUP(B30,Airports!$A$2:$D$1133,4,0) -> Spanien | E30: → | F30: EDLP | G30: =VLOOKUP(F30,Airports!$A$2:$D$1133,2,0) -> Paderborn-Lippstadt | H30: =VLOOKUP(F30,Airports!$A$2:$D$1133,4,0) -> Deutschland | J30: Routen | K30: =VLOOKUP(B30,Airports!$A$2:$J$11124,10,0) -> Europa | L30: → | M30: =VLOOKUP(F30,Airports!$A$2:$J$11124,10,0) -> Europa | N30: =COUNTIF(Eingabe!B:B,Routen!A:A) -> 1
A31: IW12007 | B31: EDDL | C31: =VLOOKUP(B31,Airports!$A$2:$D$1133,2,0) -> Düsseldorf (Original) | D31: =VLOOKUP(B31,Airports!$A$2:$D$1133,4,0) -> Deutschland | E31: → | F31: LEPA | G31: =VLOOKUP(F31,Airports!$A$2:$D$1133,2,0) -> Palma de Mallorca | H31: =VLOOKUP(F31,Airports!$A$2:$D$1133,4,0) -> Spanien | J31: Routen | K31: =VLOOKUP(B31,Airports!$A$2:$J$11124,10,0) -> Europa | L31: → | M31: =VLOOKUP(F31,Airports!$A$2:$J$11124,10,0) -> Europa | N31: =COUNTIF(Eingabe!B:B,Routen!A:A) -> 1
A32: IW12008 | B32: LEPA | C32: =VLOOKUP(B32,Airports!$A$2:$D$1133,2,0) -> Palma de Mallorca | D32: =VLOOKUP(B32,Airports!$A$2:$D$1133,4,0) -> Spanien | E32: → | F32: EDDL | G32: =VLOOKUP(F32,Airports!$A$2:$D$1133,2,0) -> Düsseldorf (Original) | H32: =VLOOKUP(F32,Airports!$A$2:$D$1133,4,0) -> Deutschland | J32: Routen | K32: =VLOOKUP(B32,Airports!$A$2:$J$11124,10,0) -> Europa | L32: → | M32: =VLOOKUP(F32,Airports!$A$2:$J$11124,10,0) -> Europa | N32: =COUNTIF(Eingabe!B:B,Routen!A:A) -> 1
A33: IW12009 | B33: KMIA | C33: =VLOOKUP(B33,Airports!$A$2:$D$1133,2,0) -> Miami Intl./ Florida | D33: =VLOOKUP(B33,Airports!$A$2:$D$1133,4,0) -> USA | E33: → | F33: EDDC | G33: =VLOOKUP(F33,Airports!$A$2:$D$1133,2,0) -> Dresden | H33: =VLOOKUP(F33,Airports!$A$2:$D$1133,4,0) -> Deutschland | J33: Routen | K33: =VLOOKUP(B33,Airports!$A$2:$J$11124,10,0) -> Nord-Amerika | L33: → | M33: =VLOOKUP(F33,Airports!$A$2:$J$11124,10,0) -> Europa | N33: =COUNTIF(Eingabe!B:B,Routen!A:A) -> 0
A34: IW12010 | B34: LJLJ | C34: =VLOOKUP(B34,Airports!$A$2:$D$1133,2,0) -> Ljubliana-Jože-Pučnik | D34: =VLOOKUP(B34,Airports!$A$2:$D$1133,4,0) -> Slowenien | E34: → | F34: LATI | G34: =VLOOKUP(F34,Airports!$A$2:$D$1133,2,0) -> Tirana | H34: =VLOOKUP(F34,Airports!$A$2:$D$1133,4,0) -> Albanien | J34: Routen | K34: =VLOOKUP(B34,Airports!$A$2:$J$11124,10,0) -> Europa | L34: → | M34: =VLOOKUP(F34,Airports!$A$2:$J$11124,10,0) -> Europa | N34: =COUNTIF(Eingabe!B:B,Routen!A:A) -> 1
A35: IW12011 | B35: LATI | C35: =VLOOKUP(B35,Airports!$A$2:$D$1133,2,0) -> Tirana | D35: =VLOOKUP(B35,Airports!$A$2:$D$1133,4,0) -> Albanien | E35: → | F35: LBBG | G35: =VLOOKUP(F35,Airports!$A$2:$D$1133,2,0) -> Burgas | H35: =VLOOKUP(F35,Airports!$A$2:$D$1133,4,0) -> Bulgarien | J35: Routen | K35: =VLOOKUP(B35,Airports!$A$2:$J$11124,10,0) -> Europa | L35: → | M35: =VLOOKUP(F35,Airports!$A$2:$J$11124,10,0) -> Europa | N35: =COUNTIF(Eingabe!B:B,Routen!A:A) -> 1
A36: IW12012 | B36: LBBG | C36: =VLOOKUP(B36,Airports!$A$2:$D$1133,2,0) -> Burgas | D36: =VLOOKUP(B36,Airports!$A$2:$D$1133,4,0) -> Bulgarien | E36: → | F36: LGAV | G36: =VLOOKUP(F36,Airports!$A$2:$D$1133,2,0) -> Athen | H36: =VLOOKUP(F36,Airports!$A$2:$D$1133,4,0) -> Griechenland | J36: Routen | K36: =VLOOKUP(B36,Airports!$A$2:$J$11124,10,0) -> Europa | L36: → | M36: =VLOOKUP(F36,Airports!$A$2:$J$11124,10,0) -> Europa | N36: =COUNTIF(Eingabe!B:B,Routen!A:A) -> 1
A37: IW12013 | B37: LGAV | C37: =VLOOKUP(B37,Airports!$A$2:$D$1133,2,0) -> Athen | D37: =VLOOKUP(B37,Airports!$A$2:$D$1133,4,0) -> Griechenland | E37: → | F37: LYBE | G37: =VLOOKUP(F37,Airports!$A$2:$D$1133,2,0) -> Nikola Tesla Belgrad | H37: =VLOOKUP(F37,Airports!$A$2:$D$1133,4,0) -> Serbien | J37: Routen | K37: =VLOOKUP(B37,Airports!$A$2:$J$11124,10,0) -> Europa | L37: → | M37: =VLOOKUP(F37,Airports!$A$2:$J$11124,10,0) -> Europa | N37: =COUNTIF(Eingabe!B:B,Routen!A:A) -> 1
A38: IW12014 | B38: LYBE | C38: =VLOOKUP(B38,Airports!$A$2:$D$1133,2,0) -> Nikola Tesla Belgrad | D38: =VLOOKUP(B38,Airports!$A$2:$D$1133,4,0) -> Serbien | E38: → | F38: LGRP | G38: =VLOOKUP(F38,Airports!$A$2:$D$1133,2,0) -> Rhodos-Diagoras | H38: =VLOOKUP(F38,Airports!$A$2:$D$1133,4,0) -> Griechenland | J38: Routen | K38: =VLOOKUP(B38,Airports!$A$2:$J$11124,10,0) -> Europa | L38: → | M38: =VLOOKUP(F38,Airports!$A$2:$J$11124,10,0) -> Europa | N38: =COUNTIF(Eingabe!B:B,Routen!A:A) -> 1
A39: IW12015 | B39: LGRP | C39: =VLOOKUP(B39,Airports!$A$2:$D$1133,2,0) -> Rhodos-Diagoras | D39: =VLOOKUP(B39,Airports!$A$2:$D$1133,4,0) -> Griechenland | E39: → | F39: LDDU | G39: =VLOOKUP(F39,Airports!$A$2:$D$1133,2,0) -> Dubrovnik | H39: =VLOOKUP(F39,Airports!$A$2:$D$1133,4,0) -> Kroatien | J39: Routen | K39: =VLOOKUP(B39,Airports!$A$2:$J$11124,10,0) -> Europa | L39: → | M39: =VLOOKUP(F39,Airports!$A$2:$J$11124,10,0) -> Europa | N39: =COUNTIF(Eingabe!B:B,Routen!A:A) -> 1
A40: IW12016 | B40: LDDU | C40: =VLOOKUP(B40,Airports!$A$2:$D$1133,2,0) -> Dubrovnik | D40: =VLOOKUP(B40,Airports!$A$2:$D$1133,4,0) -> Kroatien | E40: → | F40: LBSF | G40: =VLOOKUP(F40,Airports!$A$2:$D$1133,2,0) -> Sofia | H40: =VLOOKUP(F40,Airports!$A$2:$D$1133,4,0) -> Bulgarien | J40: Routen | K40: =VLOOKUP(B40,Airports!$A$2:$J$11124,10,0) -> Europa | L40: → | M40: =VLOOKUP(F40,Airports!$A$2:$J$11124,10,0) -> Europa | N40: =COUNTIF(Eingabe!B:B,Routen!A:A) -> 1
A41: IW12017 | B41: LBSF | C41: =VLOOKUP(B41,Airports!$A$2:$D$1133,2,0) -> Sofia | D41: =VLOOKUP(B41,Airports!$A$2:$D$1133,4,0) -> Bulgarien | E41: → | F41: LQSA | G41: =VLOOKUP(F41,Airports!$A$2:$D$1133,2,0) -> Sarajevo | H41: =VLOOKUP(F41,Airports!$A$2:$D$1133,4,0) -> Bosnien & Herzegowina | J41: Routen | K41: =VLOOKUP(B41,Airports!$A$2:$J$11124,10,0) -> Europa | L41: → | M41: =VLOOKUP(F41,Airports!$A$2:$J$11124,10,0) -> Europa | N41: =COUNTIF(Eingabe!B:B,Routen!A:A) -> 1
A42: IW12018 | B42: LQSA | C42: =VLOOKUP(B42,Airports!$A$2:$D$1133,2,0) -> Sarajevo | D42: =VLOOKUP(B42,Airports!$A$2:$D$1133,4,0) -> Bosnien & Herzegowina | E42: → | F42: LBWN | G42: =VLOOKUP(F42,Airports!$A$2:$D$1133,2,0) -> Varna | H42: =VLOOKUP(F42,Airports!$A$2:$D$1133,4,0) -> Bulgarien | J42: Routen | K42: =VLOOKUP(B42,Airports!$A$2:$J$11124,10,0) -> Europa | L42: → | M42: =VLOOKUP(F42,Airports!$A$2:$J$11124,10,0) -> Europa | N42: =COUNTIF(Eingabe!B:B,Routen!A:A) -> 1
A43: IW12019 | B43: LBWN | C43: =VLOOKUP(B43,Airports!$A$2:$D$1133,2,0) -> Varna | D43: =VLOOKUP(B43,Airports!$A$2:$D$1133,4,0) -> Bulgarien | E43: → | F43: LYTV | G43: =VLOOKUP(F43,Airports!$A$2:$D$1133,2,0) -> Tivat | H43: =VLOOKUP(F43,Airports!$A$2:$D$1133,4,0) -> Montenegro | J43: Routen | K43: =VLOOKUP(B43,Airports!$A$2:$J$11124,10,0) -> Europa | L43: → | M43: =VLOOKUP(F43,Airports!$A$2:$J$11124,10,0) -> Europa | N43: =COUNTIF(Eingabe!B:B,Routen!A:A) -> 1
A44: IW12020 | B44: LYTV | C44: =VLOOKUP(B44,Airports!$A$2:$D$1133,2,0) -> Tivat | D44: =VLOOKUP(B44,Airports!$A$2:$D$1133,4,0) -> Montenegro | E44: → | F44: LDZA | G44: =VLOOKUP(F44,Airports!$A$2:$D$1133,2,0) -> Zagreb | H44: =VLOOKUP(F44,Airports!$A$2:$D$1133,4,0) -> Kroatien | J44: Routen | K44: =VLOOKUP(B44,Airports!$A$2:$J$11124,10,0) -> Europa | L44: → | M44: =VLOOKUP(F44,Airports!$A$2:$J$11124,10,0) -> Europa | N44: =COUNTIF(Eingabe!B:B,Routen!A:A) -> 1
A45: IW12021 | B45: LDZA | C45: =VLOOKUP(B45,Airports!$A$2:$D$1133,2,0) -> Zagreb | D45: =VLOOKUP(B45,Airports!$A$2:$D$1133,4,0) -> Kroatien | E45: → | F45: LGTS | G45: =VLOOKUP(F45,Airports!$A$2:$D$1133,2,0) -> Thessaloniki | H45: =VLOOKUP(F45,Airports!$A$2:$D$1133,4,0) -> Griechenland | J45: Routen | K45: =VLOOKUP(B45,Airports!$A$2:$J$11124,10,0) -> Europa | L45: → | M45: =VLOOKUP(F45,Airports!$A$2:$J$11124,10,0) -> Europa | N45: =COUNTIF(Eingabe!B:B,Routen!A:A) -> 1
A46: IW12022 | B46: LGTS | C46: =VLOOKUP(B46,Airports!$A$2:$D$1133,2,0) -> Thessaloniki | D46: =VLOOKUP(B46,Airports!$A$2:$D$1133,4,0) -> Griechenland | E46: → | F46: LYPG | G46: =VLOOKUP(F46,Airports!$A$2:$D$1133,2,0) -> Podgorica | H46: =VLOOKUP(F46,Airports!$A$2:$D$1133,4,0) -> Montenegro | J46: Routen | K46: =VLOOKUP(B46,Airports!$A$2:$J$11124,10,0) -> Europa | L46: → | M46: =VLOOKUP(F46,Airports!$A$2:$J$11124,10,0) -> Europa | N46: =COUNTIF(Eingabe!B:B,Routen!A:A) -> 1
A47: IW12023 | B47: LYPG | C47: =VLOOKUP(B47,Airports!$A$2:$D$1133,2,0) -> Podgorica | D47: =VLOOKUP(B47,Airports!$A$2:$D$1133,4,0) -> Montenegro | E47: → | F47: LDSP | G47: =VLOOKUP(F47,Airports!$A$2:$D$1133,2,0) -> Split | H47: =VLOOKUP(F47,Airports!$A$2:$D$1133,4,0) -> Kroatien | J47: Routen | K47: =VLOOKUP(B47,Airports!$A$2:$J$11124,10,0) -> Europa | L47: → | M47: =VLOOKUP(F47,Airports!$A$2:$J$11124,10,0) -> Europa | N47: =COUNTIF(Eingabe!B:B,Routen!A:A) -> 1
A48: IW12024 | B48: LDSP | C48: =VLOOKUP(B48,Airports!$A$2:$D$1133,2,0) -> Split | D48: =VLOOKUP(B48,Airports!$A$2:$D$1133,4,0) -> Kroatien | E48: → | F48: BKPR | G48: =VLOOKUP(F48,Airports!$A$2:$D$1133,2,0) -> Adem Jashari/Pristina | H48: =VLOOKUP(F48,Airports!$A$2:$D$1133,4,0) -> Kosovo | J48: Routen | K48: =VLOOKUP(B48,Airports!$A$2:$J$11124,10,0) -> Europa | L48: → | M48: =VLOOKUP(F48,Airports!$A$2:$J$11124,10,0) -> Europa | N48: =COUNTIF(Eingabe!B:B,Routen!A:A) -> 1
A49: IW12025 | B49: BKPR | C49: =VLOOKUP(B49,Airports!$A$2:$D$1133,2,0) -> Adem Jashari/Pristina | D49: =VLOOKUP(B49,Airports!$A$2:$D$1133,4,0) -> Kosovo | E49: → | F49: LJLJ | G49: =VLOOKUP(F49,Airports!$A$2:$D$1133,2,0) -> Ljubliana-Jože-Pučnik | H49: =VLOOKUP(F49,Airports!$A$2:$D$1133,4,0) -> Slowenien | J49: Routen | K49: =VLOOKUP(B49,Airports!$A$2:$J$11124,10,0) -> Europa | L49: → | M49: =VLOOKUP(F49,Airports!$A$2:$J$11124,10,0) -> Europa | N49: =COUNTIF(Eingabe!B:B,Routen!A:A) -> 1
A50: IW12026 | B50: EDDM | C50: =VLOOKUP(B50,Airports!$A$2:$D$1133,2,0) -> München | D50: =VLOOKUP(B50,Airports!$A$2:$D$1133,4,0) -> Deutschland | E50: → | F50: LEMD | G50: =VLOOKUP(F50,Airports!$A$2:$D$1133,2,0) -> Madrid - Barajas | H50: =VLOOKUP(F50,Airports!$A$2:$D$1133,4,0) -> Spanien | J50: Routen | K50: =VLOOKUP(B50,Airports!$A$2:$J$11124,10,0) -> Europa | L50: → | M50: =VLOOKUP(F50,Airports!$A$2:$J$11124,10,0) -> Europa | N50: =COUNTIF(Eingabe!B:B,Routen!A:A) -> 1
A51: IW12027 | B51: EDDM | C51: =VLOOKUP(B51,Airports!$A$2:$D$1133,2,0) -> München | D51: =VLOOKUP(B51,Airports!$A$2:$D$1133,4,0) -> Deutschland | E51: → | F51: LEVC | G51: =VLOOKUP(F51,Airports!$A$2:$D$1133,2,0) -> Valencia | H51: =VLOOKUP(F51,Airports!$A$2:$D$1133,4,0) -> Spanien | J51: Routen | K51: =VLOOKUP(B51,Airports!$A$2:$J$11124,10,0) -> Europa | L51: → | M51: =VLOOKUP(F51,Airports!$A$2:$J$11124,10,0) -> Europa | N51: =COUNTIF(Eingabe!B:B,Routen!A:A) -> 1
A52: IW12028 | B52: EDDL | C52: =VLOOKUP(B52,Airports!$A$2:$D$1133,2,0) -> Düsseldorf (Original) | D52: =VLOOKUP(B52,Airports!$A$2:$D$1133,4,0) -> Deutschland | E52: → | F52: LIMJ | G52: =VLOOKUP(F52,Airports!$A$2:$D$1133,2,0) -> Genua-Sestri | H52: =VLOOKUP(F52,Airports!$A$2:$D$1133,4,0) -> Italien | J52: Routen | K52: =VLOOKUP(B52,Airports!$A$2:$J$11124,10,0) -> Europa | L52: → | M52: =VLOOKUP(F52,Airports!$A$2:$J$11124,10,0) -> Europa | N52: =COUNTIF(Eingabe!B:B,Routen!A:A) -> 1
A53: IW12029 | B53: LIRN | C53: =VLOOKUP(B53,Airports!$A$2:$D$1133,2,0) -> Neapel Capodichino | D53: =VLOOKUP(B53,Airports!$A$2:$D$1133,4,0) -> Italien | E53: → | F53: EDDL | G53: =VLOOKUP(F53,Airports!$A$2:$D$1133,2,0) -> Düsseldorf (Original) | H53: =VLOOKUP(F53,Airports!$A$2:$D$1133,4,0) -> Deutschland | J53: Routen | K53: =VLOOKUP(B53,Airports!$A$2:$J$11124,10,0) -> Europa | L53: → | M53: =VLOOKUP(F53,Airports!$A$2:$J$11124,10,0) -> Europa | N53: =COUNTIF(Eingabe!B:B,Routen!A:A) -> 1
A54: IW12030 | B54: EDDL | C54: =VLOOKUP(B54,Airports!$A$2:$D$1133,2,0) -> Düsseldorf (Original) | D54: =VLOOKUP(B54,Airports!$A$2:$D$1133,4,0) -> Deutschland | E54: → | F54: LIRN | G54: =VLOOKUP(F54,Airports!$A$2:$D$1133,2,0) -> Neapel Capodichino | H54: =VLOOKUP(F54,Airports!$A$2:$D$1133,4,0) -> Italien | J54: Routen | K54: =VLOOKUP(B54,Airports!$A$2:$J$11124,10,0) -> Europa | L54: → | M54: =VLOOKUP(F54,Airports!$A$2:$J$11124,10,0) -> Europa | N54: =COUNTIF(Eingabe!B:B,Routen!A:A) -> 1
A55: IW12031 | B55: LEMD | C55: =VLOOKUP(B55,Airports!$A$2:$D$1133,2,0) -> Madrid - Barajas | D55: =VLOOKUP(B55,Airports!$A$2:$D$1133,4,0) -> Spanien | E55: → | F55: EDDL | G55: =VLOOKUP(F55,Airports!$A$2:$D$1133,2,0) -> Düsseldorf (Original) | H55: =VLOOKUP(F55,Airports!$A$2:$D$1133,4,0) -> Deutschland | J55: Routen | K55: =VLOOKUP(B55,Airports!$A$2:$J$11124,10,0) -> Europa | L55: → | M55: =VLOOKUP(F55,Airports!$A$2:$J$11124,10,0) -> Europa | N55: =COUNTIF(Eingabe!B:B,Routen!A:A) -> 1
A56: IW12032 | B56: LDZA | C56: =VLOOKUP(B56,Airports!$A$2:$D$1133,2,0) -> Zagreb | D56: =VLOOKUP(B56,Airports!$A$2:$D$1133,4,0) -> Kroatien | E56: → | F56: EDDL | G56: =VLOOKUP(F56,Airports!$A$2:$D$1133,2,0) -> Düsseldorf (Original) | H56: =VLOOKUP(F56,Airports!$A$2:$D$1133,4,0) -> Deutschland | J56: Routen | K56: =VLOOKUP(B56,Airports!$A$2:$J$11124,10,0) -> Europa | L56: → | M56: =VLOOKUP(F56,Airports!$A$2:$J$11124,10,0) -> Europa | N56: =COUNTIF(Eingabe!B:B,Routen!A:A) -> 1
A57: IW12033 | B57: LICA | C57: =VLOOKUP(B57,Airports!$A$2:$D$1133,2,0) -> Lamezia Terme | D57: =VLOOKUP(B57,Airports!$A$2:$D$1133,4,0) -> Italien | E57: → | F57: EDDL | G57: =VLOOKUP(F57,Airports!$A$2:$D$1133,2,0) -> Düsseldorf (Original) | H57: =VLOOKUP(F57,Airports!$A$2:$D$1133,4,0) -> Deutschland | J57: Routen | K57: =VLOOKUP(B57,Airports!$A$2:$J$11124,10,0) -> Europa | L57: → | M57: =VLOOKUP(F57,Airports!$A$2:$J$11124,10,0) -> Europa | N57: =COUNTIF(Eingabe!B:B,Routen!A:A) -> 1
A58: IW12034 | B58: LTAI | C58: =VLOOKUP(B58,Airports!$A$2:$D$1133,2,0) -> Antalya | D58: =VLOOKUP(B58,Airports!$A$2:$D$1133,4,0) -> Türkei | E58: → | F58: EDDL | G58: =VLOOKUP(F58,Airports!$A$2:$D$1133,2,0) -> Düsseldorf (Original) | H58: =VLOOKUP(F58,Airports!$A$2:$D$1133,4,0) -> Deutschland | J58: Routen | K58: =VLOOKUP(B58,Airports!$A$2:$J$11124,10,0) -> Europa | L58: → | M58: =VLOOKUP(F58,Airports!$A$2:$J$11124,10,0) -> Europa | N58: =COUNTIF(Eingabe!B:B,Routen!A:A) -> 1
A59: IW12035 | B59: LIMJ | C59: =VLOOKUP(B59,Airports!$A$2:$D$1133,2,0) -> Genua-Sestri | D59: =VLOOKUP(B59,Airports!$A$2:$D$1133,4,0) -> Italien | E59: → | F59: EDDL | G59: =VLOOKUP(F59,Airports!$A$2:$D$1133,2,0) -> Düsseldorf (Original) | H59: =VLOOKUP(F59,Airports!$A$2:$D$1133,4,0) -> Deutschland | J59: Routen | K59: =VLOOKUP(B59,Airports!$A$2:$J$11124,10,0) -> Europa | L59: → | M59: =VLOOKUP(F59,Airports!$A$2:$J$11124,10,0) -> Europa | N59: =COUNTIF(Eingabe!B:B,Routen!A:A) -> 1
A60: IW12036 | B60: EDDL | C60: =VLOOKUP(B60,Airports!$A$2:$D$1133,2,0) -> Düsseldorf (Original) | D60: =VLOOKUP(B60,Airports!$A$2:$D$1133,4,0) -> Deutschland | E60: → | F60: LDDU | G60: =VLOOKUP(F60,Airports!$A$2:$D$1133,2,0) -> Dubrovnik | H60: =VLOOKUP(F60,Airports!$A$2:$D$1133,4,0) -> Kroatien | J60: Routen | K60: =VLOOKUP(B60,Airports!$A$2:$J$11124,10,0) -> Europa | L60: → | M60: =VLOOKUP(F60,Airports!$A$2:$J$11124,10,0) -> Europa | N60: =COUNTIF(Eingabe!B:B,Routen!A:A) -> 1
A61: IW12037 | B61: LFPO | C61: =VLOOKUP(B61,Airports!$A$2:$D$1133,2,0) -> Paris Orly | D61: =VLOOKUP(B61,Airports!$A$2:$D$1133,4,0) -> Frankreich | E61: → | F61: EDDL | G61: =VLOOKUP(F61,Airports!$A$2:$D$1133,2,0) -> Düsseldorf (Original) | H61: =VLOOKUP(F61,Airports!$A$2:$D$1133,4,0) -> Deutschland | J61: Routen | K61: =VLOOKUP(B61,Airports!$A$2:$J$11124,10,0) -> Europa | L61: → | M61: =VLOOKUP(F61,Airports!$A$2:$J$11124,10,0) -> Europa | N61: =COUNTIF(Eingabe!B:B,Routen!A:A) -> 1
A62: IW12038 | B62: LICC | C62: =VLOOKUP(B62,Airports!$A$2:$D$1133,2,0) -> Catania-Fontanarossa | D62: =VLOOKUP(B62,Airports!$A$2:$D$1133,4,0) -> Italien | E62: → | F62: EDDL | G62: =VLOOKUP(F62,Airports!$A$2:$D$1133,2,0) -> Düsseldorf (Original) | H62: =VLOOKUP(F62,Airports!$A$2:$D$1133,4,0) -> Deutschland | J62: Routen | K62: =VLOOKUP(B62,Airports!$A$2:$J$11124,10,0) -> Europa | L62: → | M62: =VLOOKUP(F62,Airports!$A$2:$J$11124,10,0) -> Europa | N62: =COUNTIF(Eingabe!B:B,Routen!A:A) -> 1
A63: IW12039 | B63: LIEE | C63: =VLOOKUP(B63,Airports!$A$2:$D$1133,2,0) -> Cagliari / Sardinien | D63: =VLOOKUP(B63,Airports!$A$2:$D$1133,4,0) -> Italien | E63: → | F63: EDDL | G63: =VLOOKUP(F63,Airports!$A$2:$D$1133,2,0) -> Düsseldorf (Original) | H63: =VLOOKUP(F63,Airports!$A$2:$D$1133,4,0) -> Deutschland | J63: Routen | K63: =VLOOKUP(B63,Airports!$A$2:$J$11124,10,0) -> Europa | L63: → | M63: =VLOOKUP(F63,Airports!$A$2:$J$11124,10,0) -> Europa | N63: =COUNTIF(Eingabe!B:B,Routen!A:A) -> 1
A64: IW12040 | B64: EDDL | C64: =VLOOKUP(B64,Airports!$A$2:$D$1133,2,0) -> Düsseldorf (Original) | D64: =VLOOKUP(B64,Airports!$A$2:$D$1133,4,0) -> Deutschland | E64: → | F64: LIEE | G64: =VLOOKUP(F64,Airports!$A$2:$D$1133,2,0) -> Cagliari / Sardinien | H64: =VLOOKUP(F64,Airports!$A$2:$D$1133,4,0) -> Italien | J64: Routen | K64: =VLOOKUP(B64,Airports!$A$2:$J$11124,10,0) -> Europa | L64: → | M64: =VLOOKUP(F64,Airports!$A$2:$J$11124,10,0) -> Europa | N64: =COUNTIF(Eingabe!B:B,Routen!A:A) -> 1
A65: IW12041 | B65: EDDL | C65: =VLOOKUP(B65,Airports!$A$2:$D$1133,2,0) -> Düsseldorf (Original) | D65: =VLOOKUP(B65,Airports!$A$2:$D$1133,4,0) -> Deutschland | E65: → | F65: LICC | G65: =VLOOKUP(F65,Airports!$A$2:$D$1133,2,0) -> Catania-Fontanarossa | H65: =VLOOKUP(F65,Airports!$A$2:$D$1133,4,0) -> Italien | J65: Routen | K65: =VLOOKUP(B65,Airports!$A$2:$J$11124,10,0) -> Europa | L65: → | M65: =VLOOKUP(F65,Airports!$A$2:$J$11124,10,0) -> Europa | N65: =COUNTIF(Eingabe!B:B,Routen!A:A) -> 1
A66: IW12042 | B66: EDDL | C66: =VLOOKUP(B66,Airports!$A$2:$D$1133,2,0) -> Düsseldorf (Original) | D66: =VLOOKUP(B66,Airports!$A$2:$D$1133,4,0) -> Deutschland | E66: → | F66: LIBD | G66: =VLOOKUP(F66,Airports!$A$2:$D$1133,2,0) -> Bari-Karol Wojtyla | H66: =VLOOKUP(F66,Airports!$A$2:$D$1133,4,0) -> Italien | J66: Routen | K66: =VLOOKUP(B66,Airports!$A$2:$J$11124,10,0) -> Europa | L66: → | M66: =VLOOKUP(F66,Airports!$A$2:$J$11124,10,0) -> Europa | N66: =COUNTIF(Eingabe!B:B,Routen!A:A) -> 1
A67: IW12043 | B67: LIBD | C67: =VLOOKUP(B67,Airports!$A$2:$D$1133,2,0) -> Bari-Karol Wojtyla | D67: =VLOOKUP(B67,Airports!$A$2:$D$1133,4,0) -> Italien | E67: → | F67: EDDL | G67: =VLOOKUP(F67,Airports!$A$2:$D$1133,2,0) -> Düsseldorf (Original) | H67: =VLOOKUP(F67,Airports!$A$2:$D$1133,4,0) -> Deutschland | J67: Routen | K67: =VLOOKUP(B67,Airports!$A$2:$J$11124,10,0) -> Europa | L67: → | M67: =VLOOKUP(F67,Airports!$A$2:$J$11124,10,0) -> Europa | N67: =COUNTIF(Eingabe!B:B,Routen!A:A) -> 1
A68: IW12044 | B68: EDDL | C68: =VLOOKUP(B68,Airports!$A$2:$D$1133,2,0) -> Düsseldorf (Original) | D68: =VLOOKUP(B68,Airports!$A$2:$D$1133,4,0) -> Deutschland | E68: → | F68: LIBF | G68: =VLOOKUP(F68,Airports!$A$2:$D$1133,2,0) -> Foggia | H68: =VLOOKUP(F68,Airports!$A$2:$D$1133,4,0) -> Italien | J68: Routen | K68: =VLOOKUP(B68,Airports!$A$2:$J$11124,10,0) -> Europa | L68: → | M68: =VLOOKUP(F68,Airports!$A$2:$J$11124,10,0) -> Europa | N68: =COUNTIF(Eingabe!B:B,Routen!A:A) -> 1
A69: IW12045 | B69: LIBF | C69: =VLOOKUP(B69,Airports!$A$2:$D$1133,2,0) -> Foggia | D69: =VLOOKUP(B69,Airports!$A$2:$D$1133,4,0) -> Italien | E69: → | F69: EDDL | G69: =VLOOKUP(F69,Airports!$A$2:$D$1133,2,0) -> Düsseldorf (Original) | H69: =VLOOKUP(F69,Airports!$A$2:$D$1133,4,0) -> Deutschland | J69: Routen | K69: =VLOOKUP(B69,Airports!$A$2:$J$11124,10,0) -> Europa | L69: → | M69: =VLOOKUP(F69,Airports!$A$2:$J$11124,10,0) -> Europa | N69: =COUNTIF(Eingabe!B:B,Routen!A:A) -> 1
A70: IW12046 | B70: LIRP | C70: =VLOOKUP(B70,Airports!$A$2:$D$1133,2,0) -> Pisa | D70: =VLOOKUP(B70,Airports!$A$2:$D$1133,4,0) -> Italien | E70: → | F70: EDDL | G70: =VLOOKUP(F70,Airports!$A$2:$D$1133,2,0) -> Düsseldorf (Original) | H70: =VLOOKUP(F70,Airports!$A$2:$D$1133,4,0) -> Deutschland | J70: Routen | K70: =VLOOKUP(B70,Airports!$A$2:$J$11124,10,0) -> Europa | L70: → | M70: =VLOOKUP(F70,Airports!$A$2:$J$11124,10,0) -> Europa | N70: =COUNTIF(Eingabe!B:B,Routen!A:A) -> 1
A71: IW12047 | B71: LDDU | C71: =VLOOKUP(B71,Airports!$A$2:$D$1133,2,0) -> Dubrovnik | D71: =VLOOKUP(B71,Airports!$A$2:$D$1133,4,0) -> Kroatien | E71: → | F71: EDDM | G71: =VLOOKUP(F71,Airports!$A$2:$D$1133,2,0) -> München | H71: =VLOOKUP(F71,Airports!$A$2:$D$1133,4,0) -> Deutschland | J71: Routen | K71: =VLOOKUP(B71,Airports!$A$2:$J$11124,10,0) -> Europa | L71: → | M71: =VLOOKUP(F71,Airports!$A$2:$J$11124,10,0) -> Europa | N71: =COUNTIF(Eingabe!B:B,Routen!A:A) -> 1
A72: IW12048 | B72: EDDL | C72: =VLOOKUP(B72,Airports!$A$2:$D$1133,2,0) -> Düsseldorf (Original) | D72: =VLOOKUP(B72,Airports!$A$2:$D$1133,4,0) -> Deutschland | E72: → | F72: LIBP | G72: =VLOOKUP(F72,Airports!$A$2:$D$1133,2,0) -> Pescara | H72: =VLOOKUP(F72,Airports!$A$2:$D$1133,4,0) -> Italien | J72: Routen | K72: =VLOOKUP(B72,Airports!$A$2:$J$11124,10,0) -> Europa | L72: → | M72: =VLOOKUP(F72,Airports!$A$2:$J$11124,10,0) -> Europa | N72: =COUNTIF(Eingabe!B:B,Routen!A:A) -> 1
A73: IW12049 | B73: ENGM | C73: =VLOOKUP(B73,Airports!$A$2:$D$1133,2,0) -> Oslo-Gardermoen | D73: =VLOOKUP(B73,Airports!$A$2:$D$1133,4,0) -> Norwegen | E73: → | F73: EDDK | G73: =VLOOKUP(F73,Airports!$A$2:$D$1133,2,0) -> Köln | H73: =VLOOKUP(F73,Airports!$A$2:$D$1133,4,0) -> Deutschland | J73: Routen | K73: =VLOOKUP(B73,Airports!$A$2:$J$11124,10,0) -> Europa | L73: → | M73: =VLOOKUP(F73,Airports!$A$2:$J$11124,10,0) -> Europa | N73: =COUNTIF(Eingabe!B:B,Routen!A:A) -> 1
A74: IW12050 | B74: EDDK | C74: =VLOOKUP(B74,Airports!$A$2:$D$1133,2,0) -> Köln | D74: =VLOOKUP(B74,Airports!$A$2:$D$1133,4,0) -> Deutschland | E74: → | F74: LIMC | G74: =VLOOKUP(F74,Airports!$A$2:$D$1133,2,0) -> Mailand-Malpensa | H74: =VLOOKUP(F74,Airports!$A$2:$D$1133,4,0) -> Italien | J74: Routen | K74: =VLOOKUP(B74,Airports!$A$2:$J$11124,10,0) -> Europa | L74: → | M74: =VLOOKUP(F74,Airports!$A$2:$J$11124,10,0) -> Europa | N74: =COUNTIF(Eingabe!B:B,Routen!A:A) -> 2
A75: IW12051 | B75: LEPA | C75: =VLOOKUP(B75,Airports!$A$2:$D$1133,2,0) -> Palma de Mallorca | D75: =VLOOKUP(B75,Airports!$A$2:$D$1133,4,0) -> Spanien | E75: → | F75: EDDS | G75: =VLOOKUP(F75,Airports!$A$2:$D$1133,2,0) -> Stuttgart | H75: =VLOOKUP(F75,Airports!$A$2:$D$1133,4,0) -> Deutschland | J75: Routen | K75: =VLOOKUP(B75,Airports!$A$2:$J$11124,10,0) -> Europa | L75: → | M75: =VLOOKUP(F75,Airports!$A$2:$J$11124,10,0) -> Europa | N75: =COUNTIF(Eingabe!B:B,Routen!A:A) -> 1 | O75: =IF(I75>=1866,"Langstrecke",IF(I75>=933,"Mittelstrecke","Kurzstrecke")) -> Kurzstrecke
A76: IW12052 | B76: EDDM | C76: =VLOOKUP(B76,Airports!$A$2:$D$1133,2,0) -> München | D76: =VLOOKUP(B76,Airports!$A$2:$D$1133,4,0) -> Deutschland | E76: → | F76: LEPA | G76: =VLOOKUP(F76,Airports!$A$2:$D$1133,2,0) -> Palma de Mallorca | H76: =VLOOKUP(F76,Airports!$A$2:$D$1133,4,0) -> Spanien | J76: Routen | K76: =VLOOKUP(B76,Airports!$A$2:$J$11124,10,0) -> Europa | L76: → | M76: =VLOOKUP(F76,Airports!$A$2:$J$11124,10,0) -> Europa | N76: =COUNTIF(Eingabe!B:B,Routen!A:A) -> 1 | O76: Kurzstrecke
A77: IW12053 | B77: EDDM | C77: =VLOOKUP(B77,Airports!$A$2:$D$1133,2,0) -> München | D77: =VLOOKUP(B77,Airports!$A$2:$D$1133,4,0) -> Deutschland | E77: → | F77: LFPO | G77: =VLOOKUP(F77,Airports!$A$2:$D$1133,2,0) -> Paris Orly | H77: =VLOOKUP(F77,Airports!$A$2:$D$1133,4,0) -> Frankreich | J77: Routen | K77: =VLOOKUP(B77,Airports!$A$2:$J$11124,10,0) -> Europa | L77: → | M77: =VLOOKUP(F77,Airports!$A$2:$J$11124,10,0) -> Europa | N77: =COUNTIF(Eingabe!B:B,Routen!A:A) -> 1 | O77: Kurzstrecke
A78: IW12054 | B78: LEMG | C78: =VLOOKUP(B78,Airports!$A$2:$D$1133,2,0) -> Malaga - Costa del Sol | D78: =VLOOKUP(B78,Airports!$A$2:$D$1133,4,0) -> Spanien | E78: → | F78: EDDM | G78: =VLOOKUP(F78,Airports!$A$2:$D$1133,2,0) -> München | H78: =VLOOKUP(F78,Airports!$A$2:$D$1133,4,0) -> Deutschland | J78: Routen | K78: =VLOOKUP(B78,Airports!$A$2:$J$11124,10,0) -> Europa | L78: → | M78: =VLOOKUP(F78,Airports!$A$2:$J$11124,10,0) -> Europa | N78: =COUNTIF(Eingabe!B:B,Routen!A:A) -> 1 | O78: Kurzstrecke
A79: IW12055 | B79: EDDL | C79: =VLOOKUP(B79,Airports!$A$2:$D$1133,2,0) -> Düsseldorf (Original) | D79: =VLOOKUP(B79,Airports!$A$2:$D$1133,4,0) -> Deutschland | E79: → | F79: EDDB | G79: =VLOOKUP(F79,Airports!$A$2:$D$1133,2,0) -> Berlin-Brandenburg | H79: =VLOOKUP(F79,Airports!$A$2:$D$1133,4,0) -> Deutschland | J79: Routen | K79: =VLOOKUP(B79,Airports!$A$2:$J$11124,10,0) -> Europa | L79: → | M79: =VLOOKUP(F79,Airports!$A$2:$J$11124,10,0) -> Europa | N79: =COUNTIF(Eingabe!B:B,Routen!A:A) -> 1 | O79: Kurzstrecke
A80: IW12056 | B80: EDDB | C80: =VLOOKUP(B80,Airports!$A$2:$D$1133,2,0) -> Berlin-Brandenburg | D80: =VLOOKUP(B80,Airports!$A$2:$D$1133,4,0) -> Deutschland | E80: → | F80: ENGM | G80: =VLOOKUP(F80,Airports!$A$2:$D$1133,2,0) -> Oslo-Gardermoen | H80: =VLOOKUP(F80,Airports!$A$2:$D$1133,4,0) -> Norwegen | J80: Routen | K80: =VLOOKUP(B80,Airports!$A$2:$J$11124,10,0) -> Europa | L80: → | M80: =VLOOKUP(F80,Airports!$A$2:$J$11124,10,0) -> Europa | N80: =COUNTIF(Eingabe!B:B,Routen!A:A) -> 1 | O80: Kurzstrecke
A81: IW12057 | B81: LEVC | C81: =VLOOKUP(B81,Airports!$A$2:$D$1133,2,0) -> Valencia | D81: =VLOOKUP(B81,Airports!$A$2:$D$1133,4,0) -> Spanien | E81: → | F81: EDDV | G81: =VLOOKUP(F81,Airports!$A$2:$D$1133,2,0) -> Hannover | H81: =VLOOKUP(F81,Airports!$A$2:$D$1133,4,0) -> Deutschland | J81: Routen | K81: =VLOOKUP(B81,Airports!$A$2:$J$11124,10,0) -> Europa | L81: → | M81: =VLOOKUP(F81,Airports!$A$2:$J$11124,10,0) -> Europa | N81: =COUNTIF(Eingabe!B:B,Routen!A:A) -> 1 | O81: Kurzstrecke
A82: IW12058 | B82: EDDV | C82: =VLOOKUP(B82,Airports!$A$2:$D$1133,2,0) -> Hannover | D82: =VLOOKUP(B82,Airports!$A$2:$D$1133,4,0) -> Deutschland | E82: → | F82: LDZA | G82: =VLOOKUP(F82,Airports!$A$2:$D$1133,2,0) -> Zagreb | H82: =VLOOKUP(F82,Airports!$A$2:$D$1133,4,0) -> Kroatien | J82: Routen | K82: =VLOOKUP(B82,Airports!$A$2:$J$11124,10,0) -> Europa | L82: → | M82: =VLOOKUP(F82,Airports!$A$2:$J$11124,10,0) -> Europa | N82: =COUNTIF(Eingabe!B:B,Routen!A:A) -> 1 | O82: Kurzstrecke
A83: IW12059 | B83: LIMC | C83: =VLOOKUP(B83,Airports!$A$2:$D$1133,2,0) -> Mailand-Malpensa | D83: =VLOOKUP(B83,Airports!$A$2:$D$1133,4,0) -> Italien | E83: → | F83: EDDM | G83: =VLOOKUP(F83,Airports!$A$2:$D$1133,2,0) -> München | H83: =VLOOKUP(F83,Airports!$A$2:$D$1133,4,0) -> Deutschland | J83: Routen | K83: =VLOOKUP(B83,Airports!$A$2:$J$11124,10,0) -> Europa | L83: → | M83: =VLOOKUP(F83,Airports!$A$2:$J$11124,10,0) -> Europa | N83: =COUNTIF(Eingabe!B:B,Routen!A:A) -> 1 | O83: Kurzstrecke
A84: IW12060 | B84: LIBP | C84: =VLOOKUP(B84,Airports!$A$2:$D$1133,2,0) -> Pescara | D84: =VLOOKUP(B84,Airports!$A$2:$D$1133,4,0) -> Italien | E84: → | F84: EDDL | G84: =VLOOKUP(F84,Airports!$A$2:$D$1133,2,0) -> Düsseldorf (Original) | H84: =VLOOKUP(F84,Airports!$A$2:$D$1133,4,0) -> Deutschland | J84: Routen | K84: =VLOOKUP(B84,Airports!$A$2:$J$11124,10,0) -> Europa | L84: → | M84: =VLOOKUP(F84,Airports!$A$2:$J$11124,10,0) -> Europa | N84: =COUNTIF(Eingabe!B:B,Routen!A:A) -> 0 | O84: Kurzstrecke
A85: IW12061 | B85: EDDL | C85: =VLOOKUP(B85,Airports!$A$2:$D$1133,2,0) -> Düsseldorf (Original) | D85: =VLOOKUP(B85,Airports!$A$2:$D$1133,4,0) -> Deutschland | E85: → | F85: LIBR | G85: =VLOOKUP(F85,Airports!$A$2:$D$1133,2,0) -> Brindisi | H85: =VLOOKUP(F85,Airports!$A$2:$D$1133,4,0) -> Italien | J85: Routen | K85: =VLOOKUP(B85,Airports!$A$2:$J$11124,10,0) -> Europa | L85: → | M85: =VLOOKUP(F85,Airports!$A$2:$J$11124,10,0) -> Europa | N85: =COUNTIF(Eingabe!B:B,Routen!A:A) -> 0 | O85: Kurzstrecke
A86: IW12062 | B86: LIBR | C86: =VLOOKUP(B86,Airports!$A$2:$D$1133,2,0) -> Brindisi | D86: =VLOOKUP(B86,Airports!$A$2:$D$1133,4,0) -> Italien | E86: → | F86: EDDL | G86: =VLOOKUP(F86,Airports!$A$2:$D$1133,2,0) -> Düsseldorf (Original) | H86: =VLOOKUP(F86,Airports!$A$2:$D$1133,4,0) -> Deutschland | J86: Routen | K86: =VLOOKUP(B86,Airports!$A$2:$J$11124,10,0) -> Europa | L86: → | M86: =VLOOKUP(F86,Airports!$A$2:$J$11124,10,0) -> Europa | N86: =COUNTIF(Eingabe!B:B,Routen!A:A) -> 0 | O86: Kurzstrecke
A87: IW12063 | B87: EDDL | C87: =VLOOKUP(B87,Airports!$A$2:$D$1133,2,0) -> Düsseldorf (Original) | D87: =VLOOKUP(B87,Airports!$A$2:$D$1133,4,0) -> Deutschland | E87: → | F87: LICG | G87: =VLOOKUP(F87,Airports!$A$2:$D$1133,2,0) -> Pantelleria | H87: =VLOOKUP(F87,Airports!$A$2:$D$1133,4,0) -> Italien | J87: Routen | K87: =VLOOKUP(B87,Airports!$A$2:$J$11124,10,0) -> Europa | L87: → | M87: =VLOOKUP(F87,Airports!$A$2:$J$11124,10,0) -> Europa | N87: =COUNTIF(Eingabe!B:B,Routen!A:A) -> 0 | O87: Kurzstrecke
A88: IW12064 | B88: LICG | C88: =VLOOKUP(B88,Airports!$A$2:$D$1133,2,0) -> Pantelleria | D88: =VLOOKUP(B88,Airports!$A$2:$D$1133,4,0) -> Italien | E88: → | F88: EDDL | G88: =VLOOKUP(F88,Airports!$A$2:$D$1133,2,0) -> Düsseldorf (Original) | H88: =VLOOKUP(F88,Airports!$A$2:$D$1133,4,0) -> Deutschland | J88: Routen | K88: =VLOOKUP(B88,Airports!$A$2:$J$11124,10,0) -> Europa | L88: → | M88: =VLOOKUP(F88,Airports!$A$2:$J$11124,10,0) -> Europa | N88: =COUNTIF(Eingabe!B:B,Routen!A:A) -> 0 | O88: Kurzstrecke
A89: IW12065 | B89: EDDL | C89: =VLOOKUP(B89,Airports!$A$2:$D$1133,2,0) -> Düsseldorf (Original) | D89: =VLOOKUP(B89,Airports!$A$2:$D$1133,4,0) -> Deutschland | E89: → | F89: LICR | G89: =VLOOKUP(F89,Airports!$A$2:$D$1133,2,0) -> Regio Calabria | H89: =VLOOKUP(F89,Airports!$A$2:$D$1133,4,0) -> Italien | J89: Routen | K89: =VLOOKUP(B89,Airports!$A$2:$J$11124,10,0) -> Europa | L89: → | M89: =VLOOKUP(F89,Airports!$A$2:$J$11124,10,0) -> Europa | N89: =COUNTIF(Eingabe!B:B,Routen!A:A) -> 0 | O89: Kurzstrecke
A90: IW12066 | B90: LICR | C90: =VLOOKUP(B90,Airports!$A$2:$D$1133,2,0) -> Regio Calabria | D90: =VLOOKUP(B90,Airports!$A$2:$D$1133,4,0) -> Italien | E90: → | F90: EDDL | G90: =VLOOKUP(F90,Airports!$A$2:$D$1133,2,0) -> Düsseldorf (Original) | H90: =VLOOKUP(F90,Airports!$A$2:$D$1133,4,0) -> Deutschland | J90: Routen | K90: =VLOOKUP(B90,Airports!$A$2:$J$11124,10,0) -> Europa | L90: → | M90: =VLOOKUP(F90,Airports!$A$2:$J$11124,10,0) -> Europa | N90: =COUNTIF(Eingabe!B:B,Routen!A:A) -> 0 | O90: Kurzstrecke
A91: IW12067 | B91: EDDL | C91: =VLOOKUP(B91,Airports!$A$2:$D$1133,2,0) -> Düsseldorf (Original) | D91: =VLOOKUP(B91,Airports!$A$2:$D$1133,4,0) -> Deutschland | E91: → | F91: LICT | G91: =VLOOKUP(F91,Airports!$A$2:$D$1133,2,0) -> Trapani | H91: =VLOOKUP(F91,Airports!$A$2:$D$1133,4,0) -> Italien | J91: Routen | K91: =VLOOKUP(B91,Airports!$A$2:$J$11124,10,0) -> Europa | L91: → | M91: =VLOOKUP(F91,Airports!$A$2:$J$11124,10,0) -> Europa | N91: =COUNTIF(Eingabe!B:B,Routen!A:A) -> 0 | O91: Kurzstrecke
A92: IW12068 | B92: LICT | C92: =VLOOKUP(B92,Airports!$A$2:$D$1133,2,0) -> Trapani | D92: =VLOOKUP(B92,Airports!$A$2:$D$1133,4,0) -> Italien | E92: → | F92: EDDL | G92: =VLOOKUP(F92,Airports!$A$2:$D$1133,2,0) -> Düsseldorf (Original) | H92: =VLOOKUP(F92,Airports!$A$2:$D$1133,4,0) -> Deutschland | J92: Routen | K92: =VLOOKUP(B92,Airports!$A$2:$J$11124,10,0) -> Europa | L92: → | M92: =VLOOKUP(F92,Airports!$A$2:$J$11124,10,0) -> Europa | N92: =COUNTIF(Eingabe!B:B,Routen!A:A) -> 0 | O92: Kurzstrecke
A93: IW12069 | B93: EDDL | C93: =VLOOKUP(B93,Airports!$A$2:$D$1133,2,0) -> Düsseldorf (Original) | D93: =VLOOKUP(B93,Airports!$A$2:$D$1133,4,0) -> Deutschland | E93: → | F93: LIME | G93: =VLOOKUP(F93,Airports!$A$2:$D$1133,2,0) -> Bergamo | H93: =VLOOKUP(F93,Airports!$A$2:$D$1133,4,0) -> Italien | J93: Routen | K93: =VLOOKUP(B93,Airports!$A$2:$J$11124,10,0) -> Europa | L93: → | M93: =VLOOKUP(F93,Airports!$A$2:$J$11124,10,0) -> Europa | N93: =COUNTIF(Eingabe!B:B,Routen!A:A) -> 0 | O93: Kurzstrecke
A94: IW12070 | B94: LIME | C94: =VLOOKUP(B94,Airports!$A$2:$D$1133,2,0) -> Bergamo | D94: =VLOOKUP(B94,Airports!$A$2:$D$1133,4,0) -> Italien | E94: → | F94: EDDL | G94: =VLOOKUP(F94,Airports!$A$2:$D$1133,2,0) -> Düsseldorf (Original) | H94: =VLOOKUP(F94,Airports!$A$2:$D$1133,4,0) -> Deutschland | J94: Routen | K94: =VLOOKUP(B94,Airports!$A$2:$J$11124,10,0) -> Europa | L94: → | M94: =VLOOKUP(F94,Airports!$A$2:$J$11124,10,0) -> Europa | N94: =COUNTIF(Eingabe!B:B,Routen!A:A) -> 0 | O94: Kurzstrecke
A95: IW12071 | B95: EDDL | C95: =VLOOKUP(B95,Airports!$A$2:$D$1133,2,0) -> Düsseldorf (Original) | D95: =VLOOKUP(B95,Airports!$A$2:$D$1133,4,0) -> Deutschland | E95: → | F95: LIMF | G95: =VLOOKUP(F95,Airports!$A$2:$D$1133,2,0) -> Turin-Caselle | H95: =VLOOKUP(F95,Airports!$A$2:$D$1133,4,0) -> Italien | J95: Routen | K95: =VLOOKUP(B95,Airports!$A$2:$J$11124,10,0) -> Europa | L95: → | M95: =VLOOKUP(F95,Airports!$A$2:$J$11124,10,0) -> Europa | N95: =COUNTIF(Eingabe!B:B,Routen!A:A) -> 0 | O95: Kurzstrecke
A96: IW12072 | B96: LIMF | C96: =VLOOKUP(B96,Airports!$A$2:$D$1133,2,0) -> Turin-Caselle | D96: =VLOOKUP(B96,Airports!$A$2:$D$1133,4,0) -> Italien | E96: → | F96: EDDL | G96: =VLOOKUP(F96,Airports!$A$2:$D$1133,2,0) -> Düsseldorf (Original) | H96: =VLOOKUP(F96,Airports!$A$2:$D$1133,4,0) -> Deutschland | J96: Routen | K96: =VLOOKUP(B96,Airports!$A$2:$J$11124,10,0) -> Europa | L96: → | M96: =VLOOKUP(F96,Airports!$A$2:$J$11124,10,0) -> Europa | N96: =COUNTIF(Eingabe!B:B,Routen!A:A) -> 0 | O96: Kurzstrecke
A97: IW12073 | B97: EDDL | C97: =VLOOKUP(B97,Airports!$A$2:$D$1133,2,0) -> Düsseldorf (Original) | D97: =VLOOKUP(B97,Airports!$A$2:$D$1133,4,0) -> Deutschland | E97: → | F97: LIML | G97: =VLOOKUP(F97,Airports!$A$2:$D$1133,2,0) -> Mailand Linate | H97: =VLOOKUP(F97,Airports!$A$2:$D$1133,4,0) -> Italien | J97: Routen | K97: =VLOOKUP(B97,Airports!$A$2:$J$11124,10,0) -> Europa | L97: → | M97: =VLOOKUP(F97,Airports!$A$2:$J$11124,10,0) -> Europa | N97: =COUNTIF(Eingabe!B:B,Routen!A:A) -> 0 | O97: Kurzstrecke
A98: IW12074 | B98: LIML | C98: =VLOOKUP(B98,Airports!$A$2:$D$1133,2,0) -> Mailand Linate | D98: =VLOOKUP(B98,Airports!$A$2:$D$1133,4,0) -> Italien | E98: → | F98: EDDL | G98: =VLOOKUP(F98,Airports!$A$2:$D$1133,2,0) -> Düsseldorf (Original) | H98: =VLOOKUP(F98,Airports!$A$2:$D$1133,4,0) -> Deutschland | J98: Routen | K98: =VLOOKUP(B98,Airports!$A$2:$J$11124,10,0) -> Europa | L98: → | M98: =VLOOKUP(F98,Airports!$A$2:$J$11124,10,0) -> Europa | N98: =COUNTIF(Eingabe!B:B,Routen!A:A) -> 0 | O98: Kurzstrecke
A99: IW12075 | B99: EDDL | C99: =VLOOKUP(B99,Airports!$A$2:$D$1133,2,0) -> Düsseldorf (Original) | D99: =VLOOKUP(B99,Airports!$A$2:$D$1133,4,0) -> Deutschland | E99: → | F99: LIMP | G99: =VLOOKUP(F99,Airports!$A$2:$D$1133,2,0) -> Parma | H99: =VLOOKUP(F99,Airports!$A$2:$D$1133,4,0) -> Italien | J99: Routen | K99: =VLOOKUP(B99,Airports!$A$2:$J$11124,10,0) -> Europa | L99: → | M99: =VLOOKUP(F99,Airports!$A$2:$J$11124,10,0) -> Europa | N99: =COUNTIF(Eingabe!B:B,Routen!A:A) -> 0 | O99: Kurzstrecke
A100: IW12076 | B100: LIMP | C100: =VLOOKUP(B100,Airports!$A$2:$D$1133,2,0) -> Parma | D100: =VLOOKUP(B100,Airports!$A$2:$D$1133,4,0) -> Italien | E100: → | F100: EDDL | G100: =VLOOKUP(F100,Airports!$A$2:$D$1133,2,0) -> Düsseldorf (Original) | H100: =VLOOKUP(F100,Airports!$A$2:$D$1133,4,0) -> Deutschland | J100: Routen | K100: =VLOOKUP(B100,Airports!$A$2:$J$11124,10,0) -> Europa | L100: → | M100: =VLOOKUP(F100,Airports!$A$2:$J$11124,10,0) -> Europa | N100: =COUNTIF(Eingabe!B:B,Routen!A:A) -> 0 | O100: Kurzstrecke
A101: IW12077 | B101: EDDL | C101: =VLOOKUP(B101,Airports!$A$2:$D$1133,2,0) -> Düsseldorf (Original) | D101: =VLOOKUP(B101,Airports!$A$2:$D$1133,4,0) -> Deutschland | E101: → | F101: LIEO | G101: =VLOOKUP(F101,Airports!$A$2:$D$1133,2,0) -> Olbia / Costa Smeralda | H101: =VLOOKUP(F101,Airports!$A$2:$D$1133,4,0) -> Italien | J101: Routen | K101: =VLOOKUP(B101,Airports!$A$2:$J$11124,10,0) -> Europa | L101: → | M101: =VLOOKUP(F101,Airports!$A$2:$J$11124,10,0) -> Europa | N101: =COUNTIF(Eingabe!B:B,Routen!A:A) -> 0 | O101: Kurzstrecke
A102: IW12078 | B102: LIEO | C102: =VLOOKUP(B102,Airports!$A$2:$D$1133,2,0) -> Olbia / Costa Smeralda | D102: =VLOOKUP(B102,Airports!$A$2:$D$1133,4,0) -> Italien | E102: → | F102: EDDL | G102: =VLOOKUP(F102,Airports!$A$2:$D$1133,2,0) -> Düsseldorf (Original) | H102: =VLOOKUP(F102,Airports!$A$2:$D$1133,4,0) -> Deutschland | J102: Routen | K102: =VLOOKUP(B102,Airports!$A$2:$J$11124,10,0) -> Europa | L102: → | M102: =VLOOKUP(F102,Airports!$A$2:$J$11124,10,0) -> Europa | N102: =COUNTIF(Eingabe!B:B,Routen!A:A) -> 0 | O102: Kurzstrecke
A103: IW12079 | B103: EDDL | C103: =VLOOKUP(B103,Airports!$A$2:$D$1133,2,0) -> Düsseldorf (Original) | D103: =VLOOKUP(B103,Airports!$A$2:$D$1133,4,0) -> Deutschland | E103: → | F103: LIPQ | G103: =VLOOKUP(F103,Airports!$A$2:$D$1133,2,0) -> Triest / Udine | H103: =VLOOKUP(F103,Airports!$A$2:$D$1133,4,0) -> Italien | J103: Routen | K103: =VLOOKUP(B103,Airports!$A$2:$J$11124,10,0) -> Europa | L103: → | M103: =VLOOKUP(F103,Airports!$A$2:$J$11124,10,0) -> Europa | N103: =COUNTIF(Eingabe!B:B,Routen!A:A) -> 0 | O103: Kurzstrecke
A104: IW12080 | B104: LIPQ | C104: =VLOOKUP(B104,Airports!$A$2:$D$1133,2,0) -> Triest / Udine | D104: =VLOOKUP(B104,Airports!$A$2:$D$1133,4,0) -> Italien | E104: → | F104: EDDL | G104: =VLOOKUP(F104,Airports!$A$2:$D$1133,2,0) -> Düsseldorf (Original) | H104: =VLOOKUP(F104,Airports!$A$2:$D$1133,4,0) -> Deutschland | J104: Routen | K104: =VLOOKUP(B104,Airports!$A$2:$J$11124,10,0) -> Europa | L104: → | M104: =VLOOKUP(F104,Airports!$A$2:$J$11124,10,0) -> Europa | N104: =COUNTIF(Eingabe!B:B,Routen!A:A) -> 0 | O104: Kurzstrecke
A105: IW12081 | B105: EDDL | C105: =VLOOKUP(B105,Airports!$A$2:$D$1133,2,0) -> Düsseldorf (Original) | D105: =VLOOKUP(B105,Airports!$A$2:$D$1133,4,0) -> Deutschland | E105: → | F105: LIRA | G105: =VLOOKUP(F105,Airports!$A$2:$D$1133,2,0) -> Rom-Ciampino | H105: =VLOOKUP(F105,Airports!$A$2:$D$1133,4,0) -> Italien | J105: Routen | K105: =VLOOKUP(B105,Airports!$A$2:$J$11124,10,0) -> Europa | L105: → | M105: =VLOOKUP(F105,Airports!$A$2:$J$11124,10,0) -> Europa | N105: =COUNTIF(Eingabe!B:B,Routen!A:A) -> 0 | O105: Kurzstrecke
A106: IW12082 | B106: LIRA | C106: =VLOOKUP(B106,Airports!$A$2:$D$1133,2,0) -> Rom-Ciampino | D106: =VLOOKUP(B106,Airports!$A$2:$D$1133,4,0) -> Italien | E106: → | F106: EDDL | G106: =VLOOKUP(F106,Airports!$A$2:$D$1133,2,0) -> Düsseldorf (Original) | H106: =VLOOKUP(F106,Airports!$A$2:$D$1133,4,0) -> Deutschland | J106: Routen | K106: =VLOOKUP(B106,Airports!$A$2:$J$11124,10,0) -> Europa | L106: → | M106: =VLOOKUP(F106,Airports!$A$2:$J$11124,10,0) -> Europa | N106: =COUNTIF(Eingabe!B:B,Routen!A:A) -> 0 | O106: Kurzstrecke
A107: IW12083 | B107: EDDL | C107: =VLOOKUP(B107,Airports!$A$2:$D$1133,2,0) -> Düsseldorf (Original) | D107: =VLOOKUP(B107,Airports!$A$2:$D$1133,4,0) -> Deutschland | E107: → | F107: LIBC | G107: =VLOOKUP(F107,Airports!$A$2:$D$1133,2,0) -> Crotone / Kalabrien | H107: =VLOOKUP(F107,Airports!$A$2:$D$1133,4,0) -> Italien | J107: Routen | K107: =VLOOKUP(B107,Airports!$A$2:$J$11124,10,0) -> Europa | L107: → | M107: =VLOOKUP(F107,Airports!$A$2:$J$11124,10,0) -> Europa | N107: =COUNTIF(Eingabe!B:B,Routen!A:A) -> 0 | O107: Kurzstrecke
A108: IW12084 | B108: LIBC | C108: =VLOOKUP(B108,Airports!$A$2:$D$1133,2,0) -> Crotone / Kalabrien | D108: =VLOOKUP(B108,Airports!$A$2:$D$1133,4,0) -> Italien | E108: → | F108: EDDL | G108: =VLOOKUP(F108,Airports!$A$2:$D$1133,2,0) -> Düsseldorf (Original) | H108: =VLOOKUP(F108,Airports!$A$2:$D$1133,4,0) -> Deutschland | J108: Routen | K108: =VLOOKUP(B108,Airports!$A$2:$J$11124,10,0) -> Europa | L108: → | M108: =VLOOKUP(F108,Airports!$A$2:$J$11124,10,0) -> Europa | N108: =COUNTIF(Eingabe!B:B,Routen!A:A) -> 0 | O108: Kurzstrecke
A109: IW12085 | B109: EDDL | C109: =VLOOKUP(B109,Airports!$A$2:$D$1133,2,0) -> Düsseldorf (Original) | D109: =VLOOKUP(B109,Airports!$A$2:$D$1133,4,0) -> Deutschland | E109: → | F109: LICJ | G109: =VLOOKUP(F109,Airports!$A$2:$D$1133,2,0) -> Palermo Punta Raisi | H109: =VLOOKUP(F109,Airports!$A$2:$D$1133,4,0) -> Italien | J109: Routen | K109: =VLOOKUP(B109,Airports!$A$2:$J$11124,10,0) -> Europa | L109: → | M109: =VLOOKUP(F109,Airports!$A$2:$J$11124,10,0) -> Europa | N109: =COUNTIF(Eingabe!B:B,Routen!A:A) -> 0 | O109: Kurzstrecke
A110: IW12086 | B110: LICJ | C110: =VLOOKUP(B110,Airports!$A$2:$D$1133,2,0) -> Palermo Punta Raisi | D110: =VLOOKUP(B110,Airports!$A$2:$D$1133,4,0) -> Italien | E110: → | F110: EDDL | G110: =VLOOKUP(F110,Airports!$A$2:$D$1133,2,0) -> Düsseldorf (Original) | H110: =VLOOKUP(F110,Airports!$A$2:$D$1133,4,0) -> Deutschland | J110: Routen | K110: =VLOOKUP(B110,Airports!$A$2:$J$11124,10,0) -> Europa | L110: → | M110: =VLOOKUP(F110,Airports!$A$2:$J$11124,10,0) -> Europa | N110: =COUNTIF(Eingabe!B:B,Routen!A:A) -> 0 | O110: Kurzstrecke
A111: IW12087 | B111: EDDL | C111: =VLOOKUP(B111,Airports!$A$2:$D$1133,2,0) -> Düsseldorf (Original) | D111: =VLOOKUP(B111,Airports!$A$2:$D$1133,4,0) -> Deutschland | E111: → | F111: LIPE | G111: =VLOOKUP(F111,Airports!$A$2:$D$1133,2,0) -> Bologna | H111: =VLOOKUP(F111,Airports!$A$2:$D$1133,4,0) -> Italien | J111: Routen | K111: =VLOOKUP(B111,Airports!$A$2:$J$11124,10,0) -> Europa | L111: → | M111: =VLOOKUP(F111,Airports!$A$2:$J$11124,10,0) -> Europa | N111: =COUNTIF(Eingabe!B:B,Routen!A:A) -> 0 | O111: Kurzstrecke
A112: IW12088 | B112: LIPE | C112: =VLOOKUP(B112,Airports!$A$2:$D$1133,2,0) -> Bologna | D112: =VLOOKUP(B112,Airports!$A$2:$D$1133,4,0) -> Italien | E112: → | F112: EDDL | G112: =VLOOKUP(F112,Airports!$A$2:$D$1133,2,0) -> Düsseldorf (Original) | H112: =VLOOKUP(F112,Airports!$A$2:$D$1133,4,0) -> Deutschland | J112: Routen | K112: =VLOOKUP(B112,Airports!$A$2:$J$11124,10,0) -> Europa | L112: → | M112: =VLOOKUP(F112,Airports!$A$2:$J$11124,10,0) -> Europa | N112: =COUNTIF(Eingabe!B:B,Routen!A:A) -> 0 | O112: Kurzstrecke
A113: IW12089 | B113: EDDL | C113: =VLOOKUP(B113,Airports!$A$2:$D$1133,2,0) -> Düsseldorf (Original) | D113: =VLOOKUP(B113,Airports!$A$2:$D$1133,4,0) -> Deutschland | E113: → | F113: LIPH | G113: =VLOOKUP(F113,Airports!$A$2:$D$1133,2,0) -> Treviso | H113: =VLOOKUP(F113,Airports!$A$2:$D$1133,4,0) -> Italien | J113: Routen | K113: =VLOOKUP(B113,Airports!$A$2:$J$11124,10,0) -> Europa | L113: → | M113: =VLOOKUP(F113,Airports!$A$2:$J$11124,10,0) -> Europa | N113: =COUNTIF(Eingabe!B:B,Routen!A:A) -> 0 | O113: Kurzstrecke
A114: IW12090 | B114: LIPH | C114: =VLOOKUP(B114,Airports!$A$2:$D$1133,2,0) -> Treviso | D114: =VLOOKUP(B114,Airports!$A$2:$D$1133,4,0) -> Italien | E114: → | F114: EDDL | G114: =VLOOKUP(F114,Airports!$A$2:$D$1133,2,0) -> Düsseldorf (Original) | H114: =VLOOKUP(F114,Airports!$A$2:$D$1133,4,0) -> Deutschland | J114: Routen | K114: =VLOOKUP(B114,Airports!$A$2:$J$11124,10,0) -> Europa | L114: → | M114: =VLOOKUP(F114,Airports!$A$2:$J$11124,10,0) -> Europa | N114: =COUNTIF(Eingabe!B:B,Routen!A:A) -> 0 | O114: Kurzstrecke
A115: IW12091 | B115: EDDL | C115: =VLOOKUP(B115,Airports!$A$2:$D$1133,2,0) -> Düsseldorf (Original) | D115: =VLOOKUP(B115,Airports!$A$2:$D$1133,4,0) -> Deutschland | E115: → | F115: LIPO | G115: =VLOOKUP(F115,Airports!$A$2:$D$1133,2,0) -> Brescia | H115: =VLOOKUP(F115,Airports!$A$2:$D$1133,4,0) -> Italien | J115: Routen | K115: =VLOOKUP(B115,Airports!$A$2:$J$11124,10,0) -> Europa | L115: → | M115: =VLOOKUP(F115,Airports!$A$2:$J$11124,10,0) -> Europa | N115: =COUNTIF(Eingabe!B:B,Routen!A:A) -> 0 | O115: Kurzstrecke
A116: IW12092 | B116: LIPO | C116: =VLOOKUP(B116,Airports!$A$2:$D$1133,2,0) -> Brescia | D116: =VLOOKUP(B116,Airports!$A$2:$D$1133,4,0) -> Italien | E116: → | F116: EDDL | G116: =VLOOKUP(F116,Airports!$A$2:$D$1133,2,0) -> Düsseldorf (Original) | H116: =VLOOKUP(F116,Airports!$A$2:$D$1133,4,0) -> Deutschland | J116: Routen | K116: =VLOOKUP(B116,Airports!$A$2:$J$11124,10,0) -> Europa | L116: → | M116: =VLOOKUP(F116,Airports!$A$2:$J$11124,10,0) -> Europa | N116: =COUNTIF(Eingabe!B:B,Routen!A:A) -> 0 | O116: Kurzstrecke
A117: IW12093 | B117: EDDL | C117: =VLOOKUP(B117,Airports!$A$2:$D$1133,2,0) -> Düsseldorf (Original) | D117: =VLOOKUP(B117,Airports!$A$2:$D$1133,4,0) -> Deutschland | E117: → | F117: LIPR | G117: =VLOOKUP(F117,Airports!$A$2:$D$1133,2,0) -> Rimini | H117: =VLOOKUP(F117,Airports!$A$2:$D$1133,4,0) -> Italien | J117: Routen | K117: =VLOOKUP(B117,Airports!$A$2:$J$11124,10,0) -> Europa | L117: → | M117: =VLOOKUP(F117,Airports!$A$2:$J$11124,10,0) -> Europa | N117: =COUNTIF(Eingabe!B:B,Routen!A:A) -> 0 | O117: Kurzstrecke
A118: IW12094 | B118: LIPR | C118: =VLOOKUP(B118,Airports!$A$2:$D$1133,2,0) -> Rimini | D118: =VLOOKUP(B118,Airports!$A$2:$D$1133,4,0) -> Italien | E118: → | F118: EDDL | G118: =VLOOKUP(F118,Airports!$A$2:$D$1133,2,0) -> Düsseldorf (Original) | H118: =VLOOKUP(F118,Airports!$A$2:$D$1133,4,0) -> Deutschland | J118: Routen | K118: =VLOOKUP(B118,Airports!$A$2:$J$11124,10,0) -> Europa | L118: → | M118: =VLOOKUP(F118,Airports!$A$2:$J$11124,10,0) -> Europa | N118: =COUNTIF(Eingabe!B:B,Routen!A:A) -> 0 | O118: Kurzstrecke
A119: IW12095 | B119: EDDL | C119: =VLOOKUP(B119,Airports!$A$2:$D$1133,2,0) -> Düsseldorf (Original) | D119: =VLOOKUP(B119,Airports!$A$2:$D$1133,4,0) -> Deutschland | E119: → | F119: LIPX | G119: =VLOOKUP(F119,Airports!$A$2:$D$1133,2,0) -> Verona-Villafranca | H119: =VLOOKUP(F119,Airports!$A$2:$D$1133,4,0) -> Italien | J119: Routen | K119: =VLOOKUP(B119,Airports!$A$2:$J$11124,10,0) -> Europa | L119: → | M119: =VLOOKUP(F119,Airports!$A$2:$J$11124,10,0) -> Europa | N119: =COUNTIF(Eingabe!B:B,Routen!A:A) -> 0 | O119: Kurzstrecke
A120: IW12096 | B120: LIPX | C120: =VLOOKUP(B120,Airports!$A$2:$D$1133,2,0) -> Verona-Villafranca | D120: =VLOOKUP(B120,Airports!$A$2:$D$1133,4,0) -> Italien | E120: → | F120: EDDL | G120: =VLOOKUP(F120,Airports!$A$2:$D$1133,2,0) -> Düsseldorf (Original) | H120: =VLOOKUP(F120,Airports!$A$2:$D$1133,4,0) -> Deutschland | J120: Routen | K120: =VLOOKUP(B120,Airports!$A$2:$J$11124,10,0) -> Europa | L120: → | M120: =VLOOKUP(F120,Airports!$A$2:$J$11124,10,0) -> Europa | N120: =COUNTIF(Eingabe!B:B,Routen!A:A) -> 0 | O120: Kurzstrecke
A121: IW12097 | B121: EDDL | C121: =VLOOKUP(B121,Airports!$A$2:$D$1133,2,0) -> Düsseldorf (Original) | D121: =VLOOKUP(B121,Airports!$A$2:$D$1133,4,0) -> Deutschland | E121: → | F121: LIPY | G121: =VLOOKUP(F121,Airports!$A$2:$D$1133,2,0) -> Falconara-Ancona | H121: =VLOOKUP(F121,Airports!$A$2:$D$1133,4,0) -> Italien | J121: Routen | K121: =VLOOKUP(B121,Airports!$A$2:$J$11124,10,0) -> Europa | L121: → | M121: =VLOOKUP(F121,Airports!$A$2:$J$11124,10,0) -> Europa | N121: =COUNTIF(Eingabe!B:B,Routen!A:A) -> 0 | O121: Kurzstrecke
A122: IW12098 | B122: LIPY | C122: =VLOOKUP(B122,Airports!$A$2:$D$1133,2,0) -> Falconara-Ancona | D122: =VLOOKUP(B122,Airports!$A$2:$D$1133,4,0) -> Italien | E122: → | F122: EDDL | G122: =VLOOKUP(F122,Airports!$A$2:$D$1133,2,0) -> Düsseldorf (Original) | H122: =VLOOKUP(F122,Airports!$A$2:$D$1133,4,0) -> Deutschland | J122: Routen | K122: =VLOOKUP(B122,Airports!$A$2:$J$11124,10,0) -> Europa | L122: → | M122: =VLOOKUP(F122,Airports!$A$2:$J$11124,10,0) -> Europa | N122: =COUNTIF(Eingabe!B:B,Routen!A:A) -> 0 | O122: Kurzstrecke
A123: IW12099 | B123: EDDL | C123: =VLOOKUP(B123,Airports!$A$2:$D$1133,2,0) -> Düsseldorf (Original) | D123: =VLOOKUP(B123,Airports!$A$2:$D$1133,4,0) -> Deutschland | E123: → | F123: LIPZ | G123: =VLOOKUP(F123,Airports!$A$2:$D$1133,2,0) -> Venedig - Marco Polo | H123: =VLOOKUP(F123,Airports!$A$2:$D$1133,4,0) -> Italien | J123: Routen | K123: =VLOOKUP(B123,Airports!$A$2:$J$11124,10,0) -> Europa | L123: → | M123: =VLOOKUP(F123,Airports!$A$2:$J$11124,10,0) -> Europa | N123: =COUNTIF(Eingabe!B:B,Routen!A:A) -> 0 | O123: Kurzstrecke
A124: IW12100 | B124: LIPZ | C124: =VLOOKUP(B124,Airports!$A$2:$D$1133,2,0) -> Venedig - Marco Polo | D124: =VLOOKUP(B124,Airports!$A$2:$D$1133,4,0) -> Italien | E124: → | F124: EDDL | G124: =VLOOKUP(F124,Airports!$A$2:$D$1133,2,0) -> Düsseldorf (Original) | H124: =VLOOKUP(F124,Airports!$A$2:$D$1133,4,0) -> Deutschland | J124: Routen | K124: =VLOOKUP(B124,Airports!$A$2:$J$11124,10,0) -> Europa | L124: → | M124: =VLOOKUP(F124,Airports!$A$2:$J$11124,10,0) -> Europa | N124: =COUNTIF(Eingabe!B:B,Routen!A:A) -> 0 | O124: Kurzstrecke
A125: IW12101 | B125: EDDL | C125: =VLOOKUP(B125,Airports!$A$2:$D$1133,2,0) -> Düsseldorf (Original) | D125: =VLOOKUP(B125,Airports!$A$2:$D$1133,4,0) -> Deutschland | E125: → | F125: LIRZ | G125: =VLOOKUP(F125,Airports!$A$2:$D$1133,2,0) -> Perugia | H125: =VLOOKUP(F125,Airports!$A$2:$D$1133,4,0) -> Italien | J125: Routen | K125: =VLOOKUP(B125,Airports!$A$2:$J$11124,10,0) -> Europa | L125: → | M125: =VLOOKUP(F125,Airports!$A$2:$J$11124,10,0) -> Europa | N125: =COUNTIF(Eingabe!B:B,Routen!A:A) -> 0 | O125: Kurzstrecke
A126: IW12102 | B126: LIRZ | C126: =VLOOKUP(B126,Airports!$A$2:$D$1133,2,0) -> Perugia | D126: =VLOOKUP(B126,Airports!$A$2:$D$1133,4,0) -> Italien | E126: → | F126: EDDL | G126: =VLOOKUP(F126,Airports!$A$2:$D$1133,2,0) -> Düsseldorf (Original) | H126: =VLOOKUP(F126,Airports!$A$2:$D$1133,4,0) -> Deutschland | J126: Routen | K126: =VLOOKUP(B126,Airports!$A$2:$J$11124,10,0) -> Europa | L126: → | M126: =VLOOKUP(F126,Airports!$A$2:$J$11124,10,0) -> Europa | N126: =COUNTIF(Eingabe!B:B,Routen!A:A) -> 0 | O126: Kurzstrecke
A127: IW12103 | B127: EDDL | C127: =VLOOKUP(B127,Airports!$A$2:$D$1133,2,0) -> Düsseldorf (Original) | D127: =VLOOKUP(B127,Airports!$A$2:$D$1133,4,0) -> Deutschland | E127: → | F127: LIRI | G127: =VLOOKUP(F127,Airports!$A$2:$D$1133,2,0) -> Salerno | H127: =VLOOKUP(F127,Airports!$A$2:$D$1133,4,0) -> Italien | J127: Routen | K127: =VLOOKUP(B127,Airports!$A$2:$J$11124,10,0) -> Europa | L127: → | M127: =VLOOKUP(F127,Airports!$A$2:$J$11124,10,0) -> Europa | N127: =COUNTIF(Eingabe!B:B,Routen!A:A) -> 0 | O127: Kurzstrecke
A128: IW12104 | B128: LIRI | C128: =VLOOKUP(B128,Airports!$A$2:$D$1133,2,0) -> Salerno | D128: =VLOOKUP(B128,Airports!$A$2:$D$1133,4,0) -> Italien | E128: → | F128: EDDL | G128: =VLOOKUP(F128,Airports!$A$2:$D$1133,2,0) -> Düsseldorf (Original) | H128: =VLOOKUP(F128,Airports!$A$2:$D$1133,4,0) -> Deutschland | J128: Routen | K128: =VLOOKUP(B128,Airports!$A$2:$J$11124,10,0) -> Europa | L128: → | M128: =VLOOKUP(F128,Airports!$A$2:$J$11124,10,0) -> Europa | N128: =COUNTIF(Eingabe!B:B,Routen!A:A) -> 1 | O128: Kurzstrecke
A129: IW12105 | B129: EDDL | C129: =VLOOKUP(B129,Airports!$A$2:$D$1133,2,0) -> Düsseldorf (Original) | D129: =VLOOKUP(B129,Airports!$A$2:$D$1133,4,0) -> Deutschland | E129: → | F129: LIRP | G129: =VLOOKUP(F129,Airports!$A$2:$D$1133,2,0) -> Pisa | H129: =VLOOKUP(F129,Airports!$A$2:$D$1133,4,0) -> Italien | J129: Routen | K129: =VLOOKUP(B129,Airports!$A$2:$J$11124,10,0) -> Europa | L129: → | M129: =VLOOKUP(F129,Airports!$A$2:$J$11124,10,0) -> Europa | N129: =COUNTIF(Eingabe!B:B,Routen!A:A) -> 0 | O129: Kurzstrecke
A130: IW12106 | B130: EDDM | C130: =VLOOKUP(B130,Airports!$A$2:$D$1133,2,0) -> München | D130: =VLOOKUP(B130,Airports!$A$2:$D$1133,4,0) -> Deutschland | E130: → | F130: LFPO | G130: =VLOOKUP(F130,Airports!$A$2:$D$1133,2,0) -> Paris Orly | H130: =VLOOKUP(F130,Airports!$A$2:$D$1133,4,0) -> Frankreich | J130: Routen | K130: =VLOOKUP(B130,Airports!$A$2:$J$11124,10,0) -> Europa | L130: → | M130: =VLOOKUP(F130,Airports!$A$2:$J$11124,10,0) -> Europa | N130: =COUNTIF(Eingabe!B:B,Routen!A:A) -> 0 | O130: Kurzstrecke
A131: IW12107 | B131: EDDP | C131: =VLOOKUP(B131,Airports!$A$2:$D$1133,2,0) -> Leipzig-Halle | D131: =VLOOKUP(B131,Airports!$A$2:$D$1133,4,0) -> Deutschland | E131: → | F131: LEPA | G131: =VLOOKUP(F131,Airports!$A$2:$D$1133,2,0) -> Palma de Mallorca | H131: =VLOOKUP(F131,Airports!$A$2:$D$1133,4,0) -> Spanien | J131: Routen | K131: =VLOOKUP(B131,Airports!$A$2:$J$11124,10,0) -> Europa | L131: → | M131: =VLOOKUP(F131,Airports!$A$2:$J$11124,10,0) -> Europa | N131: =COUNTIF(Eingabe!B:B,Routen!A:A) -> 0 | O131: Kurzstrecke
A132: IW12108 | B132: LIMC | C132: =VLOOKUP(B132,Airports!$A$2:$D$1133,2,0) -> Mailand-Malpensa | D132: =VLOOKUP(B132,Airports!$A$2:$D$1133,4,0) -> Italien | E132: → | F132: EDDP | G132: =VLOOKUP(F132,Airports!$A$2:$D$1133,2,0) -> Leipzig-Halle | H132: =VLOOKUP(F132,Airports!$A$2:$D$1133,4,0) -> Deutschland | J132: Routen | K132: =VLOOKUP(B132,Airports!$A$2:$J$11124,10,0) -> Europa | L132: → | M132: =VLOOKUP(F132,Airports!$A$2:$J$11124,10,0) -> Europa | N132: =COUNTIF(Eingabe!B:B,Routen!A:A) -> 0 | O132: Kurzstrecke
A133: IW12109 | B133: EDDS | C133: =VLOOKUP(B133,Airports!$A$2:$D$1133,2,0) -> Stuttgart | D133: =VLOOKUP(B133,Airports!$A$2:$D$1133,4,0) -> Deutschland | E133: → | F133: LDZA | G133: =VLOOKUP(F133,Airports!$A$2:$D$1133,2,0) -> Zagreb | H133: =VLOOKUP(F133,Airports!$A$2:$D$1133,4,0) -> Kroatien | J133: Routen | K133: =VLOOKUP(B133,Airports!$A$2:$J$11124,10,0) -> Europa | L133: → | M133: =VLOOKUP(F133,Airports!$A$2:$J$11124,10,0) -> Europa | N133: =COUNTIF(Eingabe!B:B,Routen!A:A) -> 1 | O133: Kurzstrecke
A134: IW12110 | B134: EDDL | C134: =VLOOKUP(B134,Airports!$A$2:$D$1133,2,0) -> Düsseldorf (Original) | D134: =VLOOKUP(B134,Airports!$A$2:$D$1133,4,0) -> Deutschland | E134: → | F134: LICG | G134: =VLOOKUP(F134,Airports!$A$2:$D$1133,2,0) -> Pantelleria | H134: =VLOOKUP(F134,Airports!$A$2:$D$1133,4,0) -> Italien | J134: Routen | K134: =VLOOKUP(B134,Airports!$A$2:$J$11124,10,0) -> Europa | L134: → | M134: =VLOOKUP(F134,Airports!$A$2:$J$11124,10,0) -> Europa | N134: =COUNTIF(Eingabe!B:B,Routen!A:A) -> 1 | O134: Kurzstrecke
A135: IW12111 | B135: EDDP | C135: =VLOOKUP(B135,Airports!$A$2:$D$1133,2,0) -> Leipzig-Halle | D135: =VLOOKUP(B135,Airports!$A$2:$D$1133,4,0) -> Deutschland | E135: → | F135: LEPA | G135: =VLOOKUP(F135,Airports!$A$2:$D$1133,2,0) -> Palma de Mallorca | H135: =VLOOKUP(F135,Airports!$A$2:$D$1133,4,0) -> Spanien | J135: Routen | K135: =VLOOKUP(B135,Airports!$A$2:$J$11124,10,0) -> Europa | L135: → | M135: =VLOOKUP(F135,Airports!$A$2:$J$11124,10,0) -> Europa | N135: =COUNTIF(Eingabe!B:B,Routen!A:A) -> 1 | O135: Kurzstrecke
A136: IW12112 | B136: LIBP | C136: =VLOOKUP(B136,Airports!$A$2:$D$1133,2,0) -> Pescara | D136: =VLOOKUP(B136,Airports!$A$2:$D$1133,4,0) -> Italien | E136: → | F136: EDDL | G136: =VLOOKUP(F136,Airports!$A$2:$D$1133,2,0) -> Düsseldorf (Original) | H136: =VLOOKUP(F136,Airports!$A$2:$D$1133,4,0) -> Deutschland | J136: Routen | K136: =VLOOKUP(B136,Airports!$A$2:$J$11124,10,0) -> Europa | L136: → | M136: =VLOOKUP(F136,Airports!$A$2:$J$11124,10,0) -> Europa | N136: =COUNTIF(Eingabe!B:B,Routen!A:A) -> 1 | O136: Kurzstrecke
A137: IW12113 | B137: EDDL | C137: =VLOOKUP(B137,Airports!$A$2:$D$1133,2,0) -> Düsseldorf (Original) | D137: =VLOOKUP(B137,Airports!$A$2:$D$1133,4,0) -> Deutschland | E137: → | F137: LIBC | G137: =VLOOKUP(F137,Airports!$A$2:$D$1133,2,0) -> Crotone / Kalabrien | H137: =VLOOKUP(F137,Airports!$A$2:$D$1133,4,0) -> Italien | J137: Routen | K137: =VLOOKUP(B137,Airports!$A$2:$J$11124,10,0) -> Europa | L137: → | M137: =VLOOKUP(F137,Airports!$A$2:$J$11124,10,0) -> Europa | N137: =COUNTIF(Eingabe!B:B,Routen!A:A) -> 1 | O137: Kurzstrecke
A138: IW12114 | B138: LIBC | C138: =VLOOKUP(B138,Airports!$A$2:$D$1133,2,0) -> Crotone / Kalabrien | D138: =VLOOKUP(B138,Airports!$A$2:$D$1133,4,0) -> Italien | E138: → | F138: EDDL | G138: =VLOOKUP(F138,Airports!$A$2:$D$1133,2,0) -> Düsseldorf (Original) | H138: =VLOOKUP(F138,Airports!$A$2:$D$1133,4,0) -> Deutschland | J138: Routen | K138: =VLOOKUP(B138,Airports!$A$2:$J$11124,10,0) -> Europa | L138: → | M138: =VLOOKUP(F138,Airports!$A$2:$J$11124,10,0) -> Europa | N138: =COUNTIF(Eingabe!B:B,Routen!A:A) -> 1 | O138: Kurzstrecke
A139: IW12115 | B139: EDDL | C139: =VLOOKUP(B139,Airports!$A$2:$D$1133,2,0) -> Düsseldorf (Original) | D139: =VLOOKUP(B139,Airports!$A$2:$D$1133,4,0) -> Deutschland | E139: → | F139: LIPX | G139: =VLOOKUP(F139,Airports!$A$2:$D$1133,2,0) -> Verona-Villafranca | H139: =VLOOKUP(F139,Airports!$A$2:$D$1133,4,0) -> Italien | J139: Routen | K139: =VLOOKUP(B139,Airports!$A$2:$J$11124,10,0) -> Europa | L139: → | M139: =VLOOKUP(F139,Airports!$A$2:$J$11124,10,0) -> Europa | N139: =COUNTIF(Eingabe!B:B,Routen!A:A) -> 1 | O139: =IF(I139>=1866,"Langstrecke",IF(I139>=933,"Mittelstrecke","Kurzstrecke")) -> Kurzstrecke
A140: IW12116 | B140: LIPX | C140: =VLOOKUP(B140,Airports!$A$2:$D$1133,2,0) -> Verona-Villafranca | D140: =VLOOKUP(B140,Airports!$A$2:$D$1133,4,0) -> Italien | E140: → | F140: EDDL | G140: =VLOOKUP(F140,Airports!$A$2:$D$1133,2,0) -> Düsseldorf (Original) | H140: =VLOOKUP(F140,Airports!$A$2:$D$1133,4,0) -> Deutschland | J140: Routen | K140: =VLOOKUP(B140,Airports!$A$2:$J$11124,10,0) -> Europa | L140: → | M140: =VLOOKUP(F140,Airports!$A$2:$J$11124,10,0) -> Europa | N140: =COUNTIF(Eingabe!B:B,Routen!A:A) -> 1 | O140: Kurzstrecke
A141: IW12117 | B141: EDDL | C141: =VLOOKUP(B141,Airports!$A$2:$D$1133,2,0) -> Düsseldorf (Original) | D141: =VLOOKUP(B141,Airports!$A$2:$D$1133,4,0) -> Deutschland | E141: → | F141: LIMF | G141: =VLOOKUP(F141,Airports!$A$2:$D$1133,2,0) -> Turin-Caselle | H141: =VLOOKUP(F141,Airports!$A$2:$D$1133,4,0) -> Italien | J141: Routen | K141: =VLOOKUP(B141,Airports!$A$2:$J$11124,10,0) -> Europa | L141: → | M141: =VLOOKUP(F141,Airports!$A$2:$J$11124,10,0) -> Europa | N141: =COUNTIF(Eingabe!B:B,Routen!A:A) -> 1 | O141: Kurzstrecke
A142: IW12118 | B142: LIMF | C142: =VLOOKUP(B142,Airports!$A$2:$D$1133,2,0) -> Turin-Caselle | D142: =VLOOKUP(B142,Airports!$A$2:$D$1133,4,0) -> Italien | E142: → | F142: EDDL | G142: =VLOOKUP(F142,Airports!$A$2:$D$1133,2,0) -> Düsseldorf (Original) | H142: =VLOOKUP(F142,Airports!$A$2:$D$1133,4,0) -> Deutschland | J142: Routen | K142: =VLOOKUP(B142,Airports!$A$2:$J$11124,10,0) -> Europa | L142: → | M142: =VLOOKUP(F142,Airports!$A$2:$J$11124,10,0) -> Europa | N142: =COUNTIF(Eingabe!B:B,Routen!A:A) -> 1 | O142: Kurzstrecke
A143: IW12119 | B143: EDDL | C143: =VLOOKUP(B143,Airports!$A$2:$D$1133,2,0) -> Düsseldorf (Original) | D143: =VLOOKUP(B143,Airports!$A$2:$D$1133,4,0) -> Deutschland | E143: → | F143: LICR | G143: =VLOOKUP(F143,Airports!$A$2:$D$1133,2,0) -> Regio Calabria | H143: =VLOOKUP(F143,Airports!$A$2:$D$1133,4,0) -> Italien | J143: Routen | K143: =VLOOKUP(B143,Airports!$A$2:$J$11124,10,0) -> Europa | L143: → | M143: =VLOOKUP(F143,Airports!$A$2:$J$11124,10,0) -> Europa | N143: =COUNTIF(Eingabe!B:B,Routen!A:A) -> 1 | O143: Kurzstrecke
A144: IW12120 | B144: LICR | C144: =VLOOKUP(B144,Airports!$A$2:$D$1133,2,0) -> Regio Calabria | D144: =VLOOKUP(B144,Airports!$A$2:$D$1133,4,0) -> Italien | E144: → | F144: EDDL | G144: =VLOOKUP(F144,Airports!$A$2:$D$1133,2,0) -> Düsseldorf (Original) | H144: =VLOOKUP(F144,Airports!$A$2:$D$1133,4,0) -> Deutschland | J144: Routen | K144: =VLOOKUP(B144,Airports!$A$2:$J$11124,10,0) -> Europa | L144: → | M144: =VLOOKUP(F144,Airports!$A$2:$J$11124,10,0) -> Europa | N144: =COUNTIF(Eingabe!B:B,Routen!A:A) -> 1 | O144: Kurzstrecke
A145: IW12121 | B145: EDDL | C145: =VLOOKUP(B145,Airports!$A$2:$D$1133,2,0) -> Düsseldorf (Original) | D145: =VLOOKUP(B145,Airports!$A$2:$D$1133,4,0) -> Deutschland | E145: → | F145: LIEO | G145: =VLOOKUP(F145,Airports!$A$2:$D$1133,2,0) -> Olbia / Costa Smeralda | H145: =VLOOKUP(F145,Airports!$A$2:$D$1133,4,0) -> Italien | J145: Routen | K145: =VLOOKUP(B145,Airports!$A$2:$J$11124,10,0) -> Europa | L145: → | M145: =VLOOKUP(F145,Airports!$A$2:$J$11124,10,0) -> Europa | N145: =COUNTIF(Eingabe!B:B,Routen!A:A) -> 1 | O145: Kurzstrecke
A146: IW12122 | B146: LIEO | C146: =VLOOKUP(B146,Airports!$A$2:$D$1133,2,0) -> Olbia / Costa Smeralda | D146: =VLOOKUP(B146,Airports!$A$2:$D$1133,4,0) -> Italien | E146: → | F146: EDDL | G146: =VLOOKUP(F146,Airports!$A$2:$D$1133,2,0) -> Düsseldorf (Original) | H146: =VLOOKUP(F146,Airports!$A$2:$D$1133,4,0) -> Deutschland | J146: Routen | K146: =VLOOKUP(B146,Airports!$A$2:$J$11124,10,0) -> Europa | L146: → | M146: =VLOOKUP(F146,Airports!$A$2:$J$11124,10,0) -> Europa | N146: =COUNTIF(Eingabe!B:B,Routen!A:A) -> 1 | O146: Kurzstrecke
A147: IW12123 | B147: EDDL | C147: =VLOOKUP(B147,Airports!$A$2:$D$1133,2,0) -> Düsseldorf (Original) | D147: =VLOOKUP(B147,Airports!$A$2:$D$1133,4,0) -> Deutschland | E147: → | F147: LIML | G147: =VLOOKUP(F147,Airports!$A$2:$D$1133,2,0) -> Mailand Linate | H147: =VLOOKUP(F147,Airports!$A$2:$D$1133,4,0) -> Italien | J147: Routen | K147: =VLOOKUP(B147,Airports!$A$2:$J$11124,10,0) -> Europa | L147: → | M147: =VLOOKUP(F147,Airports!$A$2:$J$11124,10,0) -> Europa | N147: =COUNTIF(Eingabe!B:B,Routen!A:A) -> 1 | O147: Kurzstrecke
A148: IW12124 | B148: LIML | C148: =VLOOKUP(B148,Airports!$A$2:$D$1133,2,0) -> Mailand Linate | D148: =VLOOKUP(B148,Airports!$A$2:$D$1133,4,0) -> Italien | E148: → | F148: EDDL | G148: =VLOOKUP(F148,Airports!$A$2:$D$1133,2,0) -> Düsseldorf (Original) | H148: =VLOOKUP(F148,Airports!$A$2:$D$1133,4,0) -> Deutschland | J148: Routen | K148: =VLOOKUP(B148,Airports!$A$2:$J$11124,10,0) -> Europa | L148: → | M148: =VLOOKUP(F148,Airports!$A$2:$J$11124,10,0) -> Europa | N148: =COUNTIF(Eingabe!B:B,Routen!A:A) -> 1 | O148: Kurzstrecke
A149: IW12125 | B149: EDDL | C149: =VLOOKUP(B149,Airports!$A$2:$D$1133,2,0) -> Düsseldorf (Original) | D149: =VLOOKUP(B149,Airports!$A$2:$D$1133,4,0) -> Deutschland | E149: → | F149: LIPE | G149: =VLOOKUP(F149,Airports!$A$2:$D$1133,2,0) -> Bologna | H149: =VLOOKUP(F149,Airports!$A$2:$D$1133,4,0) -> Italien | J149: Routen | K149: =VLOOKUP(B149,Airports!$A$2:$J$11124,10,0) -> Europa | L149: → | M149: =VLOOKUP(F149,Airports!$A$2:$J$11124,10,0) -> Europa | N149: =COUNTIF(Eingabe!B:B,Routen!A:A) -> 1 | O149: Kurzstrecke
A150: IW12126 | B150: LIPE | C150: =VLOOKUP(B150,Airports!$A$2:$D$1133,2,0) -> Bologna | D150: =VLOOKUP(B150,Airports!$A$2:$D$1133,4,0) -> Italien | E150: → | F150: EDDL | G150: =VLOOKUP(F150,Airports!$A$2:$D$1133,2,0) -> Düsseldorf (Original) | H150: =VLOOKUP(F150,Airports!$A$2:$D$1133,4,0) -> Deutschland | J150: Routen | K150: =VLOOKUP(B150,Airports!$A$2:$J$11124,10,0) -> Europa | L150: → | M150: =VLOOKUP(F150,Airports!$A$2:$J$11124,10,0) -> Europa | N150: =COUNTIF(Eingabe!B:B,Routen!A:A) -> 1 | O150: Kurzstrecke
A151: IW12127 | B151: EDDL | C151: =VLOOKUP(B151,Airports!$A$2:$D$1133,2,0) -> Düsseldorf (Original) | D151: =VLOOKUP(B151,Airports!$A$2:$D$1133,4,0) -> Deutschland | E151: → | F151: LIMP | G151: =VLOOKUP(F151,Airports!$A$2:$D$1133,2,0) -> Parma | H151: =VLOOKUP(F151,Airports!$A$2:$D$1133,4,0) -> Italien | J151: Routen | K151: =VLOOKUP(B151,Airports!$A$2:$J$11124,10,0) -> Europa | L151: → | M151: =VLOOKUP(F151,Airports!$A$2:$J$11124,10,0) -> Europa | N151: =COUNTIF(Eingabe!B:B,Routen!A:A) -> 1 | O151: Kurzstrecke
A152: IW12128 | B152: LIMP | C152: =VLOOKUP(B152,Airports!$A$2:$D$1133,2,0) -> Parma | D152: =VLOOKUP(B152,Airports!$A$2:$D$1133,4,0) -> Italien | E152: → | F152: EDDL | G152: =VLOOKUP(F152,Airports!$A$2:$D$1133,2,0) -> Düsseldorf (Original) | H152: =VLOOKUP(F152,Airports!$A$2:$D$1133,4,0) -> Deutschland | J152: Routen | K152: =VLOOKUP(B152,Airports!$A$2:$J$11124,10,0) -> Europa | L152: → | M152: =VLOOKUP(F152,Airports!$A$2:$J$11124,10,0) -> Europa | N152: =COUNTIF(Eingabe!B:B,Routen!A:A) -> 1 | O152: Kurzstrecke
A153: IW12129 | B153: EDDL | C153: =VLOOKUP(B153,Airports!$A$2:$D$1133,2,0) -> Düsseldorf (Original) | D153: =VLOOKUP(B153,Airports!$A$2:$D$1133,4,0) -> Deutschland | E153: → | F153: LIME | G153: =VLOOKUP(F153,Airports!$A$2:$D$1133,2,0) -> Bergamo | H153: =VLOOKUP(F153,Airports!$A$2:$D$1133,4,0) -> Italien | J153: Routen | K153: =VLOOKUP(B153,Airports!$A$2:$J$11124,10,0) -> Europa | L153: → | M153: =VLOOKUP(F153,Airports!$A$2:$J$11124,10,0) -> Europa | N153: =COUNTIF(Eingabe!B:B,Routen!A:A) -> 1 | O153: Kurzstrecke
A154: IW12130 | B154: LIME | C154: =VLOOKUP(B154,Airports!$A$2:$D$1133,2,0) -> Bergamo | D154: =VLOOKUP(B154,Airports!$A$2:$D$1133,4,0) -> Italien | E154: → | F154: EDDL | G154: =VLOOKUP(F154,Airports!$A$2:$D$1133,2,0) -> Düsseldorf (Original) | H154: =VLOOKUP(F154,Airports!$A$2:$D$1133,4,0) -> Deutschland | J154: Routen | K154: =VLOOKUP(B154,Airports!$A$2:$J$11124,10,0) -> Europa | L154: → | M154: =VLOOKUP(F154,Airports!$A$2:$J$11124,10,0) -> Europa | N154: =COUNTIF(Eingabe!B:B,Routen!A:A) -> 1 | O154: Kurzstrecke
A155: IW12131 | B155: EDDL | C155: =VLOOKUP(B155,Airports!$A$2:$D$1133,2,0) -> Düsseldorf (Original) | D155: =VLOOKUP(B155,Airports!$A$2:$D$1133,4,0) -> Deutschland | E155: → | F155: LIBR | G155: =VLOOKUP(F155,Airports!$A$2:$D$1133,2,0) -> Brindisi | H155: =VLOOKUP(F155,Airports!$A$2:$D$1133,4,0) -> Italien | J155: Routen | K155: =VLOOKUP(B155,Airports!$A$2:$J$11124,10,0) -> Europa | L155: → | M155: =VLOOKUP(F155,Airports!$A$2:$J$11124,10,0) -> Europa | N155: =COUNTIF(Eingabe!B:B,Routen!A:A) -> 1 | O155: Kurzstrecke
A156: IW12132 | B156: LIBR | C156: =VLOOKUP(B156,Airports!$A$2:$D$1133,2,0) -> Brindisi | D156: =VLOOKUP(B156,Airports!$A$2:$D$1133,4,0) -> Italien | E156: → | F156: EDDL | G156: =VLOOKUP(F156,Airports!$A$2:$D$1133,2,0) -> Düsseldorf (Original) | H156: =VLOOKUP(F156,Airports!$A$2:$D$1133,4,0) -> Deutschland | J156: Routen | K156: =VLOOKUP(B156,Airports!$A$2:$J$11124,10,0) -> Europa | L156: → | M156: =VLOOKUP(F156,Airports!$A$2:$J$11124,10,0) -> Europa | N156: =COUNTIF(Eingabe!B:B,Routen!A:A) -> 1 | O156: Kurzstrecke
A157: IW12133 | B157: EDDL | C157: =VLOOKUP(B157,Airports!$A$2:$D$1133,2,0) -> Düsseldorf (Original) | D157: =VLOOKUP(B157,Airports!$A$2:$D$1133,4,0) -> Deutschland | E157: → | F157: LIRA | G157: =VLOOKUP(F157,Airports!$A$2:$D$1133,2,0) -> Rom-Ciampino | H157: =VLOOKUP(F157,Airports!$A$2:$D$1133,4,0) -> Italien | J157: Routen | K157: =VLOOKUP(B157,Airports!$A$2:$J$11124,10,0) -> Europa | L157: → | M157: =VLOOKUP(F157,Airports!$A$2:$J$11124,10,0) -> Europa | N157: =COUNTIF(Eingabe!B:B,Routen!A:A) -> 1 | O157: Kurzstrecke
A158: IW12134 | B158: LIRA | C158: =VLOOKUP(B158,Airports!$A$2:$D$1133,2,0) -> Rom-Ciampino | D158: =VLOOKUP(B158,Airports!$A$2:$D$1133,4,0) -> Italien | E158: → | F158: EDDL | G158: =VLOOKUP(F158,Airports!$A$2:$D$1133,2,0) -> Düsseldorf (Original) | H158: =VLOOKUP(F158,Airports!$A$2:$D$1133,4,0) -> Deutschland | J158: Routen | K158: =VLOOKUP(B158,Airports!$A$2:$J$11124,10,0) -> Europa | L158: → | M158: =VLOOKUP(F158,Airports!$A$2:$J$11124,10,0) -> Europa | N158: =COUNTIF(Eingabe!B:B,Routen!A:A) -> 1 | O158: Kurzstrecke
A159: IW12135 | B159: LICG | C159: =VLOOKUP(B159,Airports!$A$2:$D$1133,2,0) -> Pantelleria | D159: =VLOOKUP(B159,Airports!$A$2:$D$1133,4,0) -> Italien | E159: → | F159: EDDL | G159: =VLOOKUP(F159,Airports!$A$2:$D$1133,2,0) -> Düsseldorf (Original) | H159: =VLOOKUP(F159,Airports!$A$2:$D$1133,4,0) -> Deutschland | J159: Routen | K159: =VLOOKUP(B159,Airports!$A$2:$J$11124,10,0) -> Europa | L159: → | M159: =VLOOKUP(F159,Airports!$A$2:$J$11124,10,0) -> Europa | N159: =COUNTIF(Eingabe!B:B,Routen!A:A) -> 1 | O159: Kurzstrecke
A160: IW12136 | B160: EDDL | C160: =VLOOKUP(B160,Airports!$A$2:$D$1133,2,0) -> Düsseldorf (Original) | D160: =VLOOKUP(B160,Airports!$A$2:$D$1133,4,0) -> Deutschland | E160: → | F160: LIRI | G160: =VLOOKUP(F160,Airports!$A$2:$D$1133,2,0) -> Salerno | H160: =VLOOKUP(F160,Airports!$A$2:$D$1133,4,0) -> Italien | J160: Routen | K160: =VLOOKUP(B160,Airports!$A$2:$J$11124,10,0) -> Europa | L160: → | M160: =VLOOKUP(F160,Airports!$A$2:$J$11124,10,0) -> Europa | N160: =COUNTIF(Eingabe!B:B,Routen!A:A) -> 1 | O160: Kurzstrecke
A161: IW12137 | B161: LIRI | C161: =VLOOKUP(B161,Airports!$A$2:$D$1133,2,0) -> Salerno | D161: =VLOOKUP(B161,Airports!$A$2:$D$1133,4,0) -> Italien | E161: → | F161: EDDL | G161: =VLOOKUP(F161,Airports!$A$2:$D$1133,2,0) -> Düsseldorf (Original) | H161: =VLOOKUP(F161,Airports!$A$2:$D$1133,4,0) -> Deutschland | J161: Routen | K161: =VLOOKUP(B161,Airports!$A$2:$J$11124,10,0) -> Europa | L161: → | M161: =VLOOKUP(F161,Airports!$A$2:$J$11124,10,0) -> Europa | N161: =COUNTIF(Eingabe!B:B,Routen!A:A) -> 1 | O161: Kurzstrecke
A162: IW12138 | B162: EDDL | C162: =VLOOKUP(B162,Airports!$A$2:$D$1133,2,0) -> Düsseldorf (Original) | D162: =VLOOKUP(B162,Airports!$A$2:$D$1133,4,0) -> Deutschland | E162: → | F162: LICJ | G162: =VLOOKUP(F162,Airports!$A$2:$D$1133,2,0) -> Palermo Punta Raisi | H162: =VLOOKUP(F162,Airports!$A$2:$D$1133,4,0) -> Italien | J162: Routen | K162: =VLOOKUP(B162,Airports!$A$2:$J$11124,10,0) -> Europa | L162: → | M162: =VLOOKUP(F162,Airports!$A$2:$J$11124,10,0) -> Europa | N162: =COUNTIF(Eingabe!B:B,Routen!A:A) -> 1 | O162: Kurzstrecke
A163: IW12139 | B163: LICJ | C163: =VLOOKUP(B163,Airports!$A$2:$D$1133,2,0) -> Palermo Punta Raisi | D163: =VLOOKUP(B163,Airports!$A$2:$D$1133,4,0) -> Italien | E163: → | F163: EDDL | G163: =VLOOKUP(F163,Airports!$A$2:$D$1133,2,0) -> Düsseldorf (Original) | H163: =VLOOKUP(F163,Airports!$A$2:$D$1133,4,0) -> Deutschland | J163: Routen | K163: =VLOOKUP(B163,Airports!$A$2:$J$11124,10,0) -> Europa | L163: → | M163: =VLOOKUP(F163,Airports!$A$2:$J$11124,10,0) -> Europa | N163: =COUNTIF(Eingabe!B:B,Routen!A:A) -> 1 | O163: Kurzstrecke
A164: IW12140 | B164: EDDL | C164: =VLOOKUP(B164,Airports!$A$2:$D$1133,2,0) -> Düsseldorf (Original) | D164: =VLOOKUP(B164,Airports!$A$2:$D$1133,4,0) -> Deutschland | E164: → | F164: LICT | G164: =VLOOKUP(F164,Airports!$A$2:$D$1133,2,0) -> Trapani | H164: =VLOOKUP(F164,Airports!$A$2:$D$1133,4,0) -> Italien | J164: Routen | K164: =VLOOKUP(B164,Airports!$A$2:$J$11124,10,0) -> Europa | L164: → | M164: =VLOOKUP(F164,Airports!$A$2:$J$11124,10,0) -> Europa | N164: =COUNTIF(Eingabe!B:B,Routen!A:A) -> 1 | O164: Kurzstrecke
A165: IW12141 | B165: LICT | C165: =VLOOKUP(B165,Airports!$A$2:$D$1133,2,0) -> Trapani | D165: =VLOOKUP(B165,Airports!$A$2:$D$1133,4,0) -> Italien | E165: → | F165: EDDL | G165: =VLOOKUP(F165,Airports!$A$2:$D$1133,2,0) -> Düsseldorf (Original) | H165: =VLOOKUP(F165,Airports!$A$2:$D$1133,4,0) -> Deutschland | J165: Routen | K165: =VLOOKUP(B165,Airports!$A$2:$J$11124,10,0) -> Europa | L165: → | M165: =VLOOKUP(F165,Airports!$A$2:$J$11124,10,0) -> Europa | N165: =COUNTIF(Eingabe!B:B,Routen!A:A) -> 1 | O165: Kurzstrecke
A166: IW12142 | B166: EDDL | C166: =VLOOKUP(B166,Airports!$A$2:$D$1133,2,0) -> Düsseldorf (Original) | D166: =VLOOKUP(B166,Airports!$A$2:$D$1133,4,0) -> Deutschland | E166: → | F166: LIMP | G166: =VLOOKUP(F166,Airports!$A$2:$D$1133,2,0) -> Parma | H166: =VLOOKUP(F166,Airports!$A$2:$D$1133,4,0) -> Italien | J166: Routen | K166: =VLOOKUP(B166,Airports!$A$2:$J$11124,10,0) -> Europa | L166: → | M166: =VLOOKUP(F166,Airports!$A$2:$J$11124,10,0) -> Europa | N166: =COUNTIF(Eingabe!B:B,Routen!A:A) -> 1 | O166: Kurzstrecke
A167: IW12143 | B167: LIMP | C167: =VLOOKUP(B167,Airports!$A$2:$D$1133,2,0) -> Parma | D167: =VLOOKUP(B167,Airports!$A$2:$D$1133,4,0) -> Italien | E167: → | F167: EDDL | G167: =VLOOKUP(F167,Airports!$A$2:$D$1133,2,0) -> Düsseldorf (Original) | H167: =VLOOKUP(F167,Airports!$A$2:$D$1133,4,0) -> Deutschland | J167: Routen | K167: =VLOOKUP(B167,Airports!$A$2:$J$11124,10,0) -> Europa | L167: → | M167: =VLOOKUP(F167,Airports!$A$2:$J$11124,10,0) -> Europa | N167: =COUNTIF(Eingabe!B:B,Routen!A:A) -> 1 | O167: Kurzstrecke
A168: IW12144 | B168: EDDL | C168: =VLOOKUP(B168,Airports!$A$2:$D$1133,2,0) -> Düsseldorf (Original) | D168: =VLOOKUP(B168,Airports!$A$2:$D$1133,4,0) -> Deutschland | E168: → | F168: LIPR | G168: =VLOOKUP(F168,Airports!$A$2:$D$1133,2,0) -> Rimini | H168: =VLOOKUP(F168,Airports!$A$2:$D$1133,4,0) -> Italien | J168: Routen | K168: =VLOOKUP(B168,Airports!$A$2:$J$11124,10,0) -> Europa | L168: → | M168: =VLOOKUP(F168,Airports!$A$2:$J$11124,10,0) -> Europa | N168: =COUNTIF(Eingabe!B:B,Routen!A:A) -> 1 | O168: Kurzstrecke
A169: IW12145 | B169: LIPR | C169: =VLOOKUP(B169,Airports!$A$2:$D$1133,2,0) -> Rimini | D169: =VLOOKUP(B169,Airports!$A$2:$D$1133,4,0) -> Italien | E169: → | F169: EDDL | G169: =VLOOKUP(F169,Airports!$A$2:$D$1133,2,0) -> Düsseldorf (Original) | H169: =VLOOKUP(F169,Airports!$A$2:$D$1133,4,0) -> Deutschland | J169: Routen | K169: =VLOOKUP(B169,Airports!$A$2:$J$11124,10,0) -> Europa | L169: → | M169: =VLOOKUP(F169,Airports!$A$2:$J$11124,10,0) -> Europa | N169: =COUNTIF(Eingabe!B:B,Routen!A:A) -> 1 | O169: Kurzstrecke
A170: IW12146 | B170: EDDL | C170: =VLOOKUP(B170,Airports!$A$2:$D$1133,2,0) -> Düsseldorf (Original) | D170: =VLOOKUP(B170,Airports!$A$2:$D$1133,4,0) -> Deutschland | E170: → | F170: LIRZ | G170: =VLOOKUP(F170,Airports!$A$2:$D$1133,2,0) -> Perugia | H170: =VLOOKUP(F170,Airports!$A$2:$D$1133,4,0) -> Italien | J170: Routen | K170: =VLOOKUP(B170,Airports!$A$2:$J$11124,10,0) -> Europa | L170: → | M170: =VLOOKUP(F170,Airports!$A$2:$J$11124,10,0) -> Europa | N170: =COUNTIF(Eingabe!B:B,Routen!A:A) -> 1 | O170: Kurzstrecke
A171: IW12147 | B171: LIRZ | C171: =VLOOKUP(B171,Airports!$A$2:$D$1133,2,0) -> Perugia | D171: =VLOOKUP(B171,Airports!$A$2:$D$1133,4,0) -> Italien | E171: → | F171: EDDL | G171: =VLOOKUP(F171,Airports!$A$2:$D$1133,2,0) -> Düsseldorf (Original) | H171: =VLOOKUP(F171,Airports!$A$2:$D$1133,4,0) -> Deutschland | J171: Routen | K171: =VLOOKUP(B171,Airports!$A$2:$J$11124,10,0) -> Europa | L171: → | M171: =VLOOKUP(F171,Airports!$A$2:$J$11124,10,0) -> Europa | N171: =COUNTIF(Eingabe!B:B,Routen!A:A) -> 1 | O171: Kurzstrecke
A172: IW12148 | B172: EDDL | C172: =VLOOKUP(B172,Airports!$A$2:$D$1133,2,0) -> Düsseldorf (Original) | D172: =VLOOKUP(B172,Airports!$A$2:$D$1133,4,0) -> Deutschland | E172: → | F172: LIRP | G172: =VLOOKUP(F172,Airports!$A$2:$D$1133,2,0) -> Pisa | H172: =VLOOKUP(F172,Airports!$A$2:$D$1133,4,0) -> Italien | J172: Routen | K172: =VLOOKUP(B172,Airports!$A$2:$J$11124,10,0) -> Europa | L172: → | M172: =VLOOKUP(F172,Airports!$A$2:$J$11124,10,0) -> Europa | N172: =COUNTIF(Eingabe!B:B,Routen!A:A) -> 1 | O172: Kurzstrecke
A173: IW12149 | B173: EDDL | C173: =VLOOKUP(B173,Airports!$A$2:$D$1133,2,0) -> Düsseldorf (Original) | D173: =VLOOKUP(B173,Airports!$A$2:$D$1133,4,0) -> Deutschland | E173: → | F173: LIPY | G173: =VLOOKUP(F173,Airports!$A$2:$D$1133,2,0) -> Falconara-Ancona | H173: =VLOOKUP(F173,Airports!$A$2:$D$1133,4,0) -> Italien | J173: Routen | K173: =VLOOKUP(B173,Airports!$A$2:$J$11124,10,0) -> Europa | L173: → | M173: =VLOOKUP(F173,Airports!$A$2:$J$11124,10,0) -> Europa | N173: =COUNTIF(Eingabe!B:B,Routen!A:A) -> 1 | O173: Kurzstrecke
A174: IW12150 | B174: LIPY | C174: =VLOOKUP(B174,Airports!$A$2:$D$1133,2,0) -> Falconara-Ancona | D174: =VLOOKUP(B174,Airports!$A$2:$D$1133,4,0) -> Italien | E174: → | F174: EDDL | G174: =VLOOKUP(F174,Airports!$A$2:$D$1133,2,0) -> Düsseldorf (Original) | H174: =VLOOKUP(F174,Airports!$A$2:$D$1133,4,0) -> Deutschland | J174: Routen | K174: =VLOOKUP(B174,Airports!$A$2:$J$11124,10,0) -> Europa | L174: → | M174: =VLOOKUP(F174,Airports!$A$2:$J$11124,10,0) -> Europa | N174: =COUNTIF(Eingabe!B:B,Routen!A:A) -> 1 | O174: Kurzstrecke
A175: IW12151 | B175: EDDL | C175: =VLOOKUP(B175,Airports!$A$2:$D$1133,2,0) -> Düsseldorf (Original) | D175: =VLOOKUP(B175,Airports!$A$2:$D$1133,4,0) -> Deutschland | E175: → | F175: LIPQ | G175: =VLOOKUP(F175,Airports!$A$2:$D$1133,2,0) -> Triest / Udine | H175: =VLOOKUP(F175,Airports!$A$2:$D$1133,4,0) -> Italien | J175: Routen | K175: =VLOOKUP(B175,Airports!$A$2:$J$11124,10,0) -> Europa | L175: → | M175: =VLOOKUP(F175,Airports!$A$2:$J$11124,10,0) -> Europa | N175: =COUNTIF(Eingabe!B:B,Routen!A:A) -> 1 | O175: Kurzstrecke
A176: IW12152 | B176: LIPQ | C176: =VLOOKUP(B176,Airports!$A$2:$D$1133,2,0) -> Triest / Udine | D176: =VLOOKUP(B176,Airports!$A$2:$D$1133,4,0) -> Italien | E176: → | F176: EDDL | G176: =VLOOKUP(F176,Airports!$A$2:$D$1133,2,0) -> Düsseldorf (Original) | H176: =VLOOKUP(F176,Airports!$A$2:$D$1133,4,0) -> Deutschland | J176: Routen | K176: =VLOOKUP(B176,Airports!$A$2:$J$11124,10,0) -> Europa | L176: → | M176: =VLOOKUP(F176,Airports!$A$2:$J$11124,10,0) -> Europa | N176: =COUNTIF(Eingabe!B:B,Routen!A:A) -> 1 | O176: Kurzstrecke
A177: IW12153 | B177: EDDL | C177: =VLOOKUP(B177,Airports!$A$2:$D$1133,2,0) -> Düsseldorf (Original) | D177: =VLOOKUP(B177,Airports!$A$2:$D$1133,4,0) -> Deutschland | E177: → | F177: LIPH | G177: =VLOOKUP(F177,Airports!$A$2:$D$1133,2,0) -> Treviso | H177: =VLOOKUP(F177,Airports!$A$2:$D$1133,4,0) -> Italien | J177: Routen | K177: =VLOOKUP(B177,Airports!$A$2:$J$11124,10,0) -> Europa | L177: → | M177: =VLOOKUP(F177,Airports!$A$2:$J$11124,10,0) -> Europa | N177: =COUNTIF(Eingabe!B:B,Routen!A:A) -> 1 | O177: Kurzstrecke
A178: IW12154 | B178: LIPH | C178: =VLOOKUP(B178,Airports!$A$2:$D$1133,2,0) -> Treviso | D178: =VLOOKUP(B178,Airports!$A$2:$D$1133,4,0) -> Italien | E178: → | F178: EDDL | G178: =VLOOKUP(F178,Airports!$A$2:$D$1133,2,0) -> Düsseldorf (Original) | H178: =VLOOKUP(F178,Airports!$A$2:$D$1133,4,0) -> Deutschland | J178: Routen | K178: =VLOOKUP(B178,Airports!$A$2:$J$11124,10,0) -> Europa | L178: → | M178: =VLOOKUP(F178,Airports!$A$2:$J$11124,10,0) -> Europa | N178: =COUNTIF(Eingabe!B:B,Routen!A:A) -> 1 | O178: Kurzstrecke
A179: IW12155 | B179: EDDL | C179: =VLOOKUP(B179,Airports!$A$2:$D$1133,2,0) -> Düsseldorf (Original) | D179: =VLOOKUP(B179,Airports!$A$2:$D$1133,4,0) -> Deutschland | E179: → | F179: LIPO | G179: =VLOOKUP(F179,Airports!$A$2:$D$1133,2,0) -> Brescia | H179: =VLOOKUP(F179,Airports!$A$2:$D$1133,4,0) -> Italien | J179: Routen | K179: =VLOOKUP(B179,Airports!$A$2:$J$11124,10,0) -> Europa | L179: → | M179: =VLOOKUP(F179,Airports!$A$2:$J$11124,10,0) -> Europa | N179: =COUNTIF(Eingabe!B:B,Routen!A:A) -> 1 | O179: Kurzstrecke
A180: IW12156 | B180: LIPO | C180: =VLOOKUP(B180,Airports!$A$2:$D$1133,2,0) -> Brescia | D180: =VLOOKUP(B180,Airports!$A$2:$D$1133,4,0) -> Italien | E180: → | F180: EDDL | G180: =VLOOKUP(F180,Airports!$A$2:$D$1133,2,0) -> Düsseldorf (Original) | H180: =VLOOKUP(F180,Airports!$A$2:$D$1133,4,0) -> Deutschland | J180: Routen | K180: =VLOOKUP(B180,Airports!$A$2:$J$11124,10,0) -> Europa | L180: → | M180: =VLOOKUP(F180,Airports!$A$2:$J$11124,10,0) -> Europa | N180: =COUNTIF(Eingabe!B:B,Routen!A:A) -> 1 | O180: Kurzstrecke
A181: IW12157 | B181: EDDL | C181: =VLOOKUP(B181,Airports!$A$2:$D$1133,2,0) -> Düsseldorf (Original) | D181: =VLOOKUP(B181,Airports!$A$2:$D$1133,4,0) -> Deutschland | E181: → | F181: LIPZ | G181: =VLOOKUP(F181,Airports!$A$2:$D$1133,2,0) -> Venedig - Marco Polo | H181: =VLOOKUP(F181,Airports!$A$2:$D$1133,4,0) -> Italien | J181: Routen | K181: =VLOOKUP(B181,Airports!$A$2:$J$11124,10,0) -> Europa | L181: → | M181: =VLOOKUP(F181,Airports!$A$2:$J$11124,10,0) -> Europa | N181: =COUNTIF(Eingabe!B:B,Routen!A:A) -> 1 | O181: Kurzstrecke
A182: IW12158 | B182: LIPZ | C182: =VLOOKUP(B182,Airports!$A$2:$D$1133,2,0) -> Venedig - Marco Polo | D182: =VLOOKUP(B182,Airports!$A$2:$D$1133,4,0) -> Italien | E182: → | F182: EDDL | G182: =VLOOKUP(F182,Airports!$A$2:$D$1133,2,0) -> Düsseldorf (Original) | H182: =VLOOKUP(F182,Airports!$A$2:$D$1133,4,0) -> Deutschland | J182: Routen | K182: =VLOOKUP(B182,Airports!$A$2:$J$11124,10,0) -> Europa | L182: → | M182: =VLOOKUP(F182,Airports!$A$2:$J$11124,10,0) -> Europa | N182: =COUNTIF(Eingabe!B:B,Routen!A:A) -> 1 | O182: Kurzstrecke
A183: LH1101 | B183: EDDL | C183: =VLOOKUP(B183,Airports!$A$2:$D$1133,2,0) -> Düsseldorf (Original) | D183: =VLOOKUP(B183,Airports!$A$2:$D$1133,4,0) -> Deutschland | E183: → | F183: LJMB | G183: =VLOOKUP(F183,Airports!$A$2:$D$1133,2,0) -> Maribor-Edvard Rusjan | H183: =VLOOKUP(F183,Airports!$A$2:$D$1133,4,0) -> Slowenien | I183: 500 | J183: Routen | K183: =VLOOKUP(B183,Airports!$A$2:$J$11124,10,0) -> Europa | L183: → | M183: =VLOOKUP(F183,Airports!$A$2:$J$11124,10,0) -> Europa | N183: =COUNTIF(Eingabe!B:B,Routen!A:A) -> 1 | O183: Kurzstrecke
A184: LH1102 | B184: LJMB | C184: =VLOOKUP(B184,Airports!$A$2:$D$1133,2,0) -> Maribor-Edvard Rusjan | D184: =VLOOKUP(B184,Airports!$A$2:$D$1133,4,0) -> Slowenien | E184: → | F184: EDDL | G184: =VLOOKUP(F184,Airports!$A$2:$D$1133,2,0) -> Düsseldorf (Original) | H184: =VLOOKUP(F184,Airports!$A$2:$D$1133,4,0) -> Deutschland | J184: Routen | K184: =VLOOKUP(B184,Airports!$A$2:$J$11124,10,0) -> Europa | L184: → | M184: =VLOOKUP(F184,Airports!$A$2:$J$11124,10,0) -> Europa | N184: =COUNTIF(Eingabe!B:B,Routen!A:A) -> 1 | O184: Kurzstrecke

Sheet Touren
A2: T52000 | B2: EDDS | C2: =VLOOKUP(B2,Airports!$A$2:$D$1076,2,0) -> Stuttgart | D2: =VLOOKUP(B2,Airports!$A$2:$D$1076,4,0) -> Deutschland | E2: LXGB | F2: =VLOOKUP(E2,Airports!$A$2:$D$1076,2,0) -> Gibraltar | G2: =VLOOKUP(E2,Airports!$A$2:$D$1076,4,0) -> Großbritannien
A3: T52001 | B3: LXGB | C3: =VLOOKUP(B3,Airports!$A$2:$D$1076,2,0) -> Gibraltar | D3: =VLOOKUP(B4,Airports!$A$2:$D$1076,4,0) -> Deutschland | E3: EDDF | F3: =VLOOKUP(E3,Airports!$A$2:$D$1076,2,0) -> Frankfurt Main Intl. | G3: =VLOOKUP(E4,Airports!$A$2:$D$1076,4,0) -> Portugal
A4: T52002 | B4: EDDF | C4: =VLOOKUP(B4,Airports!$A$2:$D$1076,2,0) -> Frankfurt Main Intl. | D4: =VLOOKUP(B4,Airports!$A$2:$D$1076,4,0) -> Deutschland | E4: LPMA | F4: =VLOOKUP(E4,Airports!$A$2:$D$1076,2,0) -> Funchal-Madeira | G4: =VLOOKUP(E4,Airports!$A$2:$D$1076,4,0) -> Portugal
A5: T52003 | B5: LPMA | C5: =VLOOKUP(B5,Airports!$A$2:$D$1076,2,0) -> Funchal-Madeira | D5: =VLOOKUP(B5,Airports!$A$2:$D$1076,4,0) -> Portugal | E5: EDDL | F5: =VLOOKUP(E5,Airports!$A$2:$D$1076,2,0) -> Düsseldorf (Original) | G5: =VLOOKUP(E5,Airports!$A$2:$D$1076,4,0) -> Deutschland
A6: T52004 | B6: EDDL | C6: =VLOOKUP(B6,Airports!$A$2:$D$1076,2,0) -> Düsseldorf (Original) | D6: =VLOOKUP(B6,Airports!$A$2:$D$1076,4,0) -> Deutschland | E6: LFKJ | F6: =VLOOKUP(E6,Airports!$A$2:$D$1076,2,0) -> Ajaccio Napoléon Bonaparte/Korsika | G6: =VLOOKUP(E6,Airports!$A$2:$D$1076,4,0) -> Frankreich
A7: T52005 | B7: LFKJ | C7: =VLOOKUP(B7,Airports!$A$2:$D$1076,2,0) -> Ajaccio Napoléon Bonaparte/Korsika | D7: =VLOOKUP(B7,Airports!$A$2:$D$1076,4,0) -> Frankreich | E7: EDDB | F7: =VLOOKUP(E7,Airports!$A$2:$D$1076,2,0) -> Berlin-Brandenburg | G7: =VLOOKUP(E7,Airports!$A$2:$D$1076,4,0) -> Deutschland
A8: T52006 | B8: EDDB | C8: =VLOOKUP(B8,Airports!$A$2:$D$1076,2,0) -> Berlin-Brandenburg | D8: =VLOOKUP(B8,Airports!$A$2:$D$1076,4,0) -> Deutschland | E8: LGSK | F8: =VLOOKUP(E8,Airports!$A$2:$D$1076,2,0) -> Skiathos Intl. | G8: =VLOOKUP(E8,Airports!$A$2:$D$1076,4,0) -> Griechenland
A9: T52007 | B9: LGSK | C9: =VLOOKUP(B9,Airports!$A$2:$D$1076,2,0) -> Skiathos Intl. | D9: =VLOOKUP(B9,Airports!$A$2:$D$1076,4,0) -> Griechenland | E9: EDDH | F9: =VLOOKUP(E9,Airports!$A$2:$D$1076,2,0) -> Hamburg | G9: =VLOOKUP(E9,Airports!$A$2:$D$1076,4,0) -> Deutschland
A10: T52008 | B10: EDDH | C10: =VLOOKUP(B10,Airports!$A$2:$D$1076,2,0) -> Hamburg | D10: =VLOOKUP(B10,Airports!$A$2:$D$1076,4,0) -> Deutschland | E10: LOWI | F10: =VLOOKUP(E10,Airports!$A$2:$D$1076,2,0) -> Innsbruck | G10: =VLOOKUP(E10,Airports!$A$2:$D$1076,4,0) -> Österreich
A11: T52009 | B11: LOWI | C11: =VLOOKUP(B11,Airports!$A$2:$D$1076,2,0) -> Innsbruck | D11: =VLOOKUP(B11,Airports!$A$2:$D$1076,4,0) -> Österreich | E11: EDDK | F11: =VLOOKUP(E11,Airports!$A$2:$D$1076,2,0) -> Köln | G11: =VLOOKUP(E11,Airports!$A$2:$D$1076,4,0) -> Deutschland
A12: T52010 | B12: EDDK | C12: =VLOOKUP(B12,Airports!$A$2:$D$1076,2,0) -> Köln | D12: =VLOOKUP(B12,Airports!$A$2:$D$1076,4,0) -> Deutschland | E12: LYTV | F12: =VLOOKUP(E12,Airports!$A$2:$D$1076,2,0) -> Tivat | G12: =VLOOKUP(E12,Airports!$A$2:$D$1076,4,0) -> Montenegro
A13: T52011 | B13: LYTV | C13: =VLOOKUP(B13,Airports!$A$2:$D$1076,2,0) -> Tivat | D13: =VLOOKUP(B14,Airports!$A$2:$D$1076,4,0) -> Deutschland | E13: EDDM | F13: =VLOOKUP(E13,Airports!$A$2:$D$1076,2,0) -> München | G13: =VLOOKUP(E14,Airports!$A$2:$D$1076,4,0) -> Großbritannien
A14: T52012 | B14: EDDM | C14: =VLOOKUP(B14,Airports!$A$2:$D$1076,2,0) -> München | D14: =VLOOKUP(B14,Airports!$A$2:$D$1076,4,0) -> Deutschland | E14: EGJJ | F14: =VLOOKUP(E14,Airports!$A$2:$D$1076,2,0) -> Jersey | G14: =VLOOKUP(E14,Airports!$A$2:$D$1076,4,0) -> Großbritannien
A15: T52013 | B15: EGJJ | C15: =VLOOKUP(B15,Airports!$A$2:$D$1076,2,0) -> Jersey | D15: =VLOOKUP(B15,Airports!$A$2:$D$1076,4,0) -> Großbritannien | E15: EDLP | F15: =VLOOKUP(E15,Airports!$A$2:$D$1076,2,0) -> Paderborn-Lippstadt | G15: =VLOOKUP(E15,Airports!$A$2:$D$1076,4,0) -> Deutschland
A16: T52014 | B16: EDLP | C16: =VLOOKUP(B16,Airports!$A$2:$D$1076,2,0) -> Paderborn-Lippstadt | D16: =VLOOKUP(B16,Airports!$A$2:$D$1076,4,0) -> Deutschland | E16: EGNS | F16: =VLOOKUP(E16,Airports!$A$2:$D$1076,2,0) -> Isle of Men | G16: =VLOOKUP(E16,Airports!$A$2:$D$1076,4,0) -> Großbritannien
A17: T52015 | B17: EGNS | C17: =VLOOKUP(B17,Airports!$A$2:$D$1076,2,0) -> Isle of Men | D17: =VLOOKUP(B17,Airports!$A$2:$D$1076,4,0) -> Großbritannien | E17: EDDP | F17: =VLOOKUP(E17,Airports!$A$2:$D$1076,2,0) -> Leipzig-Halle | G17: =VLOOKUP(E17,Airports!$A$2:$D$1076,4,0) -> Deutschland
A18: T52016 | B18: EDDP | C18: =VLOOKUP(B18,Airports!$A$2:$D$1076,2,0) -> Leipzig-Halle | D18: =VLOOKUP(B18,Airports!$A$2:$D$1076,4,0) -> Deutschland | E18: EKVG | F18: =VLOOKUP(E18,Airports!$A$2:$D$1076,2,0) -> Vagar/Farör Inseln | G18: =VLOOKUP(E18,Airports!$A$2:$D$1076,4,0) -> Dänemark
A19: T52017 | B19: EKVG | C19: =VLOOKUP(B19,Airports!$A$2:$D$1076,2,0) -> Vagar/Farör Inseln | D19: =VLOOKUP(B19,Airports!$A$2:$D$1076,4,0) -> Dänemark | E19: EDDN | F19: =VLOOKUP(E19,Airports!$A$2:$D$1076,2,0) -> Nürnberg | G19: =VLOOKUP(E19,Airports!$A$2:$D$1076,4,0) -> Deutschland
A20: T52018 | B20: EDDN | C20: =VLOOKUP(B20,Airports!$A$2:$D$1076,2,0) -> Nürnberg | D20: =VLOOKUP(B30,Airports!$A$2:$D$1076,4,0) -> USA | E20: LFKC | F20: =VLOOKUP(E20,Airports!$A$2:$D$1076,2,0) -> Calvi | G20: =VLOOKUP(E30,Airports!$A$2:$D$1076,4,0) -> Kanada
A21: T52019 | B21: LFKC | C21: =VLOOKUP(B21,Airports!$A$2:$D$1076,2,0) -> Calvi | D21: =VLOOKUP(B31,Airports!$A$2:$D$1076,4,0) -> Kanada | E21: EDDW | F21: =VLOOKUP(E21,Airports!$A$2:$D$1076,2,0) -> Bremen | G21: =VLOOKUP(E31,Airports!$A$2:$D$1076,4,0) -> USA
A22: T52020 | B22: EDDW | C22: =VLOOKUP(B22,Airports!$A$2:$D$1076,2,0) -> Bremen | D22: =VLOOKUP(B32,Airports!$A$2:$D$1076,4,0) -> USA | E22: EDDS | F22: =VLOOKUP(E22,Airports!$A$2:$D$1076,2,0) -> Stuttgart | G22: =VLOOKUP(E32,Airports!$A$2:$D$1076,4,0) -> USA
A23: T55300 | B23: EDDF | C23: =VLOOKUP(B23,Airports!$A$2:$D$1076,2,0) -> Frankfurt Main Intl. | D23: =VLOOKUP(B23,Airports!$A$2:$D$1076,4,0) -> Deutschland | E23: LPPT | F23: =VLOOKUP(E23,Airports!$A$2:$D$1076,2,0) -> Lissabon-Humberto Delgado | G23: =VLOOKUP(E23,Airports!$A$2:$D$1076,4,0) -> Portugal
A24: T55301 | B24: LPPT | C24: =VLOOKUP(B24,Airports!$A$2:$D$1076,2,0) -> Lissabon-Humberto Delgado | D24: =VLOOKUP(B24,Airports!$A$2:$D$1076,4,0) -> Portugal | E24: GVAC | F24: =VLOOKUP(E24,Airports!$A$2:$D$1076,2,0) -> Espargos - Kap Verde | G24: =VLOOKUP(E24,Airports!$A$2:$D$1076,4,0) -> Kap Verde
A25: T55302 | B25: GVAC | C25: =VLOOKUP(B25,Airports!$A$2:$D$1076,2,0) -> Espargos - Kap Verde | D25: =VLOOKUP(B25,Airports!$A$2:$D$1076,4,0) -> Kap Verde | E25: SBFZ | F25: =VLOOKUP(E25,Airports!$A$2:$D$1076,2,0) -> Pinto Martins – Fortaleza | G25: =VLOOKUP(E25,Airports!$A$2:$D$1076,4,0) -> Brasilien
A26: T55303 | B26: SBFZ | C26: =VLOOKUP(B26,Airports!$A$2:$D$1076,2,0) -> Pinto Martins – Fortaleza | D26: =VLOOKUP(B26,Airports!$A$2:$D$1076,4,0) -> Brasilien | E26: SBBV | F26: =VLOOKUP(E26,Airports!$A$2:$D$1076,2,0) -> Boa Vista Intl. | G26: =VLOOKUP(E26,Airports!$A$2:$D$1076,4,0) -> Brasilien
A27: T55304 | B27: SBBV | C27: =VLOOKUP(B27,Airports!$A$2:$D$1076,2,0) -> Boa Vista Intl. | D27: =VLOOKUP(B27,Airports!$A$2:$D$1076,4,0) -> Brasilien | E27: MPTO | F27: =VLOOKUP(E27,Airports!$A$2:$D$1076,2,0) -> Tocumen / Panama | G27: =VLOOKUP(E27,Airports!$A$2:$D$1076,4,0) -> Panama
A28: T55305 | B28: MPTO | C28: =VLOOKUP(B28,Airports!$A$2:$D$1076,2,0) -> Tocumen / Panama | D28: =VLOOKUP(B28,Airports!$A$2:$D$1076,4,0) -> Panama | E28: MMMX | F28: =VLOOKUP(E28,Airports!$A$2:$D$1076,2,0) -> Mexiko City | G28: =VLOOKUP(E28,Airports!$A$2:$D$1076,4,0) -> Mexiko
A29: T55306 | B29: MMMX | C29: =VLOOKUP(B29,Airports!$A$2:$D$1076,2,0) -> Mexiko City | D29: =VLOOKUP(B29,Airports!$A$2:$D$1076,4,0) -> Mexiko | E29: KDFW | F29: =VLOOKUP(E29,Airports!$A$2:$D$1076,2,0) -> Dallas Fort Worth/Texas | G29: =VLOOKUP(E29,Airports!$A$2:$D$1076,4,0) -> USA
A30: T55307 | B30: KDFW | C30: =VLOOKUP(B30,Airports!$A$2:$D$1076,2,0) -> Dallas Fort Worth/Texas | D30: =VLOOKUP(B30,Airports!$A$2:$D$1076,4,0) -> USA | E30: CYVR | F30: =VLOOKUP(E30,Airports!$A$2:$D$1076,2,0) -> Vancouver | G30: =VLOOKUP(E30,Airports!$A$2:$D$1076,4,0) -> Kanada
A31: T55308 | B31: CYVR | C31: =VLOOKUP(B31,Airports!$A$2:$D$1076,2,0) -> Vancouver | D31: =VLOOKUP(B31,Airports!$A$2:$D$1076,4,0) -> Kanada | E31: KMCI | F31: =VLOOKUP(E31,Airports!$A$2:$D$1076,2,0) -> Kansas City, Missouri | G31: =VLOOKUP(E31,Airports!$A$2:$D$1076,4,0) -> USA
A32: T55309 | B32: KMCI | C32: =VLOOKUP(B32,Airports!$A$2:$D$1076,2,0) -> Kansas City, Missouri | D32: =VLOOKUP(B32,Airports!$A$2:$D$1076,4,0) -> USA | E32: KLAX | F32: =VLOOKUP(E32,Airports!$A$2:$D$1076,2,0) -> Los Angeles, Kalifornien | G32: =VLOOKUP(E32,Airports!$A$2:$D$1076,4,0) -> USA
A33: T55310 | B33: KLAX | C33: =VLOOKUP(B33,Airports!$A$2:$D$1076,2,0) -> Los Angeles, Kalifornien | D33: =VLOOKUP(B33,Airports!$A$2:$D$1076,4,0) -> USA | E33: MMGL | F33: =VLOOKUP(E33,Airports!$A$2:$D$1076,2,0) -> Guadalajara | G33: =VLOOKUP(E33,Airports!$A$2:$D$1076,4,0) -> Mexiko
A34: T55311 | B34: MMGL | C34: =VLOOKUP(B34,Airports!$A$2:$D$1076,2,0) -> Guadalajara | D34: =VLOOKUP(B34,Airports!$A$2:$D$1076,4,0) -> Mexiko | E34: KIAH | F34: =VLOOKUP(E34,Airports!$A$2:$D$1076,2,0) -> Housten-George Bush Intl. / Texas | G34: =VLOOKUP(E34,Airports!$A$2:$D$1076,4,0) -> USA
A35: T55312 | B35: KIAH | C35: =VLOOKUP(B35,Airports!$A$2:$D$1076,2,0) -> Housten-George Bush Intl. / Texas | D35: =VLOOKUP(B35,Airports!$A$2:$D$1076,4,0) -> USA | E35: CYYZ | F35: =VLOOKUP(E35,Airports!$A$2:$D$1076,2,0) -> Toronto-Pearson Intl. | G35: =VLOOKUP(E35,Airports!$A$2:$D$1076,4,0) -> Kanada
A36: T55313 | B36: CYYZ | C36: =VLOOKUP(B36,Airports!$A$2:$D$1076,2,0) -> Toronto-Pearson Intl. | D36: =VLOOKUP(B36,Airports!$A$2:$D$1076,4,0) -> Kanada | E36: KSEA | F36: =VLOOKUP(E36,Airports!$A$2:$D$1076,2,0) -> Seattle-Tacoma/Washington | G36: =VLOOKUP(E36,Airports!$A$2:$D$1076,4,0) -> USA
A37: T55314 | B37: KSEA | C37: =VLOOKUP(B37,Airports!$A$2:$D$1076,2,0) -> Seattle-Tacoma/Washington | D37: =VLOOKUP(B37,Airports!$A$2:$D$1076,4,0) -> USA | E37: KSFO | F37: =VLOOKUP(E37,Airports!$A$2:$D$1076,2,0) -> SanFrancisco/Kalifornien | G37: =VLOOKUP(E37,Airports!$A$2:$D$1076,4,0) -> USA
A38: T55315 | B38: KSFO | C38: =VLOOKUP(B38,Airports!$A$2:$D$1076,2,0) -> SanFrancisco/Kalifornien | D38: =VLOOKUP(B38,Airports!$A$2:$D$1076,4,0) -> USA | E38: MMMY | F38: =VLOOKUP(E38,Airports!$A$2:$D$1076,2,0) -> Monterrey | G38: =VLOOKUP(E38,Airports!$A$2:$D$1076,4,0) -> Mexiko
A39: T55316 | B39: MMMY | C39: =VLOOKUP(B39,Airports!$A$2:$D$1076,2,0) -> Monterrey | D39: =VLOOKUP(B39,Airports!$A$2:$D$1076,4,0) -> Mexiko | E39: KBOS | F39: =VLOOKUP(E39,Airports!$A$2:$D$1076,2,0) -> Boston / Massachusetts | G39: =VLOOKUP(E39,Airports!$A$2:$D$1076,4,0) -> USA
A40: T55317 | B40: KBOS | C40: =VLOOKUP(B40,Airports!$A$2:$D$1076,2,0) -> Boston / Massachusetts | D40: =VLOOKUP(B40,Airports!$A$2:$D$1076,4,0) -> USA | E40: KMIA | F40: =VLOOKUP(E40,Airports!$A$2:$D$1076,2,0) -> Miami Intl./ Florida | G40: =VLOOKUP(E40,Airports!$A$2:$D$1076,4,0) -> USA
A41: T55318 | B41: KMIA | C41: =VLOOKUP(B41,Airports!$A$2:$D$1076,2,0) -> Miami Intl./ Florida | D41: =VLOOKUP(B41,Airports!$A$2:$D$1076,4,0) -> USA | E41: KPHL | F41: =VLOOKUP(E41,Airports!$A$2:$D$1076,2,0) -> Philadelphia Intl. / Pennsylvania | G41: =VLOOKUP(E41,Airports!$A$2:$D$1076,4,0) -> USA
A42: T55319 | B42: KPHL | C42: =VLOOKUP(B42,Airports!$A$2:$D$1076,2,0) -> Philadelphia Intl. / Pennsylvania | D42: =VLOOKUP(B42,Airports!$A$2:$D$1076,4,0) -> USA | E42: KATL | F42: =VLOOKUP(E42,Airports!$A$2:$D$1076,2,0) -> Atlanta Intl./Georgia | G42: =VLOOKUP(E42,Airports!$A$2:$D$1076,4,0) -> USA
A43: T55320 | B43: KATL | C43: =VLOOKUP(B43,Airports!$A$2:$D$1076,2,0) -> Atlanta Intl./Georgia | D43: =VLOOKUP(B43,Airports!$A$2:$D$1076,4,0) -> USA | E43: KJFK | F43: =VLOOKUP(E43,Airports!$A$2:$D$1076,2,0) -> John F Kennedy / New York | G43: =VLOOKUP(E43,Airports!$A$2:$D$1076,4,0) -> USA
A44: T55321 | B44: KJFK | C44: =VLOOKUP(B44,Airports!$A$2:$D$1076,2,0) -> John F Kennedy / New York | D44: =VLOOKUP(B44,Airports!$A$2:$D$1076,4,0) -> USA | E44: MMUN | F44: =VLOOKUP(E44,Airports!$A$2:$D$1076,2,0) -> Cancun | G44: =VLOOKUP(E44,Airports!$A$2:$D$1076,4,0) -> Mexiko
A45: T55322 | B45: MMUN | C45: =VLOOKUP(B45,Airports!$A$2:$D$1076,2,0) -> Cancun | D45: =VLOOKUP(B45,Airports!$A$2:$D$1076,4,0) -> Mexiko | E45: SKBO | F45: =VLOOKUP(E45,Airports!$A$2:$D$1076,2,0) -> Bogota / El Dorado | G45: =VLOOKUP(E45,Airports!$A$2:$D$1076,4,0) -> Kolumbien
A46: T55323 | B46: SKBO | C46: =VLOOKUP(B46,Airports!$A$2:$D$1076,2,0) -> Bogota / El Dorado | D46: =VLOOKUP(B46,Airports!$A$2:$D$1076,4,0) -> Kolumbien | E46: SOCA | F46: =VLOOKUP(E46,Airports!$A$2:$D$1076,2,0) -> Cayenne – Felix Eboue Airport | G46: =VLOOKUP(E46,Airports!$A$2:$D$1076,4,0) -> Frankreich
A47: T55324 | B47: SOCA | C47: =VLOOKUP(B47,Airports!$A$2:$D$1076,2,0) -> Cayenne – Felix Eboue Airport | D47: =VLOOKUP(B47,Airports!$A$2:$D$1076,4,0) -> Frankreich | E47: GOOY | F47: =VLOOKUP(E47,Airports!$A$2:$D$1076,2,0) -> Dakar | G47: =VLOOKUP(E47,Airports!$A$2:$D$1076,4,0) -> Senegal
A48: T55325 | B48: GOOY | C48: =VLOOKUP(B48,Airports!$A$2:$D$1076,2,0) -> Dakar | D48: =VLOOKUP(B48,Airports!$A$2:$D$1076,4,0) -> Senegal | E48: GMMN | F48: =VLOOKUP(E48,Airports!$A$2:$D$1076,2,0) -> Casablanca | G48: =VLOOKUP(E48,Airports!$A$2:$D$1076,4,0) -> Marokko
A49: T55326 | B49: GMMN | C49: =VLOOKUP(B49,Airports!$A$2:$D$1076,2,0) -> Casablanca | D49: =VLOOKUP(B49,Airports!$A$2:$D$1076,4,0) -> Marokko | E49: LEPA | F49: =VLOOKUP(E49,Airports!$A$2:$D$1076,2,0) -> Palma de Mallorca | G49: =VLOOKUP(E49,Airports!$A$2:$D$1076,4,0) -> Spanien
A50: T55327 | B50: LEPA | C50: =VLOOKUP(B50,Airports!$A$2:$D$1076,2,0) -> Palma de Mallorca | D50: =VLOOKUP(B50,Airports!$A$2:$D$1076,4,0) -> Spanien | E50: EDDF | F50: =VLOOKUP(E50,Airports!$A$2:$D$1076,2,0) -> Frankfurt Main Intl. | G50: =VLOOKUP(E50,Airports!$A$2:$D$1076,4,0) -> Deutschland
A51: T55001 | B51: EKAH | C51: =VLOOKUP(B51,Airports!$A$2:$D$1076,2,0) -> Aarhus | D51: =VLOOKUP(B51,Airports!$A$2:$D$1076,4,0) -> Dänemark | E51: ENAL | F51: =VLOOKUP(E51,Airports!$A$2:$D$1076,2,0) -> Alesund-Vigra | G51: =VLOOKUP(E51,Airports!$A$2:$D$1076,4,0) -> Norwegen
A52: T55002 | B52: ENAL | C52: =VLOOKUP(B52,Airports!$A$2:$D$1076,2,0) -> Alesund-Vigra | D52: =VLOOKUP(B52,Airports!$A$2:$D$1076,4,0) -> Norwegen | E52: ENTC | F52: =VLOOKUP(E52,Airports!$A$2:$D$1076,2,0) -> Tromsoe | G52: =VLOOKUP(E52,Airports!$A$2:$D$1076,4,0) -> Norwegen
A53: T55003 | B53: ENTC | C53: =VLOOKUP(B53,Airports!$A$2:$D$1076,2,0) -> Tromsoe | D53: =VLOOKUP(B53,Airports!$A$2:$D$1076,4,0) -> Norwegen | E53: ENSB | F53: =VLOOKUP(E53,Airports!$A$2:$D$1076,2,0) -> Spitzbergen-Longyear | G53: =VLOOKUP(E53,Airports!$A$2:$D$1076,4,0) -> Norwegen
A54: T55004 | B54: ENSB | C54: =VLOOKUP(B54,Airports!$A$2:$D$1076,2,0) -> Spitzbergen-Longyear | D54: =VLOOKUP(B55,Airports!$A$2:$D$1076,4,0) -> Norwegen | E54: ENAT | F54: =VLOOKUP(E54,Airports!$A$2:$D$1076,2,0) -> Alta | G54: =VLOOKUP(E54,Airports!$A$2:$D$1076,4,0) -> Norwegen
A55: T55005 | B55: ENAT | C55: =VLOOKUP(B55,Airports!$A$2:$D$1076,2,0) -> Alta | D55: =VLOOKUP(B55,Airports!$A$2:$D$1076,4,0) -> Norwegen | E55: ENVA | F55: =VLOOKUP(E55,Airports!$A$2:$D$1076,2,0) -> Trondheim-Vaernes | G55: =VLOOKUP(E55,Airports!$A$2:$D$1076,4,0) -> Norwegen
A56: T55006 | B56: ENVA | C56: =VLOOKUP(B56,Airports!$A$2:$D$1076,2,0) -> Trondheim-Vaernes | D56: =VLOOKUP(B56,Airports!$A$2:$D$1076,4,0) -> Norwegen | E56: ESSA | F56: =VLOOKUP(E56,Airports!$A$2:$D$1076,2,0) -> Stockholm-Arlanda | G56: =VLOOKUP(E56,Airports!$A$2:$D$1076,4,0) -> Schweden
A57: T55007 | B57: ESSA | C57: =VLOOKUP(B57,Airports!$A$2:$D$1076,2,0) -> Stockholm-Arlanda | D57: =VLOOKUP(B57,Airports!$A$2:$D$1076,4,0) -> Schweden | E57: ESMS | F57: =VLOOKUP(E57,Airports!$A$2:$D$1076,2,0) -> Malmö-Sturup | G57: =VLOOKUP(E57,Airports!$A$2:$D$1076,4,0) -> Schweden
A58: T55008 | B58: ESMS | C58: =VLOOKUP(B58,Airports!$A$2:$D$1076,2,0) -> Malmö-Sturup | D58: =VLOOKUP(B58,Airports!$A$2:$D$1076,4,0) -> Schweden | E58: EFHK | F58: =VLOOKUP(E58,Airports!$A$2:$D$1076,2,0) -> Helsinki-Vantaa | G58: =VLOOKUP(E58,Airports!$A$2:$D$1076,4,0) -> Finnland
A59: T55009 | B59: EFHK | C59: =VLOOKUP(B59,Airports!$A$2:$D$1076,2,0) -> Helsinki-Vantaa | D59: =VLOOKUP(B59,Airports!$A$2:$D$1076,4,0) -> Finnland | E59: EFIV | F59: =VLOOKUP(E59,Airports!$A$2:$D$1076,2,0) -> Ivalo | G59: =VLOOKUP(E59,Airports!$A$2:$D$1076,4,0) -> Finnland
A60: T55010 | B60: EFIV | C60: =VLOOKUP(B60,Airports!$A$2:$D$1076,2,0) -> Ivalo | D60: =VLOOKUP(B60,Airports!$A$2:$D$1076,4,0) -> Finnland | E60: EFVA | F60: =VLOOKUP(E60,Airports!$A$2:$D$1076,2,0) -> Vaasa | G60: =VLOOKUP(E60,Airports!$A$2:$D$1076,4,0) -> Finnland
A61: T55011 | B61: EFVA | C61: =VLOOKUP(B61,Airports!$A$2:$D$1076,2,0) -> Vaasa | D61: =VLOOKUP(B61,Airports!$A$2:$D$1076,4,0) -> Finnland | E61: ENBR | F61: =VLOOKUP(E61,Airports!$A$2:$D$1076,2,0) -> Bergen | G61: =VLOOKUP(E61,Airports!$A$2:$D$1076,4,0) -> Norwegen
A62: T55012 | B62: ENBR | C62: =VLOOKUP(B62,Airports!$A$2:$D$1076,2,0) -> Bergen | D62: =VLOOKUP(B62,Airports!$A$2:$D$1076,4,0) -> Norwegen | E62: BIKF | F62: =VLOOKUP(E62,Airports!$A$2:$D$1076,2,0) -> Keflavik | G62: =VLOOKUP(E62,Airports!$A$2:$D$1076,4,0) -> Island
A63: T55013 | B63: BIKF | C63: =VLOOKUP(B63,Airports!$A$2:$D$1076,2,0) -> Keflavik | D63: =VLOOKUP(B63,Airports!$A$2:$D$1076,4,0) -> Island | E63: EKVG | F63: =VLOOKUP(E63,Airports!$A$2:$D$1076,2,0) -> Vagar/Farör Inseln | G63: =VLOOKUP(E63,Airports!$A$2:$D$1076,4,0) -> Dänemark
A64: T55014 | B64: EKVG | C64: =VLOOKUP(B64,Airports!$A$2:$D$1076,2,0) -> Vagar/Farör Inseln | D64: =VLOOKUP(B64,Airports!$A$2:$D$1076,4,0) -> Dänemark | E64: ENGM | F64: =VLOOKUP(E64,Airports!$A$2:$D$1076,2,0) -> Oslo-Gardermoen | G64: =VLOOKUP(E64,Airports!$A$2:$D$1076,4,0) -> Norwegen
A65: T55015 | B65: ENGM | C65: =VLOOKUP(B65,Airports!$A$2:$D$1076,2,0) -> Oslo-Gardermoen | D65: =VLOOKUP(B65,Airports!$A$2:$D$1076,4,0) -> Norwegen | E65: EKCH | F65: =VLOOKUP(E65,Airports!$A$2:$D$1076,2,0) -> Kopenhagen-Kastrup | G65: =VLOOKUP(E65,Airports!$A$2:$D$1076,4,0) -> Dänemark
A66: T55016 | B66: EKCH | C66: =VLOOKUP(B66,Airports!$A$2:$D$1076,2,0) -> Kopenhagen-Kastrup | D66: =VLOOKUP(B66,Airports!$A$2:$D$1076,4,0) -> Dänemark | E66: ESSB | F66: =VLOOKUP(E66,Airports!$A$2:$D$1076,2,0) -> Bromma-Stockholm | G66: =VLOOKUP(E66,Airports!$A$2:$D$1076,4,0) -> Schweden
A67: T55017 | B67: ESSB | C67: =VLOOKUP(B67,Airports!$A$2:$D$1076,2,0) -> Bromma-Stockholm | D67: =VLOOKUP(B67,Airports!$A$2:$D$1076,4,0) -> Schweden | E67: ESNQ | F67: =VLOOKUP(E67,Airports!$A$2:$D$1076,2,0) -> Kiruna | G67: =VLOOKUP(E67,Airports!$A$2:$D$1076,4,0) -> Schweden
A68: T55018 | B68: ESNQ | C68: =VLOOKUP(B68,Airports!$A$2:$D$1076,2,0) -> Kiruna | D68: =VLOOKUP(B68,Airports!$A$2:$D$1076,4,0) -> Schweden | E68: EFTP | F68: =VLOOKUP(E68,Airports!$A$2:$D$1076,2,0) -> Tampere-Pirkkala | G68: =VLOOKUP(E68,Airports!$A$2:$D$1076,4,0) -> Finnland
A69: T55019 | B69: EFTP | C69: =VLOOKUP(B69,Airports!$A$2:$D$1076,2,0) -> Tampere-Pirkkala | D69: =VLOOKUP(B69,Airports!$A$2:$D$1076,4,0) -> Finnland | E69: EKAH | F69: =VLOOKUP(E69,Airports!$A$2:$D$1076,2,0) -> Aarhus | G69: =VLOOKUP(E69,Airports!$A$2:$D$1076,4,0) -> Dänemark

Sheet Airports
A1: ICAO | B1: Stadt /Airport | C1: ASOBO / Standard deaktivieren | D1: Land | E1: Starts | F1: Landungen | G1: Entwickler | H1: Version | I1: IATA | J1: Kontinent | K1: Ersch.-Datum | L1: Kompatibel | M1: Runway | N1: Bewertung | O1: Gate | P1: Gestartet | Q1: Gelandet | R1: längste RWY | S1: Landerate
A2: 17FL | B2: Greystone-J.Travolta / Florida | C2: Basis | D2: USA | E2: =COUNTIF(Eingabe!$F$2:$H$1276,"17FL") -> 0 | F2: =COUNTIF(Eingabe!$I$2:$K$1276,"17FL") -> 0 | G2: spinoza | H2: 2.4.0 | I2: *** | J2: Nord-Amerika | K2: 2024-11-27 | L2: 20/24 | P2: =IF(E2=0," ","✔️") ->  | Q2: =IF(F2=0," ","✔️") ->  | S2: =IFERROR(AVERAGEIF(Eingabe!$I$2:$I$1276, "17FL", Eingabe!$O$2:$O$1276), 0) -> 0
A3: 1g4 | B3: Grand-Canyon-West / Arizona | C3: Basis | D3: USA | E3: =COUNTIF(Eingabe!$F$2:$H$1276,"1g4") -> 0 | F3: =COUNTIF(Eingabe!$I$2:$K$1276,"1g4") -> 0 | G3: xcodr | H3: 1.2.0 | I3: GCW | J3: Nord-Amerika | K3: 2025-09-16 | L3: 24 | S3: =IFERROR(AVERAGEIF(Eingabe!$I$2:$I$1276, "1g4", Eingabe!$O$2:$O$1276), 0) -> 0
A4: 74S | B4: Anacortes | C4: Basis | D4: USA | E4: =COUNTIF(Eingabe!$F$2:$H$1276,"74S") -> 0 | F4: =COUNTIF(Eingabe!$I$2:$K$1276,"74S") -> 0 | G4: ORBX | H4: 1.1.0 | I4: OTS | J4: Nord-Amerika | K4: 2025-01-30 | L4: 24 | S4: =IFERROR(AVERAGEIF(Eingabe!$I$2:$I$1276, "74S", Eingabe!$O$2:$O$1276), 0) -> 0
A5: BGGH | B5: Nuuk | C5: Basis | D5: Grönland | E5: =COUNTIF(Eingabe!$F$2:$H$1276,"BGGH") -> 0 | F5: =COUNTIF(Eingabe!$I$2:$K$1276,"BGGH") -> 0 | G5: fsimstudios | H5: 1.1.0 | I5: GOH | J5: Nord-Amerika | K5: 2025-03-09 | L5: 24 | O5: B13 | S5: =IFERROR(AVERAGEIF(Eingabe!$I$2:$I$1276, "BGGH", Eingabe!$O$2:$O$1276), 0) -> 0
A6: BGSF | B6: Kangerlussuaq | C6: Basis | D6: Grönland | E6: =COUNTIF(Eingabe!$F$2:$H$1276,"BGSF") -> 0 | F6: =COUNTIF(Eingabe!$I$2:$K$1276,"BGSF") -> 0 | G6: mkstudios | H6: 1.1.0 | I6: SFJ | J6: Nord-Amerika | K6: 2024-04-05 | L6: 20/24 | S6: =IFERROR(AVERAGEIF(Eingabe!$I$2:$I$1276, "BGSF", Eingabe!$O$2:$O$1276), 0) -> 0
A7: BIAR | B7: Akureyri | C7: World Update 15 | D7: Island | E7: =COUNTIF(Eingabe!$F$2:$H$1276,"BIAR") -> 0 | F7: =COUNTIF(Eingabe!$I$2:$K$1276,"BIAR") -> 0 | G7: stsimulations | H7: 1.0.4 | I7: AEY | J7: Europa | K7: 2023-12-13 | L7: 20/24 | S7: =IFERROR(AVERAGEIF(Eingabe!$I$2:$I$1276, "BIAR", Eingabe!$O$2:$O$1276), 0) -> 0
A8: BIEG | B8: Egilsstadir | C8: Basis | D8: Island | E8: =COUNTIF(Eingabe!$F$2:$H$1276,"BIEG") -> 0 | F8: =COUNTIF(Eingabe!$I$2:$K$1276,"BIEG") -> 0 | G8: stsimulations | H8: 1.0.0 | I8: EGS | J8: Europa | K8: 2023-01-17 | L8: 20/24 | S8: =IFERROR(AVERAGEIF(Eingabe!$I$2:$I$1276, "BIEG", Eingabe!$O$2:$O$1276), 0) -> 0
A9: BIIS | B9: Ísafjörður | C9: World Update 5 | D9: Island | E9: =COUNTIF(Eingabe!$F$2:$H$1276,"BIIS") -> 0 | F9: =COUNTIF(Eingabe!$I$2:$K$1276,"BIIS") -> 0 | G9: pilotexperiencesim | H9: 1.1.3 | I9: IFJ | J9: Europa | K9: 2022-05-03 | L9: 20/24 | S9: =IFERROR(AVERAGEIF(Eingabe!$I$2:$I$1276, "BIIS", Eingabe!$O$2:$O$1276), 0) -> 0
A10: BIKF | B10: Keflavik | C10: Basis | D10: Island | E10: =COUNTIF(Eingabe!$F$2:$H$1276,"BIKF") -> 0 | F10: =COUNTIF(Eingabe!$I$2:$K$1276,"BIKF") -> 0 | G10: mkstudios | H10: 2.0.5 | I10: KEF | J10: Europa | K10: 2026-03-29 | L10: 20/24 | S10: =IFERROR(AVERAGEIF(Eingabe!$I$2:$I$1276, "BIKF", Eingabe!$O$2:$O$1276), 0) -> 0
A11: BIRK | B11: Reykjavik | C11: Basis | D11: Island | E11: =COUNTIF(Eingabe!$F$2:$H$1276,"BIRK") -> 0 | F11: =COUNTIF(Eingabe!$I$2:$K$1276,"BIRK") -> 0 | G11: mkstudios | H11: 2.0.2 | I11: RKV | J11: Europa | K11: 2024-11-06 | L11: 20/24 | S11: =IFERROR(AVERAGEIF(Eingabe!$I$2:$I$1276, "BIRK", Eingabe!$O$2:$O$1276), 0) -> 0
A12: BKPR | B12: Adem Jashari/Pristina | C12: Basis | D12: Kosovo | E12: =COUNTIF(Eingabe!$F$2:$H$1276,"BKPR") -> 1 | F12: =COUNTIF(Eingabe!$I$2:$K$1276,"BKPR") -> 1 | G12: mmsimulations | H12: 1.0.4 | I12: PRN | J12: Europa | K12: 2025-06-10 | L12: 20/24 | P12: ✔️ | Q12: ✔️ | S12: =IFERROR(AVERAGEIF(Eingabe!$I$2:$I$1276, "BKPR", Eingabe!$O$2:$O$1276), 0) -> 218
A13: CYCG | B13: Castlegar | C13: World Update 11 | D13: Kanada | E13: =COUNTIF(Eingabe!$F$2:$H$1276,"CYCG") -> 0 | F13: =COUNTIF(Eingabe!$I$2:$K$1276,"CYCG") -> 0 | G13: simaddons | H13: 1.0.1 | I13: YCG | J13: Nord-Amerika | K13: 2026-02-28 | L13: 24 | S13: =IFERROR(AVERAGEIF(Eingabe!$I$2:$I$1276, "CYCG", Eingabe!$O$2:$O$1276), 0) -> 0
A14: CYDF | B14: Deer Lake Reginal / Neufundland | C14: World Update 11 | D14: Kanada | E14: =COUNTIF(Eingabe!$F$2:$H$1276,"CYDF") -> 0 | F14: =COUNTIF(Eingabe!$I$2:$K$1276,"CYDF") -> 0 | G14: simaddons | H14: 1.0.1 | I14: YDF | J14: Nord-Amerika | K14: 2024-12-23 | L14: 24 | O14: B8 | S14: =IFERROR(AVERAGEIF(Eingabe!$I$2:$I$1276, "CYDF", Eingabe!$O$2:$O$1276), 0) -> 0
A15: CYEG | B15: Edmonton | C15: Basis | D15: Kanada | E15: =COUNTIF(Eingabe!$F$2:$H$1276,"CYEG") -> 0 | F15: =COUNTIF(Eingabe!$I$2:$K$1276,"CYEG") -> 0 | G15: simaddons | H15: 1.0.1 | I15: YEG | J15: Nord-Amerika | K15: 2026-02-28 | L15: 24 | S15: =IFERROR(AVERAGEIF(Eingabe!$I$2:$I$1276, "CYEG", Eingabe!$O$2:$O$1276), 0) -> 0
A16: CYFB | B16: Iqaluit | C16: World Update 11 | D16: Kanada | E16: =COUNTIF(Eingabe!$F$2:$H$1276,"CYFB") -> 0 | F16: =COUNTIF(Eingabe!$I$2:$K$1276,"CYFB") -> 0 | G16: simaddons | H16: 1.0.1 | I16: YFB | J16: Nord-Amerika | K16: 2025-02-14 | L16: 24 | S16: =IFERROR(AVERAGEIF(Eingabe!$I$2:$I$1276, "CYFB", Eingabe!$O$2:$O$1276), 0) -> 0
A17: CYFC | B17: Fredericton | C17: Basis | D17: Kanada | E17: =COUNTIF(Eingabe!$F$2:$H$1276,"CYFC") -> 0 | F17: =COUNTIF(Eingabe!$I$2:$K$1276,"CYFC") -> 0 | G17: simaddons | H17: 1.0.1 | I17: YFC | J17: Nord-Amerika | K17: 2025-01-14 | L17: 24 | O17: 130 | S17: =IFERROR(AVERAGEIF(Eingabe!$I$2:$I$1276, "CYFC", Eingabe!$O$2:$O$1276), 0) -> 0
A18: CYGK | B18: Kingston | C18: Basis | D18: Kanada | E18: =COUNTIF(Eingabe!$F$2:$H$1276,"CYGK") -> 0 | F18: =COUNTIF(Eingabe!$I$2:$K$1276,"CYGK") -> 0 | G18: simaddons | H18: 1.0.1 | I18: YGK | J18: Nord-Amerika | K18: 2025-01-14 | L18: 24 | S18: =IFERROR(AVERAGEIF(Eingabe!$I$2:$I$1276, "CYGK", Eingabe!$O$2:$O$1276), 0) -> 0
A19: CYHM | B19: Hamilton | C19: Basis | D19: Kanada | E19: =COUNTIF(Eingabe!$F$2:$H$1276,"CYHM") -> 0 | F19: =COUNTIF(Eingabe!$I$2:$K$1276,"CYHM") -> 0 | G19: simaddons | H19: 1.0.1 | I19: YHM | J19: Nord-Amerika | K19: 2026-02-28 | L19: 24 | S19: =IFERROR(AVERAGEIF(Eingabe!$I$2:$I$1276, "CYHM", Eingabe!$O$2:$O$1276), 0) -> 0
A20: CYHZ | B20: Halifax | C20: Basis | D20: Kanada | E20: =COUNTIF(Eingabe!$F$2:$H$1276,"CYHZ") -> 0 | F20: =COUNTIF(Eingabe!$I$2:$K$1276,"CYHZ") -> 0 | G20: fsimstudios | H20: 2.2.0 | I20: YHZ | J20: Nord-Amerika | K20: 2025-03-01 | L20: 24 | S20: =IFERROR(AVERAGEIF(Eingabe!$I$2:$I$1276, "CYHZ", Eingabe!$O$2:$O$1276), 0) -> 0
A21: CYKA | B21: Kamloops | C21: Basis | D21: Kanada | E21: =COUNTIF(Eingabe!$F$2:$H$1276,"CYKA") -> 0 | F21: =COUNTIF(Eingabe!$I$2:$K$1276,"CYKA") -> 0 | G21: simaddons | H21: 1.0.1 | I21: YKA | J21: Nord-Amerika | K21: 2025-01-14 | L21: 24 | S21: =IFERROR(AVERAGEIF(Eingabe!$I$2:$I$1276, "CYKA", Eingabe!$O$2:$O$1276), 0) -> 0
A22: CYKF | B22: Region of Waterloo | C22: Basis | D22: Kanada | E22: =COUNTIF(Eingabe!$F$2:$H$1276,"CYKF") -> 0 | F22: =COUNTIF(Eingabe!$I$2:$K$1276,"CYKF") -> 0 | G22: regdesigns | H22: 1.3.0 | I22: YKF | J22: Nordamerika | K22: 2022-03-06 | L22: 20/24 | S22: =IFERROR(AVERAGEIF(Eingabe!$I$2:$I$1276, "CYKF", Eingabe!$O$2:$O$1276), 0) -> 0
A23: CYKZ | B23: Toronto - Buttonville | C23: Basis | D23: Kanada | E23: =COUNTIF(Eingabe!$F$2:$H$1276,"CYKZ") -> 0 | F23: =COUNTIF(Eingabe!$I$2:$K$1276,"CYKZ") -> 0 | G23: romandesign | H23: 1.3.0 | I23: YKZ | J23: Nord-Amerika | K23: 2023-03-19 | L23: 20/24 | S23: =IFERROR(AVERAGEIF(Eingabe!$I$2:$I$1276, "CYKZ", Eingabe!$O$2:$O$1276), 0) -> 0
A24: CYLW | B24: Kelowna Intl./ British Columbia | C24: Basis | D24: Kanada | E24: =COUNTIF(Eingabe!$F$2:$H$1276,"CYLW") -> 0 | F24: =COUNTIF(Eingabe!$I$2:$K$1276,"CYLW") -> 0 | G24: fsimstudios | H24: 1.2.0 | I24: YLW | J24: Nord-Amerika | K24: 2022-02-05 | L24: 20/24 | S24: =IFERROR(AVERAGEIF(Eingabe!$I$2:$I$1276, "CYLW", Eingabe!$O$2:$O$1276), 0) -> 0
A25: CYMM | B25: Fort-McMurray / Alberta | C25: Basis | D25: Kanada | E25: =COUNTIF(Eingabe!$F$2:$H$1276,"CYMM") -> 0 | F25: =COUNTIF(Eingabe!$I$2:$K$1276,"CYMM") -> 0 | G25: simaddons | H25: 1.0.1 | I25: YMM | J25: Nord-Amerika | K25: 2025-01-14 | L25: 24 | S25: =IFERROR(AVERAGEIF(Eingabe!$I$2:$I$1276, "CYMM", Eingabe!$O$2:$O$1276), 0) -> 0
A26: CYOW | B26: Ottawa Macdonald-Cartier | C26: Basis | D26: Kanada | E26: =COUNTIF(Eingabe!$F$2:$H$1276,"CYOW") -> 0 | F26: =COUNTIF(Eingabe!$I$2:$K$1276,"CYOW") -> 0 | G26: simaddons | H26: 1.0.1 | I26: YOW | J26: Nord-Amerika | K26: 2026-02-28 | L26: 24 | O26: Gate 4 | S26: =IFERROR(AVERAGEIF(Eingabe!$I$2:$I$1276, "CYOW", Eingabe!$O$2:$O$1276), 0) -> 0
A27: CYQB | B27: Quebec | C27: Basis | D27: Kanada | E27: =COUNTIF(Eingabe!$F$2:$H$1276,"CYQB") -> 0 | F27: =COUNTIF(Eingabe!$I$2:$K$1276,"CYQB") -> 0 | G27: tms | H27: 1.3.0 | I27: YQB | J27: Nord-Amerika | K27: 2025-08-19 | L27: 20/24 | S27: =IFERROR(AVERAGEIF(Eingabe!$I$2:$I$1276, "CYQB", Eingabe!$O$2:$O$1276), 0) -> 0
A28: CYQM | B28: Greater Moncton LeBlanc | C28: Basis | D28: Kanada | E28: =COUNTIF(Eingabe!$F$2:$H$1276,"CYQM") -> 0 | F28: =COUNTIF(Eingabe!$I$2:$K$1276,"CYQM") -> 0 | G28: simaddons | H28: 1.0.1 | I28: YQM | J28: Nordamerika | K28: 2025-03-01 | L28: 24 | S28: =IFERROR(AVERAGEIF(Eingabe!$I$2:$I$1276, "CYQM", Eingabe!$O$2:$O$1276), 0) -> 0
A29: CYQQ | B29: Comox | C29: Basis | D29: Kanada | E29: =COUNTIF(Eingabe!$F$2:$H$1276,"CYQQ") -> 0 | F29: =COUNTIF(Eingabe!$I$2:$K$1276,"CYQQ") -> 0 | G29: simaddons | H29: 1.0.1 | I29: YQQ | J29: Nord-Amerika | K29: 2026-02-28 | L29: 24 | S29: =IFERROR(AVERAGEIF(Eingabe!$I$2:$I$1276, "CYQQ", Eingabe!$O$2:$O$1276), 0) -> 0
A30: CYQR | B30: Regina Intl. | C30: Basis | D30: Kanada | E30: =COUNTIF(Eingabe!$F$2:$H$1276,"CYQR") -> 0 | F30: =COUNTIF(Eingabe!$I$2:$K$1276,"CYQR") -> 0 | G30: simaddons | H30: 1.0.1 | I30: YQR | J30: Nord-Amerika | K30: 2024-12-23 | L30: 24 | S30: =IFERROR(AVERAGEIF(Eingabe!$I$2:$I$1276, "CYQR", Eingabe!$O$2:$O$1276), 0) -> 0
A31: CYQT | B31: Thunderbay | C31: Basis | D31: Kanada | E31: =COUNTIF(Eingabe!$F$2:$H$1276,"CYQT") -> 0 | F31: =COUNTIF(Eingabe!$I$2:$K$1276,"CYQT") -> 0 | G31: simaddons | H31: 1.0.1 | I31: YQT | J31: Nord-Amerika | K31: 2024-12-23 | L31: 24 | S31: =IFERROR(AVERAGEIF(Eingabe!$I$2:$I$1276, "CYQT", Eingabe!$O$2:$O$1276), 0) -> 0
A32: CYQU | B32: Grande Prairie | C32: Basis | D32: Kanada | E32: =COUNTIF(Eingabe!$F$2:$H$1276,"CYQU") -> 0 | F32: =COUNTIF(Eingabe!$I$2:$K$1276,"CYQU") -> 0 | G32: simaddons | H32: 1.0.1 | I32: YQU | J32: Nord-Amerika | K32: 2025-02-14 | L32: 24 | S32: =IFERROR(AVERAGEIF(Eingabe!$I$2:$I$1276, "CYQU", Eingabe!$O$2:$O$1276), 0) -> 0
A33: CYQX | B33: Gander Intl. / Neufundland | C33: Basis | D33: Kanada | E33: =COUNTIF(Eingabe!$F$2:$H$1276,"CYQX") -> 0 | F33: =COUNTIF(Eingabe!$I$2:$K$1276,"CYQX") -> 0 | G33: simaddons | H33: 1.0.1 | I33: YQX | J33: Nord-Amerika | K33: 2024-12-23 | L33: 24 | R33: 3000 m | S33: =IFERROR(AVERAGEIF(Eingabe!$I$2:$I$1276, "CYQX", Eingabe!$O$2:$O$1276), 0) -> 0
A34: CYSJ | B34: St.John | C34: Basis | D34: Kanada | E34: =COUNTIF(Eingabe!$F$2:$H$1276,"CYSJ") -> 0 | F34: =COUNTIF(Eingabe!$I$2:$K$1276,"CYSJ") -> 0 | G34: simaddons | H34: 1.0.1 | I34: YSJ | J34: Nord-Amerika | K34: 2024-12-23 | L34: 24 | S34: =IFERROR(AVERAGEIF(Eingabe!$I$2:$I$1276, "CYSJ", Eingabe!$O$2:$O$1276), 0) -> 0
A35: CYSN | B35: Niagara District | C35: Basis | D35: Kanada | E35: =COUNTIF(Eingabe!$F$2:$H$1276,"CYSN") -> 0 | F35: =COUNTIF(Eingabe!$I$2:$K$1276,"CYSN") -> 0 | G35: CFSS | H35: 1.1.0 | I35: YCM | J35: Nord-Amerika | K35: 2024-12-08 | L35: 20/24 | S35: =IFERROR(AVERAGEIF(Eingabe!$I$2:$I$1276, "CYSN", Eingabe!$O$2:$O$1276), 0) -> 0
A36: CYTZ | B36: Toronto Billy Bishop | C36: Basis | D36: Kanada | E36: =COUNTIF(Eingabe!$F$2:$H$1276,"CYTZ") -> 0 | F36: =COUNTIF(Eingabe!$I$2:$K$1276,"CYTZ") -> 0 | G36: fsimstudios | H36: 1.2.1 | I36: YTZ | J36: Nord-Amerika | K36: 2023-02-19 | L36: 20/24 | S36: =IFERROR(AVERAGEIF(Eingabe!$I$2:$I$1276, "CYTZ", Eingabe!$O$2:$O$1276), 0) -> 0
A37: CYUL | B37: Montreal | C37: Basis | D37: Kanada | E37: =COUNTIF(Eingabe!$F$2:$H$1276,"CYUL") -> 0 | F37: =COUNTIF(Eingabe!$I$2:$K$1276,"CYUL") -> 0 | G37: mkstudios | H37: 1.3.2 | I37: YUL | J37: Nord-Amerika | K37: 2025-12-13 | L37: 20/24 | S37: =IFERROR(AVERAGEIF(Eingabe!$I$2:$I$1276, "CYUL", Eingabe!$O$2:$O$1276), 0) -> 0
A38: CYVR | B38: Vancouver | C38: Basis | D38: Kanada | E38: =COUNTIF(Eingabe!$F$2:$H$1276,"CYVR") -> 0 | F38: =COUNTIF(Eingabe!$I$2:$K$1276,"CYVR") -> 0 | G38: fsdreamteam | H38: 1.3.1 | I38: YVR | J38: Nord-Amerika | K38: 2024-11-21 | L38: 20/24 | N38: 38 | O38: Gate 72 | S38: =IFERROR(AVERAGEIF(Eingabe!$I$2:$I$1276, "CYVR", Eingabe!$O$2:$O$1276), 0) -> 0
A39: CYWG | B39: Winnipeg | C39: Basis | D39: Kanada | E39: =COUNTIF(Eingabe!$F$2:$H$1276,"CYWG") -> 0 | F39: =COUNTIF(Eingabe!$I$2:$K$1276,"CYWG") -> 0 | G39: fsimstudios | H39: 1.3.0 | I39: YWG | J39: Nord-Amerika | K39: 2025-11-23 | L39: 24 | S39: =IFERROR(AVERAGEIF(Eingabe!$I$2:$I$1276, "CYWG", Eingabe!$O$2:$O$1276), 0) -> 0
A40: CYXC | B40: Cranbrook / Canadian Rockies | C40: Basis | D40: Kanada | E40: =COUNTIF(Eingabe!$F$2:$H$1276,"CYXC") -> 0 | F40: =COUNTIF(Eingabe!$I$2:$K$1276,"CYXC") -> 0 | G40: simaddons | H40: 1.0.1 | I40: YXC | J40: Nord-Amerika | K40: 2025-01-30 | L40: 24 | S40: =IFERROR(AVERAGEIF(Eingabe!$I$2:$I$1276, "CYXC", Eingabe!$O$2:$O$1276), 0) -> 0
A41: CYXE | B41: Saskatoon | C41: Basis | D41: Kanada | E41: =COUNTIF(Eingabe!$F$2:$H$1276,"CYXE") -> 0 | F41: =COUNTIF(Eingabe!$I$2:$K$1276,"CYXE") -> 0 | G41: simaddons | H41: 1.0.1 | I41: YXE | J41: Nord-Amerika | K41: 2024-12-23 | L41: 24 | S41: =IFERROR(AVERAGEIF(Eingabe!$I$2:$I$1276, "CYXE", Eingabe!$O$2:$O$1276), 0) -> 0
A42: CYXJ | B42: North-Peace | C42: Basis | D42: Kanada | E42: =COUNTIF(Eingabe!$F$2:$H$1276,"CYXC") -> 0 | F42: =COUNTIF(Eingabe!$I$2:$K$1276,"CYXC") -> 0 | G42: simaddons | H42: 1.0.1 | I42: YXJ | J42: Nord-Amerika | K42: 2025-01-30 | L42: 24 | S42: =IFERROR(AVERAGEIF(Eingabe!$I$2:$I$1276, "CYXJ", Eingabe!$O$2:$O$1276), 0) -> 0
A43: CYXS | B43: Prince George | C43: Basis | D43: Kanada | E43: =COUNTIF(Eingabe!$F$2:$H$1276,"CYXS") -> 0 | F43: =COUNTIF(Eingabe!$I$2:$K$1276,"CYXS") -> 0 | G43: simaddons | H43: 1.0.1 | I43: YXS | J43: Nord-Amerika | K43: 2025-02-14 | L43: 24 | S43: =IFERROR(AVERAGEIF(Eingabe!$I$2:$I$1276, "CYXS", Eingabe!$O$2:$O$1276), 0) -> 0
A44: CYXT | B44: Terrace-Kitimat | C44: Basis | D44: Kanada | E44: =COUNTIF(Eingabe!$F$2:$H$1276,"CYXT") -> 0 | F44: =COUNTIF(Eingabe!$I$2:$K$1276,"CYXT") -> 0 | G44: simaddons | H44: 1.0.1 | I44: YXT | J44: Nord-Amerika | K44: 2025-02-21 | L44: 24 | S44: =IFERROR(AVERAGEIF(Eingabe!$I$2:$I$1276, "CYXT", Eingabe!$O$2:$O$1276), 0) -> 0
A45: CYXU | B45: London Intl. / Ontario | C45: Basis | D45: Kanada | E45: =COUNTIF(Eingabe!$F$2:$H$1276,"CYXU") -> 0 | F45: =COUNTIF(Eingabe!$I$2:$K$1276,"CYXU") -> 0 | G45: fsimstudios | H45: 1.2.0 | I45: YXU | J45: Nord-Amerika | K45: 2022-02-03 | L45: 20/24 | S45: =IFERROR(AVERAGEIF(Eingabe!$I$2:$I$1276, "CYXU", Eingabe!$O$2:$O$1276), 0) -> 0
A46: CYXY | B46: Whitehorse | C46: Basis | D46: Kanada | E46: =COUNTIF(Eingabe!$F$2:$H$1276,"CYXY") -> 0 | F46: =COUNTIF(Eingabe!$I$2:$K$1276,"CYXY") -> 0 | G46: simaddons | H46: 1.0.1 | I46: YXY | J46: Nord-Amerika | K46: 2026-02-28 | L46: 24 | S46: =IFERROR(AVERAGEIF(Eingabe!$I$2:$I$1276, "CYXY", Eingabe!$O$2:$O$1276), 0) -> 0
A47: CYYC | B47: Calgary | C47: Basis | D47: Kanada | E47: =COUNTIF(Eingabe!$F$2:$H$1276,"CYYC") -> 0 | F47: =COUNTIF(Eingabe!$I$2:$K$1276,"CYYC") -> 0 | G47: fsimstudios | H47: 1.1.0 | I47: YYC | J47: Nord-Amerika | K47: 2023-11-24 | L47: 20/24 | S47: =IFERROR(AVERAGEIF(Eingabe!$I$2:$I$1276, "CYYC", Eingabe!$O$2:$O$1276), 0) -> 0
A48: CYYG | B48: Charlottetown | C48: Basis | D48: Kanada | E48: =COUNTIF(Eingabe!$F$2:$H$1276,"CYYG") -> 0 | F48: =COUNTIF(Eingabe!$I$2:$K$1276,"CYYG") -> 0 | G48: simaddons | H48: 1.0.2 | I48: YYG | J48: Nord-Amerika | K48: 2026-02-28 | L48: 24 | S48: =IFERROR(AVERAGEIF(Eingabe!$I$2:$I$1276, "CYYG", Eingabe!$O$2:$O$1276), 0) -> 0
A49: CYYJ | B49: Sidney / Victoria Intl. | C49: Basis | D49: Kanada | E49: =COUNTIF(Eingabe!$F$2:$H$1276,"CYYJ") -> 0 | F49: =COUNTIF(Eingabe!$I$2:$K$1276,"CYYJ") -> 0 | G49: romandesign | H49: 1.31 | I49: YYJ | J49: Nord-Amerika | K49: 2023-12-23 | L49: 20/24 | S49: =IFERROR(AVERAGEIF(Eingabe!$I$2:$I$1276, "CYYJ", Eingabe!$O$2:$O$1276), 0) -> 0
A50: CYYR | B50: Goose Bay Militär | C50: Basis | D50: Kanada | E50: =COUNTIF(Eingabe!$F$2:$H$1276,"CYYR") -> 0 | F50: =COUNTIF(Eingabe!$I$2:$K$1276,"CYYR") -> 0 | G50: propairflight | H50: 1.0.0 | I50: YYR | J50: Nord-Amerika | K50: 2025-08-15 | L50: 24 | S50: =IFERROR(AVERAGEIF(Eingabe!$I$2:$I$1276, "CYYR", Eingabe!$O$2:$O$1276), 0) -> 0
A51: CYYT | B51: St.John/Neufundland | C51: Basis | D51: Kanada | E51: =COUNTIF(Eingabe!$F$2:$H$1276,"CYYT") -> 0 | F51: =COUNTIF(Eingabe!$I$2:$K$1276,"CYYT") -> 0 | G51: simaddons | H51: 1.0.1 | I51: YYT | J51: Nord-Amerika | K51: 2026-02-28 | L51: 24 | S51: =IFERROR(AVERAGEIF(Eingabe!$I$2:$I$1276, "CYYT", Eingabe!$O$2:$O$1276), 0) -> 0
A52: CYYZ | B52: Toronto-Pearson Intl. | C52: Basis | D52: Kanada | E52: =COUNTIF(Eingabe!$F$2:$H$1276,"CYYZ") -> 0 | F52: =COUNTIF(Eingabe!$I$2:$K$1276,"CYYZ") -> 0 | G52: FlyTampa | H52: 1.5.0 | I52: YYZ | J52: Nord-Amerika | K52: 2025-01-02 | L52: 24 | S52: =IFERROR(AVERAGEIF(Eingabe!$I$2:$I$1276, "CYYZ", Eingabe!$O$2:$O$1276), 0) -> 0
A53: CYZF | B53: Yellowknife | C53: Basis | D53: Kanada | E53: =COUNTIF(Eingabe!$F$2:$H$1276,"CYZF") -> 0 | F53: =COUNTIF(Eingabe!$I$2:$K$1276,"CYZF") -> 0 | G53: projectmax | H53: 2.0.1 | I53: YZF | J53: Nord-Amerika | K53: 2026-06-22 | L53: 20/24 | S53: =IFERROR(AVERAGEIF(Eingabe!$I$2:$I$1276, "CYZF", Eingabe!$O$2:$O$1276), 0) -> 0
A54: DAAG | B54: Algier | C54: Basis | D54: Algerien | E54: =COUNTIF(Eingabe!$F$2:$H$1276,"DAAG") -> 0 | F54: =COUNTIF(Eingabe!$I$2:$K$1276,"DAAG") -> 0 | G54: NetDesign | H54: 2.4.0 | I54: ALG | J54: Afrika | K54: 2026-02-12 | L54: 20/24 | S54: =IFERROR(AVERAGEIF(Eingabe!$I$2:$I$1276, "DAAG", Eingabe!$O$2:$O$1276), 0) -> 0
A55: DAAT | B55: Tamanrasset / Aguenar | C55: Basis | D55: Algerien | E55: =COUNTIF(Eingabe!$F$2:$H$1276,"DAAT") -> 0 | F55: =COUNTIF(Eingabe!$I$2:$K$1276,"DAAT") -> 0 | G55: NetDesign | H55: 2.2.0 | I55: TMR | J55: Afrika | K55: 2025-09-26 | L55: 20/24 | S55: =IFERROR(AVERAGEIF(Eingabe!$I$2:$I$1276, "DAAT", Eingabe!$O$2:$O$1276), 0) -> 0
A56: DABC | B56: Constantine-Mohamed-Boudiaf | C56: Basis | D56: Algerien | E56: =COUNTIF(Eingabe!$F$2:$H$1276,"DABC") -> 0 | F56: =COUNTIF(Eingabe!$I$2:$K$1276,"DABC") -> 0 | G56: simsoft | H56: 1.0.0 | I56: CZL | J56: Afrika | K56: 2022-06-15 | L56: 20/24 | S56: =IFERROR(AVERAGEIF(Eingabe!$I$2:$I$1276, "DABC", Eingabe!$O$2:$O$1276), 0) -> 0
A57: DGAA | B57: Accra | C57: Basis | D57: Ghana | E57: =COUNTIF(Eingabe!$F$2:$H$1276,"DGAA") -> 0 | F57: =COUNTIF(Eingabe!$I$2:$K$1276,"DGAA") -> 0 | G57: fsdg | H57: 1.4.0 | I57: ACC | J57: Afrika | K57: 2025-04-17 | L57: 20/24 | S57: =IFERROR(AVERAGEIF(Eingabe!$I$2:$I$1276, "DGAA", Eingabe!$O$2:$O$1276), 0) -> 0
A58: DNBE | B58: Benin | C58: Basis | D58: Nigeria | E58: =COUNTIF(Eingabe!$F$2:$H$1276,"DNBE") -> 0 | F58: =COUNTIF(Eingabe!$I$2:$K$1276,"DNBE") -> 0 | G58: africa4fs | H58: 1.0.0 | I58: BNI | J58: Afrika | K58: 2026-06-21 | L58: 20/24 | S58: =IFERROR(AVERAGEIF(Eingabe!$I$2:$I$1276, "DNBE", Eingabe!$O$2:$O$1276), 0) -> 0
A59: DNKN | B59: Mallam Aminu Kano | C59: Basis | D59: Nigeria | E59: =COUNTIF(Eingabe!$F$2:$H$1276,"DNKN") -> 0 | F59: =COUNTIF(Eingabe!$I$2:$K$1276,"DNKN") -> 0 | G59: fsxcenery | H59: 2.2.0 | I59: KAN | J59: Afrika | K59: 2026-04-10 | L59: 20/24 | S59: =IFERROR(AVERAGEIF(Eingabe!$I$2:$I$1276, "DNKN", Eingabe!$O$2:$O$1276), 0) -> 0
A60: DNMM | B60: Lagos | C60: Basis | D60: Nigeria | E60: =COUNTIF(Eingabe!$F$2:$H$1276,"DNMM") -> 0 | F60: =COUNTIF(Eingabe!$I$2:$K$1276,"DNMM") -> 0 | G60: Standard | H60: 1.0.0 | I60: LOS | J60: Afrika | L60: 24 | S60: =IFERROR(AVERAGEIF(Eingabe!$I$2:$I$1276, "DNMM", Eingabe!$O$2:$O$1276), 0) -> 0
A61: DTKA | B61: Tabarka Intl. | C61: Basis | D61: Tunesien | E61: =COUNTIF(Eingabe!$F$2:$H$1276,"DTKA") -> 0 | F61: =COUNTIF(Eingabe!$I$2:$K$1276,"DTKA") -> 0 | G61: Cat3DualStudios | H61: 2.2.0 | I61: TBJ | J61: Afrika | K61: 2025-08-28 | L61: 24 | S61: =IFERROR(AVERAGEIF(Eingabe!$I$2:$I$1276, "DTKA", Eingabe!$O$2:$O$1276), 0) -> 0
A62: DTMB | B62: Monastir | C62: Basis | D62: Tunesien | E62: =COUNTIF(Eingabe!$F$2:$H$1276,"DTMB") -> 0 | F62: =COUNTIF(Eingabe!$I$2:$K$1276,"DTMB") -> 0 | G62: fsdg | H62: 1.4.0 | I62: MIR | J62: Afrika | K62: 2026-04-26 | L62: 24 | S62: =IFERROR(AVERAGEIF(Eingabe!$I$2:$I$1276, "DTMB", Eingabe!$O$2:$O$1276), 0) -> 0
A63: DTNH | B63: Enfidha-Hammamet | C63: Basis | D63: Tunesien | E63: =COUNTIF(Eingabe!$F$2:$H$1276,"DTNH") -> 0 | F63: =COUNTIF(Eingabe!$I$2:$K$1276,"DTNH") -> 0 | G63: fsdg | H63: 1.1.0 | I63: NBE | J63: Afrika | K63: 2024-01-20 | L63: 20/24 | S63: =IFERROR(AVERAGEIF(Eingabe!$I$2:$I$1276, "DTNH", Eingabe!$O$2:$O$1276), 0) -> 0
A64: DTTA | B64: Tunis | C64: Basis | D64: Tunesien | E64: =COUNTIF(Eingabe!$F$2:$H$1276,"DTTA") -> 0 | F64: =COUNTIF(Eingabe!$I$2:$K$1276,"DTTA") -> 0 | G64: prealsoft | H64: 1.0.1 | I64: TUN | J64: Afrika | K64: 2023-08-21 | L64: 20/24 | S64: =IFERROR(AVERAGEIF(Eingabe!$I$2:$I$1276, "DTTA", Eingabe!$O$2:$O$1276), 0) -> 0
A65: DTTJ | B65: Djerba - Zarzis | C65: Basis | D65: Tunesien | E65: =COUNTIF(Eingabe!$F$2:$H$1276,"DTTJ") -> 0 | F65: =COUNTIF(Eingabe!$I$2:$K$1276,"DTTJ") -> 0 | G65: fsdg | H65: 1.1.2 | I65: DJE | J65: Afrika | K65: 2026-01-22 | L65: 24 | S65: =IFERROR(AVERAGEIF(Eingabe!$I$2:$I$1276, "DTTJ", Eingabe!$O$2:$O$1276), 0) -> 0
A66: DTTX | B66: Sfax–Thyna | C66: Basis | D66: Tunesien | E66: =COUNTIF(Eingabe!$F$2:$H$1276,"DTTX") -> 0 | F66: =COUNTIF(Eingabe!$I$2:$K$1276,"DTTX") -> 0 | G66: Cat3DualStudios | H66: 2.0.0 | I66: SFA | J66: Afrika | K66: 2026-01-03 | L66: 24 | P66: =IF(E66=0," ","✔️") ->  | Q66: =IF(F66=0," ","✔️") ->  | S66: =IFERROR(AVERAGEIF(Eingabe!$I$2:$I$1276, "DTTX", Eingabe!$O$2:$O$1276), 0) -> 0
A67: DTTZ | B67: Tozeur-Nefta | C67: Basis | D67: Tunesien | E67: =COUNTIF(Eingabe!$F$2:$H$1276,"DTTZ") -> 0 | F67: =COUNTIF(Eingabe!$I$2:$K$1276,"DTTZ") -> 0 | G67: Cat3DualStudios | H67: 2.0.0 | I67: TUN | J67: Afrika | K67: 2025-12-13 | L67: 24 | S67: =IFERROR(AVERAGEIF(Eingabe!$I$2:$I$1276, "DTTZ", Eingabe!$O$2:$O$1276), 0) -> 0
A68: DXXX | B68: Lome-Tokoin | C68: Basis | D68: Togo | E68: =COUNTIF(Eingabe!$F$2:$H$1276,"DXXX") -> 0 | F68: =COUNTIF(Eingabe!$I$2:$K$1276,"DXXX") -> 0 | G68: fsxcenery | H68: 1.0.0 | I68: LFW | J68: Afrika | K68: 2022-06-16 | L68: 20/24 | S68: =IFERROR(AVERAGEIF(Eingabe!$I$2:$I$1276, "DXXX", Eingabe!$O$2:$O$1276), 0) -> 0
A69: EBAW | B69: Antwerpen/Deurne | C69: Basis | D69: Belgien | E69: =COUNTIF(Eingabe!$F$2:$H$1276,"EBAW") -> 0 | F69: =COUNTIF(Eingabe!$I$2:$K$1276,"EBAW") -> 0 | G69: Aerosoft | H69: 1.0.2 | I69: ANR | J69: Europa | K69: 2023-04-06 | L69: 20/24 | S69: =IFERROR(AVERAGEIF(Eingabe!$I$2:$I$1276, "EBAW", Eingabe!$O$2:$O$1276), 0) -> 0
A70: EBBR | B70: Brüssel | C70: Basis | D70: Belgien | E70: =COUNTIF(Eingabe!$F$2:$H$1276,"EBBR") -> 0 | F70: =COUNTIF(Eingabe!$I$2:$K$1276,"EBBR") -> 0 | G70: Aerosoft | H70: 1.0.5 | I70: BRU | J70: Europa | K70: 2024-11-22 | L70: 20/24 | S70: =IFERROR(AVERAGEIF(Eingabe!$I$2:$I$1276, "EBBR", Eingabe!$O$2:$O$1276), 0) -> 0
A71: EBCI | B71: Brüssel Süd Charleroi | C71: Basis | D71: Belgien | E71: =COUNTIF(Eingabe!$F$2:$H$1276,"EBCI") -> 0 | F71: =COUNTIF(Eingabe!$I$2:$K$1276,"EBCI") -> 0 | G71: propairflight | H71: 1.2.0 | I71: CRL | J71: Europa | K71: 2026-06-05 | L71: 24 | S71: =IFERROR(AVERAGEIF(Eingabe!$I$2:$I$1276, "EBCI", Eingabe!$O$2:$O$1276), 0) -> 0
A72: EBLG | B72: Lüttich | C72: Basis | D72: Belgien | E72: =COUNTIF(Eingabe!$F$2:$H$1276,"EBLG") -> 0 | F72: =COUNTIF(Eingabe!$I$2:$K$1276,"EBLG") -> 0 | G72: mmsimulations | H72: 1.4.2 | I72: LGG | J72: Europa | K72: 2023-11-15 | L72: 20/24 | S72: =IFERROR(AVERAGEIF(Eingabe!$I$2:$I$1276, "EBLG", Eingabe!$O$2:$O$1276), 0) -> 0
A73: EDDB | B73: Berlin-Brandenburg | C73: Basis | D73: Deutschland | E73: =COUNTIF(Eingabe!$F$2:$H$1276,"EDDB") -> 1 | F73: =COUNTIF(Eingabe!$I$2:$K$1276,"EDDB") -> 1 | G73: Aerosoft | H73: 3.3.0 | I73: BER | J73: Europa | K73: 2025-09-16 | L73: 24 | P73: ✔️ | Q73: ✔️ | S73: =IFERROR(AVERAGEIF(Eingabe!$I$2:$I$1276, "EDDB", Eingabe!$O$2:$O$1276), 0) -> 416.3
A74: EDDC | B74: Dresden | C74: Basis | D74: Deutschland | E74: =COUNTIF(Eingabe!$F$2:$H$1276,"EDDC") -> 0 | F74: =COUNTIF(Eingabe!$I$2:$K$1276,"EDDC") -> 0 | G74: atelic | H74: 1.0.0 | I74: DRS | J74: Europa | K74: 2026-03-30 | L74: 24 | O74: 31 | S74: =IFERROR(AVERAGEIF(Eingabe!$I$2:$I$1276, "EDDC", Eingabe!$O$2:$O$1276), 0) -> 0
A75: EDDE | B75: Erfurt Weimar | C75: Basis | D75: Deutschland | E75: =COUNTIF(Eingabe!$F$2:$H$1276,"EDDE") -> 0 | F75: =COUNTIF(Eingabe!$I$2:$K$1276,"EDDE") -> 0 | G75: arima | H75: 1.0.1 | I75: ERF | J75: Europa | K75: 2024-06-18 | L75: 20/24 | S75: =IFERROR(AVERAGEIF(Eingabe!$I$2:$I$1276, "EDDE", Eingabe!$O$2:$O$1276), 0) -> 0
A76: EDDF | B76: Frankfurt Main Intl. | C76: Basis | D76: Deutschland | E76: =COUNTIF(Eingabe!$F$2:$H$1276,"EDDF") -> 0 | F76: =COUNTIF(Eingabe!$I$2:$K$1276,"EDDF") -> 0 | G76: Aerosoft | H76: 1.1.2 | I76: FRA | J76: Europa | K76: 2026-04-26 | L76: 20/24 | O76: B24 | S76: =IFERROR(AVERAGEIF(Eingabe!$I$2:$I$1276, "EDDF", Eingabe!$O$2:$O$1276), 0) -> 0
A77: EDDG | B77: Münster-Osnabrück | C77: Basis | D77: Deutschland | E77: =COUNTIF(Eingabe!$F$2:$H$1276,"EDDG") -> 1 | F77: =COUNTIF(Eingabe!$I$2:$K$1276,"EDDG") -> 1 | G77: mmsimulations | H77: 1.0.5 | I77: FMO | J77: Europa | K77: 2024-10-11 | L77: 20/24 | O77: 12 | P77: ✔️ | Q77: ✔️ | S77: =IFERROR(AVERAGEIF(Eingabe!$I$2:$I$1276, "EDDG", Eingabe!$O$2:$O$1276), 0) -> 251.56
A78: EDDH | B78: Hamburg | C78: Basis | D78: Deutschland | E78: =COUNTIF(Eingabe!$F$2:$H$1276,"EDDH") -> 0 | F78: =COUNTIF(Eingabe!$I$2:$K$1276,"EDDH") -> 0 | G78: simwings | H78: 1.0.4 | I78: HAM | J78: Europa | K78: 2025-11-15 | L78: 20/24 | O78: 02A | S78: =IFERROR(AVERAGEIF(Eingabe!$I$2:$I$1276, "EDDH", Eingabe!$O$2:$O$1276), 0) -> 0
A79: EDDK | B79: Köln | C79: City Update 4 | D79: Deutschland | E79: =COUNTIF(Eingabe!$F$2:$H$1276,"EDDK") -> 2 | F79: =COUNTIF(Eingabe!$I$2:$K$1276,"EDDK") -> 1 | G79: Aerosoft | H79: 1.1.1 | I79: CGN | J79: Europa | K79: 2024-04-28 | L79: 20/24 | O79: D14 | P79: ✔️ | Q79: ✔️ | S79: =IFERROR(AVERAGEIF(Eingabe!$I$2:$I$1276, "EDDK", Eingabe!$O$2:$O$1276), 0) -> 448.42
A80: EDDL | B80: Düsseldorf (Original) | C80: Basis | D80: Deutschland | E80: =COUNTIF(Eingabe!$F$2:$H$1276,"EDDL") -> 45 | F80: =COUNTIF(Eingabe!$I$2:$I$934,"EDDL") -> 46 | G80: mkstudios | H80: 1.1.1 | I80: DUS | J80: Europa | K80: 2026-03-30 | L80: 20/24 | P80: ✔️ | Q80: ✔️ | S80: =IFERROR(AVERAGEIF(Eingabe!$I$2:$I$1276, "EDDL", Eingabe!$O$2:$O$1276), 0) -> 229.5517391
A81: EDDM | B81: München | C81: World Update 18 | D81: Deutschland | E81: =COUNTIF(Eingabe!$F$2:$H$1276,"EDDM") -> 4 | F81: =COUNTIF(Eingabe!$I$2:$K$1276,"EDDM") -> 3 | G81: simwings | H81: 2.4.0 | I81: MUC | J81: Europa | K81: 2025-11-23 | L81: 20/24 | O81: 252 | P81: ✔️ | Q81: ✔️ | S81: =IFERROR(AVERAGEIF(Eingabe!$I$2:$I$1276, "EDDM", Eingabe!$O$2:$O$1276), 0) -> 387.5566667
A82: EDDN | B82: Nürnberg | C82: Basis | D82: Deutschland | E82: =COUNTIF(Eingabe!$F$2:$H$1276,"EDDN") -> 0 | F82: =COUNTIF(Eingabe!$I$2:$K$1276,"EDDN") -> 0 | G82: Aerosoft | H82: 1.1.0 | I82: NUE | J82: Europa | K82: 2025-02-07 | L82: 20/24 | O82: 12 | S82: =IFERROR(AVERAGEIF(Eingabe!$I$2:$I$1276, "EDDN", Eingabe!$O$2:$O$1276), 0) -> 0
A83: EDDP | B83: Leipzig-Halle | C83: Basis | D83: Deutschland | E83: =COUNTIF(Eingabe!$F$2:$H$1276,"EDDP") -> 1 | F83: =COUNTIF(Eingabe!$I$2:$K$1276,"EDDP") -> 0 | G83: DigitalDesign | H83: 1.3.7 | I83: LEJ | J83: Europa | K83: 2025-10-14 | L83: 20/24 | O83: 130 | P83: ✔️ | S83: =IFERROR(AVERAGEIF(Eingabe!$I$2:$I$1276, "EDDP", Eingabe!$O$2:$O$1276), 0) -> 0
A84: EDDR | B84: Saarbrücken | C84: Basis | D84: Deutschland | E84: =COUNTIF(Eingabe!$F$2:$H$1276,"EDDR") -> 0 | F84: =COUNTIF(Eingabe!$I$2:$K$1276,"EDDR") -> 0 | G84: FREDS AIRPORTS | H84: 1.5.0 | I84: SCN | J84: Europa | K84: 2025-09-26 | L84: 20/24 | O84: S5 | S84: =IFERROR(AVERAGEIF(Eingabe!$I$2:$I$1276, "EDDR", Eingabe!$O$2:$O$1276), 0) -> 0
A85: EDDS | B85: Stuttgart | C85: World Update 6 | D85: Deutschland | E85: =COUNTIF(Eingabe!$F$2:$H$1276,"EDDS") -> 1 | F85: =COUNTIF(Eingabe!$I$2:$K$1276,"EDDS") -> 1 | G85: Aerosoft | H85: 1.0.1 | I85: STR | J85: Europa | K85: 2026-05-06 | L85: 24 | O85: 15 | P85: ✔️ | Q85: ✔️ | S85: =IFERROR(AVERAGEIF(Eingabe!$I$2:$I$1276, "EDDS", Eingabe!$O$2:$O$1276), 0) -> 264.22
A86: EDDV | B86: Hannover | C86: Basis | D86: Deutschland | E86: =COUNTIF(Eingabe!$F$2:$H$1276,"EDDV") -> 1 | F86: =COUNTIF(Eingabe!$I$2:$K$1276,"EDDV") -> 1 | G86: sofly | H86: 1.2.1 | I86: HAJ | J86: Europa | K86: 2026-02-02 | L86: 24 | P86: ✔️ | Q86: ✔️ | S86: =IFERROR(AVERAGEIF(Eingabe!$I$2:$I$1276, "EDDV", Eingabe!$O$2:$O$1276), 0) -> 303.69
A87: EDDW | B87: Bremen | C87: Basis | D87: Deutschland | E87: =COUNTIF(Eingabe!$F$2:$H$1276,"EDDW") -> 0 | F87: =COUNTIF(Eingabe!$I$2:$K$1276,"EDDW") -> 0 | G87: fsdg | H87: 1.4.0 | I87: BRE | J87: Europa | K87: 2026-02-12 | L87: 24 | O87: 7 | S87: =IFERROR(AVERAGEIF(Eingabe!$I$2:$I$1276, "EDDW", Eingabe!$O$2:$O$1276), 0) -> 0
A88: EDFH | B88: Frankfurt-Hahn | C88: Basis | D88: Deutschland | E88: =COUNTIF(Eingabe!$F$2:$H$1276,"EDFH") -> 0 | F88: =COUNTIF(Eingabe!$I$2:$K$1276,"EDFH") -> 0 | G88: mmsimulations | H88: 1.0.2 | I88: HHN | J88: Europa | K88: 2025-10-28 | L88: 20/24 | O88: 324 | S88: =IFERROR(AVERAGEIF(Eingabe!$I$2:$I$1276, "EDFH", Eingabe!$O$2:$O$1276), 0) -> 0
A89: EDHI | B89: Hamburg-Finkenwerder | C89: Basis | D89: Deutschland | E89: =COUNTIF(Eingabe!$F$2:$H$1276,"EDHI") -> 1 | F89: =COUNTIF(Eingabe!$I$2:$K$1276,"EDHI") -> 1 | G89: Freeware | H89: 0.1.0 | I89: XFW | J89: Europa | K89: 2022-12-28 | L89: 20/24 | P89: ✔️ | Q89: ✔️ | S89: =IFERROR(AVERAGEIF(Eingabe!$I$2:$I$1276, "EDHI", Eingabe!$O$2:$O$1276), 0) -> 185.58
A90: EDHL | B90: Lübeck Blankensee | C90: World Update 6 | D90: Deutschland | E90: =COUNTIF(Eingabe!$F$2:$H$1276,"EDHL") -> 1 | F90: =COUNTIF(Eingabe!$I$2:$K$1276,"EDHL") -> 1 | G90: Asobo | I90: LBC | J90: Europa | K90: 2021-09-07 | L90: 24 | P90: ✔️ | Q90: ✔️ | S90: =IFERROR(AVERAGEIF(Eingabe!$I$2:$I$1276, "EDHL", Eingabe!$O$2:$O$1276), 0) -> 287
A91: EDJA | B91: Memmingen-Allgäu Airport | C91: Basis | D91: Deutschland | E91: =COUNTIF(Eingabe!$F$2:$H$1276,"EDJA") -> 0 | F91: =COUNTIF(Eingabe!$I$2:$K$1276,"EDJA") -> 0 | G91: FREDS AIRPORTS | H91: 1.5.0 | I91: FMM | J91: Europa | K91: 2023-04-03 | L91: 20/24 | O91: 9 | S91: =IFERROR(AVERAGEIF(Eingabe!$I$2:$I$1276, "EDJA", Eingabe!$O$2:$O$1276), 0) -> 0
A92: EDLP | B92: Paderborn-Lippstadt | C92: Basis | D92: Deutschland | E92: =COUNTIF(Eingabe!$F$2:$H$1276,"EDLP") -> 1 | F92: =COUNTIF(Eingabe!$I$2:$K$1276,"EDLP") -> 1 | G92: Aerosoft | H92: 1.0.9 | I92: PAD | J92: Europa | K92: 2022-12-01 | L92: 20/24 | P92: ✔️ | Q92: ✔️ | S92: =IFERROR(AVERAGEIF(Eingabe!$I$2:$I$1276, "EDLP", Eingabe!$O$2:$O$1276), 0) -> 274.8
A93: EDLV | B93: Niederrhein-Weeze | C93: Basis | D93: Deutschland | E93: =COUNTIF(Eingabe!$F$2:$H$1276,"EDLV") -> 0 | F93: =COUNTIF(Eingabe!$I$2:$K$1276,"EDLV") -> 0 | G93: simpixel | H93: 1.0.2 | I93: NRN | J93: Europa | K93: 2025-04-26 | L93: 20/24 | O93: RAMP5 | S93: =IFERROR(AVERAGEIF(Eingabe!$I$2:$I$1276, "EDLV", Eingabe!$O$2:$O$1276), 0) -> 0
A94: EDLW | B94: Dortmund | C94: Basis | D94: Deutschland | E94: =COUNTIF(Eingabe!$F$2:$H$1276,"EDLW") -> 0 | F94: =COUNTIF(Eingabe!$I$2:$K$1276,"EDLW") -> 0 | G94: Aerosoft | H94: 1.0.0 | I94: DTM | J94: Europa | K94: 2025-10-07 | L94: 24 | O94: 8 | S94: =IFERROR(AVERAGEIF(Eingabe!$I$2:$I$1276, "EDLW", Eingabe!$O$2:$O$1276), 0) -> 0
A95: EDMA | B95: Augsburg | C95: Basis | D95: Deutschland | E95: =COUNTIF(Eingabe!$F$2:$H$1276,"EDMA") -> 1 | F95: =COUNTIF(Eingabe!$I$2:$K$1276,"EDMA") -> 1 | G95: Aerosoft | H95: 1.0.0.0 | I95: AGB | J95: Europa | K95: 2021-03-16 | L95: 20/24 | P95: ✔️ | Q95: ✔️ | S95: =IFERROR(AVERAGEIF(Eingabe!$I$2:$I$1276, "EDMA", Eingabe!$O$2:$O$1276), 0) -> 318
A96: EDNY | B96: Friedrichshafen Bodenseeairport | C96: City Update 6 | D96: Deutschland | E96: =COUNTIF(Eingabe!$F$2:$H$1276,"EDNY") -> 0 | F96: =COUNTIF(Eingabe!$I$2:$K$1276,"EDNY") -> 0 | G96: PHI | H96: 1.0.7.0 | I96: FDH | J96: Europa | K96: 2021-09-22 | L96: 20/24 | O96: 205 | S96: =IFERROR(AVERAGEIF(Eingabe!$I$2:$I$1276, "EDNY", Eingabe!$O$2:$O$1276), 0) -> 0
A97: EDQM | B97: Hof-Plauen | C97: Basis | D97: Deutschland | E97: =COUNTIF(Eingabe!$F$2:$H$1276,"EDQM") -> 0 | F97: =COUNTIF(Eingabe!$I$2:$K$1276,"EDQM") -> 0 | G97: FREDS AIRPORTS | H97: 1.2.0 | I97: HOQ | J97: Europa | K97: 2024-12-15 | L97: 20/24 | S97: =IFERROR(AVERAGEIF(Eingabe!$I$2:$I$1276, "EDQM", Eingabe!$O$2:$O$1276), 0) -> 0
A98: EDSB | B98: Karlsruhe / Baden-Baden | C98: Basis | D98: Deutschland | E98: =COUNTIF(Eingabe!$F$2:$H$1276,"EDSB") -> 0 | F98: =COUNTIF(Eingabe!$I$2:$K$1276,"EDSB") -> 0 | G98: Aerosoft | H98: 1.0.0.0 | I98: FKB | J98: Europa | K98: 2022-11-12 | L98: 20/24 | O98: 26 | S98: =IFERROR(AVERAGEIF(Eingabe!$I$2:$I$1276, "EDSB", Eingabe!$O$2:$O$1276), 0) -> 0
A99: EDTL | B99: Lahr | C99: Basis | D99: Deutschland | E99: =COUNTIF(Eingabe!$F$2:$H$1276,"EDTL") -> 0 | F99: =COUNTIF(Eingabe!$I$2:$K$1276,"EDTL") -> 0 | G99: Standard | I99: LHA | J99: Europa | L99: 24 | S99: =IFERROR(AVERAGEIF(Eingabe!$I$2:$I$1276, "EDTL", Eingabe!$O$2:$O$1276), 0) -> 0
A100: EDVK | B100: Kassel-Calden | C100: Basis | D100: Deutschland | E100: =COUNTIF(Eingabe!$F$2:$H$1276,"EDVK") -> 0 | F100: =COUNTIF(Eingabe!$I$2:$K$1276,"EDVK") -> 0 | G100: ASOBO | I100: KSF | J100: Europa | L100: 24 | O100: A2 | S100: =IFERROR(AVERAGEIF(Eingabe!$I$2:$I$1276, "EDVK", Eingabe!$O$2:$O$1276), 0) -> 0
A101: EDWE | B101: Emden | C101: Basis | D101: Deutschland | E101: =COUNTIF(Eingabe!$F$2:$H$1276,"EDWE") -> 0 | F101: =COUNTIF(Eingabe!$I$2:$K$1276,"EDWE") -> 0 | G101: aviatonsimdesign | H101: 1.2.0 | I101: EME | J101: Europa | K101: 2022-07-01 | L101: 20/24 | S101: =IFERROR(AVERAGEIF(Eingabe!$I$2:$I$1276, "EDWE", Eingabe!$O$2:$O$1276), 0) -> 0
A102: EDXW | B102: Sylt-Westerland | C102: Basis | D102: Deutschland | E102: =COUNTIF(Eingabe!$F$2:$H$1276,"EDXW") -> 0 | F102: =COUNTIF(Eingabe!$I$2:$K$1276,"EDXW") -> 0 | G102: fsdg | H102: 1.6.0 | I102: GWT | J102: Europa | K102: 2026-07-12 | L102: 24 | O102: 1 | S102: =IFERROR(AVERAGEIF(Eingabe!$I$2:$I$1276, "EDXW", Eingabe!$O$2:$O$1276), 0) -> 0
A103: EETN | B103: Tallinn | C103: Basis | D103: Estland | E103: =COUNTIF(Eingabe!$F$2:$H$1276,"EETN") -> 1 | F103: =COUNTIF(Eingabe!$I$2:$K$1276,"EETN") -> 1 | G103: drzewieckidesign | H103: 1.2.0 | I103: TLL | J103: Europa | K103: 2023-07-10 | L103: 20/24 | O103: M6 | P103: ✔️ | Q103: ✔️ | S103: =IFERROR(AVERAGEIF(Eingabe!$I$2:$I$1276, "EETN", Eingabe!$O$2:$O$1276), 0) -> 307
A104: EFHK | B104: Helsinki-Vantaa | C104: Basis | D104: Finnland | E104: =COUNTIF(Eingabe!$F$2:$H$1276,"EFHK") -> 0 | F104: =COUNTIF(Eingabe!$I$2:$K$1276,"EFHK") -> 0 | G104: mkstudios | H104: 2.0.2 | I104: HEL | J104: Europa | K104: 2026-03-29 | L104: 20/24 | S104: =IFERROR(AVERAGEIF(Eingabe!$I$2:$I$1276, "EFHK", Eingabe!$O$2:$O$1276), 0) -> 0
A105: EFIV | B105: Ivalo | C105: World Update 15 | D105: Finnland | E105: =COUNTIF(Eingabe!$F$2:$H$1276,"EFIV") -> 0 | F105: =COUNTIF(Eingabe!$I$2:$K$1276,"EFIV") -> 0 | G105: mmsimulations | H105: 1.3.0 | I105: IVL | J105: Europa | K105: 2023-09-29 | L105: 20/24 | S105: =IFERROR(AVERAGEIF(Eingabe!$I$2:$I$1276, "EFIV", Eingabe!$O$2:$O$1276), 0) -> 0
A106: EFKI | B106: Kajaani | C106: Basis | D106: Finnland | E106: =COUNTIF(Eingabe!$F$2:$H$1276,"EFKI") -> 0 | F106: =COUNTIF(Eingabe!$I$2:$K$1276,"EFKI") -> 0 | G106: attben | H106: 1.0.5 | I106: KAJ | J106: Europa | K106: 2023-12-10 | L106: 20/24 | S106: =IFERROR(AVERAGEIF(Eingabe!$I$2:$I$1276, "EFKI", Eingabe!$O$2:$O$1276), 0) -> 0
A107: EFKK | B107: Kokkola-Pietarsaari | C107: Basis | D107: Finnland | E107: =COUNTIF(Eingabe!$F$2:$H$1276,"EFOU") -> 0 | F107: =COUNTIF(Eingabe!$I$2:$K$1276,"EFOU") -> 0 | G107: Freeware | I107: KOK | J107: Europa | K107: 2023-01-26 | L107: 20/24 | S107: =IFERROR(AVERAGEIF(Eingabe!$I$2:$I$1276, "EFKK", Eingabe!$O$2:$O$1276), 0) -> 0
A108: EFKS | B108: Kuusamo | C108: Basis | D108: Finnland | E108: =COUNTIF(Eingabe!$F$2:$H$1276,"EFKS") -> 0 | F108: =COUNTIF(Eingabe!$I$2:$K$1276,"EFKS") -> 0 | G108: flyxsim | H108: 1.0.2 | I108: KAO | J108: Europa | K108: 2024-10-03 | L108: 20/24 | S108: =IFERROR(AVERAGEIF(Eingabe!$I$2:$I$1276, "EFKS", Eingabe!$O$2:$O$1276), 0) -> 0
A109: EFKT | B109: Kittilä | C109: Basis | D109: Finnland | E109: =COUNTIF(Eingabe!$F$2:$H$1276,"EFKT") -> 0 | F109: =COUNTIF(Eingabe!$I$2:$K$1276,"EFKT") -> 0 | G109: inibuilds | H109: 1.0.0 | I109: KAO | J109: Europa | K109: 2026-02-28 | L109: 24 | S109: =IFERROR(AVERAGEIF(Eingabe!$I$2:$I$1276, "EFKT", Eingabe!$O$2:$O$1276), 0) -> 0
A110: EFOU | B110: Oulu | C110: Basis | D110: Finnland | E110: =COUNTIF(Eingabe!$F$2:$H$1276,"EFOU") -> 0 | F110: =COUNTIF(Eingabe!$I$2:$K$1276,"EFOU") -> 0 | G110: mmsimulations | H110: 1.2.0 | I110: OUL | J110: Europa | K110: 2025-01-23 | L110: 20/24 | S110: =IFERROR(AVERAGEIF(Eingabe!$I$2:$I$1276, "EFOU", Eingabe!$O$2:$O$1276), 0) -> 0
A111: EFRO | B111: Rovaniemi | C111: Basis | D111: Finnland | E111: =COUNTIF(Eingabe!$F$2:$H$1276,"EFRO") -> 0 | F111: =COUNTIF(Eingabe!$I$2:$K$1276,"EFRO") -> 0 | G111: mkstudios | H111: 2.0.3 | I111: RVN | J111: Europa | K111: 2026-02-28 | L111: 24 | S111: =IFERROR(AVERAGEIF(Eingabe!$I$2:$I$1276, "EFRO", Eingabe!$O$2:$O$1276), 0) -> 0
A112: EFTP | B112: Tampere-Pirkkala | C112: Basis | D112: Finnland | E112: =COUNTIF(Eingabe!$F$2:$H$1276,"EFTP") -> 0 | F112: =COUNTIF(Eingabe!$I$2:$K$1276,"EFTP") -> 0 | G112: therudolf | H112: 1.0.0 | I112: TMP | J112: Europa | K112: 2024-08-14 | L112: 20/24 | S112: =IFERROR(AVERAGEIF(Eingabe!$I$2:$I$1276, "EFTP", Eingabe!$O$2:$O$1276), 0) -> 0
A113: EFTU | B113: Turku | C113: Basis | D113: Finnland | E113: =COUNTIF(Eingabe!$F$2:$H$1276,"EFTU") -> 0 | F113: =COUNTIF(Eingabe!$I$2:$K$1276,"EFTU") -> 0 | G113: mmsimulations | H113: 1.0.0 | I113: TKU | J113: Europa | K113: 2023-04-18 | L113: 20/24 | S113: =IFERROR(AVERAGEIF(Eingabe!$I$2:$I$1276, "EFTU", Eingabe!$O$2:$O$1276), 0) -> 0
A114: EFVA | B114: Vaasa | C114: Basis | D114: Finnland | E114: =COUNTIF(Eingabe!$F$2:$H$1276,"EFVA") -> 0 | F114: =COUNTIF(Eingabe!$I$2:$K$1276,"EFVA") -> 0 | G114: Asobo | H114: WU5 | I114: VAA | J114: Europa | K114: 2021-06-17 | L114: 20/24 | S114: =IFERROR(AVERAGEIF(Eingabe!$I$2:$I$1276, "EFVA", Eingabe!$O$2:$O$1276), 0) -> 0
A115: EGAA | B115: Belfast Aldergrove Intl. | C115: Basis | D115: Großbritannien | E115: =COUNTIF(Eingabe!$F$2:$H$1276,"EGAA") -> 0 | F115: =COUNTIF(Eingabe!$I$2:$K$1276,"EGAA") -> 0 | G115: pyreegue | H115: 1.1.6 | I115: BFS | J115: Europa | K115: 2024-08-21 | L115: 20/24 | S115: =IFERROR(AVERAGEIF(Eingabe!$I$2:$I$1276, "EGAA", Eingabe!$O$2:$O$1276), 0) -> 0
A116: EGAC | B116: Belfast City | C116: Basis | D116: Großbritannien | E116: =COUNTIF(Eingabe!$F$2:$H$1276,"EGAC") -> 0 | F116: =COUNTIF(Eingabe!$I$2:$K$1276,"EGAC") -> 0 | G116: flyxsim | H116: 1.0.0 | I116: BFS | J116: Europa | K116: 2026-04-26 | L116: 20/24 | S116: =IFERROR(AVERAGEIF(Eingabe!$I$2:$I$1276, "EGAC", Eingabe!$O$2:$O$1276), 0) -> 0
A117: EGAE | B117: City od Derry | C117: Basis | D117: Großbritannien | E117: =COUNTIF(Eingabe!$F$2:$H$1276,"EGAE") -> 0 | F117: =COUNTIF(Eingabe!$I$2:$K$1276,"EGAE") -> 0 | G117: UK2000 | H117: 1.0.3 | I117: LDY | J117: Europa | K117: 2025-06-10 | L117: 20/24 | S117: =IFERROR(AVERAGEIF(Eingabe!$I$2:$I$1276, "EGAE", Eingabe!$O$2:$O$1276), 0) -> 0
A118: EGBB | B118: Birmingham | C118: Basis | D118: Großbritannien | E118: =COUNTIF(Eingabe!$F$2:$H$1276,"EGBB") -> 0 | F118: =COUNTIF(Eingabe!$I$2:$K$1276,"EGBB") -> 0 | G118: pyreegue | H118: 1.0.6 | I118: BHX | J118: Europa | K118: 2025-11-29 | L118: 20/24 | S118: =IFERROR(AVERAGEIF(Eingabe!$I$2:$I$1276, "EGBB", Eingabe!$O$2:$O$1276), 0) -> 0
A119: EGCC | B119: Manchester | C119: Basis | D119: Großbritannien | E119: =COUNTIF(Eingabe!$F$2:$H$1276,"EGCC") -> 0 | F119: =COUNTIF(Eingabe!$I$2:$K$1276,"EGCC") -> 0 | G119: inibuilds | H119: 1.1.1 | I119: MAN | J119: Europa | K119: 2026-04-10 | L119: 24 | S119: =IFERROR(AVERAGEIF(Eingabe!$I$2:$I$1276, "EGCC", Eingabe!$O$2:$O$1276), 0) -> 0
A120: EGCN | B120: Doncaster | C120: Basis | D120: Großbritannien | E120: =COUNTIF(Eingabe!$F$2:$H$1276,"EGCN") -> 0 | F120: =COUNTIF(Eingabe!$I$2:$K$1276,"EGCN") -> 0 | G120: dominicdesignteam | H120: 1.0.0 | I120: DAS | J120: Europa | K120: 2025-11-23 | L120: 20/24 | S120: =IFERROR(AVERAGEIF(Eingabe!$I$2:$I$1276, "EGCN", Eingabe!$O$2:$O$1276), 0) -> 0
A121: EGFF | B121: Cardiff | C121: World Update 17 | D121: Großbritannien | E121: =COUNTIF(Eingabe!$F$2:$H$1276,"EGFF") -> 0 | F121: =COUNTIF(Eingabe!$I$2:$K$1276,"EGFF") -> 0 | G121: sofly | H121: 1.2.0 | I121: CWL | J121: Europa | K121: 2026-04-19 | L121: 20/24 | S121: =IFERROR(AVERAGEIF(Eingabe!$I$2:$I$1276, "EGFF", Eingabe!$O$2:$O$1276), 0) -> 0
A122: EGGD | B122: Bristol | C122: Basis | D122: Großbritannien | E122: =COUNTIF(Eingabe!$F$2:$H$1276,"EGGD") -> 0 | F122: =COUNTIF(Eingabe!$I$2:$K$1276,"EGGD") -> 0 | G122: sofly | H122: 1.1.0 | I122: BRS | J122: Europa | K122: 2026-02-12 | L122: 24 | S122: =IFERROR(AVERAGEIF(Eingabe!$I$2:$I$1276, "EGGD", Eingabe!$O$2:$O$1276), 0) -> 0
A123: EGGP | B123: Liverpool | C123: World Update 3 | D123: Großbritannien | E123: =COUNTIF(Eingabe!$F$2:$H$1276,"EGGP") -> 0 | F123: =COUNTIF(Eingabe!$I$2:$K$1276,"EGGP") -> 0 | G123: inibuilds | H123: 1.0.3 | I123: LPL | J123: Europa | K123: 2026-04-26 | L123: 24 | S123: =IFERROR(AVERAGEIF(Eingabe!$I$2:$I$1276, "EGGP", Eingabe!$O$2:$O$1276), 0) -> 0
A124: EGGW | B124: Luton | C124: Basis | D124: Großbritannien | E124: =COUNTIF(Eingabe!$F$2:$H$1276,"EGGW") -> 0 | F124: =COUNTIF(Eingabe!$I$2:$K$1276,"EGGW") -> 0 | G124: inibuilds | H124: 1.1.0 | I124: LTN | J124: Europa | K124: 2026-07-12 | L124: 24 | S124: =IFERROR(AVERAGEIF(Eingabe!$I$2:$I$1276, "EGGW", Eingabe!$O$2:$O$1276), 0) -> 0
A125: EGHH | B125: Bournemouth | C125: Basis | D125: Großbritannien | E125: =COUNTIF(Eingabe!$F$2:$H$1276,"EGHH") -> 0 | F125: =COUNTIF(Eingabe!$I$2:$K$1276,"EGHH") -> 0 | G125: UK2000 | H125: 2.0.0 | I125: BOH | J125: Europa | K125: 2026-04-19 | L125: 20/24 | S125: =IFERROR(AVERAGEIF(Eingabe!$I$2:$I$1276, "EGHH", Eingabe!$O$2:$O$1276), 0) -> 0
A126: EGHI | B126: Southampton | C126: Basis | D126: Großbritannien | E126: =COUNTIF(Eingabe!$F$2:$H$1276,"EGHI") -> 0 | F126: =COUNTIF(Eingabe!$I$2:$K$1276,"EGHI") -> 0 | G126: inibuilds | H126: 1.0.5 | I126: SOU | J126: Europa | K126: 2026-05-06 | L126: 20/24 | S126: =IFERROR(AVERAGEIF(Eingabe!$I$2:$I$1276, "EGHI", Eingabe!$O$2:$O$1276), 0) -> 0
A127: EGJB | B127: Guernsey | C127: Basis | D127: Großbritannien | E127: =COUNTIF(Eingabe!$F$2:$H$1276,"EGJB") -> 0 | F127: =COUNTIF(Eingabe!$I$2:$K$1276,"EGJB") -> 0 | G127: realvfr | H127: 1.0.3 | I127: GCI | J127: Europa | K127: 2026-05-25 | L127: 24 | O127: 56 | S127: =IFERROR(AVERAGEIF(Eingabe!$I$2:$I$1276, "EGJB", Eingabe!$O$2:$O$1276), 0) -> 0
A128: EGJJ | B128: Jersey | C128: Basis | D128: Großbritannien | E128: =COUNTIF(Eingabe!$F$2:$H$1276,"EGJJ") -> 0 | F128: =COUNTIF(Eingabe!$I$2:$K$1276,"EGJJ") -> 0 | G128: flyxsim | H128: 1.0.3 | I128: JER | J128: Europa | K128: 2026-04-26 | L128: 20/24 | S128: =IFERROR(AVERAGEIF(Eingabe!$I$2:$I$1276, "EGJJ", Eingabe!$O$2:$O$1276), 0) -> 0
A129: EGKA | B129: Shoreham | C129: Basis | D129: Großbritannien | E129: =COUNTIF(Eingabe!$F$2:$H$1276,"EGKA") -> 0 | F129: =COUNTIF(Eingabe!$I$2:$K$1276,"EGKA") -> 0 | G129: ORBX | H129: 1.2.2 | I129: ESH | J129: Europa | K129: 2026-06-21 | L129: 20/24 | S129: =IFERROR(AVERAGEIF(Eingabe!$I$2:$I$1276, "EGKA", Eingabe!$O$2:$O$1276), 0) -> 0
A130: EGKK | B130: London Gatwick | C130: Basis | D130: Großbritannien | E130: =COUNTIF(Eingabe!$F$2:$H$1276,"EGKK") -> 0 | F130: =COUNTIF(Eingabe!$I$2:$K$1276,"EGKK") -> 0 | G130: inibuilds | H130: 1.0.3 | I130: LGW | J130: Europa | K130: 2026-02-12 | L130: 24 | P130: =IF(E130=0," ","✔️") ->  | Q130: =IF(F130=0," ","✔️") ->  | S130: =IFERROR(AVERAGEIF(Eingabe!$I$2:$I$1276, "EGKK", Eingabe!$O$2:$O$1276), 0) -> 0
A131: EGLC | B131: London-City | C131: Basis | D131: Großbritannien | E131: =COUNTIF(Eingabe!$F$2:$H$1276,"EGLC") -> 0 | F131: =COUNTIF(Eingabe!$I$2:$K$1276,"EGLC") -> 0 | G131: inibuilds | H131: 1.0.1 | I131: LCY | J131: Europa | K131: 2026-06-21 | L131: 24 | S131: =IFERROR(AVERAGEIF(Eingabe!$I$2:$I$1276, "EGLC", Eingabe!$O$2:$O$1276), 0) -> 0
A132: EGLF | B132: Farnborough | C132: World Update 17 | D132: Großbritannien | E132: =COUNTIF(Eingabe!$F$2:$H$1276,"EGLF") -> 0 | F132: =COUNTIF(Eingabe!$I$2:$K$1276,"EGLF") -> 0 | G132: burningbluedesign | H132: 1.5.0 | I132: FAB | J132: Europa | K132: 2024-12-15 | L132: 24 | S132: =IFERROR(AVERAGEIF(Eingabe!$I$2:$I$1276, "EGLF", Eingabe!$O$2:$O$1276), 0) -> 0
A133: EGLL | B133: London-Heathrow | C133: Basis | D133: Großbritannien | E133: =COUNTIF(Eingabe!$F$2:$H$1276,"EGLL") -> 0 | F133: =COUNTIF(Eingabe!$I$2:$K$1276,"EGLL") -> 0 | G133: inibuilds | H133: 1.0.8 | I133: LHR | J133: Europa | K133: 2026-01-22 | L133: 24 | S133: =IFERROR(AVERAGEIF(Eingabe!$I$2:$I$1276, "EGLL", Eingabe!$O$2:$O$1276), 0) -> 0
A134: EGMC | B134: London-Southend | C134: Basis | D134: Großbritannien | E134: =COUNTIF(Eingabe!$F$2:$H$1276,"EGMC") -> 0 | F134: =COUNTIF(Eingabe!$I$2:$K$1276,"EGMC") -> 0 | G134: pilotplus | H134: 1.0.5 | I134: SEN | J134: Europa | K134: 2021-07-01 | L134: 20/24 | S134: =IFERROR(AVERAGEIF(Eingabe!$I$2:$I$1276, "EGMC", Eingabe!$O$2:$O$1276), 0) -> 0
A135: EGMD | B135: London-Bredford | C135: Basis | D135: Großbritannien | E135: =COUNTIF(Eingabe!$F$2:$H$1276,"EGMD") -> 0 | F135: =COUNTIF(Eingabe!$I$2:$K$1276,"EGMD") -> 0 | G135: burningbluedesign | H135: 1.5.0 | I135: LYX | J135: Europa | K135: 2024-12-08 | L135: 24 | S135: =IFERROR(AVERAGEIF(Eingabe!$I$2:$I$1276, "EGMD", Eingabe!$O$2:$O$1276), 0) -> 0
A136: EGNC | B136: Carlile | C136: Basis | D136: Großbritannien | E136: =COUNTIF(Eingabe!$F$2:$H$1276,"EGNC") -> 0 | F136: =COUNTIF(Eingabe!$I$2:$K$1276,"EGNC") -> 0 | G136: UK2000 | H136: 1.4.2 | I136: CAX | J136: Europa | K136: 2025-06-10 | L136: 20/24 | S136: =IFERROR(AVERAGEIF(Eingabe!$I$2:$I$1276, "EGNC", Eingabe!$O$2:$O$1276), 0) -> 0
A137: EGNJ | B137: Humberside | C137: Basis | D137: Großbritannien | E137: =COUNTIF(Eingabe!$F$2:$H$1276,"EGNJ") -> 0 | F137: =COUNTIF(Eingabe!$I$2:$K$1276,"EGNJ") -> 0 | G137: FlyTampa | H137: 1.2.0 | I137: HUY | J137: Europa | K137: 2026-02-19 | L137: 20/24 | S137: =IFERROR(AVERAGEIF(Eingabe!$I$2:$I$1276, "EGNJ", Eingabe!$O$2:$O$1276), 0) -> 0
A138: EGNM | B138: Leeds-Bradford | C138: Basis | D138: Großbritannien | E138: =COUNTIF(Eingabe!$F$2:$H$1276,"EGNM") -> 0 | F138: =COUNTIF(Eingabe!$I$2:$K$1276,"EGNM") -> 0 | G138: ORBX | H138: 2.2.5 | I138: LBA | J138: Europa | K138: 2026-05-25 | L138: 20/24 | S138: =IFERROR(AVERAGEIF(Eingabe!$I$2:$I$1276, "EGNM", Eingabe!$O$2:$O$1276), 0) -> 0
A139: EGNS | B139: Isle of Men | C139: Basis | D139: Großbritannien | E139: =COUNTIF(Eingabe!$F$2:$H$1276,"EGNS") -> 0 | F139: =COUNTIF(Eingabe!$I$2:$K$1276,"EGNS") -> 0 | G139: UK2000 | H139: 1.4.2 | I139: IOM | J139: Europa | K139: 2026-03-10 | L139: 20/24 | S139: =IFERROR(AVERAGEIF(Eingabe!$I$2:$I$1276, "EGNS", Eingabe!$O$2:$O$1276), 0) -> 0
A140: EGNT | B140: Newcastle | C140: Basis | D140: Großbritannien | E140: =COUNTIF(Eingabe!$F$2:$H$1276,"EGNT") -> 1 | F140: =COUNTIF(Eingabe!$I$2:$K$1276,"EGNT") -> 1 | G140: ORBX | H140: 1.6.4 | I140: NCL | J140: Europa | K140: 2026-05-06 | L140: 24 | O140: 10 | P140: ✔️ | Q140: ✔️ | S140: =IFERROR(AVERAGEIF(Eingabe!$I$2:$I$1276, "EGNT", Eingabe!$O$2:$O$1276), 0) -> 310
A141: EGNV | B141: Durham-Teesside | C141: Basis | D141: Großbritannien | E141: =COUNTIF(Eingabe!$F$2:$H$1276,"EGNV") -> 0 | F141: =COUNTIF(Eingabe!$I$2:$K$1276,"EGNV") -> 0 | G141: flyxsim | H141: 1.2.0 | I141: MME | J141: Europa | K141: 2025-02-25 | L141: 20/24 | S141: =IFERROR(AVERAGEIF(Eingabe!$I$2:$I$1276, "EGNV", Eingabe!$O$2:$O$1276), 0) -> 0
A142: EGNX | B142: East Midland/Nottingham | C142: Basis | D142: Großbritannien | E142: =COUNTIF(Eingabe!$F$2:$H$1276,"EGNX") -> 0 | F142: =COUNTIF(Eingabe!$I$2:$K$1276,"EGNX") -> 0 | G142: pyreegue | H142: 1.0.31 | I142: EMA | J142: Europa | K142: 2024-07-27 | L142: 20/24 | S142: =IFERROR(AVERAGEIF(Eingabe!$I$2:$I$1276, "EGNX", Eingabe!$O$2:$O$1276), 0) -> 0
A143: EGPB | B143: Sumburgh | C143: World Update 17 | D143: Großbritannien | E143: =COUNTIF(Eingabe!$F$2:$H$1276,"EGPB") -> 0 | F143: =COUNTIF(Eingabe!$I$2:$K$1276,"EGPB") -> 0 | G143: ORBX | H143: 1.2.0 | I143: LSI | J143: Europa | K143: 2023-05-23 | L143: 20/24 | S143: =IFERROR(AVERAGEIF(Eingabe!$I$2:$I$1276, "EGPB", Eingabe!$O$2:$O$1276), 0) -> 0
A144: EGPD | B144: Dyce-Aberdeen | C144: Basis | D144: Großbritannien | E144: =COUNTIF(Eingabe!$F$2:$H$1276,"EGPD") -> 0 | F144: =COUNTIF(Eingabe!$I$2:$K$1276,"EGPD") -> 0 | G144: aurascenery | H144: 1.0.1 | I144: ABZ | J144: Europa | K144: 2025-03-19 | L144: 20/24 | S144: =IFERROR(AVERAGEIF(Eingabe!$I$2:$I$1276, "EGPD", Eingabe!$O$2:$O$1276), 0) -> 0
A145: EGPE | B145: Inverness | C145: Basis | D145: Großbritannien | E145: =COUNTIF(Eingabe!$F$2:$H$1276,"EGPE") -> 0 | F145: =COUNTIF(Eingabe!$I$2:$K$1276,"EGPE") -> 0 | G145: UK2000 | H145: 1.4.1 | I145: INV | J145: Europa | K145: 2025-02-21 | L145: 20/24 | S145: =IFERROR(AVERAGEIF(Eingabe!$I$2:$I$1276, "EGPE", Eingabe!$O$2:$O$1276), 0) -> 0
A146: EGPF | B146: Glasgow | C146: Basis | D146: Großbritannien | E146: =COUNTIF(Eingabe!$F$2:$H$1276,"EGPF") -> 0 | F146: =COUNTIF(Eingabe!$I$2:$K$1276,"EGPF") -> 0 | G146: UK2000 | H146: 1.4.1 | I146: GLA | J146: Europa | K146: 2025-04-27 | L146: 20/24 | S146: =IFERROR(AVERAGEIF(Eingabe!$I$2:$I$1276, "EGPF", Eingabe!$O$2:$O$1276), 0) -> 0
A147: EGPH | B147: Edinburgh | C147: Basis | D147: Großbritannien | E147: =COUNTIF(Eingabe!$F$2:$H$1276,"EGPH") -> 0 | F147: =COUNTIF(Eingabe!$I$2:$K$1276,"EGPH") -> 0 | G147: pyreegue | H147: 2.1.0 | I147: EDI | J147: Europa | K147: 2026-05-25 | L147: 20/24 | S147: =IFERROR(AVERAGEIF(Eingabe!$I$2:$I$1276, "EGPH", Eingabe!$O$2:$O$1276), 0) -> 0
A148: EGPK | B148: Glasgow-Prestwick Intl. | C148: Basis | D148: Großbritannien | E148: =COUNTIF(Eingabe!$F$2:$H$1276,"EGPK") -> 0 | F148: =COUNTIF(Eingabe!$I$2:$K$1276,"EGPK") -> 0 | G148: UK2000 | H148: 1.4.0 | I148: PIK | J148: Europa | K148: 2024-11-14 | L148: 20/24 | S148: =IFERROR(AVERAGEIF(Eingabe!$I$2:$I$1276, "EGPK", Eingabe!$O$2:$O$1276), 0) -> 0
A149: EGPN | B149: Dundee | C149: Basis | D149: Großbritannien | E149: =COUNTIF(Eingabe!$F$2:$H$1276,"EGPN") -> 0 | F149: =COUNTIF(Eingabe!$I$2:$K$1276,"EGPN") -> 0 | G149: ORBX | H149: 1.1.0 | I149: DND | J149: Europa | K149: 2021-07-26 | L149: 20/24 | S149: =IFERROR(AVERAGEIF(Eingabe!$I$2:$I$1276, "EGPN", Eingabe!$O$2:$O$1276), 0) -> 0
A150: EGPO | B150: Stornoway | C150: Basis | D150: Großbritannien | E150: =COUNTIF(Eingabe!$F$2:$H$1276,"EGPO") -> 0 | F150: =COUNTIF(Eingabe!$I$2:$K$1276,"EGPO") -> 0 | G150: fsdg | H150: 1.0.1 | I150: SYY | J150: Europa | K150: 2026-04-10 | L150: 24 | S150: =IFERROR(AVERAGEIF(Eingabe!$I$2:$I$1276, "EGPO", Eingabe!$O$2:$O$1276), 0) -> 0
A151: EGSH | B151: Norwich | C151: Basis | D151: Großbritannien | E151: =COUNTIF(Eingabe!$F$2:$H$1276,"EGSH") -> 0 | F151: =COUNTIF(Eingabe!$I$2:$K$1276,"EGSH") -> 0 | G151: UK2000 | H151: 1.1.0 | J151: Europa | K151: 2025-05-26 | L151: 20/24 | S151: =IFERROR(AVERAGEIF(Eingabe!$I$2:$I$1276, "EGSH", Eingabe!$O$2:$O$1276), 0) -> 0
A152: EGSS | B152: London Stansted | C152: World Update 17 | D152: Großbritannien | E152: =COUNTIF(Eingabe!$F$2:$H$1276,"EGSS") -> 0 | F152: =COUNTIF(Eingabe!$I$2:$K$1276,"EGSS") -> 0 | G152: inibuilds | H152: 1.1.1 | I152: STN | J152: Europa | K152: 2026-02-19 | L152: 24 | S152: =IFERROR(AVERAGEIF(Eingabe!$I$2:$I$1276, "EGSS", Eingabe!$O$2:$O$1276), 0) -> 0
A153: EHAM | B153: Amsterdam | C153: Basis | D153: Holland | E153: =COUNTIF(Eingabe!$F$2:$H$1276,"EHAM") -> 0 | F153: =COUNTIF(Eingabe!$I$2:$K$1276,"EHAM") -> 0 | G153: FlyTampa | H153: 1.3.2 | I153: AMS | J153: Europa | K153: 2026-05-25 | L153: 20/24 | S153: =IFERROR(AVERAGEIF(Eingabe!$I$2:$I$1276, "EHAM", Eingabe!$O$2:$O$1276), 0) -> 0
A154: EHBK | B154: Maastricht-Aachen | C154: Basis | D154: Holland | E154: =COUNTIF(Eingabe!$F$2:$H$1276,"EHBK") -> 0 | F154: =COUNTIF(Eingabe!$I$2:$K$1276,"EHBK") -> 0 | G154: stsimulations | H154: 1.0.8 | I154: MST | J154: Europa | K154: 2024-11-14 | L154: 20/24 | S154: =IFERROR(AVERAGEIF(Eingabe!$I$2:$I$1276, "EHBK", Eingabe!$O$2:$O$1276), 0) -> 0
A155: EHLE | B155: Lelystad | C155: Basis | D155: Holland | E155: =COUNTIF(Eingabe!$F$2:$H$1276,"EHLE") -> 0 | F155: =COUNTIF(Eingabe!$I$2:$K$1276,"EHLE") -> 0 | G155: papahotel | H155: 1.2.1 | I155: LEY | J155: Europa | K155: 2024-12-23 | L155: 20/24 | S155: =IFERROR(AVERAGEIF(Eingabe!$I$2:$I$1276, "EHLE", Eingabe!$O$2:$O$1276), 0) -> 0
A156: EHRD | B156: Rotterdam | C156: World Update 4 | D156: Holland | E156: =COUNTIF(Eingabe!$F$2:$H$1276,"EHRD") -> 0 | F156: =COUNTIF(Eingabe!$I$2:$K$1276,"EHRD") -> 0 | G156: rdpresets | H156: 2.2.0 | I156: RTM | J156: Europa | K156: 2024-02-10 | L156: 20/24 | S156: =IFERROR(AVERAGEIF(Eingabe!$I$2:$I$1276, "EHRD", Eingabe!$O$2:$O$1276), 0) -> 0
A157: EICK | B157: Cork | C157: World Update 17 | D157: Irland | E157: =COUNTIF(Eingabe!$F$2:$H$1276,"EICK") -> 0 | F157: =COUNTIF(Eingabe!$I$2:$K$1276,"EICK") -> 0 | G157: mkstudios | H157: 1.4.0 | I157: ORK | J157: Europa | K157: 2025-11-05 | L157: 20/24 | S157: =IFERROR(AVERAGEIF(Eingabe!$I$2:$I$1276, "EICK", Eingabe!$O$2:$O$1276), 0) -> 0
A158: EIDW | B158: Dublin | C158: Basis | D158: Irland | E158: =COUNTIF(Eingabe!$F$2:$H$1276,"EIDW") -> 0 | F158: =COUNTIF(Eingabe!$I$2:$K$1276,"EIDW") -> 0 | G158: mkstudios | H158: 2.3.3 | I158: DUB | J158: Europa | K158: 2025-10-29 | L158: 20/24 | S158: =IFERROR(AVERAGEIF(Eingabe!$I$2:$I$1276, "EIDW", Eingabe!$O$2:$O$1276), 0) -> 0
A159: EIKN | B159: Ireland West | C159: Basis | D159: Irland | E159: =COUNTIF(Eingabe!$F$2:$H$1276,"EIKN") -> 0 | F159: =COUNTIF(Eingabe!$I$2:$K$1276,"EIKN") -> 0 | G159: flyxsim | H159: 1.0.2 | J159: Europa | K159: 2026-04-26 | L159: 20/24 | S159: =IFERROR(AVERAGEIF(Eingabe!$I$2:$I$1276, "EIKN", Eingabe!$O$2:$O$1276), 0) -> 0
A160: EIKY | B160: Kerry | C160: Basis | D160: Irland | E160: =COUNTIF(Eingabe!$F$2:$H$1276,"EIKY") -> 0 | F160: =COUNTIF(Eingabe!$I$2:$K$1276,"EIKY") -> 0 | G160: inibuilds | H160: 1.1.0 | I160: KIR | J160: Europa | K160: 2022-02-09 | L160: 20/24 | S160: =IFERROR(AVERAGEIF(Eingabe!$I$2:$I$1276, "EIKY", Eingabe!$O$2:$O$1276), 0) -> 0
A161: EINN | B161: Shannon | C161: Basis | D161: Irland | E161: =COUNTIF(Eingabe!$F$2:$H$1276,"EINN") -> 0 | F161: =COUNTIF(Eingabe!$I$2:$K$1276,"EINN") -> 0 | G161: mkstudios | H161: 1.3.0 | I161: SNN | J161: Europa | K161: 2025-10-28 | L161: 20/24 | S161: =IFERROR(AVERAGEIF(Eingabe!$I$2:$I$1276, "EINN", Eingabe!$O$2:$O$1276), 0) -> 0
A162: EKAH | B162: Aarhus | C162: Basis | D162: Dänemark | E162: =COUNTIF(Eingabe!$F$2:$H$1276,"EKAH") -> 0 | F162: =COUNTIF(Eingabe!$I$2:$K$1276,"EKAH") -> 0 | G162: simnord | H162: 1.1.1 | I162: AAR | J162: Europa | K162: 2026-01-03 | L162: 24 | S162: =IFERROR(AVERAGEIF(Eingabe!$I$2:$I$1276, "EKAH", Eingabe!$O$2:$O$1276), 0) -> 0
A163: EKBI | B163: Billund | C163: Basis | D163: Dänemark | E163: =COUNTIF(Eingabe!$F$2:$H$1276,"EKBI") -> 0 | F163: =COUNTIF(Eingabe!$I$2:$K$1276,"EKBI") -> 0 | G163: simnord | H163: 1.7.1 | I163: BLL | J163: Europa | K163: 2025-11-15 | L163: 24 | S163: =IFERROR(AVERAGEIF(Eingabe!$I$2:$I$1276, "EKBI", Eingabe!$O$2:$O$1276), 0) -> 0
A164: EKCH | B164: Kopenhagen-Kastrup | C164: Basis | D164: Dänemark | E164: =COUNTIF(Eingabe!$F$2:$H$1276,"EKCH") -> 0 | F164: =COUNTIF(Eingabe!$I$2:$K$1276,"EKCH") -> 0 | G164: SimNord | H164: 1.0.6 | I164: AES | J164: Europa | K164: 2026-02-28 | L164: 24 | S164: =IFERROR(AVERAGEIF(Eingabe!$I$2:$I$1276, "EKCH", Eingabe!$O$2:$O$1276), 0) -> 0
A165: EKEB | B165: Esbjerg | C165: Basis | D165: Dänemark | E165: =COUNTIF(Eingabe!$F$2:$H$1276,"EKEB") -> 0 | F165: =COUNTIF(Eingabe!$I$2:$K$1276,"EKEB") -> 0 | G165: onfinalstudio | H165: 2.0.0 | I165: EBJ | J165: Europa | K165: 2023-05-22 | L165: 20/24 | S165: =IFERROR(AVERAGEIF(Eingabe!$I$2:$I$1276, "EKEB", Eingabe!$O$2:$O$1276), 0) -> 0
A166: EKRK | B166: Roskilde/Kopenhagen | C166: Basis | D166: Dänemark | E166: =COUNTIF(Eingabe!$F$2:$H$1276,"EKRK") -> 0 | F166: =COUNTIF(Eingabe!$I$2:$K$1276,"EKRK") -> 0 | G166: Freeware | I166: RKE | J166: Europa | K166: 2025-02-14 | L166: 20/24 | S166: =IFERROR(AVERAGEIF(Eingabe!$I$2:$I$1276, "EKRK", Eingabe!$O$2:$O$1276), 0) -> 0
A167: EKRN | B167: Ronne-Bornholm | C167: World Update 5 | D167: Dänemark | E167: =COUNTIF(Eingabe!$F$2:$H$1276,"EKRN") -> 0 | F167: =COUNTIF(Eingabe!$I$2:$K$1276,"EKRN") -> 0 | G167: simnord | H167: 1.5.3 | I167: RNN | J167: Europa | K167: 2026-01-11 | L167: 24 | S167: =IFERROR(AVERAGEIF(Eingabe!$I$2:$I$1276, "EKRN", Eingabe!$O$2:$O$1276), 0) -> 0
A168: EKSB | B168: Sønderborg | C168: Basis | D168: Dänemark | E168: =COUNTIF(Eingabe!$F$2:$H$1276,"EKSB") -> 0 | F168: =COUNTIF(Eingabe!$I$2:$K$1276,"EKSB") -> 0 | G168: simnord | H168: 1.1.1 | I168: SGD | J168: Europa | K168: 2026-01-22 | L168: 24 | S168: =IFERROR(AVERAGEIF(Eingabe!$I$2:$I$1276, "EKSB", Eingabe!$O$2:$O$1276), 0) -> 0
A169: EKVG | B169: Vagar/Farör Inseln | C169: Basis | D169: Dänemark | E169: =COUNTIF(Eingabe!$F$2:$H$1276,"EKVG") -> 0 | F169: =COUNTIF(Eingabe!$I$2:$K$1276,"EKVG") -> 0 | G169: mkstudios | H169: 1.1.0 | I169: FAE | J169: Europa | K169: 2023-10-16 | L169: 20/24 | S169: =IFERROR(AVERAGEIF(Eingabe!$I$2:$I$1276, "EKVG", Eingabe!$O$2:$O$1276), 0) -> 0
A170: EKYT | B170: Aalborg | C170: Basis | D170: Dänemark | E170: =COUNTIF(Eingabe!$F$2:$H$1276,"EKYT") -> 0 | F170: =COUNTIF(Eingabe!$I$2:$K$1276,"EKYT") -> 0 | G170: simnord | H170: 1.7.1 | I170: AAL | J170: Europa | K170: 2026-01-03 | L170: 24 | S170: =IFERROR(AVERAGEIF(Eingabe!$I$2:$I$1276, "EKYT", Eingabe!$O$2:$O$1276), 0) -> 0
A171: ELLX | B171: Luxembourg- Findel | C171: Basis | D171: Luxembourg | E171: =COUNTIF(Eingabe!$F$2:$H$1276,"ELLX") -> 0 | F171: =COUNTIF(Eingabe!$I$2:$K$1276,"ELLX") -> 0 | G171: JustSim | H171: 1.4.3 | I171: LUX | J171: Europa | K171: 2025-07-30 | L171: 24 | S171: =IFERROR(AVERAGEIF(Eingabe!$I$2:$I$1276, "ELLX", Eingabe!$O$2:$O$1276), 0) -> 0
A172: ENAL | B172: Alesund-Vigra | C172: Basis | D172: Norwegen | E172: =COUNTIF(Eingabe!$F$2:$H$1276,"ENAL") -> 0 | F172: =COUNTIF(Eingabe!$I$2:$K$1276,"ENAL") -> 0 | G172: ORBX | H172: 1.0.0 | I172: AES | J172: Europa | K172: 2025-11-23 | L172: 24 | S172: =IFERROR(AVERAGEIF(Eingabe!$I$2:$I$1276, "ENAL", Eingabe!$O$2:$O$1276), 0) -> 0
A173: ENAT | B173: Alta | C173: Basis | D173: Norwegen | E173: =COUNTIF(Eingabe!$F$2:$H$1276,"ENAT") -> 0 | F173: =COUNTIF(Eingabe!$I$2:$K$1276,"ENAT") -> 0 | G173: Aerosoft | H173: 1.2.1 | I173: ALF | J173: Europa | K173: 2023-01-05 | L173: 20/24 | S173: =IFERROR(AVERAGEIF(Eingabe!$I$2:$I$1276, "ENAT", Eingabe!$O$2:$O$1276), 0) -> 0
A174: ENBR | B174: Bergen | C174: Basis | D174: Norwegen | E174: =COUNTIF(Eingabe!$F$2:$H$1276,"ENBR") -> 0 | F174: =COUNTIF(Eingabe!$I$2:$K$1276,"ENBR") -> 0 | G174: slv | H174: 2.0.3 | I174: BGO | J174: Europa | K174: 2025-12-13 | L174: 24 | S174: =IFERROR(AVERAGEIF(Eingabe!$I$2:$I$1276, "ENBR", Eingabe!$O$2:$O$1276), 0) -> 0
A175: ENCN | B175: Kristiansand | C175: Basis | D175: Norwegen | E175: =COUNTIF(Eingabe!$F$2:$H$1276,"ENCN") -> 0 | F175: =COUNTIF(Eingabe!$I$2:$K$1276,"ENCN") -> 0 | G175: Gaya Simulations | H175: 1.0.0 | I175: KRS | J175: Europa | K175: 2021-05-10 | L175: 20/24 | S175: =IFERROR(AVERAGEIF(Eingabe!$I$2:$I$1276, "ENCN", Eingabe!$O$2:$O$1276), 0) -> 0
A176: ENEV | B176: Narvik | C176: Basis | D176: Norwegen | E176: =COUNTIF(Eingabe!$F$2:$H$1276,"ENEV") -> 0 | F176: =COUNTIF(Eingabe!$I$2:$K$1276,"ENEV") -> 0 | G176: mmsimulations | H176: 1.2.1 | I176: EVE | J176: Europa | K176: 2026-05-25 | L176: 20/24 | S176: =IFERROR(AVERAGEIF(Eingabe!$I$2:$I$1276, "ENEV", Eingabe!$O$2:$O$1276), 0) -> 0
A177: ENGM | B177: Oslo-Gardermoen | C177: Basis | D177: Norwegen | E177: =COUNTIF(Eingabe!$F$2:$H$1276,"ENGM") -> 1 | F177: =COUNTIF(Eingabe!$I$2:$K$1276,"ENGM") -> 1 | G177: ORBX | H177: 1.0.0 | I177: OSL | J177: Europa | K177: 2026-03-20 | L177: 24 | P177: ✔️ | Q177: ✔️ | S177: =IFERROR(AVERAGEIF(Eingabe!$I$2:$I$1276, "ENGM", Eingabe!$O$2:$O$1276), 0) -> 445.97
A178: ENHD | B178: Haugesund | C178: Basis | D178: Norwegen | E178: =COUNTIF(Eingabe!$F$2:$H$1276,"ENHF") -> 0 | F178: =COUNTIF(Eingabe!$I$2:$K$1276,"ENHF") -> 0 | G178: inibuilds | H178: 1.0.1 | I178: HAU | J178: Europa | K178: 2026-02-28 | L178: 20/24 | S178: =IFERROR(AVERAGEIF(Eingabe!$I$2:$I$1276, "ENHD", Eingabe!$O$2:$O$1276), 0) -> 0
A179: ENHF | B179: Hammerfest | C179: Basis | D179: Norwegen | E179: =COUNTIF(Eingabe!$F$2:$H$1276,"ENHF") -> 0 | F179: =COUNTIF(Eingabe!$I$2:$K$1276,"ENHF") -> 0 | G179: ORBX | H179: 1.0.0 | I179: KSU | J179: Europa | K179: 2026-02-19 | L179: 24 | S179: =IFERROR(AVERAGEIF(Eingabe!$I$2:$I$1276, "ENHF", Eingabe!$O$2:$O$1276), 0) -> 0
A180: ENKB | B180: Kristiansund | C180: Basis | D180: Norwegen | E180: =COUNTIF(Eingabe!$F$2:$H$1276,"ENKB") -> 0 | F180: =COUNTIF(Eingabe!$I$2:$K$1276,"ENKB") -> 0 | G180: xwingstudios | H180: 1.0.1 | I180: KSU | J180: Europa | K180: 2024-05-30 | L180: 20/24 | S180: =IFERROR(AVERAGEIF(Eingabe!$I$2:$I$1276, "ENKB", Eingabe!$O$2:$O$1276), 0) -> 0
A181: ENKR | B181: Kirkenes | C181: Basis | D181: Norwegen | E181: =COUNTIF(Eingabe!$F$2:$H$1276,"ENKR") -> 0 | F181: =COUNTIF(Eingabe!$I$2:$K$1276,"ENKR") -> 0 | G181: onfinalstudio | H181: 1.1.0 | I181: KKN | J181: Europa | K181: 2023-06-08 | L181: 20/24 | S181: =IFERROR(AVERAGEIF(Eingabe!$I$2:$I$1276, "ENKR", Eingabe!$O$2:$O$1276), 0) -> 0
A182: ENML | B182: Aro-Molde | C182: Basis | D182: Norwegen | E182: =COUNTIF(Eingabe!$F$2:$H$1276,"ENML") -> 0 | F182: =COUNTIF(Eingabe!$I$2:$K$1276,"ENML") -> 0 | G182: ORBX | H182: 1.0.0 | I182: MOL | J182: Europa | K182: 2025-12-04 | L182: 24 | S182: =IFERROR(AVERAGEIF(Eingabe!$I$2:$I$1276, "ENML", Eingabe!$O$2:$O$1276), 0) -> 0
A183: ENNO | B183: Notodden | C183: Basis | D183: Norwegen | E183: =COUNTIF(Eingabe!$F$2:$H$1276,"ENNO") -> 0 | F183: =COUNTIF(Eingabe!$I$2:$K$1276,"ENNO") -> 0 | G183: ORBX | H183: 1.0.0 | I183: NTB | J183: Europa | K183: 2025-12-04 | L183: 24 | S183: =IFERROR(AVERAGEIF(Eingabe!$I$2:$I$1276, "ENNO", Eingabe!$O$2:$O$1276), 0) -> 0
A184: ENOL | B184: Ørland | C184: Basis | D184: Norwegen | E184: =COUNTIF(Eingabe!$F$2:$H$1276,"ENOL") -> 0 | F184: =COUNTIF(Eingabe!$I$2:$K$1276,"ENOL") -> 0 | G184: Standard | H184: *** | I184: OLA | J184: Europa | K184: *** | L184: 24 | S184: =IFERROR(AVERAGEIF(Eingabe!$I$2:$I$1276, "ENOL", Eingabe!$O$2:$O$1276), 0) -> 0
A185: ENSB | B185: Spitzbergen-Longyear | C185: World Update 5 | D185: Norwegen | E185: =COUNTIF(Eingabe!$F$2:$H$1276,"ENSB") -> 0 | F185: =COUNTIF(Eingabe!$I$2:$K$1276,"ENSB") -> 0 | G185: inibuilds | H185: 1.0.1 | I185: LYR | J185: Europa | K185: 2026-02-12 | L185: 24 | S185: =IFERROR(AVERAGEIF(Eingabe!$I$2:$I$1276, "ENSB", Eingabe!$O$2:$O$1276), 0) -> 0
A186: ENSG | B186: Sogndal | C186: Basis | D186: Norwegen | E186: =COUNTIF(Eingabe!$F$2:$H$1276,"ENSG") -> 0 | F186: =COUNTIF(Eingabe!$I$2:$K$1276,"ENSG") -> 0 | G186: ORBX | H186: 1.0.0 | I186: SOG | J186: Europa | K186: 2025-07-12 | L186: 24 | S186: =IFERROR(AVERAGEIF(Eingabe!$I$2:$I$1276, "ENSG", Eingabe!$O$2:$O$1276), 0) -> 0
A187: ENTC | B187: Tromsoe | C187: Basis | D187: Norwegen | E187: =COUNTIF(Eingabe!$F$2:$H$1276,"ENTC") -> 0 | F187: =COUNTIF(Eingabe!$I$2:$K$1276,"ENTC") -> 0 | G187: mmsimulations | H187: 1.4.2 | I187: TOS | J187: Europa | K187: 2025-12-13 | L187: 20/24 | S187: =IFERROR(AVERAGEIF(Eingabe!$I$2:$I$1276, "ENTC", Eingabe!$O$2:$O$1276), 0) -> 0
A188: ENTO | B188: Sandefjord | C188: Basis | D188: Norwegen | E188: =COUNTIF(Eingabe!$F$2:$H$1276,"ENTO") -> 0 | F188: =COUNTIF(Eingabe!$I$2:$K$1276,"ENTO") -> 0 | G188: ORBX | H188: 1.0.0 | I188: TRF | J188: Europa | K188: 2025-11-23 | L188: 24 | S188: =IFERROR(AVERAGEIF(Eingabe!$I$2:$I$1276, "ENTO", Eingabe!$O$2:$O$1276), 0) -> 0
A189: ENVA | B189: Trondheim-Vaernes | C189: Basis | D189: Norwegen | E189: =COUNTIF(Eingabe!$F$2:$H$1276,"ENVA") -> 0 | F189: =COUNTIF(Eingabe!$I$2:$K$1276,"ENVA") -> 0 | G189: Aerosoft | H189: 1.1.1 | I189: TRD | J189: Europa | K189: 2022-12-07 | L189: 20/24 | S189: =IFERROR(AVERAGEIF(Eingabe!$I$2:$I$1276, "ENVA", Eingabe!$O$2:$O$1276), 0) -> 0
A190: EPBY | B190: Bydgoszcz | C190: Basis | D190: Polen | E190: =COUNTIF(Eingabe!$F$2:$H$1276,"EPBY") -> 0 | F190: =COUNTIF(Eingabe!$I$2:$K$1276,"EPBY") -> 0 | G190: drzewieckidesign | H190: 1.3.0 | I190: GDN | J190: Europa | K190: 2026-03-20 | L190: 20/24 | S190: =IFERROR(AVERAGEIF(Eingabe!$I$2:$I$1276, "EPBY", Eingabe!$O$2:$O$1276), 0) -> 0
A191: EPGD | B191: Lech Walesa-Danzig | C191: Basis | D191: Polen | E191: =COUNTIF(Eingabe!$F$2:$H$1276,"EPGD") -> 0 | F191: =COUNTIF(Eingabe!$I$2:$K$1276,"EPGD") -> 0 | G191: drzewieckidesign | H191: 1.6.0 | I191: GDN | J191: Europa | K191: 2026-02-19 | L191: 20/24 | S191: =IFERROR(AVERAGEIF(Eingabe!$I$2:$I$1276, "EPGD", Eingabe!$O$2:$O$1276), 0) -> 0
A192: EPKK | B192: Krakau-Balice | C192: Basis | D192: Polen | E192: =COUNTIF(Eingabe!$F$2:$H$1276,"EPKK") -> 0 | F192: =COUNTIF(Eingabe!$I$2:$K$1276,"EPKK") -> 0 | G192: drzewieckidesign | H192: 1.4.0 | I192: KRK | J192: Europa | K192: 2023-11-03 | L192: 20/24 | S192: =IFERROR(AVERAGEIF(Eingabe!$I$2:$I$1276, "EPKK", Eingabe!$O$2:$O$1276), 0) -> 0
A193: EPKT | B193: Kattowitz | C193: Basis | D193: Polen | E193: =COUNTIF(Eingabe!$F$2:$H$1276,"EPKT") -> 0 | F193: =COUNTIF(Eingabe!$I$2:$K$1276,"EPKT") -> 0 | G193: drzewieckidesign | H193: 1.1.0 | I193: KTW | J193: Europa | K193: 2026-02-12 | L193: 20/24 | S193: =IFERROR(AVERAGEIF(Eingabe!$I$2:$I$1276, "EPKT", Eingabe!$O$2:$O$1276), 0) -> 0
A194: EPLB | B194: Lublin | C194: Basis | D194: Polen | E194: =COUNTIF(Eingabe!$F$2:$H$1276,"EPLB") -> 0 | F194: =COUNTIF(Eingabe!$I$2:$K$1276,"EPLB") -> 0 | G194: drzewieckidesign | H194: 1.3.0 | I194: LUZ | J194: Europa | K194: 2026-03-20 | L194: 20/24 | P194: =IF(E194=0," ","✔️") ->  | Q194: =IF(F194=0," ","✔️") ->  | S194: =IFERROR(AVERAGEIF(Eingabe!$I$2:$I$1276, "EPLB", Eingabe!$O$2:$O$1276), 0) -> 0
A195: EPLL | B195: Lodz | C195: Basis | D195: Polen | E195: =COUNTIF(Eingabe!$F$2:$H$1276,"EPLL") -> 0 | F195: =COUNTIF(Eingabe!$I$2:$K$1276,"EPLL") -> 0 | G195: flydesign | H195: 1.1.0 | I195: LCJ | J195: Europa | K195: 2024-03-08 | L195: 20/24 | S195: =IFERROR(AVERAGEIF(Eingabe!$I$2:$I$1276, "EPLL", Eingabe!$O$2:$O$1276), 0) -> 0
A196: EPMO | B196: Warschau-Modlin | C196: Basis | D196: Polen | E196: =COUNTIF(Eingabe!$F$2:$H$1276,"EPMO") -> 0 | F196: =COUNTIF(Eingabe!$I$2:$K$1276,"EPMO") -> 0 | G196: drzewieckidesign | H196: 1.2.0 | I196: WMI | J196: Europa | K196: 2022-05-14 | L196: 20/24 | S196: =IFERROR(AVERAGEIF(Eingabe!$I$2:$I$1276, "EPMO", Eingabe!$O$2:$O$1276), 0) -> 0
A197: EPPO | B197: Posen | C197: Basis | D197: Polen | E197: =COUNTIF(Eingabe!$F$2:$H$1276,"EPPO") -> 0 | F197: =COUNTIF(Eingabe!$I$2:$K$1276,"EPPO") -> 0 | G197: Fly 2 High | H197: 1.5.0 | I197: POZ | J197: Europa | K197: 2024-03-11 | L197: 20/24 | S197: =IFERROR(AVERAGEIF(Eingabe!$I$2:$I$1276, "EPPO", Eingabe!$O$2:$O$1276), 0) -> 0
A198: EPRZ | B198: Rzeszów-Jasionka | C198: Basis | D198: Polen | E198: =COUNTIF(Eingabe!$F$2:$H$1276,"EPRZ") -> 0 | F198: =COUNTIF(Eingabe!$I$2:$K$1276,"EPRZ") -> 0 | G198: drzewieckidesign | H198: 1.0.0 | I198: RZE | J198: Europa | K198: 2022-06-13 | L198: 20/24 | S198: =IFERROR(AVERAGEIF(Eingabe!$I$2:$I$1276, "EPRZ", Eingabe!$O$2:$O$1276), 0) -> 0
A199: EPSC | B199: Stettin | C199: Basis | D199: Polen | E199: =COUNTIF(Eingabe!$F$2:$H$1276,"EPSC") -> 0 | F199: =COUNTIF(Eingabe!$I$2:$K$1276,"EPSC") -> 0 | G199: drzewieckidesign | H199: 1.0.0 | I199: SZZ | J199: Europa | K199: 2026-04-10 | L199: 20/24 | S199: =IFERROR(AVERAGEIF(Eingabe!$I$2:$I$1276, "EPSC", Eingabe!$O$2:$O$1276), 0) -> 0
A200: EPWA | B200: Warschau Chopin | C200: Basis | D200: Polen | E200: =COUNTIF(Eingabe!$F$2:$H$1276,"EPWA") -> 0 | F200: =COUNTIF(Eingabe!$I$2:$K$1276,"EPWA") -> 0 | G200: drzewieckidesign | H200: 1.2.0 | I200: WAW | J200: Europa | K200: 2025-01-14 | L200: 20/24 | S200: =IFERROR(AVERAGEIF(Eingabe!$I$2:$I$1276, "EPWA", Eingabe!$O$2:$O$1276), 0) -> 0
... 783 more rows

Sheet Flotte
A1: Registrierung | B1: Typ | C1: Name | D1: Hub | E1: Leergewicht | F1: Startgewicht MTOW (KG) | G1: ZFW (KG) | H1: Landegewicht MLW | I1: Reichweite NM | J1: Reichweite KM | K1: Flüge | L1: Gesamt Meilen | M1: Höchstgeschw. Km/h | N1: Höchchstgeschw kt | O1: Länge m. | P1: Länge ft | Q1: Höhe m | R1: Spannweite | S1: Dienstgipfelhöhe m/ft | T1: Nutzlast | U1: Kraftstoffkapazität | V1: Pax | W1: Erstflug | X1: Listenpreis | Y1: ICAO Code
A2: D-AILM | B2: Airbus A319 CFM_WT | C2: Lufthansa | D2: EDDB | E2: 39725 | F2: 75500 | G2: 58500 | H2: 62500 | I2: 3699 | J2: 6850 | K2: =COUNTIF(Eingabe!$C$2:$C$1133,"D-AIAA") -> 0 | L2: =SUMIF(Eingabe!$C$2:$C$1133,"D-AIAA",Eingabe!$L$2:$L$1133) -> 0 | M2: 870 | N2: 470 | O2: 33.84 | P2: 111 | Q2: 11.76 | R2: 34.1 | S2: 11887 / 39000 | T2: 13200 kg | U2: 18729 kg | V2: 124 -153 | W2: 1995-08-25 | X2: 92,3 Mio. | Y2: A319
A3: D-ABGJ | B3: Airbus A319 CFM_WT | C3: Air Berlin | D3: EDDB | E3: 39725 | F3: 75500 | G3: 58500 | H3: 62500 | I3: 3699 | J3: 6850 | K3: =COUNTIF(Eingabe!$C$2:$C$1133,"D-ABGJ") -> 0 | L3: =SUMIF(Eingabe!$C$2:$C$1133,"D-ABGJ",Eingabe!$L$2:$L$1133) -> 0 | M3: 870 | N3: 470 | O3: 33.84 | P3: 111 | Q3: 11.76 | R3: 34.1 | S3: 11888 / 39000 | T3: 13200 kg | U3: 18729 kg | V3: 125 -153 | W3: 1995-08-26 | X3: 92,3 Mio. | Y3: A319
A4: D-AIAC | B4: Airbus A319 CFM_SL | C4: inter-wings | D4: EDDL | E4: 39725 | F4: 75500 | G4: 58500 | H4: 62500 | I4: 3699 | J4: 6850 | K4: =COUNTIF(Eingabe!$C$2:$C$1133,"D-AIAC") -> 67 | L4: =SUMIF(Eingabe!$C$2:$C$1133,"D-AIAC",Eingabe!$L$2:$L$1133) -> 42872 | M4: 870 | N4: 470 | O4: 33.84 | P4: 111 | Q4: 11.76 | R4: 34.1 | S4: 11889 / 39000 | T4: 13200 kg | U4: 18729 kg | V4: 126 -153 | W4: 1995-08-27 | X4: 92,3 Mio. | Y4: A319
A5: D-AKNT | B5: Airbus A319 CFM_WT | C5: Eurowings | D5: EDDN | E5: 39725 | F5: 75500 | G5: 58500 | H5: 62500 | I5: 3699 | J5: 6850 | K5: =COUNTIF(Eingabe!$C$2:$C$1133,"D-AKNT") -> 0 | L5: =SUMIF(Eingabe!$C$2:$C$1133,"D-AKNT",Eingabe!$L$2:$L$1133) -> 0 | M5: 870 | N5: 470 | O5: 33.84 | P5: 111 | Q5: 11.76 | R5: 34.1 | S5: 11890 / 39000 | T5: 13200 kg | U5: 18729 kg | V5: 127 -153 | W5: 1995-08-28 | X5: 92,3 Mio. | Y5: A319
B6: Airbus A319 IAE_WT | D6: EDDN | E6: 39725 | F6: 75500 | G6: 58500 | H6: 62500 | I6: 3699 | J6: 6850 | K6: =COUNTIF(Eingabe!$C$2:$C$1133,"D-AIAF") -> 0 | L6: =SUMIF(Eingabe!$C$2:$C$1133,"D-AIAF",Eingabe!$L$2:$L$1133) -> 0 | M6: 870 | N6: 470 | O6: 33.84 | P6: 111 | Q6: 11.76 | R6: 34.1 | S6: 11891 / 39000 | T6: 13200 kg | U6: 18729 kg | V6: 128 -153 | W6: 1995-08-29 | X6: 92,3 Mio. | Y6: A319
B7: Airbus A319 IAE_WT | D7: EDDB | E7: 39725 | F7: 75500 | G7: 58500 | H7: 62500 | I7: 3699 | J7: 6850 | K7: =COUNTIF(Eingabe!$C$2:$C$1133,"D-AIAG") -> 0 | L7: =SUMIF(Eingabe!$C$2:$C$1133,"D-AIAG",Eingabe!$L$2:$L$1133) -> 0 | M7: 870 | N7: 470 | O7: 33.84 | P7: 111 | Q7: 11.76 | R7: 34.1 | S7: 11892 / 39000 | T7: 13200 kg | U7: 18729 kg | V7: 129 -153 | W7: 1995-08-30 | X7: 92,3 Mio. | Y7: A319
